Workbook

Sheet Payback Estimator-4400B
C1: $ | D1: Single Currency
C2: ="$ x " & C3 & " = " & G12 -> $ x 1 = $ | D2: CONFIDENTIAL
B3: $ U.S. Dollars | C3: 1 | D3: Payback Estimator
A4: POWER+ GENERATOR 4400B+ System Package | B4: =C4/$C$3 -> 145000 | C4: 145000 | D4: 4400B+ POWER+ GENERATOR High Temperature | G4: List fill range for currency selection - linked only to visible drop-down menu on main page. | H4: List fill range for currency display
A5: Liquid Loop Radiator (LLR) | B5: =C5*(1/$C$3) -> 45000 | C5: 45000 | D5: Liquid Loop Radiator size for location ambient and thermal duty | G5: $ | H5: Single Currency | I5: 5
A6: In-rush Reduction System | B6: 0 | D6: In-rush Reduction System per local codes (estimated costs) | G6: € | H6: Dual Currency | I6: 5
A7: LLR interconnect plumbing | B7: 0 | D7: Refrigerant plumbing, piping, valves, and assembly | G7: £ | I7: 5
A8: Water plumbing | B8: 10000 | C8: 10000 | D8: Plumbing, piping, connections, valves and assembly (estimated costs) | G8: ¥ | H8: Single Currency | I8: 5
A9: Hot water bypass assembly | B9: =C9*(1/$C$3) -> 0 | D9: Plumbing, piping, connections, valves and assembly | G9: ฿ | I9: 5
A10: Electrical components and hookup | B10: 10000 | C10: 10000 | D10: Electrical conduit, wiring, and component installation (estimated costs) | G10: ‎₱ | I10: 5
A11: Sitework and footings for P+ | B11: 5000 | C11: 5000 | D11: Site specific (estimated costs) | G11: ₩ | I11: 5
A12: R245fa refrigerant "B+" Models (High Temperature) | B12: 10000 | C12: 10000 | D12: 250 kg (550 lbs. US) required. Honeywell Genetron R245fa recommended | G12: $ | I12: 5
A13: POWER+ GENERATOR installation | B13: 0 | D13: Site specific (estimated costs) | G13: 0 | I13: 5
A14: Exhaust gas heat exchanger (outside ET scope of supply) | B14: 0 | D14: Exhaust gas heat exchanger, pump, and plumbing (estimated costs)
A15: Dual Heat Stream option | B15: =C15*(1/$C$3) -> 0 | D15: Dual Heat Stream upgrade included | G15: 0
A16: Engine Radiator Replacement option | B16: 0 | D16: Radiator with a Payback option upgrade
A17: Heat exchanger (Estimate) | B17: 0 | D17: Heat exchangers are specific to project & heat source (estimated costs)
A18: Clean water heat exchanger (outside ET scope of supply) | B18: 0 | D18: Clean water heat exchanger (estimated cost)
A19: Sigma Thermal Heater | B19: 0 | D19: Sigma Thermal Heater (estimated cost)
A20: Commissioning and startup of P+ | B20: =C20/$C$3 -> 6500 | C20: 6500 | D20: Technicians with travel expenses for two days
A21: Shipping Liquid Loop Radiator | B21: 0 | D21: Estimated shipping of LLR from factory to site
A22: Shipping POWER+ GENERATOR | B22: =C22/$C$3 -> 10000 | C22: 10000 | D22: Estimated shipping of POWER+ GENERATOR
A23: Shipping refrigerant | B23: 0 | D23: Estimated shipping of refrigerant from factory to site
A24: Shipping LLR support structure | B24: 0 | D24: Estimated shipping of support structure from factory to site
A25: Engineering costs | B25: 0 | D25: Engineering costs required for this project
A26: Estimated Total Capital Expenditure (CapEx) | B26: =SUM(B5:B25,B4) -> 241500 | C26: =SUM(C5:C25,C4) -> 241500 | D26: Estimated Total CapEx for this Project
A27: 26% Investment Tax Credit | B27: =C27*(1/$C$3) -> -62790 | C27: =-0.26*C26 -> -62790 | D27: US Investment Tax Credit (if applicable)
A28: Federal grants(deductive) | B28: =C28*(1/$C$3) -> 0 | C28: 0 | D28: (user editable)
A29: Accelerated depreciation(deductive) | B29: =C29*(1/$C$3) -> 0 | C29: 0 | D29: (user editable)
A30: State incentives(deductive) | B30: =C30*(1/$C$3) -> 0 | C30: 0 | D30: (user editable)
A31: State grants(deductive) | B31: =C31*(1/$C$3) -> 0 | C31: 0 | D31: (user editable)
A32: Total incentives(deductive) | B32: =SUM(B27:B31) -> -62790 | C32: =SUM(C27:C31) -> -62790 | D32: Total sum of all deductives
A33: CapEx including Incentives | B33: =B26+B32 -> 178710 | C33: =C26+C32 -> 178710 | D33: CapEx including Incentives
A34: Total value of power per kWh | B34: =C34*(1/$C$3) -> 0.1 | C34: 0.1 | D34: Average value of kWh produced
A35: Percentage of uptime hours (100% max/8760hrs) | B35: =C35 -> 0.97 | C35: 0.97 | D35: =CONCATENATE(TEXT(100*C35,"0"),"% uptime is equal to ",TEXT(C35*8760,"0")," hrs.") -> 97% uptime is equal to 8497 hrs.
A36: Estimated net power output in kWe | B36: =C36 -> 55 | C36: 55 | D36: P+ net output in kWe
A37: Fan radiator offset (estimate only) | B37: =C37 -> 0 | D37: Power savings from fan radiator
A38: Average Total Net Power Output in kWe | B38: =C38 -> 55 | C38: =SUM(C36:C37) -> 55 | D38: Average Total Net Power Output in kWe
A39: Annual value of power produced by P+ | B39: =$C$39*(1/$C$3) -> 46734.6 | C39: =(C35*8760*C34*C38) -> 46734.6 | D39: =CONCATENATE("1st year annual revenue from POWER+ GENERATOR [",G12,ROUND(C39/12,0)," Gross per month]") -> 1st year annual revenue from POWER+ GENERATOR [$3895 Gross per month]
A40: =CONCATENATE(" AVG annual P+ O&M expense based on ",G12," ",TEXT('O&M Cost Estimator 4400B'!G15/'O&M Cost Estimator 4400B'!F9/'O&M Cost Estimator 4400B'!F11,"0.000")," per kWh") -> AVG annual P+ O&M expense based on $ 0.011 per kWh | B40: =(LOOKUP('O&M Cost Estimator 4400B'!F10,'O&M Cost Estimator 4400B'!E22:E61,'O&M Cost Estimator 4400B'!I22:I61)+LOOKUP('O&M Cost Estimator 4400B'!F10,'O&M Cost Estimator 4400B'!E22:E61,'O&M Cost Estimator 4400B'!K22:K61))/B42 -> 5343.75 | C40: =(LOOKUP('O&M Cost Estimator 4400B'!F10,'O&M Cost Estimator 4400B'!O22:O61,'O&M Cost Estimator 4400B'!S22:S61)+LOOKUP('O&M Cost Estimator 4400B'!F10,'O&M Cost Estimator 4400B'!O22:O61,'O&M Cost Estimator 4400B'!U22:U61))/C42 -> 5343.75 | D40: Operation and maintenance expenses based on projected lifetime
A41: Simple Payback in Years | B41: ='Internal Rate of Return-4400B'!T5 -> 3.894768673 | C41: =B41 -> 3.894768673 | D41: =CONCATENATE("Years (this does account for ",TEXT(100*B43,"0"),"% increase ",G12,"/kWh for electricity)") -> Years (this does account for 0% increase $/kWh for electricity)
A42: Projected lifetime | B42: =C42 -> 20 | C42: 20 | D42: Years
A43: =" Estimated % annual increase in " & G12 & "/kWh" -> Estimated % annual increase in $/kWh | B43: =C43 -> 0 | C43: 0 | D43: Estimated percentage per year in increased power costs
A44: Projected Lifetime Net Revenue | B44: =$C$44*(1/$C$3) -> 649107 | C44: =LOOKUP(C42,'Internal Rate of Return-4400B'!A5:A25,'Internal Rate of Return-4400B'!N5:N25) -> 649107 | D44: =CONCATENATE("Based on ",TEXT(100*C43,"0.00"),"% increase in power costs per year") -> Based on 0.00% increase in power costs per year
A45: Total cost per kWh over lifetime | B45: =(B33/(8760*B35*B38*B42))+'O&M Cost Estimator 4400B'!F12 -> 0.03055391509 | C45: =(C33/(8760*C35*C38*C42))+'O&M Cost Estimator 4400B'!G12 -> 0.03055391509 | D45: =CONCATENATE("Total cost over lifetime including O&M costs of ",G12,TEXT('O&M Cost Estimator 4400B'!G12,"0.000")," per kWh") -> Total cost over lifetime including O&M costs of $0.011 per kWh
A46: IRR for projected lifetime | B46: ='Internal Rate of Return-4400B'!F109 -> 0.2360613418 | C46: ='Internal Rate of Return-4400B'!M109 -> 0.2360613418 | D46: =CONCATENATE("Internal Rate of Return for ",TEXT(C42,"0.0")," years") -> Internal Rate of Return for 20.0 years
A47: Estimated inflation (discount) rate | B47: =C47 -> 0 | C47: 0 | D47: =CONCATENATE("Inflation rate of ",TEXT(C47,"0.00%"),) -> Inflation rate of 0.00%
A49: =" Net Present Value of Investment over " & C42 & " Years" -> Net Present Value of Investment over 20 Years | B49: ='Internal Rate of Return-4400B'!F108 -> 649107 | C49: ='Internal Rate of Return-4400B'!M108 -> 649107 | D49: =CONCATENATE("Based on inflation rate of ",TEXT(C47,"0.00%"),) -> Based on inflation rate of 0.00%
A50: This document contains confidential and proprietary information and is supplied purely to enable you to evaluate details concerning ElectraTherm products and services. No part of this document may be disclosed or transferred outside ElectraTherm or the current interested parties. No part of this document may be reproduced or transmitted in any form or by any means, including photography and recording, without the written permission of ElectraTherm, an application for which should be addressed to the organization. Such written permission must also be obtained before any part of this document is stored in a retrieval system of any nature.
A51: Copyright © ElectraTherm, Inc. 2021. All Rights Reserved | D51: B Model Payback Estimator, Dual currency REV 01_20210714

Sheet Internal Rate of Return-4400B
G1: Payback Estimator
A2: POWER+ 4400B IRR calculation(USD) | G2: CONFIDENTIAL | I2: POWER+ 4400B IRR calculation(EUR)
G3: Copyright © 2020 ElectraTherm
A4: Year: | B4: Capital Expenditure [Capex] ($) | C4: Annual maintenance costs (estimated) ($) | D4: Annual income from kwh produced ($) | E4: Net cash flow ($) | F4: Cumulative return ($) | G4: IRR | I4: Year: | J4: Capital Expenditure [Capex] (€) | K4: Annual maintenance costs (estimated) (€) | L4: Annual income from kwh produced (€) | M4: Net cash flow (€) | N4: Cumulative return (€) | O4: IRR | S4: payback
A5: 0 | B5: =-'Payback Estimator-4400B'!B33 -> -178710 | E5: =SUM(B5) -> -178710 | F5: =SUM(B5) -> -178710 | I5: 0 | J5: =-'Payback Estimator-4400B'!C33 -> -178710 | M5: =SUM(J5) -> -178710 | N5: =SUM(J5) -> -178710 | S5: 99999 | T5: =MIN(S5:S105) -> 3.894768673
A6: 1 | C6: =-LOOKUP(((A6*'O&M Cost Estimator 4400B'!F$7)-MOD((A6*'O&M Cost Estimator 4400B'!F$7),4400)),'O&M Cost Estimator 4400B'!F21:F80,'O&M Cost Estimator 4400B'!I21:I80)-LOOKUP(((A6*'O&M Cost Estimator 4400B'!F$7)-MOD((A6*'O&M Cost Estimator 4400B'!F$7),4400)),'O&M Cost Estimator 4400B'!F21:F80,'O&M Cost Estimator 4400B'!K21:K80) -> -287 | D6: ='Payback Estimator-4400B'!$B$39 -> 46734.6 | E6: =C6+D6 -> 46447.6 | F6: =SUM($E$5:E6) -> -132262.4 | G6: =IRR($E$5:E6) -> -0.7400951262 | I6: 1 | K6: =-LOOKUP(((A6*'O&M Cost Estimator 4400B'!F$7)-MOD((A6*'O&M Cost Estimator 4400B'!F$7),4400)),'O&M Cost Estimator 4400B'!P21:P80,'O&M Cost Estimator 4400B'!S21:S80)-LOOKUP(((A6*'O&M Cost Estimator 4400B'!F$7)-MOD((A6*'O&M Cost Estimator 4400B'!F$7),4400)),'O&M Cost Estimator 4400B'!P21:P80,'O&M Cost Estimator 4400B'!U21:U80) -> -287 | L6: ='Payback Estimator-4400B'!$C$39 -> 46734.6 | M6: =K6+L6 -> 46447.6 | N6: =SUM($M$5:M6) -> -132262.4 | O6: =IRR($M$5:M6) -> -0.7400951262 | S6: =IF(S5=99999,IF(F6>=0,A6-F6/E6,99999),99998) -> 99999
A7: 2 | C7: =-LOOKUP(((A7*'O&M Cost Estimator 4400B'!F$7)-MOD((A7*'O&M Cost Estimator 4400B'!F$7),4400)),'O&M Cost Estimator 4400B'!F$21:F$80,'O&M Cost Estimator 4400B'!I$21:I$80)-LOOKUP(((A7*'O&M Cost Estimator 4400B'!F$7)-MOD((A7*'O&M Cost Estimator 4400B'!F$7),4400)),'O&M Cost Estimator 4400B'!F$21:F$80,'O&M Cost Estimator 4400B'!K$21:K$80)+LOOKUP(((A6*'O&M Cost Estimator 4400B'!F$7)-MOD((A6*'O&M Cost Estimator 4400B'!F$7),4400)),'O&M Cost Estimator 4400B'!F$21:F$80,'O&M Cost Estimator 4400B'!I$21:I$80)+LOOKUP(((A6*'O&M Cost Estimator 4400B'!F$7)-MOD((A6*'O&M Cost Estimator 4400B'!F$7),4400)),'O&M Cost Estimator 4400B'!F$21:F$80,'O&M Cost Estimator 4400B'!K$21:K$80) -> -742 | D7: ='Payback Estimator-4400B'!$B$43*('Payback Estimator-4400B'!$B$39) +D6 -> 46734.6 | E7: 45992.6 | F7: =SUM($E$5:E7) -> -86269.8 | G7: =IRR($E$5:E7) -> -0.3463620798 | I7: 2 | K7: =-LOOKUP(((A7*'O&M Cost Estimator 4400B'!F$7)-MOD((A7*'O&M Cost Estimator 4400B'!F$7),4400)),'O&M Cost Estimator 4400B'!P$21:P$80,'O&M Cost Estimator 4400B'!S$21:S$80)-LOOKUP(((A7*'O&M Cost Estimator 4400B'!F$7)-MOD((A7*'O&M Cost Estimator 4400B'!F$7),4400)),'O&M Cost Estimator 4400B'!P$21:P$80,'O&M Cost Estimator 4400B'!U$21:U$80)+LOOKUP(((A6*'O&M Cost Estimator 4400B'!F$7)-MOD((A6*'O&M Cost Estimator 4400B'!F$7),4400)),'O&M Cost Estimator 4400B'!P$21:P$80,'O&M Cost Estimator 4400B'!S$21:S$80)+LOOKUP(((A6*'O&M Cost Estimator 4400B'!F$7)-MOD((A6*'O&M Cost Estimator 4400B'!F$7),4400)),'O&M Cost Estimator 4400B'!P$21:P$80,'O&M Cost Estimator 4400B'!U$21:U$80) -> -742 | L7: ='Payback Estimator-4400B'!$C$43*('Payback Estimator-4400B'!$C$39)+L6 -> 46734.6 | M7: 45992.6 | N7: =SUM($M$5:M7) -> -86269.8 | O7: =IRR($M$5:M7) -> -0.3463620798 | S7: 99999
A8: 3 | C8: =-LOOKUP(((A8*'O&M Cost Estimator 4400B'!F$7)-MOD((A8*'O&M Cost Estimator 4400B'!F$7),4400)),'O&M Cost Estimator 4400B'!F$21:F$80,'O&M Cost Estimator 4400B'!I$21:I$80)-LOOKUP(((A8*'O&M Cost Estimator 4400B'!F$7)-MOD((A8*'O&M Cost Estimator 4400B'!F$7),4400)),'O&M Cost Estimator 4400B'!F$21:F$80,'O&M Cost Estimator 4400B'!K$21:K$80)+LOOKUP(((A7*'O&M Cost Estimator 4400B'!F$7)-MOD((A7*'O&M Cost Estimator 4400B'!F$7),4400)),'O&M Cost Estimator 4400B'!F$21:F$80,'O&M Cost Estimator 4400B'!I$21:I$80)+LOOKUP(((A7*'O&M Cost Estimator 4400B'!F$7)-MOD((A7*'O&M Cost Estimator 4400B'!F$7),4400)),'O&M Cost Estimator 4400B'!F$21:F$80,'O&M Cost Estimator 4400B'!K$21:K$80) -> -1299 | D8: ='Payback Estimator-4400B'!$B$43*(D7) +D7 -> 46734.6 | E8: 45435.6 | F8: =SUM($E$5:E8) -> -40834.2 | G8: =IRR($E$5:E8) -> -0.1196792201 | I8: 3 | K8: =-LOOKUP(((A8*'O&M Cost Estimator 4400B'!F$7)-MOD((A8*'O&M Cost Estimator 4400B'!F$7),4400)),'O&M Cost Estimator 4400B'!P$21:P$80,'O&M Cost Estimator 4400B'!S$21:S$80)-LOOKUP(((A8*'O&M Cost Estimator 4400B'!F$7)-MOD((A8*'O&M Cost Estimator 4400B'!F$7),4400)),'O&M Cost Estimator 4400B'!P$21:P$80,'O&M Cost Estimator 4400B'!U$21:U$80)+LOOKUP(((A7*'O&M Cost Estimator 4400B'!F$7)-MOD((A7*'O&M Cost Estimator 4400B'!F$7),4400)),'O&M Cost Estimator 4400B'!P$21:P$80,'O&M Cost Estimator 4400B'!S$21:S$80)+LOOKUP(((A7*'O&M Cost Estimator 4400B'!F$7)-MOD((A7*'O&M Cost Estimator 4400B'!F$7),4400)),'O&M Cost Estimator 4400B'!P$21:P$80,'O&M Cost Estimator 4400B'!U$21:U$80) -> -1299 | L8: ='Payback Estimator-4400B'!$C$43*(L7)+L7 -> 46734.6 | M8: 45435.6 | N8: =SUM($M$5:M8) -> -40834.2 | O8: =IRR($M$5:M8) -> -0.1196792201 | S8: 99999
A9: 4 | C9: =-LOOKUP(((A9*'O&M Cost Estimator 4400B'!F$7)-MOD((A9*'O&M Cost Estimator 4400B'!F$7),4400)),'O&M Cost Estimator 4400B'!F$21:F$80,'O&M Cost Estimator 4400B'!I$21:I$80)-LOOKUP(((A9*'O&M Cost Estimator 4400B'!F$7)-MOD((A9*'O&M Cost Estimator 4400B'!F$7),4400)),'O&M Cost Estimator 4400B'!F$21:F$80,'O&M Cost Estimator 4400B'!K$21:K$80)+LOOKUP(((A8*'O&M Cost Estimator 4400B'!F$7)-MOD((A8*'O&M Cost Estimator 4400B'!F$7),4400)),'O&M Cost Estimator 4400B'!F$21:F$80,'O&M Cost Estimator 4400B'!I$21:I$80)+LOOKUP(((A8*'O&M Cost Estimator 4400B'!F$7)-MOD((A8*'O&M Cost Estimator 4400B'!F$7),4400)),'O&M Cost Estimator 4400B'!F$21:F$80,'O&M Cost Estimator 4400B'!K$21:K$80) -> -1098 | D9: ='Payback Estimator-4400B'!$B$43*(D8) +D8 -> 46734.6 | E9: 45636.6 | F9: =SUM($E$5:E9) -> 4802.4 | G9: =IRR($E$5:E9) -> 0.01072759028 | I9: 4 | K9: =-LOOKUP(((A9*'O&M Cost Estimator 4400B'!F$7)-MOD((A9*'O&M Cost Estimator 4400B'!F$7),4400)),'O&M Cost Estimator 4400B'!P$21:P$80,'O&M Cost Estimator 4400B'!S$21:S$80)-LOOKUP(((A9*'O&M Cost Estimator 4400B'!F$7)-MOD((A9*'O&M Cost Estimator 4400B'!F$7),4400)),'O&M Cost Estimator 4400B'!P$21:P$80,'O&M Cost Estimator 4400B'!U$21:U$80)+LOOKUP(((A8*'O&M Cost Estimator 4400B'!F$7)-MOD((A8*'O&M Cost Estimator 4400B'!F$7),4400)),'O&M Cost Estimator 4400B'!P$21:P$80,'O&M Cost Estimator 4400B'!S$21:S$80)+LOOKUP(((A8*'O&M Cost Estimator 4400B'!F$7)-MOD((A8*'O&M Cost Estimator 4400B'!F$7),4400)),'O&M Cost Estimator 4400B'!P$21:P$80,'O&M Cost Estimator 4400B'!U$21:U$80) -> -1098 | L9: ='Payback Estimator-4400B'!$C$43*(L8)+L8 -> 46734.6 | M9: 45636.6 | N9: =SUM($M$5:M9) -> 4802.4 | O9: =IRR($M$5:M9) -> 0.01072759028 | S9: 3.894768673
A10: 5 | C10: =-LOOKUP(((A10*'O&M Cost Estimator 4400B'!F$7)-MOD((A10*'O&M Cost Estimator 4400B'!F$7),4400)),'O&M Cost Estimator 4400B'!F$21:F$80,'O&M Cost Estimator 4400B'!I$21:I$80)-LOOKUP(((A10*'O&M Cost Estimator 4400B'!F$7)-MOD((A10*'O&M Cost Estimator 4400B'!F$7),4400)),'O&M Cost Estimator 4400B'!F$21:F$80,'O&M Cost Estimator 4400B'!K$21:K$80)+LOOKUP(((A9*'O&M Cost Estimator 4400B'!F$7)-MOD((A9*'O&M Cost Estimator 4400B'!F$7),4400)),'O&M Cost Estimator 4400B'!F$21:F$80,'O&M Cost Estimator 4400B'!I$21:I$80)+LOOKUP(((A9*'O&M Cost Estimator 4400B'!F$7)-MOD((A9*'O&M Cost Estimator 4400B'!F$7),4400)),'O&M Cost Estimator 4400B'!F$21:F$80,'O&M Cost Estimator 4400B'!K$21:K$80) -> -22795 | D10: ='Payback Estimator-4400B'!$B$43*(D9) +D9 -> 46734.6 | E10: 23939.6 | F10: =SUM($E$5:E10) -> 28742 | G10: =IRR($E$5:E10) -> 0.05607015656 | I10: 5 | K10: =-LOOKUP(((A10*'O&M Cost Estimator 4400B'!F$7)-MOD((A10*'O&M Cost Estimator 4400B'!F$7),4400)),'O&M Cost Estimator 4400B'!P$21:P$80,'O&M Cost Estimator 4400B'!S$21:S$80)-LOOKUP(((A10*'O&M Cost Estimator 4400B'!F$7)-MOD((A10*'O&M Cost Estimator 4400B'!F$7),4400)),'O&M Cost Estimator 4400B'!P$21:P$80,'O&M Cost Estimator 4400B'!U$21:U$80)+LOOKUP(((A9*'O&M Cost Estimator 4400B'!F$7)-MOD((A9*'O&M Cost Estimator 4400B'!F$7),4400)),'O&M Cost Estimator 4400B'!P$21:P$80,'O&M Cost Estimator 4400B'!S$21:S$80)+LOOKUP(((A9*'O&M Cost Estimator 4400B'!F$7)-MOD((A9*'O&M Cost Estimator 4400B'!F$7),4400)),'O&M Cost Estimator 4400B'!P$21:P$80,'O&M Cost Estimator 4400B'!U$21:U$80) -> -22795 | L10: ='Payback Estimator-4400B'!$C$43*(L9)+L9 -> 46734.6 | M10: 23939.6 | N10: =SUM($M$5:M10) -> 28742 | O10: =IRR($M$5:M10) -> 0.05607015656 | S10: 99998
A11: 6 | C11: =-LOOKUP(((A11*'O&M Cost Estimator 4400B'!F$7)-MOD((A11*'O&M Cost Estimator 4400B'!F$7),4400)),'O&M Cost Estimator 4400B'!F$21:F$80,'O&M Cost Estimator 4400B'!I$21:I$80)-LOOKUP(((A11*'O&M Cost Estimator 4400B'!F$7)-MOD((A11*'O&M Cost Estimator 4400B'!F$7),4400)),'O&M Cost Estimator 4400B'!F$21:F$80,'O&M Cost Estimator 4400B'!K$21:K$80)+LOOKUP(((A10*'O&M Cost Estimator 4400B'!F$7)-MOD((A10*'O&M Cost Estimator 4400B'!F$7),4400)),'O&M Cost Estimator 4400B'!F$21:F$80,'O&M Cost Estimator 4400B'!I$21:I$80)+LOOKUP(((A10*'O&M Cost Estimator 4400B'!F$7)-MOD((A10*'O&M Cost Estimator 4400B'!F$7),4400)),'O&M Cost Estimator 4400B'!F$21:F$80,'O&M Cost Estimator 4400B'!K$21:K$80) -> -742 | D11: ='Payback Estimator-4400B'!$B$43*(D10) +D10 -> 46734.6 | E11: 45992.6 | F11: =SUM($E$5:E11) -> 74734.6 | G11: =IRR($E$5:E11) -> 0.115147361 | I11: 6 | K11: =-LOOKUP(((A11*'O&M Cost Estimator 4400B'!F$7)-MOD((A11*'O&M Cost Estimator 4400B'!F$7),4400)),'O&M Cost Estimator 4400B'!P$21:P$80,'O&M Cost Estimator 4400B'!S$21:S$80)-LOOKUP(((A11*'O&M Cost Estimator 4400B'!F$7)-MOD((A11*'O&M Cost Estimator 4400B'!F$7),4400)),'O&M Cost Estimator 4400B'!P$21:P$80,'O&M Cost Estimator 4400B'!U$21:U$80)+LOOKUP(((A10*'O&M Cost Estimator 4400B'!F$7)-MOD((A10*'O&M Cost Estimator 4400B'!F$7),4400)),'O&M Cost Estimator 4400B'!P$21:P$80,'O&M Cost Estimator 4400B'!S$21:S$80)+LOOKUP(((A10*'O&M Cost Estimator 4400B'!F$7)-MOD((A10*'O&M Cost Estimator 4400B'!F$7),4400)),'O&M Cost Estimator 4400B'!P$21:P$80,'O&M Cost Estimator 4400B'!U$21:U$80) -> -742 | L11: ='Payback Estimator-4400B'!$C$43*(L10)+L10 -> 46734.6 | M11: 45992.6 | N11: =SUM($M$5:M11) -> 74734.6 | O11: =IRR($M$5:M11) -> 0.115147361 | S11: 99998
A12: 7 | C12: =-LOOKUP(((A12*'O&M Cost Estimator 4400B'!F$7)-MOD((A12*'O&M Cost Estimator 4400B'!F$7),4400)),'O&M Cost Estimator 4400B'!F$21:F$80,'O&M Cost Estimator 4400B'!I$21:I$80)-LOOKUP(((A12*'O&M Cost Estimator 4400B'!F$7)-MOD((A12*'O&M Cost Estimator 4400B'!F$7),4400)),'O&M Cost Estimator 4400B'!F$21:F$80,'O&M Cost Estimator 4400B'!K$21:K$80)+LOOKUP(((A11*'O&M Cost Estimator 4400B'!F$7)-MOD((A11*'O&M Cost Estimator 4400B'!F$7),4400)),'O&M Cost Estimator 4400B'!F$21:F$80,'O&M Cost Estimator 4400B'!I$21:I$80)+LOOKUP(((A11*'O&M Cost Estimator 4400B'!F$7)-MOD((A11*'O&M Cost Estimator 4400B'!F$7),4400)),'O&M Cost Estimator 4400B'!F$21:F$80,'O&M Cost Estimator 4400B'!K$21:K$80) -> -1299 | D12: ='Payback Estimator-4400B'!$B$43*(D11) +D11 -> 46734.6 | E12: 45435.6 | F12: =SUM($E$5:E12) -> 120170.2 | G12: =IRR($E$5:E12) -> 0.15247907 | I12: 7 | K12: =-LOOKUP(((A12*'O&M Cost Estimator 4400B'!F$7)-MOD((A12*'O&M Cost Estimator 4400B'!F$7),4400)),'O&M Cost Estimator 4400B'!P$21:P$80,'O&M Cost Estimator 4400B'!S$21:S$80)-LOOKUP(((A12*'O&M Cost Estimator 4400B'!F$7)-MOD((A12*'O&M Cost Estimator 4400B'!F$7),4400)),'O&M Cost Estimator 4400B'!P$21:P$80,'O&M Cost Estimator 4400B'!U$21:U$80)+LOOKUP(((A11*'O&M Cost Estimator 4400B'!F$7)-MOD((A11*'O&M Cost Estimator 4400B'!F$7),4400)),'O&M Cost Estimator 4400B'!P$21:P$80,'O&M Cost Estimator 4400B'!S$21:S$80)+LOOKUP(((A11*'O&M Cost Estimator 4400B'!F$7)-MOD((A11*'O&M Cost Estimator 4400B'!F$7),4400)),'O&M Cost Estimator 4400B'!P$21:P$80,'O&M Cost Estimator 4400B'!U$21:U$80) -> -1299 | L12: ='Payback Estimator-4400B'!$C$43*(L11)+L11 -> 46734.6 | M12: 45435.6 | N12: =SUM($M$5:M12) -> 120170.2 | O12: =IRR($M$5:M12) -> 0.15247907 | S12: 99998
A13: 8 | C13: =-LOOKUP(((A13*'O&M Cost Estimator 4400B'!F$7)-MOD((A13*'O&M Cost Estimator 4400B'!F$7),4400)),'O&M Cost Estimator 4400B'!F$21:F$80,'O&M Cost Estimator 4400B'!I$21:I$80)-LOOKUP(((A13*'O&M Cost Estimator 4400B'!F$7)-MOD((A13*'O&M Cost Estimator 4400B'!F$7),4400)),'O&M Cost Estimator 4400B'!F$21:F$80,'O&M Cost Estimator 4400B'!K$21:K$80)+LOOKUP(((A12*'O&M Cost Estimator 4400B'!F$7)-MOD((A12*'O&M Cost Estimator 4400B'!F$7),4400)),'O&M Cost Estimator 4400B'!F$21:F$80,'O&M Cost Estimator 4400B'!I$21:I$80)+LOOKUP(((A12*'O&M Cost Estimator 4400B'!F$7)-MOD((A12*'O&M Cost Estimator 4400B'!F$7),4400)),'O&M Cost Estimator 4400B'!F$21:F$80,'O&M Cost Estimator 4400B'!K$21:K$80) -> -1098 | D13: ='Payback Estimator-4400B'!$B$43*(D12) +D12 -> 46734.6 | E13: 45636.6 | F13: =SUM($E$5:E13) -> 165806.8 | G13: =IRR($E$5:E13) -> 0.1777455768 | I13: 8 | K13: =-LOOKUP(((A13*'O&M Cost Estimator 4400B'!F$7)-MOD((A13*'O&M Cost Estimator 4400B'!F$7),4400)),'O&M Cost Estimator 4400B'!P$21:P$80,'O&M Cost Estimator 4400B'!S$21:S$80)-LOOKUP(((A13*'O&M Cost Estimator 4400B'!F$7)-MOD((A13*'O&M Cost Estimator 4400B'!F$7),4400)),'O&M Cost Estimator 4400B'!P$21:P$80,'O&M Cost Estimator 4400B'!U$21:U$80)+LOOKUP(((A12*'O&M Cost Estimator 4400B'!F$7)-MOD((A12*'O&M Cost Estimator 4400B'!F$7),4400)),'O&M Cost Estimator 4400B'!P$21:P$80,'O&M Cost Estimator 4400B'!S$21:S$80)+LOOKUP(((A12*'O&M Cost Estimator 4400B'!F$7)-MOD((A12*'O&M Cost Estimator 4400B'!F$7),4400)),'O&M Cost Estimator 4400B'!P$21:P$80,'O&M Cost Estimator 4400B'!U$21:U$80) -> -1098 | L13: ='Payback Estimator-4400B'!$C$43*(L12)+L12 -> 46734.6 | M13: 45636.6 | N13: =SUM($M$5:M13) -> 165806.8 | O13: =IRR($M$5:M13) -> 0.1777455768 | S13: 99998
A14: 9 | C14: =-LOOKUP(((A14*'O&M Cost Estimator 4400B'!F$7)-MOD((A14*'O&M Cost Estimator 4400B'!F$7),4400)),'O&M Cost Estimator 4400B'!F$21:F$80,'O&M Cost Estimator 4400B'!I$21:I$80)-LOOKUP(((A14*'O&M Cost Estimator 4400B'!F$7)-MOD((A14*'O&M Cost Estimator 4400B'!F$7),4400)),'O&M Cost Estimator 4400B'!F$21:F$80,'O&M Cost Estimator 4400B'!K$21:K$80)+LOOKUP(((A13*'O&M Cost Estimator 4400B'!F$7)-MOD((A13*'O&M Cost Estimator 4400B'!F$7),4400)),'O&M Cost Estimator 4400B'!F$21:F$80,'O&M Cost Estimator 4400B'!I$21:I$80)+LOOKUP(((A13*'O&M Cost Estimator 4400B'!F$7)-MOD((A13*'O&M Cost Estimator 4400B'!F$7),4400)),'O&M Cost Estimator 4400B'!F$21:F$80,'O&M Cost Estimator 4400B'!K$21:K$80) -> -22795 | D14: ='Payback Estimator-4400B'!$B$43*(D13) +D13 -> 46734.6 | E14: =C14+D14 -> 23939.6 | F14: =SUM($E$5:E14) -> 189746.4 | G14: =IRR($E$5:E14) -> 0.1873651468 | I14: 9 | K14: =-LOOKUP(((A14*'O&M Cost Estimator 4400B'!F$7)-MOD((A14*'O&M Cost Estimator 4400B'!F$7),4400)),'O&M Cost Estimator 4400B'!P$21:P$80,'O&M Cost Estimator 4400B'!S$21:S$80)-LOOKUP(((A14*'O&M Cost Estimator 4400B'!F$7)-MOD((A14*'O&M Cost Estimator 4400B'!F$7),4400)),'O&M Cost Estimator 4400B'!P$21:P$80,'O&M Cost Estimator 4400B'!U$21:U$80)+LOOKUP(((A13*'O&M Cost Estimator 4400B'!F$7)-MOD((A13*'O&M Cost Estimator 4400B'!F$7),4400)),'O&M Cost Estimator 4400B'!P$21:P$80,'O&M Cost Estimator 4400B'!S$21:S$80)+LOOKUP(((A13*'O&M Cost Estimator 4400B'!F$7)-MOD((A13*'O&M Cost Estimator 4400B'!F$7),4400)),'O&M Cost Estimator 4400B'!P$21:P$80,'O&M Cost Estimator 4400B'!U$21:U$80) -> -22795 | L14: ='Payback Estimator-4400B'!$C$43*(L13)+L13 -> 46734.6 | M14: 23939.6 | N14: =SUM($M$5:M14) -> 189746.4 | O14: =IRR($M$5:M14) -> 0.1873651468 | S14: 99998
A15: 10 | C15: =-LOOKUP(((A15*'O&M Cost Estimator 4400B'!F$7)-MOD((A15*'O&M Cost Estimator 4400B'!F$7),4400)),'O&M Cost Estimator 4400B'!F$21:F$80,'O&M Cost Estimator 4400B'!I$21:I$80)-LOOKUP(((A15*'O&M Cost Estimator 4400B'!F$7)-MOD((A15*'O&M Cost Estimator 4400B'!F$7),4400)),'O&M Cost Estimator 4400B'!F$21:F$80,'O&M Cost Estimator 4400B'!K$21:K$80)+LOOKUP(((A14*'O&M Cost Estimator 4400B'!F$7)-MOD((A14*'O&M Cost Estimator 4400B'!F$7),4400)),'O&M Cost Estimator 4400B'!F$21:F$80,'O&M Cost Estimator 4400B'!I$21:I$80)+LOOKUP(((A14*'O&M Cost Estimator 4400B'!F$7)-MOD((A14*'O&M Cost Estimator 4400B'!F$7),4400)),'O&M Cost Estimator 4400B'!F$21:F$80,'O&M Cost Estimator 4400B'!K$21:K$80) -> -742 | D15: ='Payback Estimator-4400B'!$B$43*(D14) +D14 -> 46734.6 | E15: 45992.6 | F15: =SUM($E$5:E15) -> 235739 | G15: =IRR($E$5:E15) -> 0.2010715472 | I15: 10 | K15: =-LOOKUP(((A15*'O&M Cost Estimator 4400B'!F$7)-MOD((A15*'O&M Cost Estimator 4400B'!F$7),4400)),'O&M Cost Estimator 4400B'!P$21:P$80,'O&M Cost Estimator 4400B'!S$21:S$80)-LOOKUP(((A15*'O&M Cost Estimator 4400B'!F$7)-MOD((A15*'O&M Cost Estimator 4400B'!F$7),4400)),'O&M Cost Estimator 4400B'!P$21:P$80,'O&M Cost Estimator 4400B'!U$21:U$80)+LOOKUP(((A14*'O&M Cost Estimator 4400B'!F$7)-MOD((A14*'O&M Cost Estimator 4400B'!F$7),4400)),'O&M Cost Estimator 4400B'!P$21:P$80,'O&M Cost Estimator 4400B'!S$21:S$80)+LOOKUP(((A14*'O&M Cost Estimator 4400B'!F$7)-MOD((A14*'O&M Cost Estimator 4400B'!F$7),4400)),'O&M Cost Estimator 4400B'!P$21:P$80,'O&M Cost Estimator 4400B'!U$21:U$80) -> -742 | L15: ='Payback Estimator-4400B'!$C$43*(L14)+L14 -> 46734.6 | M15: 45992.6 | N15: =SUM($M$5:M15) -> 235739 | O15: =IRR($M$5:M15) -> 0.2010715472 | S15: 99998
A16: 11 | C16: =-LOOKUP(((A16*'O&M Cost Estimator 4400B'!F$7)-MOD((A16*'O&M Cost Estimator 4400B'!F$7),4400)),'O&M Cost Estimator 4400B'!F$21:F$80,'O&M Cost Estimator 4400B'!I$21:I$80)-LOOKUP(((A16*'O&M Cost Estimator 4400B'!F$7)-MOD((A16*'O&M Cost Estimator 4400B'!F$7),4400)),'O&M Cost Estimator 4400B'!F$21:F$80,'O&M Cost Estimator 4400B'!K$21:K$80)+LOOKUP(((A15*'O&M Cost Estimator 4400B'!F$7)-MOD((A15*'O&M Cost Estimator 4400B'!F$7),4400)),'O&M Cost Estimator 4400B'!F$21:F$80,'O&M Cost Estimator 4400B'!I$21:I$80)+LOOKUP(((A15*'O&M Cost Estimator 4400B'!F$7)-MOD((A15*'O&M Cost Estimator 4400B'!F$7),4400)),'O&M Cost Estimator 4400B'!F$21:F$80,'O&M Cost Estimator 4400B'!K$21:K$80) -> -1299 | D16: ='Payback Estimator-4400B'!$B$43*(D15) +D15 -> 46734.6 | E16: 45435.6 | F16: =SUM($E$5:E16) -> 281174.6 | G16: =IRR($E$5:E16) -> 0.2108847433 | I16: 11 | K16: =-LOOKUP(((A16*'O&M Cost Estimator 4400B'!F$7)-MOD((A16*'O&M Cost Estimator 4400B'!F$7),4400)),'O&M Cost Estimator 4400B'!P$21:P$80,'O&M Cost Estimator 4400B'!S$21:S$80)-LOOKUP(((A16*'O&M Cost Estimator 4400B'!F$7)-MOD((A16*'O&M Cost Estimator 4400B'!F$7),4400)),'O&M Cost Estimator 4400B'!P$21:P$80,'O&M Cost Estimator 4400B'!U$21:U$80)+LOOKUP(((A15*'O&M Cost Estimator 4400B'!F$7)-MOD((A15*'O&M Cost Estimator 4400B'!F$7),4400)),'O&M Cost Estimator 4400B'!P$21:P$80,'O&M Cost Estimator 4400B'!S$21:S$80)+LOOKUP(((A15*'O&M Cost Estimator 4400B'!F$7)-MOD((A15*'O&M Cost Estimator 4400B'!F$7),4400)),'O&M Cost Estimator 4400B'!P$21:P$80,'O&M Cost Estimator 4400B'!U$21:U$80) -> -1299 | L16: ='Payback Estimator-4400B'!$C$43*(L15)+L15 -> 46734.6 | M16: 45435.6 | N16: =SUM($M$5:M16) -> 281174.6 | O16: =IRR($M$5:M16) -> 0.2108847433 | S16: 99998
A17: 12 | C17: =-LOOKUP(((A17*'O&M Cost Estimator 4400B'!F$7)-MOD((A17*'O&M Cost Estimator 4400B'!F$7),4400)),'O&M Cost Estimator 4400B'!F$21:F$80,'O&M Cost Estimator 4400B'!I$21:I$80)-LOOKUP(((A17*'O&M Cost Estimator 4400B'!F$7)-MOD((A17*'O&M Cost Estimator 4400B'!F$7),4400)),'O&M Cost Estimator 4400B'!F$21:F$80,'O&M Cost Estimator 4400B'!K$21:K$80)+LOOKUP(((A16*'O&M Cost Estimator 4400B'!F$7)-MOD((A16*'O&M Cost Estimator 4400B'!F$7),4400)),'O&M Cost Estimator 4400B'!F$21:F$80,'O&M Cost Estimator 4400B'!I$21:I$80)+LOOKUP(((A16*'O&M Cost Estimator 4400B'!F$7)-MOD((A16*'O&M Cost Estimator 4400B'!F$7),4400)),'O&M Cost Estimator 4400B'!F$21:F$80,'O&M Cost Estimator 4400B'!K$21:K$80) -> -1098 | D17: ='Payback Estimator-4400B'!$B$43*(D16) +D16 -> 46734.6 | E17: 45636.6 | F17: =SUM($E$5:E17) -> 326811.2 | G17: =IRR($E$5:E17) -> 0.2181661292 | I17: 12 | K17: =-LOOKUP(((A17*'O&M Cost Estimator 4400B'!F$7)-MOD((A17*'O&M Cost Estimator 4400B'!F$7),4400)),'O&M Cost Estimator 4400B'!P$21:P$80,'O&M Cost Estimator 4400B'!S$21:S$80)-LOOKUP(((A17*'O&M Cost Estimator 4400B'!F$7)-MOD((A17*'O&M Cost Estimator 4400B'!F$7),4400)),'O&M Cost Estimator 4400B'!P$21:P$80,'O&M Cost Estimator 4400B'!U$21:U$80)+LOOKUP(((A16*'O&M Cost Estimator 4400B'!F$7)-MOD((A16*'O&M Cost Estimator 4400B'!F$7),4400)),'O&M Cost Estimator 4400B'!P$21:P$80,'O&M Cost Estimator 4400B'!S$21:S$80)+LOOKUP(((A16*'O&M Cost Estimator 4400B'!F$7)-MOD((A16*'O&M Cost Estimator 4400B'!F$7),4400)),'O&M Cost Estimator 4400B'!P$21:P$80,'O&M Cost Estimator 4400B'!U$21:U$80) -> -1098 | L17: ='Payback Estimator-4400B'!$C$43*(L16)+L16 -> 46734.6 | M17: 45636.6 | N17: =SUM($M$5:M17) -> 326811.2 | O17: =IRR($M$5:M17) -> 0.2181661292 | S17: 99998
A18: 13 | C18: =-LOOKUP(((A18*'O&M Cost Estimator 4400B'!F$7)-MOD((A18*'O&M Cost Estimator 4400B'!F$7),4400)),'O&M Cost Estimator 4400B'!F$21:F$80,'O&M Cost Estimator 4400B'!I$21:I$80)-LOOKUP(((A18*'O&M Cost Estimator 4400B'!F$7)-MOD((A18*'O&M Cost Estimator 4400B'!F$7),4400)),'O&M Cost Estimator 4400B'!F$21:F$80,'O&M Cost Estimator 4400B'!K$21:K$80)+LOOKUP(((A17*'O&M Cost Estimator 4400B'!F$7)-MOD((A17*'O&M Cost Estimator 4400B'!F$7),4400)),'O&M Cost Estimator 4400B'!F$21:F$80,'O&M Cost Estimator 4400B'!I$21:I$80)+LOOKUP(((A17*'O&M Cost Estimator 4400B'!F$7)-MOD((A17*'O&M Cost Estimator 4400B'!F$7),4400)),'O&M Cost Estimator 4400B'!F$21:F$80,'O&M Cost Estimator 4400B'!K$21:K$80) -> -22795 | D18: ='Payback Estimator-4400B'!$B$43*(D17) +D17 -> 46734.6 | E18: 23939.6 | F18: =SUM($E$5:E18) -> 350750.8 | G18: =IRR($E$5:E18) -> 0.2210843099 | I18: 13 | K18: =-LOOKUP(((A18*'O&M Cost Estimator 4400B'!F$7)-MOD((A18*'O&M Cost Estimator 4400B'!F$7),4400)),'O&M Cost Estimator 4400B'!P$21:P$80,'O&M Cost Estimator 4400B'!S$21:S$80)-LOOKUP(((A18*'O&M Cost Estimator 4400B'!F$7)-MOD((A18*'O&M Cost Estimator 4400B'!F$7),4400)),'O&M Cost Estimator 4400B'!P$21:P$80,'O&M Cost Estimator 4400B'!U$21:U$80)+LOOKUP(((A17*'O&M Cost Estimator 4400B'!F$7)-MOD((A17*'O&M Cost Estimator 4400B'!F$7),4400)),'O&M Cost Estimator 4400B'!P$21:P$80,'O&M Cost Estimator 4400B'!S$21:S$80)+LOOKUP(((A17*'O&M Cost Estimator 4400B'!F$7)-MOD((A17*'O&M Cost Estimator 4400B'!F$7),4400)),'O&M Cost Estimator 4400B'!P$21:P$80,'O&M Cost Estimator 4400B'!U$21:U$80) -> -22795 | L18: ='Payback Estimator-4400B'!$C$43*(L17)+L17 -> 46734.6 | M18: 23939.6 | N18: =SUM($M$5:M18) -> 350750.8 | O18: =IRR($M$5:M18) -> 0.2210843099 | S18: 99998
A19: 14 | C19: =-LOOKUP(((A19*'O&M Cost Estimator 4400B'!F$7)-MOD((A19*'O&M Cost Estimator 4400B'!F$7),4400)),'O&M Cost Estimator 4400B'!F$21:F$80,'O&M Cost Estimator 4400B'!I$21:I$80)-LOOKUP(((A19*'O&M Cost Estimator 4400B'!F$7)-MOD((A19*'O&M Cost Estimator 4400B'!F$7),4400)),'O&M Cost Estimator 4400B'!F$21:F$80,'O&M Cost Estimator 4400B'!K$21:K$80)+LOOKUP(((A18*'O&M Cost Estimator 4400B'!F$7)-MOD((A18*'O&M Cost Estimator 4400B'!F$7),4400)),'O&M Cost Estimator 4400B'!F$21:F$80,'O&M Cost Estimator 4400B'!I$21:I$80)+LOOKUP(((A18*'O&M Cost Estimator 4400B'!F$7)-MOD((A18*'O&M Cost Estimator 4400B'!F$7),4400)),'O&M Cost Estimator 4400B'!F$21:F$80,'O&M Cost Estimator 4400B'!K$21:K$80) -> -742 | D19: ='Payback Estimator-4400B'!$B$43*(D18) +D18 -> 46734.6 | E19: 45992.6 | F19: =SUM($E$5:E19) -> 396743.4 | G19: =IRR($E$5:E19) -> 0.2254161283 | I19: 14 | K19: =-LOOKUP(((A19*'O&M Cost Estimator 4400B'!F$7)-MOD((A19*'O&M Cost Estimator 4400B'!F$7),4400)),'O&M Cost Estimator 4400B'!P$21:P$80,'O&M Cost Estimator 4400B'!S$21:S$80)-LOOKUP(((A19*'O&M Cost Estimator 4400B'!F$7)-MOD((A19*'O&M Cost Estimator 4400B'!F$7),4400)),'O&M Cost Estimator 4400B'!P$21:P$80,'O&M Cost Estimator 4400B'!U$21:U$80)+LOOKUP(((A18*'O&M Cost Estimator 4400B'!F$7)-MOD((A18*'O&M Cost Estimator 4400B'!F$7),4400)),'O&M Cost Estimator 4400B'!P$21:P$80,'O&M Cost Estimator 4400B'!S$21:S$80)+LOOKUP(((A18*'O&M Cost Estimator 4400B'!F$7)-MOD((A18*'O&M Cost Estimator 4400B'!F$7),4400)),'O&M Cost Estimator 4400B'!P$21:P$80,'O&M Cost Estimator 4400B'!U$21:U$80) -> -742 | L19: ='Payback Estimator-4400B'!$C$43*(L18)+L18 -> 46734.6 | M19: 45992.6 | N19: =SUM($M$5:M19) -> 396743.4 | O19: =IRR($M$5:M19) -> 0.2254161283 | S19: 99998
A20: 15 | C20: =-LOOKUP(((A20*'O&M Cost Estimator 4400B'!F$7)-MOD((A20*'O&M Cost Estimator 4400B'!F$7),4400)),'O&M Cost Estimator 4400B'!F$21:F$80,'O&M Cost Estimator 4400B'!I$21:I$80)-LOOKUP(((A20*'O&M Cost Estimator 4400B'!F$7)-MOD((A20*'O&M Cost Estimator 4400B'!F$7),4400)),'O&M Cost Estimator 4400B'!F$21:F$80,'O&M Cost Estimator 4400B'!K$21:K$80)+LOOKUP(((A19*'O&M Cost Estimator 4400B'!F$7)-MOD((A19*'O&M Cost Estimator 4400B'!F$7),4400)),'O&M Cost Estimator 4400B'!F$21:F$80,'O&M Cost Estimator 4400B'!I$21:I$80)+LOOKUP(((A19*'O&M Cost Estimator 4400B'!F$7)-MOD((A19*'O&M Cost Estimator 4400B'!F$7),4400)),'O&M Cost Estimator 4400B'!F$21:F$80,'O&M Cost Estimator 4400B'!K$21:K$80) -> -1012 | D20: ='Payback Estimator-4400B'!$B$43*(D19) +D19 -> 46734.6 | E20: =C20+D20 -> 45722.6 | F20: =SUM($E$5:E20) -> 442466 | G20: =IRR($E$5:E20) -> 0.2287085632 | I20: 15 | K20: =-LOOKUP(((A20*'O&M Cost Estimator 4400B'!F$7)-MOD((A20*'O&M Cost Estimator 4400B'!F$7),4400)),'O&M Cost Estimator 4400B'!P$21:P$80,'O&M Cost Estimator 4400B'!S$21:S$80)-LOOKUP(((A20*'O&M Cost Estimator 4400B'!F$7)-MOD((A20*'O&M Cost Estimator 4400B'!F$7),4400)),'O&M Cost Estimator 4400B'!P$21:P$80,'O&M Cost Estimator 4400B'!U$21:U$80)+LOOKUP(((A19*'O&M Cost Estimator 4400B'!F$7)-MOD((A19*'O&M Cost Estimator 4400B'!F$7),4400)),'O&M Cost Estimator 4400B'!P$21:P$80,'O&M Cost Estimator 4400B'!S$21:S$80)+LOOKUP(((A19*'O&M Cost Estimator 4400B'!F$7)-MOD((A19*'O&M Cost Estimator 4400B'!F$7),4400)),'O&M Cost Estimator 4400B'!P$21:P$80,'O&M Cost Estimator 4400B'!U$21:U$80) -> -1012 | L20: ='Payback Estimator-4400B'!$C$43*(L19)+L19 -> 46734.6 | M20: 45722.6 | N20: =SUM($M$5:M20) -> 442466 | O20: =IRR($M$5:M20) -> 0.2287085632 | S20: 99998
A21: 16 | C21: =-LOOKUP(((A21*'O&M Cost Estimator 4400B'!F$7)-MOD((A21*'O&M Cost Estimator 4400B'!F$7),4400)),'O&M Cost Estimator 4400B'!F$21:F$80,'O&M Cost Estimator 4400B'!I$21:I$80)-LOOKUP(((A21*'O&M Cost Estimator 4400B'!F$7)-MOD((A21*'O&M Cost Estimator 4400B'!F$7),4400)),'O&M Cost Estimator 4400B'!F$21:F$80,'O&M Cost Estimator 4400B'!K$21:K$80)+LOOKUP(((A20*'O&M Cost Estimator 4400B'!F$7)-MOD((A20*'O&M Cost Estimator 4400B'!F$7),4400)),'O&M Cost Estimator 4400B'!F$21:F$80,'O&M Cost Estimator 4400B'!I$21:I$80)+LOOKUP(((A20*'O&M Cost Estimator 4400B'!F$7)-MOD((A20*'O&M Cost Estimator 4400B'!F$7),4400)),'O&M Cost Estimator 4400B'!F$21:F$80,'O&M Cost Estimator 4400B'!K$21:K$80) -> -1098 | D21: ='Payback Estimator-4400B'!$B$43*(D20) +D20 -> 46734.6 | E21: 45636.6 | F21: =SUM($E$5:E21) -> 488102.6 | G21: =IRR($E$5:E21) -> 0.2312430757 | I21: 16 | K21: =-LOOKUP(((A21*'O&M Cost Estimator 4400B'!F$7)-MOD((A21*'O&M Cost Estimator 4400B'!F$7),4400)),'O&M Cost Estimator 4400B'!P$21:P$80,'O&M Cost Estimator 4400B'!S$21:S$80)-LOOKUP(((A21*'O&M Cost Estimator 4400B'!F$7)-MOD((A21*'O&M Cost Estimator 4400B'!F$7),4400)),'O&M Cost Estimator 4400B'!P$21:P$80,'O&M Cost Estimator 4400B'!U$21:U$80)+LOOKUP(((A20*'O&M Cost Estimator 4400B'!F$7)-MOD((A20*'O&M Cost Estimator 4400B'!F$7),4400)),'O&M Cost Estimator 4400B'!P$21:P$80,'O&M Cost Estimator 4400B'!S$21:S$80)+LOOKUP(((A20*'O&M Cost Estimator 4400B'!F$7)-MOD((A20*'O&M Cost Estimator 4400B'!F$7),4400)),'O&M Cost Estimator 4400B'!P$21:P$80,'O&M Cost Estimator 4400B'!U$21:U$80) -> -1098 | L21: ='Payback Estimator-4400B'!$C$43*(L20)+L20 -> 46734.6 | M21: 45636.6 | N21: =SUM($M$5:M21) -> 488102.6 | O21: =IRR($M$5:M21) -> 0.2312430757 | S21: 99998
A22: 17 | C22: =-LOOKUP(((A22*'O&M Cost Estimator 4400B'!F$7)-MOD((A22*'O&M Cost Estimator 4400B'!F$7),4400)),'O&M Cost Estimator 4400B'!F$21:F$80,'O&M Cost Estimator 4400B'!I$21:I$80)-LOOKUP(((A22*'O&M Cost Estimator 4400B'!F$7)-MOD((A22*'O&M Cost Estimator 4400B'!F$7),4400)),'O&M Cost Estimator 4400B'!F$21:F$80,'O&M Cost Estimator 4400B'!K$21:K$80)+LOOKUP(((A21*'O&M Cost Estimator 4400B'!F$7)-MOD((A21*'O&M Cost Estimator 4400B'!F$7),4400)),'O&M Cost Estimator 4400B'!F$21:F$80,'O&M Cost Estimator 4400B'!I$21:I$80)+LOOKUP(((A21*'O&M Cost Estimator 4400B'!F$7)-MOD((A21*'O&M Cost Estimator 4400B'!F$7),4400)),'O&M Cost Estimator 4400B'!F$21:F$80,'O&M Cost Estimator 4400B'!K$21:K$80) -> -22795 | D22: ='Payback Estimator-4400B'!$B$43*(D21) +D21 -> 46734.6 | E22: 23939.6 | F22: =SUM($E$5:E22) -> 512042.2 | G22: =IRR($E$5:E22) -> 0.232285689 | I22: 17 | K22: =-LOOKUP(((A22*'O&M Cost Estimator 4400B'!F$7)-MOD((A22*'O&M Cost Estimator 4400B'!F$7),4400)),'O&M Cost Estimator 4400B'!P$21:P$80,'O&M Cost Estimator 4400B'!S$21:S$80)-LOOKUP(((A22*'O&M Cost Estimator 4400B'!F$7)-MOD((A22*'O&M Cost Estimator 4400B'!F$7),4400)),'O&M Cost Estimator 4400B'!P$21:P$80,'O&M Cost Estimator 4400B'!U$21:U$80)+LOOKUP(((A21*'O&M Cost Estimator 4400B'!F$7)-MOD((A21*'O&M Cost Estimator 4400B'!F$7),4400)),'O&M Cost Estimator 4400B'!P$21:P$80,'O&M Cost Estimator 4400B'!S$21:S$80)+LOOKUP(((A21*'O&M Cost Estimator 4400B'!F$7)-MOD((A21*'O&M Cost Estimator 4400B'!F$7),4400)),'O&M Cost Estimator 4400B'!P$21:P$80,'O&M Cost Estimator 4400B'!U$21:U$80) -> -22795 | L22: ='Payback Estimator-4400B'!$C$43*(L21)+L21 -> 46734.6 | M22: 23939.6 | N22: =SUM($M$5:M22) -> 512042.2 | O22: =IRR($M$5:M22) -> 0.232285689 | S22: 99998
A23: 18 | C23: =-LOOKUP(((A23*'O&M Cost Estimator 4400B'!F$7)-MOD((A23*'O&M Cost Estimator 4400B'!F$7),4400)),'O&M Cost Estimator 4400B'!F$21:F$80,'O&M Cost Estimator 4400B'!I$21:I$80)-LOOKUP(((A23*'O&M Cost Estimator 4400B'!F$7)-MOD((A23*'O&M Cost Estimator 4400B'!F$7),4400)),'O&M Cost Estimator 4400B'!F$21:F$80,'O&M Cost Estimator 4400B'!K$21:K$80)+LOOKUP(((A22*'O&M Cost Estimator 4400B'!F$7)-MOD((A22*'O&M Cost Estimator 4400B'!F$7),4400)),'O&M Cost Estimator 4400B'!F$21:F$80,'O&M Cost Estimator 4400B'!I$21:I$80)+LOOKUP(((A22*'O&M Cost Estimator 4400B'!F$7)-MOD((A22*'O&M Cost Estimator 4400B'!F$7),4400)),'O&M Cost Estimator 4400B'!F$21:F$80,'O&M Cost Estimator 4400B'!K$21:K$80) -> -742 | D23: ='Payback Estimator-4400B'!$B$43*(D22) +D22 -> 46734.6 | E23: 45992.6 | F23: =SUM($E$5:E23) -> 558034.8 | G23: =IRR($E$5:E23) -> 0.2338657408 | I23: 18 | K23: =-LOOKUP(((A23*'O&M Cost Estimator 4400B'!F$7)-MOD((A23*'O&M Cost Estimator 4400B'!F$7),4400)),'O&M Cost Estimator 4400B'!P$21:P$80,'O&M Cost Estimator 4400B'!S$21:S$80)-LOOKUP(((A23*'O&M Cost Estimator 4400B'!F$7)-MOD((A23*'O&M Cost Estimator 4400B'!F$7),4400)),'O&M Cost Estimator 4400B'!P$21:P$80,'O&M Cost Estimator 4400B'!U$21:U$80)+LOOKUP(((A22*'O&M Cost Estimator 4400B'!F$7)-MOD((A22*'O&M Cost Estimator 4400B'!F$7),4400)),'O&M Cost Estimator 4400B'!P$21:P$80,'O&M Cost Estimator 4400B'!S$21:S$80)+LOOKUP(((A22*'O&M Cost Estimator 4400B'!F$7)-MOD((A22*'O&M Cost Estimator 4400B'!F$7),4400)),'O&M Cost Estimator 4400B'!P$21:P$80,'O&M Cost Estimator 4400B'!U$21:U$80) -> -742 | L23: ='Payback Estimator-4400B'!$C$43*(L22)+L22 -> 46734.6 | M23: 45992.6 | N23: =SUM($M$5:M23) -> 558034.8 | O23: =IRR($M$5:M23) -> 0.2338657408 | S23: 99998
A24: 19 | C24: =-LOOKUP(((A24*'O&M Cost Estimator 4400B'!F$7)-MOD((A24*'O&M Cost Estimator 4400B'!F$7),4400)),'O&M Cost Estimator 4400B'!F$21:F$80,'O&M Cost Estimator 4400B'!I$21:I$80)-LOOKUP(((A24*'O&M Cost Estimator 4400B'!F$7)-MOD((A24*'O&M Cost Estimator 4400B'!F$7),4400)),'O&M Cost Estimator 4400B'!F$21:F$80,'O&M Cost Estimator 4400B'!K$21:K$80)+LOOKUP(((A23*'O&M Cost Estimator 4400B'!F$7)-MOD((A23*'O&M Cost Estimator 4400B'!F$7),4400)),'O&M Cost Estimator 4400B'!F$21:F$80,'O&M Cost Estimator 4400B'!I$21:I$80)+LOOKUP(((A23*'O&M Cost Estimator 4400B'!F$7)-MOD((A23*'O&M Cost Estimator 4400B'!F$7),4400)),'O&M Cost Estimator 4400B'!F$21:F$80,'O&M Cost Estimator 4400B'!K$21:K$80) -> -1299 | D24: ='Payback Estimator-4400B'!$B$43*(D23) +D23 -> 46734.6 | E24: 45435.6 | F24: =SUM($E$5:E24) -> 603470.4 | G24: =IRR($E$5:E24) -> 0.2350910344 | I24: 19 | K24: =-LOOKUP(((A24*'O&M Cost Estimator 4400B'!F$7)-MOD((A24*'O&M Cost Estimator 4400B'!F$7),4400)),'O&M Cost Estimator 4400B'!P$21:P$80,'O&M Cost Estimator 4400B'!S$21:S$80)-LOOKUP(((A24*'O&M Cost Estimator 4400B'!F$7)-MOD((A24*'O&M Cost Estimator 4400B'!F$7),4400)),'O&M Cost Estimator 4400B'!P$21:P$80,'O&M Cost Estimator 4400B'!U$21:U$80)+LOOKUP(((A23*'O&M Cost Estimator 4400B'!F$7)-MOD((A23*'O&M Cost Estimator 4400B'!F$7),4400)),'O&M Cost Estimator 4400B'!P$21:P$80,'O&M Cost Estimator 4400B'!S$21:S$80)+LOOKUP(((A23*'O&M Cost Estimator 4400B'!F$7)-MOD((A23*'O&M Cost Estimator 4400B'!F$7),4400)),'O&M Cost Estimator 4400B'!P$21:P$80,'O&M Cost Estimator 4400B'!U$21:U$80) -> -1299 | L24: ='Payback Estimator-4400B'!$C$43*(L23)+L23 -> 46734.6 | M24: 45435.6 | N24: =SUM($M$5:M24) -> 603470.4 | O24: =IRR($M$5:M24) -> 0.2350910344 | S24: =IF(S23=99999,IF(F24>=0,A24-F24/E24,99999),99998) -> 99998
A25: 20 | C25: =-LOOKUP(((A25*'O&M Cost Estimator 4400B'!F$7)-MOD((A25*'O&M Cost Estimator 4400B'!F$7),4400)),'O&M Cost Estimator 4400B'!F$21:F$80,'O&M Cost Estimator 4400B'!I$21:I$80)-LOOKUP(((A25*'O&M Cost Estimator 4400B'!F$7)-MOD((A25*'O&M Cost Estimator 4400B'!F$7),4400)),'O&M Cost Estimator 4400B'!F$21:F$80,'O&M Cost Estimator 4400B'!K$21:K$80)+LOOKUP(((A24*'O&M Cost Estimator 4400B'!F$7)-MOD((A24*'O&M Cost Estimator 4400B'!F$7),4400)),'O&M Cost Estimator 4400B'!F$21:F$80,'O&M Cost Estimator 4400B'!I$21:I$80)+LOOKUP(((A24*'O&M Cost Estimator 4400B'!F$7)-MOD((A24*'O&M Cost Estimator 4400B'!F$7),4400)),'O&M Cost Estimator 4400B'!F$21:F$80,'O&M Cost Estimator 4400B'!K$21:K$80) -> -1098 | D25: ='Payback Estimator-4400B'!$B$43*(D24) +D24 -> 46734.6 | E25: 45636.6 | F25: =SUM($E$5:E25) -> 649107 | G25: =IRR($E$5:E25) -> 0.2360613418 | I25: 20 | K25: =-LOOKUP(((A25*'O&M Cost Estimator 4400B'!F$7)-MOD((A25*'O&M Cost Estimator 4400B'!F$7),4400)),'O&M Cost Estimator 4400B'!P$21:P$80,'O&M Cost Estimator 4400B'!S$21:S$80)-LOOKUP(((A25*'O&M Cost Estimator 4400B'!F$7)-MOD((A25*'O&M Cost Estimator 4400B'!F$7),4400)),'O&M Cost Estimator 4400B'!P$21:P$80,'O&M Cost Estimator 4400B'!U$21:U$80)+LOOKUP(((A24*'O&M Cost Estimator 4400B'!F$7)-MOD((A24*'O&M Cost Estimator 4400B'!F$7),4400)),'O&M Cost Estimator 4400B'!P$21:P$80,'O&M Cost Estimator 4400B'!S$21:S$80)+LOOKUP(((A24*'O&M Cost Estimator 4400B'!F$7)-MOD((A24*'O&M Cost Estimator 4400B'!F$7),4400)),'O&M Cost Estimator 4400B'!P$21:P$80,'O&M Cost Estimator 4400B'!U$21:U$80) -> -1098 | L25: ='Payback Estimator-4400B'!$C$43*(L24)+L24 -> 46734.6 | M25: 45636.6 | N25: =SUM($M$5:M25) -> 649107 | O25: =IRR($M$5:M25) -> 0.2360613418 | S25: 99998
A26: =A25+1 -> 21 | C26: =-LOOKUP(((A26*'O&M Cost Estimator 4400B'!F$7)-MOD((A26*'O&M Cost Estimator 4400B'!F$7),4400)),'O&M Cost Estimator 4400B'!F$22:F$80,'O&M Cost Estimator 4400B'!I$22:I$80)-LOOKUP(((A26*'O&M Cost Estimator 4400B'!F$7)-MOD((A26*'O&M Cost Estimator 4400B'!F$7),4400)),'O&M Cost Estimator 4400B'!F$22:F$80,'O&M Cost Estimator 4400B'!K$22:K$80)+LOOKUP(((A25*'O&M Cost Estimator 4400B'!F$7)-MOD((A25*'O&M Cost Estimator 4400B'!F$7),4400)),'O&M Cost Estimator 4400B'!F$22:F$80,'O&M Cost Estimator 4400B'!I$22:I$80)+LOOKUP(((A25*'O&M Cost Estimator 4400B'!F$7)-MOD((A25*'O&M Cost Estimator 4400B'!F$7),4400)),'O&M Cost Estimator 4400B'!F$22:F$80,'O&M Cost Estimator 4400B'!K$22:K$80) -> -742 | D26: ='Payback Estimator-4400B'!$B$43*(D25) +D25 -> 46734.6 | E26: 45992.6 | F26: =SUM($E$5:E26) -> 695099.6 | G26: =IRR($E$5:E26) -> 0.2368349418 | I26: =I25+1 -> 21 | K26: =-LOOKUP(((A26*'O&M Cost Estimator 4400B'!F$7)-MOD((A26*'O&M Cost Estimator 4400B'!F$7),4400)),'O&M Cost Estimator 4400B'!P$22:P$80,'O&M Cost Estimator 4400B'!S$22:S$80)-LOOKUP(((A26*'O&M Cost Estimator 4400B'!F$7)-MOD((A26*'O&M Cost Estimator 4400B'!F$7),4400)),'O&M Cost Estimator 4400B'!P$22:P$80,'O&M Cost Estimator 4400B'!U$22:U$80)+LOOKUP(((A25*'O&M Cost Estimator 4400B'!F$7)-MOD((A25*'O&M Cost Estimator 4400B'!F$7),4400)),'O&M Cost Estimator 4400B'!P$22:P$80,'O&M Cost Estimator 4400B'!S$22:S$80)+LOOKUP(((A25*'O&M Cost Estimator 4400B'!F$7)-MOD((A25*'O&M Cost Estimator 4400B'!F$7),4400)),'O&M Cost Estimator 4400B'!P$22:P$80,'O&M Cost Estimator 4400B'!U$22:U$80) -> -742 | L26: ='Payback Estimator-4400B'!$C$43*(L25)+L25 -> 46734.6 | M26: =K26+L26 -> 45992.6 | N26: =SUM($M$5:M26) -> 695099.6 | O26: =IRR($M$5:M26) -> 0.2368349418 | S26: =IF(S25=99999,IF(F26>=0,A26-F26/E26,99999),99998) -> 99998
A27: =A26+1 -> 22 | C27: =-LOOKUP(((A27*'O&M Cost Estimator 4400B'!F$7)-MOD((A27*'O&M Cost Estimator 4400B'!F$7),4400)),'O&M Cost Estimator 4400B'!F$22:F$80,'O&M Cost Estimator 4400B'!I$22:I$80)-LOOKUP(((A27*'O&M Cost Estimator 4400B'!F$7)-MOD((A27*'O&M Cost Estimator 4400B'!F$7),4400)),'O&M Cost Estimator 4400B'!F$22:F$80,'O&M Cost Estimator 4400B'!K$22:K$80)+LOOKUP(((A26*'O&M Cost Estimator 4400B'!F$7)-MOD((A26*'O&M Cost Estimator 4400B'!F$7),4400)),'O&M Cost Estimator 4400B'!F$22:F$80,'O&M Cost Estimator 4400B'!I$22:I$80)+LOOKUP(((A26*'O&M Cost Estimator 4400B'!F$7)-MOD((A26*'O&M Cost Estimator 4400B'!F$7),4400)),'O&M Cost Estimator 4400B'!F$22:F$80,'O&M Cost Estimator 4400B'!K$22:K$80) -> 0 | D27: ='Payback Estimator-4400B'!$B$43*(D26) +D26 -> 46734.6 | E27: 46734.6 | F27: =SUM($E$5:E27) -> 741834.2 | G27: =IRR($E$5:E27) -> 0.2374585502 | I27: =I26+1 -> 22 | K27: =-LOOKUP(((A27*'O&M Cost Estimator 4400B'!F$7)-MOD((A27*'O&M Cost Estimator 4400B'!F$7),4400)),'O&M Cost Estimator 4400B'!P$22:P$80,'O&M Cost Estimator 4400B'!S$22:S$80)-LOOKUP(((A27*'O&M Cost Estimator 4400B'!F$7)-MOD((A27*'O&M Cost Estimator 4400B'!F$7),4400)),'O&M Cost Estimator 4400B'!P$22:P$80,'O&M Cost Estimator 4400B'!U$22:U$80)+LOOKUP(((A26*'O&M Cost Estimator 4400B'!F$7)-MOD((A26*'O&M Cost Estimator 4400B'!F$7),4400)),'O&M Cost Estimator 4400B'!P$22:P$80,'O&M Cost Estimator 4400B'!S$22:S$80)+LOOKUP(((A26*'O&M Cost Estimator 4400B'!F$7)-MOD((A26*'O&M Cost Estimator 4400B'!F$7),4400)),'O&M Cost Estimator 4400B'!P$22:P$80,'O&M Cost Estimator 4400B'!U$22:U$80) -> 0 | L27: ='Payback Estimator-4400B'!$C$43*(L26)+L26 -> 46734.6 | M27: =K27+L27 -> 46734.6 | N27: =SUM($M$5:M27) -> 741834.2 | O27: =IRR($M$5:M27) -> 0.2374585502 | S27: 99998
A28: 23 | C28: =-LOOKUP(((A28*'O&M Cost Estimator 4400B'!F$7)-MOD((A28*'O&M Cost Estimator 4400B'!F$7),4400)),'O&M Cost Estimator 4400B'!F$22:F$80,'O&M Cost Estimator 4400B'!I$22:I$80)-LOOKUP(((A28*'O&M Cost Estimator 4400B'!F$7)-MOD((A28*'O&M Cost Estimator 4400B'!F$7),4400)),'O&M Cost Estimator 4400B'!F$22:F$80,'O&M Cost Estimator 4400B'!K$22:K$80)+LOOKUP(((A27*'O&M Cost Estimator 4400B'!F$7)-MOD((A27*'O&M Cost Estimator 4400B'!F$7),4400)),'O&M Cost Estimator 4400B'!F$22:F$80,'O&M Cost Estimator 4400B'!I$22:I$80)+LOOKUP(((A27*'O&M Cost Estimator 4400B'!F$7)-MOD((A27*'O&M Cost Estimator 4400B'!F$7),4400)),'O&M Cost Estimator 4400B'!F$22:F$80,'O&M Cost Estimator 4400B'!K$22:K$80) -> 0 | D28: ='Payback Estimator-4400B'!$B$43*(D27) +D27 -> 46734.6 | E28: 46734.6 | F28: =SUM($E$5:E28) -> 788568.8 | G28: =IRR($E$5:E28) -> 0.237954474 | I28: 23 | K28: =-LOOKUP(((A28*'O&M Cost Estimator 4400B'!F$7)-MOD((A28*'O&M Cost Estimator 4400B'!F$7),4400)),'O&M Cost Estimator 4400B'!P$22:P$80,'O&M Cost Estimator 4400B'!S$22:S$80)-LOOKUP(((A28*'O&M Cost Estimator 4400B'!F$7)-MOD((A28*'O&M Cost Estimator 4400B'!F$7),4400)),'O&M Cost Estimator 4400B'!P$22:P$80,'O&M Cost Estimator 4400B'!U$22:U$80)+LOOKUP(((A27*'O&M Cost Estimator 4400B'!F$7)-MOD((A27*'O&M Cost Estimator 4400B'!F$7),4400)),'O&M Cost Estimator 4400B'!P$22:P$80,'O&M Cost Estimator 4400B'!S$22:S$80)+LOOKUP(((A27*'O&M Cost Estimator 4400B'!F$7)-MOD((A27*'O&M Cost Estimator 4400B'!F$7),4400)),'O&M Cost Estimator 4400B'!P$22:P$80,'O&M Cost Estimator 4400B'!U$22:U$80) -> 0 | L28: ='Payback Estimator-4400B'!$C$43*(L27)+L27 -> 46734.6 | M28: 46734.6 | N28: =SUM($M$5:M28) -> 788568.8 | O28: =IRR($M$5:M28) -> 0.237954474 | S28: 99998
A29: 24 | C29: =-LOOKUP(((A29*'O&M Cost Estimator 4400B'!F$7)-MOD((A29*'O&M Cost Estimator 4400B'!F$7),4400)),'O&M Cost Estimator 4400B'!F$22:F$80,'O&M Cost Estimator 4400B'!I$22:I$80)-LOOKUP(((A29*'O&M Cost Estimator 4400B'!F$7)-MOD((A29*'O&M Cost Estimator 4400B'!F$7),4400)),'O&M Cost Estimator 4400B'!F$22:F$80,'O&M Cost Estimator 4400B'!K$22:K$80)+LOOKUP(((A28*'O&M Cost Estimator 4400B'!F$7)-MOD((A28*'O&M Cost Estimator 4400B'!F$7),4400)),'O&M Cost Estimator 4400B'!F$22:F$80,'O&M Cost Estimator 4400B'!I$22:I$80)+LOOKUP(((A28*'O&M Cost Estimator 4400B'!F$7)-MOD((A28*'O&M Cost Estimator 4400B'!F$7),4400)),'O&M Cost Estimator 4400B'!F$22:F$80,'O&M Cost Estimator 4400B'!K$22:K$80) -> 0 | D29: ='Payback Estimator-4400B'!$B$43*(D28) +D28 -> 46734.6 | E29: 46734.6 | F29: =SUM($E$5:E29) -> 835303.4 | G29: =IRR($E$5:E29) -> 0.2383497256 | I29: 24 | K29: =-LOOKUP(((A29*'O&M Cost Estimator 4400B'!F$7)-MOD((A29*'O&M Cost Estimator 4400B'!F$7),4400)),'O&M Cost Estimator 4400B'!P$22:P$80,'O&M Cost Estimator 4400B'!S$22:S$80)-LOOKUP(((A29*'O&M Cost Estimator 4400B'!F$7)-MOD((A29*'O&M Cost Estimator 4400B'!F$7),4400)),'O&M Cost Estimator 4400B'!P$22:P$80,'O&M Cost Estimator 4400B'!U$22:U$80)+LOOKUP(((A28*'O&M Cost Estimator 4400B'!F$7)-MOD((A28*'O&M Cost Estimator 4400B'!F$7),4400)),'O&M Cost Estimator 4400B'!P$22:P$80,'O&M Cost Estimator 4400B'!S$22:S$80)+LOOKUP(((A28*'O&M Cost Estimator 4400B'!F$7)-MOD((A28*'O&M Cost Estimator 4400B'!F$7),4400)),'O&M Cost Estimator 4400B'!P$22:P$80,'O&M Cost Estimator 4400B'!U$22:U$80) -> 0 | L29: ='Payback Estimator-4400B'!$C$43*(L28)+L28 -> 46734.6 | M29: 46734.6 | N29: =SUM($M$5:M29) -> 835303.4 | O29: =IRR($M$5:M29) -> 0.2383497256 | S29: 99998
A30: 25 | C30: =-LOOKUP(((A30*'O&M Cost Estimator 4400B'!F$7)-MOD((A30*'O&M Cost Estimator 4400B'!F$7),4400)),'O&M Cost Estimator 4400B'!F$22:F$80,'O&M Cost Estimator 4400B'!I$22:I$80)-LOOKUP(((A30*'O&M Cost Estimator 4400B'!F$7)-MOD((A30*'O&M Cost Estimator 4400B'!F$7),4400)),'O&M Cost Estimator 4400B'!F$22:F$80,'O&M Cost Estimator 4400B'!K$22:K$80)+LOOKUP(((A29*'O&M Cost Estimator 4400B'!F$7)-MOD((A29*'O&M Cost Estimator 4400B'!F$7),4400)),'O&M Cost Estimator 4400B'!F$22:F$80,'O&M Cost Estimator 4400B'!I$22:I$80)+LOOKUP(((A29*'O&M Cost Estimator 4400B'!F$7)-MOD((A29*'O&M Cost Estimator 4400B'!F$7),4400)),'O&M Cost Estimator 4400B'!F$22:F$80,'O&M Cost Estimator 4400B'!K$22:K$80) -> 0 | D30: ='Payback Estimator-4400B'!$B$43*(D29) +D29 -> 46734.6 | E30: 46734.6 | F30: =SUM($E$5:E30) -> 882038 | G30: =IRR($E$5:E30) -> 0.2386653278 | I30: 25 | K30: =-LOOKUP(((A30*'O&M Cost Estimator 4400B'!F$7)-MOD((A30*'O&M Cost Estimator 4400B'!F$7),4400)),'O&M Cost Estimator 4400B'!P$22:P$80,'O&M Cost Estimator 4400B'!S$22:S$80)-LOOKUP(((A30*'O&M Cost Estimator 4400B'!F$7)-MOD((A30*'O&M Cost Estimator 4400B'!F$7),4400)),'O&M Cost Estimator 4400B'!P$22:P$80,'O&M Cost Estimator 4400B'!U$22:U$80)+LOOKUP(((A29*'O&M Cost Estimator 4400B'!F$7)-MOD((A29*'O&M Cost Estimator 4400B'!F$7),4400)),'O&M Cost Estimator 4400B'!P$22:P$80,'O&M Cost Estimator 4400B'!S$22:S$80)+LOOKUP(((A29*'O&M Cost Estimator 4400B'!F$7)-MOD((A29*'O&M Cost Estimator 4400B'!F$7),4400)),'O&M Cost Estimator 4400B'!P$22:P$80,'O&M Cost Estimator 4400B'!U$22:U$80) -> 0 | L30: ='Payback Estimator-4400B'!$C$43*(L29)+L29 -> 46734.6 | M30: 46734.6 | N30: =SUM($M$5:M30) -> 882038 | O30: =IRR($M$5:M30) -> 0.2386653278 | S30: 99998
A31: 26 | C31: =-LOOKUP(((A31*'O&M Cost Estimator 4400B'!F$7)-MOD((A31*'O&M Cost Estimator 4400B'!F$7),4400)),'O&M Cost Estimator 4400B'!F$22:F$80,'O&M Cost Estimator 4400B'!I$22:I$80)-LOOKUP(((A31*'O&M Cost Estimator 4400B'!F$7)-MOD((A31*'O&M Cost Estimator 4400B'!F$7),4400)),'O&M Cost Estimator 4400B'!F$22:F$80,'O&M Cost Estimator 4400B'!K$22:K$80)+LOOKUP(((A30*'O&M Cost Estimator 4400B'!F$7)-MOD((A30*'O&M Cost Estimator 4400B'!F$7),4400)),'O&M Cost Estimator 4400B'!F$22:F$80,'O&M Cost Estimator 4400B'!I$22:I$80)+LOOKUP(((A30*'O&M Cost Estimator 4400B'!F$7)-MOD((A30*'O&M Cost Estimator 4400B'!F$7),4400)),'O&M Cost Estimator 4400B'!F$22:F$80,'O&M Cost Estimator 4400B'!K$22:K$80) -> 0 | D31: ='Payback Estimator-4400B'!$B$43*(D30) +D30 -> 46734.6 | E31: 46734.6 | F31: =SUM($E$5:E31) -> 928772.6 | G31: =IRR($E$5:E31) -> 0.2389177282 | I31: 26 | K31: =-LOOKUP(((A31*'O&M Cost Estimator 4400B'!F$7)-MOD((A31*'O&M Cost Estimator 4400B'!F$7),4400)),'O&M Cost Estimator 4400B'!P$22:P$80,'O&M Cost Estimator 4400B'!S$22:S$80)-LOOKUP(((A31*'O&M Cost Estimator 4400B'!F$7)-MOD((A31*'O&M Cost Estimator 4400B'!F$7),4400)),'O&M Cost Estimator 4400B'!P$22:P$80,'O&M Cost Estimator 4400B'!U$22:U$80)+LOOKUP(((A30*'O&M Cost Estimator 4400B'!F$7)-MOD((A30*'O&M Cost Estimator 4400B'!F$7),4400)),'O&M Cost Estimator 4400B'!P$22:P$80,'O&M Cost Estimator 4400B'!S$22:S$80)+LOOKUP(((A30*'O&M Cost Estimator 4400B'!F$7)-MOD((A30*'O&M Cost Estimator 4400B'!F$7),4400)),'O&M Cost Estimator 4400B'!P$22:P$80,'O&M Cost Estimator 4400B'!U$22:U$80) -> 0 | L31: ='Payback Estimator-4400B'!$C$43*(L30)+L30 -> 46734.6 | M31: 46734.6 | N31: =SUM($M$5:M31) -> 928772.6 | O31: =IRR($M$5:M31) -> 0.2389177282 | S31: 99998
A32: 27 | C32: =-LOOKUP(((A32*'O&M Cost Estimator 4400B'!F$7)-MOD((A32*'O&M Cost Estimator 4400B'!F$7),4400)),'O&M Cost Estimator 4400B'!F$22:F$80,'O&M Cost Estimator 4400B'!I$22:I$80)-LOOKUP(((A32*'O&M Cost Estimator 4400B'!F$7)-MOD((A32*'O&M Cost Estimator 4400B'!F$7),4400)),'O&M Cost Estimator 4400B'!F$22:F$80,'O&M Cost Estimator 4400B'!K$22:K$80)+LOOKUP(((A31*'O&M Cost Estimator 4400B'!F$7)-MOD((A31*'O&M Cost Estimator 4400B'!F$7),4400)),'O&M Cost Estimator 4400B'!F$22:F$80,'O&M Cost Estimator 4400B'!I$22:I$80)+LOOKUP(((A31*'O&M Cost Estimator 4400B'!F$7)-MOD((A31*'O&M Cost Estimator 4400B'!F$7),4400)),'O&M Cost Estimator 4400B'!F$22:F$80,'O&M Cost Estimator 4400B'!K$22:K$80) -> 0 | D32: ='Payback Estimator-4400B'!$B$43*(D31) +D31 -> 46734.6 | E32: 46734.6 | F32: =SUM($E$5:E32) -> 975507.2 | G32: =IRR($E$5:E32) -> 0.2391198521 | I32: 27 | K32: =-LOOKUP(((A32*'O&M Cost Estimator 4400B'!F$7)-MOD((A32*'O&M Cost Estimator 4400B'!F$7),4400)),'O&M Cost Estimator 4400B'!P$22:P$80,'O&M Cost Estimator 4400B'!S$22:S$80)-LOOKUP(((A32*'O&M Cost Estimator 4400B'!F$7)-MOD((A32*'O&M Cost Estimator 4400B'!F$7),4400)),'O&M Cost Estimator 4400B'!P$22:P$80,'O&M Cost Estimator 4400B'!U$22:U$80)+LOOKUP(((A31*'O&M Cost Estimator 4400B'!F$7)-MOD((A31*'O&M Cost Estimator 4400B'!F$7),4400)),'O&M Cost Estimator 4400B'!P$22:P$80,'O&M Cost Estimator 4400B'!S$22:S$80)+LOOKUP(((A31*'O&M Cost Estimator 4400B'!F$7)-MOD((A31*'O&M Cost Estimator 4400B'!F$7),4400)),'O&M Cost Estimator 4400B'!P$22:P$80,'O&M Cost Estimator 4400B'!U$22:U$80) -> 0 | L32: ='Payback Estimator-4400B'!$C$43*(L31)+L31 -> 46734.6 | M32: 46734.6 | N32: =SUM($M$5:M32) -> 975507.2 | O32: =IRR($M$5:M32) -> 0.2391198521 | S32: 99998
A33: 28 | C33: =-LOOKUP(((A33*'O&M Cost Estimator 4400B'!F$7)-MOD((A33*'O&M Cost Estimator 4400B'!F$7),4400)),'O&M Cost Estimator 4400B'!F$22:F$80,'O&M Cost Estimator 4400B'!I$22:I$80)-LOOKUP(((A33*'O&M Cost Estimator 4400B'!F$7)-MOD((A33*'O&M Cost Estimator 4400B'!F$7),4400)),'O&M Cost Estimator 4400B'!F$22:F$80,'O&M Cost Estimator 4400B'!K$22:K$80)+LOOKUP(((A32*'O&M Cost Estimator 4400B'!F$7)-MOD((A32*'O&M Cost Estimator 4400B'!F$7),4400)),'O&M Cost Estimator 4400B'!F$22:F$80,'O&M Cost Estimator 4400B'!I$22:I$80)+LOOKUP(((A32*'O&M Cost Estimator 4400B'!F$7)-MOD((A32*'O&M Cost Estimator 4400B'!F$7),4400)),'O&M Cost Estimator 4400B'!F$22:F$80,'O&M Cost Estimator 4400B'!K$22:K$80) -> 0 | D33: ='Payback Estimator-4400B'!$B$43*(D32) +D32 -> 46734.6 | E33: 46734.6 | F33: =SUM($E$5:E33) -> 1022241.8 | G33: =IRR($E$5:E33) -> 0.2392818965 | I33: 28 | K33: =-LOOKUP(((A33*'O&M Cost Estimator 4400B'!F$7)-MOD((A33*'O&M Cost Estimator 4400B'!F$7),4400)),'O&M Cost Estimator 4400B'!P$22:P$80,'O&M Cost Estimator 4400B'!S$22:S$80)-LOOKUP(((A33*'O&M Cost Estimator 4400B'!F$7)-MOD((A33*'O&M Cost Estimator 4400B'!F$7),4400)),'O&M Cost Estimator 4400B'!P$22:P$80,'O&M Cost Estimator 4400B'!U$22:U$80)+LOOKUP(((A32*'O&M Cost Estimator 4400B'!F$7)-MOD((A32*'O&M Cost Estimator 4400B'!F$7),4400)),'O&M Cost Estimator 4400B'!P$22:P$80,'O&M Cost Estimator 4400B'!S$22:S$80)+LOOKUP(((A32*'O&M Cost Estimator 4400B'!F$7)-MOD((A32*'O&M Cost Estimator 4400B'!F$7),4400)),'O&M Cost Estimator 4400B'!P$22:P$80,'O&M Cost Estimator 4400B'!U$22:U$80) -> 0 | L33: ='Payback Estimator-4400B'!$C$43*(L32)+L32 -> 46734.6 | M33: 46734.6 | N33: =SUM($M$5:M33) -> 1022241.8 | O33: =IRR($M$5:M33) -> 0.2392818965 | S33: 99998
A34: 29 | C34: =-LOOKUP(((A34*'O&M Cost Estimator 4400B'!F$7)-MOD((A34*'O&M Cost Estimator 4400B'!F$7),4400)),'O&M Cost Estimator 4400B'!F$22:F$80,'O&M Cost Estimator 4400B'!I$22:I$80)-LOOKUP(((A34*'O&M Cost Estimator 4400B'!F$7)-MOD((A34*'O&M Cost Estimator 4400B'!F$7),4400)),'O&M Cost Estimator 4400B'!F$22:F$80,'O&M Cost Estimator 4400B'!K$22:K$80)+LOOKUP(((A33*'O&M Cost Estimator 4400B'!F$7)-MOD((A33*'O&M Cost Estimator 4400B'!F$7),4400)),'O&M Cost Estimator 4400B'!F$22:F$80,'O&M Cost Estimator 4400B'!I$22:I$80)+LOOKUP(((A33*'O&M Cost Estimator 4400B'!F$7)-MOD((A33*'O&M Cost Estimator 4400B'!F$7),4400)),'O&M Cost Estimator 4400B'!F$22:F$80,'O&M Cost Estimator 4400B'!K$22:K$80) -> 0 | D34: ='Payback Estimator-4400B'!$B$43*(D33) +D33 -> 46734.6 | E34: 46734.6 | F34: =SUM($E$5:E34) -> 1068976.4 | G34: =IRR($E$5:E34) -> 0.2394119323 | I34: 29 | K34: =-LOOKUP(((A34*'O&M Cost Estimator 4400B'!F$7)-MOD((A34*'O&M Cost Estimator 4400B'!F$7),4400)),'O&M Cost Estimator 4400B'!P$22:P$80,'O&M Cost Estimator 4400B'!S$22:S$80)-LOOKUP(((A34*'O&M Cost Estimator 4400B'!F$7)-MOD((A34*'O&M Cost Estimator 4400B'!F$7),4400)),'O&M Cost Estimator 4400B'!P$22:P$80,'O&M Cost Estimator 4400B'!U$22:U$80)+LOOKUP(((A33*'O&M Cost Estimator 4400B'!F$7)-MOD((A33*'O&M Cost Estimator 4400B'!F$7),4400)),'O&M Cost Estimator 4400B'!P$22:P$80,'O&M Cost Estimator 4400B'!S$22:S$80)+LOOKUP(((A33*'O&M Cost Estimator 4400B'!F$7)-MOD((A33*'O&M Cost Estimator 4400B'!F$7),4400)),'O&M Cost Estimator 4400B'!P$22:P$80,'O&M Cost Estimator 4400B'!U$22:U$80) -> 0 | L34: ='Payback Estimator-4400B'!$C$43*(L33)+L33 -> 46734.6 | M34: 46734.6 | N34: =SUM($M$5:M34) -> 1068976.4 | O34: =IRR($M$5:M34) -> 0.2394119323 | S34: 99998
A35: 30 | C35: =-LOOKUP(((A35*'O&M Cost Estimator 4400B'!F$7)-MOD((A35*'O&M Cost Estimator 4400B'!F$7),4400)),'O&M Cost Estimator 4400B'!F$22:F$80,'O&M Cost Estimator 4400B'!I$22:I$80)-LOOKUP(((A35*'O&M Cost Estimator 4400B'!F$7)-MOD((A35*'O&M Cost Estimator 4400B'!F$7),4400)),'O&M Cost Estimator 4400B'!F$22:F$80,'O&M Cost Estimator 4400B'!K$22:K$80)+LOOKUP(((A34*'O&M Cost Estimator 4400B'!F$7)-MOD((A34*'O&M Cost Estimator 4400B'!F$7),4400)),'O&M Cost Estimator 4400B'!F$22:F$80,'O&M Cost Estimator 4400B'!I$22:I$80)+LOOKUP(((A34*'O&M Cost Estimator 4400B'!F$7)-MOD((A34*'O&M Cost Estimator 4400B'!F$7),4400)),'O&M Cost Estimator 4400B'!F$22:F$80,'O&M Cost Estimator 4400B'!K$22:K$80) -> 0 | D35: ='Payback Estimator-4400B'!$B$43*(D34) +D34 -> 46734.6 | E35: 46734.6 | F35: =SUM($E$5:E35) -> 1115711 | G35: =IRR($E$5:E35) -> 0.2395163659 | I35: 30 | K35: =-LOOKUP(((A35*'O&M Cost Estimator 4400B'!F$7)-MOD((A35*'O&M Cost Estimator 4400B'!F$7),4400)),'O&M Cost Estimator 4400B'!P$22:P$80,'O&M Cost Estimator 4400B'!S$22:S$80)-LOOKUP(((A35*'O&M Cost Estimator 4400B'!F$7)-MOD((A35*'O&M Cost Estimator 4400B'!F$7),4400)),'O&M Cost Estimator 4400B'!P$22:P$80,'O&M Cost Estimator 4400B'!U$22:U$80)+LOOKUP(((A34*'O&M Cost Estimator 4400B'!F$7)-MOD((A34*'O&M Cost Estimator 4400B'!F$7),4400)),'O&M Cost Estimator 4400B'!P$22:P$80,'O&M Cost Estimator 4400B'!S$22:S$80)+LOOKUP(((A34*'O&M Cost Estimator 4400B'!F$7)-MOD((A34*'O&M Cost Estimator 4400B'!F$7),4400)),'O&M Cost Estimator 4400B'!P$22:P$80,'O&M Cost Estimator 4400B'!U$22:U$80) -> 0 | L35: ='Payback Estimator-4400B'!$C$43*(L34)+L34 -> 46734.6 | M35: 46734.6 | N35: =SUM($M$5:M35) -> 1115711 | O35: =IRR($M$5:M35) -> 0.2395163659 | S35: 99998
A36: =A35+1 -> 31 | C36: =-LOOKUP(((A36*'O&M Cost Estimator 4400B'!F$7)-MOD((A36*'O&M Cost Estimator 4400B'!F$7),4400)),'O&M Cost Estimator 4400B'!F$22:F$80,'O&M Cost Estimator 4400B'!I$22:I$80)-LOOKUP(((A36*'O&M Cost Estimator 4400B'!F$7)-MOD((A36*'O&M Cost Estimator 4400B'!F$7),4400)),'O&M Cost Estimator 4400B'!F$22:F$80,'O&M Cost Estimator 4400B'!K$22:K$80)+LOOKUP(((A35*'O&M Cost Estimator 4400B'!F$7)-MOD((A35*'O&M Cost Estimator 4400B'!F$7),4400)),'O&M Cost Estimator 4400B'!F$22:F$80,'O&M Cost Estimator 4400B'!I$22:I$80)+LOOKUP(((A35*'O&M Cost Estimator 4400B'!F$7)-MOD((A35*'O&M Cost Estimator 4400B'!F$7),4400)),'O&M Cost Estimator 4400B'!F$22:F$80,'O&M Cost Estimator 4400B'!K$22:K$80) -> 0 | D36: ='Payback Estimator-4400B'!$B$43*(D35) +D35 -> 46734.6 | E36: =C36+D36 -> 46734.6 | F36: =SUM($E$5:E36) -> 1162445.6 | G36: =IRR($E$5:E36) -> 0.2396002947 | I36: =I35+1 -> 31 | K36: =-LOOKUP(((A36*'O&M Cost Estimator 4400B'!F$7)-MOD((A36*'O&M Cost Estimator 4400B'!F$7),4400)),'O&M Cost Estimator 4400B'!P$22:P$80,'O&M Cost Estimator 4400B'!S$22:S$80)-LOOKUP(((A36*'O&M Cost Estimator 4400B'!F$7)-MOD((A36*'O&M Cost Estimator 4400B'!F$7),4400)),'O&M Cost Estimator 4400B'!P$22:P$80,'O&M Cost Estimator 4400B'!U$22:U$80)+LOOKUP(((A35*'O&M Cost Estimator 4400B'!F$7)-MOD((A35*'O&M Cost Estimator 4400B'!F$7),4400)),'O&M Cost Estimator 4400B'!P$22:P$80,'O&M Cost Estimator 4400B'!S$22:S$80)+LOOKUP(((A35*'O&M Cost Estimator 4400B'!F$7)-MOD((A35*'O&M Cost Estimator 4400B'!F$7),4400)),'O&M Cost Estimator 4400B'!P$22:P$80,'O&M Cost Estimator 4400B'!U$22:U$80) -> 0 | L36: ='Payback Estimator-4400B'!$C$43*(L35)+L35 -> 46734.6 | M36: =K36+L36 -> 46734.6 | N36: =SUM($M$5:M36) -> 1162445.6 | O36: =IRR($M$5:M36) -> 0.2396002947 | S36: =IF(S35=99999,IF(F36>=0,A36-F36/E36,99999),99998) -> 99998
A37: =A36+1 -> 32 | C37: =-LOOKUP(((A37*'O&M Cost Estimator 4400B'!F$7)-MOD((A37*'O&M Cost Estimator 4400B'!F$7),4400)),'O&M Cost Estimator 4400B'!F$22:F$80,'O&M Cost Estimator 4400B'!I$22:I$80)-LOOKUP(((A37*'O&M Cost Estimator 4400B'!F$7)-MOD((A37*'O&M Cost Estimator 4400B'!F$7),4400)),'O&M Cost Estimator 4400B'!F$22:F$80,'O&M Cost Estimator 4400B'!K$22:K$80)+LOOKUP(((A36*'O&M Cost Estimator 4400B'!F$7)-MOD((A36*'O&M Cost Estimator 4400B'!F$7),4400)),'O&M Cost Estimator 4400B'!F$22:F$80,'O&M Cost Estimator 4400B'!I$22:I$80)+LOOKUP(((A36*'O&M Cost Estimator 4400B'!F$7)-MOD((A36*'O&M Cost Estimator 4400B'!F$7),4400)),'O&M Cost Estimator 4400B'!F$22:F$80,'O&M Cost Estimator 4400B'!K$22:K$80) -> 0 | D37: ='Payback Estimator-4400B'!$B$43*(D36) +D36 -> 46734.6 | E37: 46734.6 | F37: =SUM($E$5:E37) -> 1209180.2 | G37: =IRR($E$5:E37) -> 0.2396677833 | I37: =I36+1 -> 32 | K37: =-LOOKUP(((A37*'O&M Cost Estimator 4400B'!F$7)-MOD((A37*'O&M Cost Estimator 4400B'!F$7),4400)),'O&M Cost Estimator 4400B'!P$22:P$80,'O&M Cost Estimator 4400B'!S$22:S$80)-LOOKUP(((A37*'O&M Cost Estimator 4400B'!F$7)-MOD((A37*'O&M Cost Estimator 4400B'!F$7),4400)),'O&M Cost Estimator 4400B'!P$22:P$80,'O&M Cost Estimator 4400B'!U$22:U$80)+LOOKUP(((A36*'O&M Cost Estimator 4400B'!F$7)-MOD((A36*'O&M Cost Estimator 4400B'!F$7),4400)),'O&M Cost Estimator 4400B'!P$22:P$80,'O&M Cost Estimator 4400B'!S$22:S$80)+LOOKUP(((A36*'O&M Cost Estimator 4400B'!F$7)-MOD((A36*'O&M Cost Estimator 4400B'!F$7),4400)),'O&M Cost Estimator 4400B'!P$22:P$80,'O&M Cost Estimator 4400B'!U$22:U$80) -> 0 | L37: ='Payback Estimator-4400B'!$C$43*(L36)+L36 -> 46734.6 | M37: 46734.6 | N37: =SUM($M$5:M37) -> 1209180.2 | O37: =IRR($M$5:M37) -> 0.2396677833 | S37: 99998
A38: 33 | C38: =-LOOKUP(((A38*'O&M Cost Estimator 4400B'!F$7)-MOD((A38*'O&M Cost Estimator 4400B'!F$7),4400)),'O&M Cost Estimator 4400B'!F$22:F$80,'O&M Cost Estimator 4400B'!I$22:I$80)-LOOKUP(((A38*'O&M Cost Estimator 4400B'!F$7)-MOD((A38*'O&M Cost Estimator 4400B'!F$7),4400)),'O&M Cost Estimator 4400B'!F$22:F$80,'O&M Cost Estimator 4400B'!K$22:K$80)+LOOKUP(((A37*'O&M Cost Estimator 4400B'!F$7)-MOD((A37*'O&M Cost Estimator 4400B'!F$7),4400)),'O&M Cost Estimator 4400B'!F$22:F$80,'O&M Cost Estimator 4400B'!I$22:I$80)+LOOKUP(((A37*'O&M Cost Estimator 4400B'!F$7)-MOD((A37*'O&M Cost Estimator 4400B'!F$7),4400)),'O&M Cost Estimator 4400B'!F$22:F$80,'O&M Cost Estimator 4400B'!K$22:K$80) -> 0 | D38: ='Payback Estimator-4400B'!$B$43*(D37) +D37 -> 46734.6 | E38: 46734.6 | F38: =SUM($E$5:E38) -> 1255914.8 | G38: =IRR($E$5:E38) -> 0.239722078 | I38: 33 | K38: =-LOOKUP(((A38*'O&M Cost Estimator 4400B'!F$7)-MOD((A38*'O&M Cost Estimator 4400B'!F$7),4400)),'O&M Cost Estimator 4400B'!P$22:P$80,'O&M Cost Estimator 4400B'!S$22:S$80)-LOOKUP(((A38*'O&M Cost Estimator 4400B'!F$7)-MOD((A38*'O&M Cost Estimator 4400B'!F$7),4400)),'O&M Cost Estimator 4400B'!P$22:P$80,'O&M Cost Estimator 4400B'!U$22:U$80)+LOOKUP(((A37*'O&M Cost Estimator 4400B'!F$7)-MOD((A37*'O&M Cost Estimator 4400B'!F$7),4400)),'O&M Cost Estimator 4400B'!P$22:P$80,'O&M Cost Estimator 4400B'!S$22:S$80)+LOOKUP(((A37*'O&M Cost Estimator 4400B'!F$7)-MOD((A37*'O&M Cost Estimator 4400B'!F$7),4400)),'O&M Cost Estimator 4400B'!P$22:P$80,'O&M Cost Estimator 4400B'!U$22:U$80) -> 0 | L38: ='Payback Estimator-4400B'!$C$43*(L37)+L37 -> 46734.6 | M38: 46734.6 | N38: =SUM($M$5:M38) -> 1255914.8 | O38: =IRR($M$5:M38) -> 0.239722078 | S38: 99998
A39: 34 | C39: =-LOOKUP(((A39*'O&M Cost Estimator 4400B'!F$7)-MOD((A39*'O&M Cost Estimator 4400B'!F$7),4400)),'O&M Cost Estimator 4400B'!F$22:F$80,'O&M Cost Estimator 4400B'!I$22:I$80)-LOOKUP(((A39*'O&M Cost Estimator 4400B'!F$7)-MOD((A39*'O&M Cost Estimator 4400B'!F$7),4400)),'O&M Cost Estimator 4400B'!F$22:F$80,'O&M Cost Estimator 4400B'!K$22:K$80)+LOOKUP(((A38*'O&M Cost Estimator 4400B'!F$7)-MOD((A38*'O&M Cost Estimator 4400B'!F$7),4400)),'O&M Cost Estimator 4400B'!F$22:F$80,'O&M Cost Estimator 4400B'!I$22:I$80)+LOOKUP(((A38*'O&M Cost Estimator 4400B'!F$7)-MOD((A38*'O&M Cost Estimator 4400B'!F$7),4400)),'O&M Cost Estimator 4400B'!F$22:F$80,'O&M Cost Estimator 4400B'!K$22:K$80) -> 0 | D39: ='Payback Estimator-4400B'!$B$43*(D38) +D38 -> 46734.6 | E39: 46734.6 | F39: =SUM($E$5:E39) -> 1302649.4 | G39: =IRR($E$5:E39) -> 0.2397657758 | I39: 34 | K39: =-LOOKUP(((A39*'O&M Cost Estimator 4400B'!F$7)-MOD((A39*'O&M Cost Estimator 4400B'!F$7),4400)),'O&M Cost Estimator 4400B'!P$22:P$80,'O&M Cost Estimator 4400B'!S$22:S$80)-LOOKUP(((A39*'O&M Cost Estimator 4400B'!F$7)-MOD((A39*'O&M Cost Estimator 4400B'!F$7),4400)),'O&M Cost Estimator 4400B'!P$22:P$80,'O&M Cost Estimator 4400B'!U$22:U$80)+LOOKUP(((A38*'O&M Cost Estimator 4400B'!F$7)-MOD((A38*'O&M Cost Estimator 4400B'!F$7),4400)),'O&M Cost Estimator 4400B'!P$22:P$80,'O&M Cost Estimator 4400B'!S$22:S$80)+LOOKUP(((A38*'O&M Cost Estimator 4400B'!F$7)-MOD((A38*'O&M Cost Estimator 4400B'!F$7),4400)),'O&M Cost Estimator 4400B'!P$22:P$80,'O&M Cost Estimator 4400B'!U$22:U$80) -> 0 | L39: ='Payback Estimator-4400B'!$C$43*(L38)+L38 -> 46734.6 | M39: 46734.6 | N39: =SUM($M$5:M39) -> 1302649.4 | O39: =IRR($M$5:M39) -> 0.2397657758 | S39: 99998
A40: 35 | C40: =-LOOKUP(((A40*'O&M Cost Estimator 4400B'!F$7)-MOD((A40*'O&M Cost Estimator 4400B'!F$7),4400)),'O&M Cost Estimator 4400B'!F$22:F$80,'O&M Cost Estimator 4400B'!I$22:I$80)-LOOKUP(((A40*'O&M Cost Estimator 4400B'!F$7)-MOD((A40*'O&M Cost Estimator 4400B'!F$7),4400)),'O&M Cost Estimator 4400B'!F$22:F$80,'O&M Cost Estimator 4400B'!K$22:K$80)+LOOKUP(((A39*'O&M Cost Estimator 4400B'!F$7)-MOD((A39*'O&M Cost Estimator 4400B'!F$7),4400)),'O&M Cost Estimator 4400B'!F$22:F$80,'O&M Cost Estimator 4400B'!I$22:I$80)+LOOKUP(((A39*'O&M Cost Estimator 4400B'!F$7)-MOD((A39*'O&M Cost Estimator 4400B'!F$7),4400)),'O&M Cost Estimator 4400B'!F$22:F$80,'O&M Cost Estimator 4400B'!K$22:K$80) -> 0 | D40: ='Payback Estimator-4400B'!$B$43*(D39) +D39 -> 46734.6 | E40: 46734.6 | F40: =SUM($E$5:E40) -> 1349384 | G40: =IRR($E$5:E40) -> 0.2398009569 | I40: 35 | K40: =-LOOKUP(((A40*'O&M Cost Estimator 4400B'!F$7)-MOD((A40*'O&M Cost Estimator 4400B'!F$7),4400)),'O&M Cost Estimator 4400B'!P$22:P$80,'O&M Cost Estimator 4400B'!S$22:S$80)-LOOKUP(((A40*'O&M Cost Estimator 4400B'!F$7)-MOD((A40*'O&M Cost Estimator 4400B'!F$7),4400)),'O&M Cost Estimator 4400B'!P$22:P$80,'O&M Cost Estimator 4400B'!U$22:U$80)+LOOKUP(((A39*'O&M Cost Estimator 4400B'!F$7)-MOD((A39*'O&M Cost Estimator 4400B'!F$7),4400)),'O&M Cost Estimator 4400B'!P$22:P$80,'O&M Cost Estimator 4400B'!S$22:S$80)+LOOKUP(((A39*'O&M Cost Estimator 4400B'!F$7)-MOD((A39*'O&M Cost Estimator 4400B'!F$7),4400)),'O&M Cost Estimator 4400B'!P$22:P$80,'O&M Cost Estimator 4400B'!U$22:U$80) -> 0 | L40: ='Payback Estimator-4400B'!$C$43*(L39)+L39 -> 46734.6 | M40: 46734.6 | N40: =SUM($M$5:M40) -> 1349384 | O40: =IRR($M$5:M40) -> 0.2398009569 | S40: 99998
A41: 36 | C41: =-LOOKUP(((A41*'O&M Cost Estimator 4400B'!F$7)-MOD((A41*'O&M Cost Estimator 4400B'!F$7),4400)),'O&M Cost Estimator 4400B'!F$22:F$80,'O&M Cost Estimator 4400B'!I$22:I$80)-LOOKUP(((A41*'O&M Cost Estimator 4400B'!F$7)-MOD((A41*'O&M Cost Estimator 4400B'!F$7),4400)),'O&M Cost Estimator 4400B'!F$22:F$80,'O&M Cost Estimator 4400B'!K$22:K$80)+LOOKUP(((A40*'O&M Cost Estimator 4400B'!F$7)-MOD((A40*'O&M Cost Estimator 4400B'!F$7),4400)),'O&M Cost Estimator 4400B'!F$22:F$80,'O&M Cost Estimator 4400B'!I$22:I$80)+LOOKUP(((A40*'O&M Cost Estimator 4400B'!F$7)-MOD((A40*'O&M Cost Estimator 4400B'!F$7),4400)),'O&M Cost Estimator 4400B'!F$22:F$80,'O&M Cost Estimator 4400B'!K$22:K$80) -> 0 | D41: ='Payback Estimator-4400B'!$B$43*(D40) +D40 -> 46734.6 | E41: 46734.6 | F41: =SUM($E$5:E41) -> 1396118.6 | G41: =IRR($E$5:E41) -> 0.2398292893 | I41: 36 | K41: =-LOOKUP(((A41*'O&M Cost Estimator 4400B'!F$7)-MOD((A41*'O&M Cost Estimator 4400B'!F$7),4400)),'O&M Cost Estimator 4400B'!P$22:P$80,'O&M Cost Estimator 4400B'!S$22:S$80)-LOOKUP(((A41*'O&M Cost Estimator 4400B'!F$7)-MOD((A41*'O&M Cost Estimator 4400B'!F$7),4400)),'O&M Cost Estimator 4400B'!P$22:P$80,'O&M Cost Estimator 4400B'!U$22:U$80)+LOOKUP(((A40*'O&M Cost Estimator 4400B'!F$7)-MOD((A40*'O&M Cost Estimator 4400B'!F$7),4400)),'O&M Cost Estimator 4400B'!P$22:P$80,'O&M Cost Estimator 4400B'!S$22:S$80)+LOOKUP(((A40*'O&M Cost Estimator 4400B'!F$7)-MOD((A40*'O&M Cost Estimator 4400B'!F$7),4400)),'O&M Cost Estimator 4400B'!P$22:P$80,'O&M Cost Estimator 4400B'!U$22:U$80) -> 0 | L41: ='Payback Estimator-4400B'!$C$43*(L40)+L40 -> 46734.6 | M41: 46734.6 | N41: =SUM($M$5:M41) -> 1396118.6 | O41: =IRR($M$5:M41) -> 0.2398292893 | S41: 99998
A42: 37 | C42: =-LOOKUP(((A42*'O&M Cost Estimator 4400B'!F$7)-MOD((A42*'O&M Cost Estimator 4400B'!F$7),4400)),'O&M Cost Estimator 4400B'!F$22:F$80,'O&M Cost Estimator 4400B'!I$22:I$80)-LOOKUP(((A42*'O&M Cost Estimator 4400B'!F$7)-MOD((A42*'O&M Cost Estimator 4400B'!F$7),4400)),'O&M Cost Estimator 4400B'!F$22:F$80,'O&M Cost Estimator 4400B'!K$22:K$80)+LOOKUP(((A41*'O&M Cost Estimator 4400B'!F$7)-MOD((A41*'O&M Cost Estimator 4400B'!F$7),4400)),'O&M Cost Estimator 4400B'!F$22:F$80,'O&M Cost Estimator 4400B'!I$22:I$80)+LOOKUP(((A41*'O&M Cost Estimator 4400B'!F$7)-MOD((A41*'O&M Cost Estimator 4400B'!F$7),4400)),'O&M Cost Estimator 4400B'!F$22:F$80,'O&M Cost Estimator 4400B'!K$22:K$80) -> 0 | D42: ='Payback Estimator-4400B'!$B$43*(D41) +D41 -> 46734.6 | E42: 46734.6 | F42: =SUM($E$5:E42) -> 1442853.2 | G42: =IRR($E$5:E42) -> 0.2398521116 | I42: 37 | K42: =-LOOKUP(((A42*'O&M Cost Estimator 4400B'!F$7)-MOD((A42*'O&M Cost Estimator 4400B'!F$7),4400)),'O&M Cost Estimator 4400B'!P$22:P$80,'O&M Cost Estimator 4400B'!S$22:S$80)-LOOKUP(((A42*'O&M Cost Estimator 4400B'!F$7)-MOD((A42*'O&M Cost Estimator 4400B'!F$7),4400)),'O&M Cost Estimator 4400B'!P$22:P$80,'O&M Cost Estimator 4400B'!U$22:U$80)+LOOKUP(((A41*'O&M Cost Estimator 4400B'!F$7)-MOD((A41*'O&M Cost Estimator 4400B'!F$7),4400)),'O&M Cost Estimator 4400B'!P$22:P$80,'O&M Cost Estimator 4400B'!S$22:S$80)+LOOKUP(((A41*'O&M Cost Estimator 4400B'!F$7)-MOD((A41*'O&M Cost Estimator 4400B'!F$7),4400)),'O&M Cost Estimator 4400B'!P$22:P$80,'O&M Cost Estimator 4400B'!U$22:U$80) -> 0 | L42: ='Payback Estimator-4400B'!$C$43*(L41)+L41 -> 46734.6 | M42: 46734.6 | N42: =SUM($M$5:M42) -> 1442853.2 | O42: =IRR($M$5:M42) -> 0.2398521116 | S42: 99998
A43: 38 | C43: =-LOOKUP(((A43*'O&M Cost Estimator 4400B'!F$7)-MOD((A43*'O&M Cost Estimator 4400B'!F$7),4400)),'O&M Cost Estimator 4400B'!F$22:F$80,'O&M Cost Estimator 4400B'!I$22:I$80)-LOOKUP(((A43*'O&M Cost Estimator 4400B'!F$7)-MOD((A43*'O&M Cost Estimator 4400B'!F$7),4400)),'O&M Cost Estimator 4400B'!F$22:F$80,'O&M Cost Estimator 4400B'!K$22:K$80)+LOOKUP(((A42*'O&M Cost Estimator 4400B'!F$7)-MOD((A42*'O&M Cost Estimator 4400B'!F$7),4400)),'O&M Cost Estimator 4400B'!F$22:F$80,'O&M Cost Estimator 4400B'!I$22:I$80)+LOOKUP(((A42*'O&M Cost Estimator 4400B'!F$7)-MOD((A42*'O&M Cost Estimator 4400B'!F$7),4400)),'O&M Cost Estimator 4400B'!F$22:F$80,'O&M Cost Estimator 4400B'!K$22:K$80) -> 0 | D43: ='Payback Estimator-4400B'!$B$43*(D42) +D42 -> 46734.6 | E43: 46734.6 | F43: =SUM($E$5:E43) -> 1489587.8 | G43: =IRR($E$5:E43) -> 0.2398704992 | I43: 38 | K43: =-LOOKUP(((A43*'O&M Cost Estimator 4400B'!F$7)-MOD((A43*'O&M Cost Estimator 4400B'!F$7),4400)),'O&M Cost Estimator 4400B'!P$22:P$80,'O&M Cost Estimator 4400B'!S$22:S$80)-LOOKUP(((A43*'O&M Cost Estimator 4400B'!F$7)-MOD((A43*'O&M Cost Estimator 4400B'!F$7),4400)),'O&M Cost Estimator 4400B'!P$22:P$80,'O&M Cost Estimator 4400B'!U$22:U$80)+LOOKUP(((A42*'O&M Cost Estimator 4400B'!F$7)-MOD((A42*'O&M Cost Estimator 4400B'!F$7),4400)),'O&M Cost Estimator 4400B'!P$22:P$80,'O&M Cost Estimator 4400B'!S$22:S$80)+LOOKUP(((A42*'O&M Cost Estimator 4400B'!F$7)-MOD((A42*'O&M Cost Estimator 4400B'!F$7),4400)),'O&M Cost Estimator 4400B'!P$22:P$80,'O&M Cost Estimator 4400B'!U$22:U$80) -> 0 | L43: ='Payback Estimator-4400B'!$C$43*(L42)+L42 -> 46734.6 | M43: 46734.6 | N43: =SUM($M$5:M43) -> 1489587.8 | O43: =IRR($M$5:M43) -> 0.2398704992 | S43: 99998
A44: 39 | C44: =-LOOKUP(((A44*'O&M Cost Estimator 4400B'!F$7)-MOD((A44*'O&M Cost Estimator 4400B'!F$7),4400)),'O&M Cost Estimator 4400B'!F$22:F$80,'O&M Cost Estimator 4400B'!I$22:I$80)-LOOKUP(((A44*'O&M Cost Estimator 4400B'!F$7)-MOD((A44*'O&M Cost Estimator 4400B'!F$7),4400)),'O&M Cost Estimator 4400B'!F$22:F$80,'O&M Cost Estimator 4400B'!K$22:K$80)+LOOKUP(((A43*'O&M Cost Estimator 4400B'!F$7)-MOD((A43*'O&M Cost Estimator 4400B'!F$7),4400)),'O&M Cost Estimator 4400B'!F$22:F$80,'O&M Cost Estimator 4400B'!I$22:I$80)+LOOKUP(((A43*'O&M Cost Estimator 4400B'!F$7)-MOD((A43*'O&M Cost Estimator 4400B'!F$7),4400)),'O&M Cost Estimator 4400B'!F$22:F$80,'O&M Cost Estimator 4400B'!K$22:K$80) -> 0 | D44: ='Payback Estimator-4400B'!$B$43*(D43) +D43 -> 46734.6 | E44: 46734.6 | F44: =SUM($E$5:E44) -> 1536322.4 | G44: =IRR($E$5:E44) -> 0.2398853162 | I44: 39 | K44: =-LOOKUP(((A44*'O&M Cost Estimator 4400B'!F$7)-MOD((A44*'O&M Cost Estimator 4400B'!F$7),4400)),'O&M Cost Estimator 4400B'!P$22:P$80,'O&M Cost Estimator 4400B'!S$22:S$80)-LOOKUP(((A44*'O&M Cost Estimator 4400B'!F$7)-MOD((A44*'O&M Cost Estimator 4400B'!F$7),4400)),'O&M Cost Estimator 4400B'!P$22:P$80,'O&M Cost Estimator 4400B'!U$22:U$80)+LOOKUP(((A43*'O&M Cost Estimator 4400B'!F$7)-MOD((A43*'O&M Cost Estimator 4400B'!F$7),4400)),'O&M Cost Estimator 4400B'!P$22:P$80,'O&M Cost Estimator 4400B'!S$22:S$80)+LOOKUP(((A43*'O&M Cost Estimator 4400B'!F$7)-MOD((A43*'O&M Cost Estimator 4400B'!F$7),4400)),'O&M Cost Estimator 4400B'!P$22:P$80,'O&M Cost Estimator 4400B'!U$22:U$80) -> 0 | L44: ='Payback Estimator-4400B'!$C$43*(L43)+L43 -> 46734.6 | M44: 46734.6 | N44: =SUM($M$5:M44) -> 1536322.4 | O44: =IRR($M$5:M44) -> 0.2398853162 | S44: 99998
A45: 40 | C45: =-LOOKUP(((A45*'O&M Cost Estimator 4400B'!F$7)-MOD((A45*'O&M Cost Estimator 4400B'!F$7),4400)),'O&M Cost Estimator 4400B'!F$22:F$80,'O&M Cost Estimator 4400B'!I$22:I$80)-LOOKUP(((A45*'O&M Cost Estimator 4400B'!F$7)-MOD((A45*'O&M Cost Estimator 4400B'!F$7),4400)),'O&M Cost Estimator 4400B'!F$22:F$80,'O&M Cost Estimator 4400B'!K$22:K$80)+LOOKUP(((A44*'O&M Cost Estimator 4400B'!F$7)-MOD((A44*'O&M Cost Estimator 4400B'!F$7),4400)),'O&M Cost Estimator 4400B'!F$22:F$80,'O&M Cost Estimator 4400B'!I$22:I$80)+LOOKUP(((A44*'O&M Cost Estimator 4400B'!F$7)-MOD((A44*'O&M Cost Estimator 4400B'!F$7),4400)),'O&M Cost Estimator 4400B'!F$22:F$80,'O&M Cost Estimator 4400B'!K$22:K$80) -> 0 | D45: ='Payback Estimator-4400B'!$B$43*(D44) +D44 -> 46734.6 | E45: 46734.6 | F45: =SUM($E$5:E45) -> 1583057 | G45: =IRR($E$5:E45) -> 0.2398972577 | I45: 40 | K45: =-LOOKUP(((A45*'O&M Cost Estimator 4400B'!F$7)-MOD((A45*'O&M Cost Estimator 4400B'!F$7),4400)),'O&M Cost Estimator 4400B'!P$22:P$80,'O&M Cost Estimator 4400B'!S$22:S$80)-LOOKUP(((A45*'O&M Cost Estimator 4400B'!F$7)-MOD((A45*'O&M Cost Estimator 4400B'!F$7),4400)),'O&M Cost Estimator 4400B'!P$22:P$80,'O&M Cost Estimator 4400B'!U$22:U$80)+LOOKUP(((A44*'O&M Cost Estimator 4400B'!F$7)-MOD((A44*'O&M Cost Estimator 4400B'!F$7),4400)),'O&M Cost Estimator 4400B'!P$22:P$80,'O&M Cost Estimator 4400B'!S$22:S$80)+LOOKUP(((A44*'O&M Cost Estimator 4400B'!F$7)-MOD((A44*'O&M Cost Estimator 4400B'!F$7),4400)),'O&M Cost Estimator 4400B'!P$22:P$80,'O&M Cost Estimator 4400B'!U$22:U$80) -> 0 | L45: ='Payback Estimator-4400B'!$C$43*(L44)+L44 -> 46734.6 | M45: 46734.6 | N45: =SUM($M$5:M45) -> 1583057 | O45: =IRR($M$5:M45) -> 0.2398972577 | S45: 99998
A46: =A45+1 -> 41 | C46: =-LOOKUP(((A46*'O&M Cost Estimator 4400B'!F$7)-MOD((A46*'O&M Cost Estimator 4400B'!F$7),4400)),'O&M Cost Estimator 4400B'!F$22:F$80,'O&M Cost Estimator 4400B'!I$22:I$80)-LOOKUP(((A46*'O&M Cost Estimator 4400B'!F$7)-MOD((A46*'O&M Cost Estimator 4400B'!F$7),4400)),'O&M Cost Estimator 4400B'!F$22:F$80,'O&M Cost Estimator 4400B'!K$22:K$80)+LOOKUP(((A45*'O&M Cost Estimator 4400B'!F$7)-MOD((A45*'O&M Cost Estimator 4400B'!F$7),4400)),'O&M Cost Estimator 4400B'!F$22:F$80,'O&M Cost Estimator 4400B'!I$22:I$80)+LOOKUP(((A45*'O&M Cost Estimator 4400B'!F$7)-MOD((A45*'O&M Cost Estimator 4400B'!F$7),4400)),'O&M Cost Estimator 4400B'!F$22:F$80,'O&M Cost Estimator 4400B'!K$22:K$80) -> 0 | D46: ='Payback Estimator-4400B'!$B$43*(D45) +D45 -> 46734.6 | E46: 46734.6 | F46: =SUM($E$5:E46) -> 1629791.6 | G46: =IRR($E$5:E46) -> 0.2399068828 | I46: =I45+1 -> 41 | K46: =-LOOKUP(((A46*'O&M Cost Estimator 4400B'!F$7)-MOD((A46*'O&M Cost Estimator 4400B'!F$7),4400)),'O&M Cost Estimator 4400B'!P$22:P$80,'O&M Cost Estimator 4400B'!S$22:S$80)-LOOKUP(((A46*'O&M Cost Estimator 4400B'!F$7)-MOD((A46*'O&M Cost Estimator 4400B'!F$7),4400)),'O&M Cost Estimator 4400B'!P$22:P$80,'O&M Cost Estimator 4400B'!U$22:U$80)+LOOKUP(((A45*'O&M Cost Estimator 4400B'!F$7)-MOD((A45*'O&M Cost Estimator 4400B'!F$7),4400)),'O&M Cost Estimator 4400B'!P$22:P$80,'O&M Cost Estimator 4400B'!S$22:S$80)+LOOKUP(((A45*'O&M Cost Estimator 4400B'!F$7)-MOD((A45*'O&M Cost Estimator 4400B'!F$7),4400)),'O&M Cost Estimator 4400B'!P$22:P$80,'O&M Cost Estimator 4400B'!U$22:U$80) -> 0 | L46: ='Payback Estimator-4400B'!$C$43*(L45)+L45 -> 46734.6 | M46: 46734.6 | N46: =SUM($M$5:M46) -> 1629791.6 | O46: =IRR($M$5:M46) -> 0.2399068828 | S46: 99998
A47: =A46+1 -> 42 | C47: =-LOOKUP(((A47*'O&M Cost Estimator 4400B'!F$7)-MOD((A47*'O&M Cost Estimator 4400B'!F$7),4400)),'O&M Cost Estimator 4400B'!F$22:F$80,'O&M Cost Estimator 4400B'!I$22:I$80)-LOOKUP(((A47*'O&M Cost Estimator 4400B'!F$7)-MOD((A47*'O&M Cost Estimator 4400B'!F$7),4400)),'O&M Cost Estimator 4400B'!F$22:F$80,'O&M Cost Estimator 4400B'!K$22:K$80)+LOOKUP(((A46*'O&M Cost Estimator 4400B'!F$7)-MOD((A46*'O&M Cost Estimator 4400B'!F$7),4400)),'O&M Cost Estimator 4400B'!F$22:F$80,'O&M Cost Estimator 4400B'!I$22:I$80)+LOOKUP(((A46*'O&M Cost Estimator 4400B'!F$7)-MOD((A46*'O&M Cost Estimator 4400B'!F$7),4400)),'O&M Cost Estimator 4400B'!F$22:F$80,'O&M Cost Estimator 4400B'!K$22:K$80) -> 0 | D47: ='Payback Estimator-4400B'!$B$43*(D46) +D46 -> 46734.6 | E47: 46734.6 | F47: =SUM($E$5:E47) -> 1676526.2 | G47: =IRR($E$5:E47) -> 0.2399146416 | I47: =I46+1 -> 42 | K47: =-LOOKUP(((A47*'O&M Cost Estimator 4400B'!F$7)-MOD((A47*'O&M Cost Estimator 4400B'!F$7),4400)),'O&M Cost Estimator 4400B'!P$22:P$80,'O&M Cost Estimator 4400B'!S$22:S$80)-LOOKUP(((A47*'O&M Cost Estimator 4400B'!F$7)-MOD((A47*'O&M Cost Estimator 4400B'!F$7),4400)),'O&M Cost Estimator 4400B'!P$22:P$80,'O&M Cost Estimator 4400B'!U$22:U$80)+LOOKUP(((A46*'O&M Cost Estimator 4400B'!F$7)-MOD((A46*'O&M Cost Estimator 4400B'!F$7),4400)),'O&M Cost Estimator 4400B'!P$22:P$80,'O&M Cost Estimator 4400B'!S$22:S$80)+LOOKUP(((A46*'O&M Cost Estimator 4400B'!F$7)-MOD((A46*'O&M Cost Estimator 4400B'!F$7),4400)),'O&M Cost Estimator 4400B'!P$22:P$80,'O&M Cost Estimator 4400B'!U$22:U$80) -> 0 | L47: ='Payback Estimator-4400B'!$C$43*(L46)+L46 -> 46734.6 | M47: 46734.6 | N47: =SUM($M$5:M47) -> 1676526.2 | O47: =IRR($M$5:M47) -> 0.2399146416 | S47: 99998
A48: 43 | C48: =-LOOKUP(((A48*'O&M Cost Estimator 4400B'!F$7)-MOD((A48*'O&M Cost Estimator 4400B'!F$7),4400)),'O&M Cost Estimator 4400B'!F$22:F$80,'O&M Cost Estimator 4400B'!I$22:I$80)-LOOKUP(((A48*'O&M Cost Estimator 4400B'!F$7)-MOD((A48*'O&M Cost Estimator 4400B'!F$7),4400)),'O&M Cost Estimator 4400B'!F$22:F$80,'O&M Cost Estimator 4400B'!K$22:K$80)+LOOKUP(((A47*'O&M Cost Estimator 4400B'!F$7)-MOD((A47*'O&M Cost Estimator 4400B'!F$7),4400)),'O&M Cost Estimator 4400B'!F$22:F$80,'O&M Cost Estimator 4400B'!I$22:I$80)+LOOKUP(((A47*'O&M Cost Estimator 4400B'!F$7)-MOD((A47*'O&M Cost Estimator 4400B'!F$7),4400)),'O&M Cost Estimator 4400B'!F$22:F$80,'O&M Cost Estimator 4400B'!K$22:K$80) -> 0 | D48: ='Payback Estimator-4400B'!$B$43*(D47) +D47 -> 46734.6 | E48: 46734.6 | F48: =SUM($E$5:E48) -> 1723260.8 | G48: =IRR($E$5:E48) -> 0.2399208965 | I48: 43 | K48: =-LOOKUP(((A48*'O&M Cost Estimator 4400B'!F$7)-MOD((A48*'O&M Cost Estimator 4400B'!F$7),4400)),'O&M Cost Estimator 4400B'!P$22:P$80,'O&M Cost Estimator 4400B'!S$22:S$80)-LOOKUP(((A48*'O&M Cost Estimator 4400B'!F$7)-MOD((A48*'O&M Cost Estimator 4400B'!F$7),4400)),'O&M Cost Estimator 4400B'!P$22:P$80,'O&M Cost Estimator 4400B'!U$22:U$80)+LOOKUP(((A47*'O&M Cost Estimator 4400B'!F$7)-MOD((A47*'O&M Cost Estimator 4400B'!F$7),4400)),'O&M Cost Estimator 4400B'!P$22:P$80,'O&M Cost Estimator 4400B'!S$22:S$80)+LOOKUP(((A47*'O&M Cost Estimator 4400B'!F$7)-MOD((A47*'O&M Cost Estimator 4400B'!F$7),4400)),'O&M Cost Estimator 4400B'!P$22:P$80,'O&M Cost Estimator 4400B'!U$22:U$80) -> 0 | L48: ='Payback Estimator-4400B'!$C$43*(L47)+L47 -> 46734.6 | M48: 46734.6 | N48: =SUM($M$5:M48) -> 1723260.8 | O48: =IRR($M$5:M48) -> 0.2399208965 | S48: 99998
A49: 44 | C49: =-LOOKUP(((A49*'O&M Cost Estimator 4400B'!F$7)-MOD((A49*'O&M Cost Estimator 4400B'!F$7),4400)),'O&M Cost Estimator 4400B'!F$22:F$80,'O&M Cost Estimator 4400B'!I$22:I$80)-LOOKUP(((A49*'O&M Cost Estimator 4400B'!F$7)-MOD((A49*'O&M Cost Estimator 4400B'!F$7),4400)),'O&M Cost Estimator 4400B'!F$22:F$80,'O&M Cost Estimator 4400B'!K$22:K$80)+LOOKUP(((A48*'O&M Cost Estimator 4400B'!F$7)-MOD((A48*'O&M Cost Estimator 4400B'!F$7),4400)),'O&M Cost Estimator 4400B'!F$22:F$80,'O&M Cost Estimator 4400B'!I$22:I$80)+LOOKUP(((A48*'O&M Cost Estimator 4400B'!F$7)-MOD((A48*'O&M Cost Estimator 4400B'!F$7),4400)),'O&M Cost Estimator 4400B'!F$22:F$80,'O&M Cost Estimator 4400B'!K$22:K$80) -> 0 | D49: ='Payback Estimator-4400B'!$B$43*(D48) +D48 -> 46734.6 | E49: 46734.6 | F49: =SUM($E$5:E49) -> 1769995.4 | G49: =IRR($E$5:E49) -> 0.2399259393 | I49: 44 | K49: =-LOOKUP(((A49*'O&M Cost Estimator 4400B'!F$7)-MOD((A49*'O&M Cost Estimator 4400B'!F$7),4400)),'O&M Cost Estimator 4400B'!P$22:P$80,'O&M Cost Estimator 4400B'!S$22:S$80)-LOOKUP(((A49*'O&M Cost Estimator 4400B'!F$7)-MOD((A49*'O&M Cost Estimator 4400B'!F$7),4400)),'O&M Cost Estimator 4400B'!P$22:P$80,'O&M Cost Estimator 4400B'!U$22:U$80)+LOOKUP(((A48*'O&M Cost Estimator 4400B'!F$7)-MOD((A48*'O&M Cost Estimator 4400B'!F$7),4400)),'O&M Cost Estimator 4400B'!P$22:P$80,'O&M Cost Estimator 4400B'!S$22:S$80)+LOOKUP(((A48*'O&M Cost Estimator 4400B'!F$7)-MOD((A48*'O&M Cost Estimator 4400B'!F$7),4400)),'O&M Cost Estimator 4400B'!P$22:P$80,'O&M Cost Estimator 4400B'!U$22:U$80) -> 0 | L49: ='Payback Estimator-4400B'!$C$43*(L48)+L48 -> 46734.6 | M49: 46734.6 | N49: =SUM($M$5:M49) -> 1769995.4 | O49: =IRR($M$5:M49) -> 0.2399259393 | S49: 99998
A50: 45 | C50: =-LOOKUP(((A50*'O&M Cost Estimator 4400B'!F$7)-MOD((A50*'O&M Cost Estimator 4400B'!F$7),4400)),'O&M Cost Estimator 4400B'!F$22:F$80,'O&M Cost Estimator 4400B'!I$22:I$80)-LOOKUP(((A50*'O&M Cost Estimator 4400B'!F$7)-MOD((A50*'O&M Cost Estimator 4400B'!F$7),4400)),'O&M Cost Estimator 4400B'!F$22:F$80,'O&M Cost Estimator 4400B'!K$22:K$80)+LOOKUP(((A49*'O&M Cost Estimator 4400B'!F$7)-MOD((A49*'O&M Cost Estimator 4400B'!F$7),4400)),'O&M Cost Estimator 4400B'!F$22:F$80,'O&M Cost Estimator 4400B'!I$22:I$80)+LOOKUP(((A49*'O&M Cost Estimator 4400B'!F$7)-MOD((A49*'O&M Cost Estimator 4400B'!F$7),4400)),'O&M Cost Estimator 4400B'!F$22:F$80,'O&M Cost Estimator 4400B'!K$22:K$80) -> 0 | D50: ='Payback Estimator-4400B'!$B$43*(D49) +D49 -> 46734.6 | E50: 46734.6 | F50: =SUM($E$5:E50) -> 1816730 | G50: =IRR($E$5:E50) -> 0.2399300052 | I50: 45 | K50: =-LOOKUP(((A50*'O&M Cost Estimator 4400B'!F$7)-MOD((A50*'O&M Cost Estimator 4400B'!F$7),4400)),'O&M Cost Estimator 4400B'!P$22:P$80,'O&M Cost Estimator 4400B'!S$22:S$80)-LOOKUP(((A50*'O&M Cost Estimator 4400B'!F$7)-MOD((A50*'O&M Cost Estimator 4400B'!F$7),4400)),'O&M Cost Estimator 4400B'!P$22:P$80,'O&M Cost Estimator 4400B'!U$22:U$80)+LOOKUP(((A49*'O&M Cost Estimator 4400B'!F$7)-MOD((A49*'O&M Cost Estimator 4400B'!F$7),4400)),'O&M Cost Estimator 4400B'!P$22:P$80,'O&M Cost Estimator 4400B'!S$22:S$80)+LOOKUP(((A49*'O&M Cost Estimator 4400B'!F$7)-MOD((A49*'O&M Cost Estimator 4400B'!F$7),4400)),'O&M Cost Estimator 4400B'!P$22:P$80,'O&M Cost Estimator 4400B'!U$22:U$80) -> 0 | L50: ='Payback Estimator-4400B'!$C$43*(L49)+L49 -> 46734.6 | M50: 46734.6 | N50: =SUM($M$5:M50) -> 1816730 | O50: =IRR($M$5:M50) -> 0.2399300052 | S50: 99998
A51: 46 | C51: =-LOOKUP(((A51*'O&M Cost Estimator 4400B'!F$7)-MOD((A51*'O&M Cost Estimator 4400B'!F$7),4400)),'O&M Cost Estimator 4400B'!F$22:F$80,'O&M Cost Estimator 4400B'!I$22:I$80)-LOOKUP(((A51*'O&M Cost Estimator 4400B'!F$7)-MOD((A51*'O&M Cost Estimator 4400B'!F$7),4400)),'O&M Cost Estimator 4400B'!F$22:F$80,'O&M Cost Estimator 4400B'!K$22:K$80)+LOOKUP(((A50*'O&M Cost Estimator 4400B'!F$7)-MOD((A50*'O&M Cost Estimator 4400B'!F$7),4400)),'O&M Cost Estimator 4400B'!F$22:F$80,'O&M Cost Estimator 4400B'!I$22:I$80)+LOOKUP(((A50*'O&M Cost Estimator 4400B'!F$7)-MOD((A50*'O&M Cost Estimator 4400B'!F$7),4400)),'O&M Cost Estimator 4400B'!F$22:F$80,'O&M Cost Estimator 4400B'!K$22:K$80) -> 0 | D51: ='Payback Estimator-4400B'!$B$43*(D50) +D50 -> 46734.6 | E51: 46734.6 | F51: =SUM($E$5:E51) -> 1863464.6 | G51: =IRR($E$5:E51) -> 0.2399332835 | I51: 46 | K51: =-LOOKUP(((A51*'O&M Cost Estimator 4400B'!F$7)-MOD((A51*'O&M Cost Estimator 4400B'!F$7),4400)),'O&M Cost Estimator 4400B'!P$22:P$80,'O&M Cost Estimator 4400B'!S$22:S$80)-LOOKUP(((A51*'O&M Cost Estimator 4400B'!F$7)-MOD((A51*'O&M Cost Estimator 4400B'!F$7),4400)),'O&M Cost Estimator 4400B'!P$22:P$80,'O&M Cost Estimator 4400B'!U$22:U$80)+LOOKUP(((A50*'O&M Cost Estimator 4400B'!F$7)-MOD((A50*'O&M Cost Estimator 4400B'!F$7),4400)),'O&M Cost Estimator 4400B'!P$22:P$80,'O&M Cost Estimator 4400B'!S$22:S$80)+LOOKUP(((A50*'O&M Cost Estimator 4400B'!F$7)-MOD((A50*'O&M Cost Estimator 4400B'!F$7),4400)),'O&M Cost Estimator 4400B'!P$22:P$80,'O&M Cost Estimator 4400B'!U$22:U$80) -> 0 | L51: ='Payback Estimator-4400B'!$C$43*(L50)+L50 -> 46734.6 | M51: 46734.6 | N51: =SUM($M$5:M51) -> 1863464.6 | O51: =IRR($M$5:M51) -> 0.2399332835 | S51: 99998
A52: 47 | C52: =-LOOKUP(((A52*'O&M Cost Estimator 4400B'!F$7)-MOD((A52*'O&M Cost Estimator 4400B'!F$7),4400)),'O&M Cost Estimator 4400B'!F$22:F$80,'O&M Cost Estimator 4400B'!I$22:I$80)-LOOKUP(((A52*'O&M Cost Estimator 4400B'!F$7)-MOD((A52*'O&M Cost Estimator 4400B'!F$7),4400)),'O&M Cost Estimator 4400B'!F$22:F$80,'O&M Cost Estimator 4400B'!K$22:K$80)+LOOKUP(((A51*'O&M Cost Estimator 4400B'!F$7)-MOD((A51*'O&M Cost Estimator 4400B'!F$7),4400)),'O&M Cost Estimator 4400B'!F$22:F$80,'O&M Cost Estimator 4400B'!I$22:I$80)+LOOKUP(((A51*'O&M Cost Estimator 4400B'!F$7)-MOD((A51*'O&M Cost Estimator 4400B'!F$7),4400)),'O&M Cost Estimator 4400B'!F$22:F$80,'O&M Cost Estimator 4400B'!K$22:K$80) -> 0 | D52: ='Payback Estimator-4400B'!$B$43*(D51) +D51 -> 46734.6 | E52: 46734.6 | F52: =SUM($E$5:E52) -> 1910199.2 | G52: =IRR($E$5:E52) -> 0.239935927 | I52: 47 | K52: =-LOOKUP(((A52*'O&M Cost Estimator 4400B'!F$7)-MOD((A52*'O&M Cost Estimator 4400B'!F$7),4400)),'O&M Cost Estimator 4400B'!P$22:P$80,'O&M Cost Estimator 4400B'!S$22:S$80)-LOOKUP(((A52*'O&M Cost Estimator 4400B'!F$7)-MOD((A52*'O&M Cost Estimator 4400B'!F$7),4400)),'O&M Cost Estimator 4400B'!P$22:P$80,'O&M Cost Estimator 4400B'!U$22:U$80)+LOOKUP(((A51*'O&M Cost Estimator 4400B'!F$7)-MOD((A51*'O&M Cost Estimator 4400B'!F$7),4400)),'O&M Cost Estimator 4400B'!P$22:P$80,'O&M Cost Estimator 4400B'!S$22:S$80)+LOOKUP(((A51*'O&M Cost Estimator 4400B'!F$7)-MOD((A51*'O&M Cost Estimator 4400B'!F$7),4400)),'O&M Cost Estimator 4400B'!P$22:P$80,'O&M Cost Estimator 4400B'!U$22:U$80) -> 0 | L52: ='Payback Estimator-4400B'!$C$43*(L51)+L51 -> 46734.6 | M52: 46734.6 | N52: =SUM($M$5:M52) -> 1910199.2 | O52: =IRR($M$5:M52) -> 0.239935927 | S52: 99998
A53: 48 | C53: =-LOOKUP(((A53*'O&M Cost Estimator 4400B'!F$7)-MOD((A53*'O&M Cost Estimator 4400B'!F$7),4400)),'O&M Cost Estimator 4400B'!F$22:F$80,'O&M Cost Estimator 4400B'!I$22:I$80)-LOOKUP(((A53*'O&M Cost Estimator 4400B'!F$7)-MOD((A53*'O&M Cost Estimator 4400B'!F$7),4400)),'O&M Cost Estimator 4400B'!F$22:F$80,'O&M Cost Estimator 4400B'!K$22:K$80)+LOOKUP(((A52*'O&M Cost Estimator 4400B'!F$7)-MOD((A52*'O&M Cost Estimator 4400B'!F$7),4400)),'O&M Cost Estimator 4400B'!F$22:F$80,'O&M Cost Estimator 4400B'!I$22:I$80)+LOOKUP(((A52*'O&M Cost Estimator 4400B'!F$7)-MOD((A52*'O&M Cost Estimator 4400B'!F$7),4400)),'O&M Cost Estimator 4400B'!F$22:F$80,'O&M Cost Estimator 4400B'!K$22:K$80) -> 0 | D53: ='Payback Estimator-4400B'!$B$43*(D52) +D52 -> 46734.6 | E53: 46734.6 | F53: =SUM($E$5:E53) -> 1956933.8 | G53: =IRR($E$5:E53) -> 0.2399380586 | I53: 48 | K53: =-LOOKUP(((A53*'O&M Cost Estimator 4400B'!F$7)-MOD((A53*'O&M Cost Estimator 4400B'!F$7),4400)),'O&M Cost Estimator 4400B'!P$22:P$80,'O&M Cost Estimator 4400B'!S$22:S$80)-LOOKUP(((A53*'O&M Cost Estimator 4400B'!F$7)-MOD((A53*'O&M Cost Estimator 4400B'!F$7),4400)),'O&M Cost Estimator 4400B'!P$22:P$80,'O&M Cost Estimator 4400B'!U$22:U$80)+LOOKUP(((A52*'O&M Cost Estimator 4400B'!F$7)-MOD((A52*'O&M Cost Estimator 4400B'!F$7),4400)),'O&M Cost Estimator 4400B'!P$22:P$80,'O&M Cost Estimator 4400B'!S$22:S$80)+LOOKUP(((A52*'O&M Cost Estimator 4400B'!F$7)-MOD((A52*'O&M Cost Estimator 4400B'!F$7),4400)),'O&M Cost Estimator 4400B'!P$22:P$80,'O&M Cost Estimator 4400B'!U$22:U$80) -> 0 | L53: ='Payback Estimator-4400B'!$C$43*(L52)+L52 -> 46734.6 | M53: 46734.6 | N53: =SUM($M$5:M53) -> 1956933.8 | O53: =IRR($M$5:M53) -> 0.2399380586 | S53: 99998
A54: 49 | C54: =-LOOKUP(((A54*'O&M Cost Estimator 4400B'!F$7)-MOD((A54*'O&M Cost Estimator 4400B'!F$7),4400)),'O&M Cost Estimator 4400B'!F$22:F$80,'O&M Cost Estimator 4400B'!I$22:I$80)-LOOKUP(((A54*'O&M Cost Estimator 4400B'!F$7)-MOD((A54*'O&M Cost Estimator 4400B'!F$7),4400)),'O&M Cost Estimator 4400B'!F$22:F$80,'O&M Cost Estimator 4400B'!K$22:K$80)+LOOKUP(((A53*'O&M Cost Estimator 4400B'!F$7)-MOD((A53*'O&M Cost Estimator 4400B'!F$7),4400)),'O&M Cost Estimator 4400B'!F$22:F$80,'O&M Cost Estimator 4400B'!I$22:I$80)+LOOKUP(((A53*'O&M Cost Estimator 4400B'!F$7)-MOD((A53*'O&M Cost Estimator 4400B'!F$7),4400)),'O&M Cost Estimator 4400B'!F$22:F$80,'O&M Cost Estimator 4400B'!K$22:K$80) -> 0 | D54: ='Payback Estimator-4400B'!$B$43*(D53) +D53 -> 46734.6 | E54: 46734.6 | F54: =SUM($E$5:E54) -> 2003668.4 | G54: =IRR($E$5:E54) -> 0.2399397774 | I54: 49 | K54: =-LOOKUP(((A54*'O&M Cost Estimator 4400B'!F$7)-MOD((A54*'O&M Cost Estimator 4400B'!F$7),4400)),'O&M Cost Estimator 4400B'!P$22:P$80,'O&M Cost Estimator 4400B'!S$22:S$80)-LOOKUP(((A54*'O&M Cost Estimator 4400B'!F$7)-MOD((A54*'O&M Cost Estimator 4400B'!F$7),4400)),'O&M Cost Estimator 4400B'!P$22:P$80,'O&M Cost Estimator 4400B'!U$22:U$80)+LOOKUP(((A53*'O&M Cost Estimator 4400B'!F$7)-MOD((A53*'O&M Cost Estimator 4400B'!F$7),4400)),'O&M Cost Estimator 4400B'!P$22:P$80,'O&M Cost Estimator 4400B'!S$22:S$80)+LOOKUP(((A53*'O&M Cost Estimator 4400B'!F$7)-MOD((A53*'O&M Cost Estimator 4400B'!F$7),4400)),'O&M Cost Estimator 4400B'!P$22:P$80,'O&M Cost Estimator 4400B'!U$22:U$80) -> 0 | L54: ='Payback Estimator-4400B'!$C$43*(L53)+L53 -> 46734.6 | M54: 46734.6 | N54: =SUM($M$5:M54) -> 2003668.4 | O54: =IRR($M$5:M54) -> 0.2399397774 | S54: 99998
A55: 50 | C55: =-LOOKUP(((A55*'O&M Cost Estimator 4400B'!F$7)-MOD((A55*'O&M Cost Estimator 4400B'!F$7),4400)),'O&M Cost Estimator 4400B'!F$22:F$80,'O&M Cost Estimator 4400B'!I$22:I$80)-LOOKUP(((A55*'O&M Cost Estimator 4400B'!F$7)-MOD((A55*'O&M Cost Estimator 4400B'!F$7),4400)),'O&M Cost Estimator 4400B'!F$22:F$80,'O&M Cost Estimator 4400B'!K$22:K$80)+LOOKUP(((A54*'O&M Cost Estimator 4400B'!F$7)-MOD((A54*'O&M Cost Estimator 4400B'!F$7),4400)),'O&M Cost Estimator 4400B'!F$22:F$80,'O&M Cost Estimator 4400B'!I$22:I$80)+LOOKUP(((A54*'O&M Cost Estimator 4400B'!F$7)-MOD((A54*'O&M Cost Estimator 4400B'!F$7),4400)),'O&M Cost Estimator 4400B'!F$22:F$80,'O&M Cost Estimator 4400B'!K$22:K$80) -> 0 | D55: ='Payback Estimator-4400B'!$B$43*(D54) +D54 -> 46734.6 | E55: 46734.6 | F55: =SUM($E$5:E55) -> 2050403 | G55: =IRR($E$5:E55) -> 0.2399411635 | I55: 50 | K55: =-LOOKUP(((A55*'O&M Cost Estimator 4400B'!F$7)-MOD((A55*'O&M Cost Estimator 4400B'!F$7),4400)),'O&M Cost Estimator 4400B'!P$22:P$80,'O&M Cost Estimator 4400B'!S$22:S$80)-LOOKUP(((A55*'O&M Cost Estimator 4400B'!F$7)-MOD((A55*'O&M Cost Estimator 4400B'!F$7),4400)),'O&M Cost Estimator 4400B'!P$22:P$80,'O&M Cost Estimator 4400B'!U$22:U$80)+LOOKUP(((A54*'O&M Cost Estimator 4400B'!F$7)-MOD((A54*'O&M Cost Estimator 4400B'!F$7),4400)),'O&M Cost Estimator 4400B'!P$22:P$80,'O&M Cost Estimator 4400B'!S$22:S$80)+LOOKUP(((A54*'O&M Cost Estimator 4400B'!F$7)-MOD((A54*'O&M Cost Estimator 4400B'!F$7),4400)),'O&M Cost Estimator 4400B'!P$22:P$80,'O&M Cost Estimator 4400B'!U$22:U$80) -> 0 | L55: ='Payback Estimator-4400B'!$C$43*(L54)+L54 -> 46734.6 | M55: 46734.6 | N55: =SUM($M$5:M55) -> 2050403 | O55: =IRR($M$5:M55) -> 0.2399411635 | S55: 99998
A56: =A55+1 -> 51 | C56: =-LOOKUP(((A56*'O&M Cost Estimator 4400B'!F$7)-MOD((A56*'O&M Cost Estimator 4400B'!F$7),4400)),'O&M Cost Estimator 4400B'!F$22:F$80,'O&M Cost Estimator 4400B'!I$22:I$80)-LOOKUP(((A56*'O&M Cost Estimator 4400B'!F$7)-MOD((A56*'O&M Cost Estimator 4400B'!F$7),4400)),'O&M Cost Estimator 4400B'!F$22:F$80,'O&M Cost Estimator 4400B'!K$22:K$80)+LOOKUP(((A55*'O&M Cost Estimator 4400B'!F$7)-MOD((A55*'O&M Cost Estimator 4400B'!F$7),4400)),'O&M Cost Estimator 4400B'!F$22:F$80,'O&M Cost Estimator 4400B'!I$22:I$80)+LOOKUP(((A55*'O&M Cost Estimator 4400B'!F$7)-MOD((A55*'O&M Cost Estimator 4400B'!F$7),4400)),'O&M Cost Estimator 4400B'!F$22:F$80,'O&M Cost Estimator 4400B'!K$22:K$80) -> 0 | D56: ='Payback Estimator-4400B'!$B$43*(D55) +D55 -> 46734.6 | E56: =C56+D56 -> 46734.6 | F56: =SUM($E$5:E56) -> 2097137.6 | G56: =IRR($E$5:E56) -> 0.2399422813 | I56: =I55+1 -> 51 | K56: =-LOOKUP(((A56*'O&M Cost Estimator 4400B'!F$7)-MOD((A56*'O&M Cost Estimator 4400B'!F$7),4400)),'O&M Cost Estimator 4400B'!P$22:P$80,'O&M Cost Estimator 4400B'!S$22:S$80)-LOOKUP(((A56*'O&M Cost Estimator 4400B'!F$7)-MOD((A56*'O&M Cost Estimator 4400B'!F$7),4400)),'O&M Cost Estimator 4400B'!P$22:P$80,'O&M Cost Estimator 4400B'!U$22:U$80)+LOOKUP(((A55*'O&M Cost Estimator 4400B'!F$7)-MOD((A55*'O&M Cost Estimator 4400B'!F$7),4400)),'O&M Cost Estimator 4400B'!P$22:P$80,'O&M Cost Estimator 4400B'!S$22:S$80)+LOOKUP(((A55*'O&M Cost Estimator 4400B'!F$7)-MOD((A55*'O&M Cost Estimator 4400B'!F$7),4400)),'O&M Cost Estimator 4400B'!P$22:P$80,'O&M Cost Estimator 4400B'!U$22:U$80) -> 0 | L56: ='Payback Estimator-4400B'!$C$43*(L55)+L55 -> 46734.6 | M56: =K56+L56 -> 46734.6 | N56: =SUM($M$5:M56) -> 2097137.6 | O56: =IRR($M$5:M56) -> 0.2399422813 | S56: =IF(S55=99999,IF(F56>=0,A56-F56/E56,99999),99998) -> 99998
A57: =A56+1 -> 52 | C57: =-LOOKUP(((A57*'O&M Cost Estimator 4400B'!F$7)-MOD((A57*'O&M Cost Estimator 4400B'!F$7),4400)),'O&M Cost Estimator 4400B'!F$22:F$80,'O&M Cost Estimator 4400B'!I$22:I$80)-LOOKUP(((A57*'O&M Cost Estimator 4400B'!F$7)-MOD((A57*'O&M Cost Estimator 4400B'!F$7),4400)),'O&M Cost Estimator 4400B'!F$22:F$80,'O&M Cost Estimator 4400B'!K$22:K$80)+LOOKUP(((A56*'O&M Cost Estimator 4400B'!F$7)-MOD((A56*'O&M Cost Estimator 4400B'!F$7),4400)),'O&M Cost Estimator 4400B'!F$22:F$80,'O&M Cost Estimator 4400B'!I$22:I$80)+LOOKUP(((A56*'O&M Cost Estimator 4400B'!F$7)-MOD((A56*'O&M Cost Estimator 4400B'!F$7),4400)),'O&M Cost Estimator 4400B'!F$22:F$80,'O&M Cost Estimator 4400B'!K$22:K$80) -> 0 | D57: ='Payback Estimator-4400B'!$B$43*(D56) +D56 -> 46734.6 | E57: 46734.6 | F57: =SUM($E$5:E57) -> 2143872.2 | G57: =IRR($E$5:E57) -> 0.2399431827 | I57: =I56+1 -> 52 | K57: =-LOOKUP(((A57*'O&M Cost Estimator 4400B'!F$7)-MOD((A57*'O&M Cost Estimator 4400B'!F$7),4400)),'O&M Cost Estimator 4400B'!P$22:P$80,'O&M Cost Estimator 4400B'!S$22:S$80)-LOOKUP(((A57*'O&M Cost Estimator 4400B'!F$7)-MOD((A57*'O&M Cost Estimator 4400B'!F$7),4400)),'O&M Cost Estimator 4400B'!P$22:P$80,'O&M Cost Estimator 4400B'!U$22:U$80)+LOOKUP(((A56*'O&M Cost Estimator 4400B'!F$7)-MOD((A56*'O&M Cost Estimator 4400B'!F$7),4400)),'O&M Cost Estimator 4400B'!P$22:P$80,'O&M Cost Estimator 4400B'!S$22:S$80)+LOOKUP(((A56*'O&M Cost Estimator 4400B'!F$7)-MOD((A56*'O&M Cost Estimator 4400B'!F$7),4400)),'O&M Cost Estimator 4400B'!P$22:P$80,'O&M Cost Estimator 4400B'!U$22:U$80) -> 0 | L57: ='Payback Estimator-4400B'!$C$43*(L56)+L56 -> 46734.6 | M57: 46734.6 | N57: =SUM($M$5:M57) -> 2143872.2 | O57: =IRR($M$5:M57) -> 0.2399431827 | S57: 99998
A58: 53 | C58: =-LOOKUP(((A58*'O&M Cost Estimator 4400B'!F$7)-MOD((A58*'O&M Cost Estimator 4400B'!F$7),4400)),'O&M Cost Estimator 4400B'!F$22:F$80,'O&M Cost Estimator 4400B'!I$22:I$80)-LOOKUP(((A58*'O&M Cost Estimator 4400B'!F$7)-MOD((A58*'O&M Cost Estimator 4400B'!F$7),4400)),'O&M Cost Estimator 4400B'!F$22:F$80,'O&M Cost Estimator 4400B'!K$22:K$80)+LOOKUP(((A57*'O&M Cost Estimator 4400B'!F$7)-MOD((A57*'O&M Cost Estimator 4400B'!F$7),4400)),'O&M Cost Estimator 4400B'!F$22:F$80,'O&M Cost Estimator 4400B'!I$22:I$80)+LOOKUP(((A57*'O&M Cost Estimator 4400B'!F$7)-MOD((A57*'O&M Cost Estimator 4400B'!F$7),4400)),'O&M Cost Estimator 4400B'!F$22:F$80,'O&M Cost Estimator 4400B'!K$22:K$80) -> 0 | D58: ='Payback Estimator-4400B'!$B$43*(D57) +D57 -> 46734.6 | E58: 46734.6 | F58: =SUM($E$5:E58) -> 2190606.8 | G58: =IRR($E$5:E58) -> 0.2399439096 | I58: 53 | K58: =-LOOKUP(((A58*'O&M Cost Estimator 4400B'!F$7)-MOD((A58*'O&M Cost Estimator 4400B'!F$7),4400)),'O&M Cost Estimator 4400B'!P$22:P$80,'O&M Cost Estimator 4400B'!S$22:S$80)-LOOKUP(((A58*'O&M Cost Estimator 4400B'!F$7)-MOD((A58*'O&M Cost Estimator 4400B'!F$7),4400)),'O&M Cost Estimator 4400B'!P$22:P$80,'O&M Cost Estimator 4400B'!U$22:U$80)+LOOKUP(((A57*'O&M Cost Estimator 4400B'!F$7)-MOD((A57*'O&M Cost Estimator 4400B'!F$7),4400)),'O&M Cost Estimator 4400B'!P$22:P$80,'O&M Cost Estimator 4400B'!S$22:S$80)+LOOKUP(((A57*'O&M Cost Estimator 4400B'!F$7)-MOD((A57*'O&M Cost Estimator 4400B'!F$7),4400)),'O&M Cost Estimator 4400B'!P$22:P$80,'O&M Cost Estimator 4400B'!U$22:U$80) -> 0 | L58: ='Payback Estimator-4400B'!$C$43*(L57)+L57 -> 46734.6 | M58: 46734.6 | N58: =SUM($M$5:M58) -> 2190606.8 | O58: =IRR($M$5:M58) -> 0.2399439096 | S58: 99998
A59: 54 | C59: =-LOOKUP(((A59*'O&M Cost Estimator 4400B'!F$7)-MOD((A59*'O&M Cost Estimator 4400B'!F$7),4400)),'O&M Cost Estimator 4400B'!F$22:F$80,'O&M Cost Estimator 4400B'!I$22:I$80)-LOOKUP(((A59*'O&M Cost Estimator 4400B'!F$7)-MOD((A59*'O&M Cost Estimator 4400B'!F$7),4400)),'O&M Cost Estimator 4400B'!F$22:F$80,'O&M Cost Estimator 4400B'!K$22:K$80)+LOOKUP(((A58*'O&M Cost Estimator 4400B'!F$7)-MOD((A58*'O&M Cost Estimator 4400B'!F$7),4400)),'O&M Cost Estimator 4400B'!F$22:F$80,'O&M Cost Estimator 4400B'!I$22:I$80)+LOOKUP(((A58*'O&M Cost Estimator 4400B'!F$7)-MOD((A58*'O&M Cost Estimator 4400B'!F$7),4400)),'O&M Cost Estimator 4400B'!F$22:F$80,'O&M Cost Estimator 4400B'!K$22:K$80) -> 0 | D59: ='Payback Estimator-4400B'!$B$43*(D58) +D58 -> 46734.6 | E59: 46734.6 | F59: =SUM($E$5:E59) -> 2237341.4 | G59: =IRR($E$5:E59) -> 0.2399444958 | I59: 54 | K59: =-LOOKUP(((A59*'O&M Cost Estimator 4400B'!F$7)-MOD((A59*'O&M Cost Estimator 4400B'!F$7),4400)),'O&M Cost Estimator 4400B'!P$22:P$80,'O&M Cost Estimator 4400B'!S$22:S$80)-LOOKUP(((A59*'O&M Cost Estimator 4400B'!F$7)-MOD((A59*'O&M Cost Estimator 4400B'!F$7),4400)),'O&M Cost Estimator 4400B'!P$22:P$80,'O&M Cost Estimator 4400B'!U$22:U$80)+LOOKUP(((A58*'O&M Cost Estimator 4400B'!F$7)-MOD((A58*'O&M Cost Estimator 4400B'!F$7),4400)),'O&M Cost Estimator 4400B'!P$22:P$80,'O&M Cost Estimator 4400B'!S$22:S$80)+LOOKUP(((A58*'O&M Cost Estimator 4400B'!F$7)-MOD((A58*'O&M Cost Estimator 4400B'!F$7),4400)),'O&M Cost Estimator 4400B'!P$22:P$80,'O&M Cost Estimator 4400B'!U$22:U$80) -> 0 | L59: ='Payback Estimator-4400B'!$C$43*(L58)+L58 -> 46734.6 | M59: 46734.6 | N59: =SUM($M$5:M59) -> 2237341.4 | O59: =IRR($M$5:M59) -> 0.2399444958 | S59: 99998
A60: 55 | C60: =-LOOKUP(((A60*'O&M Cost Estimator 4400B'!F$7)-MOD((A60*'O&M Cost Estimator 4400B'!F$7),4400)),'O&M Cost Estimator 4400B'!F$22:F$80,'O&M Cost Estimator 4400B'!I$22:I$80)-LOOKUP(((A60*'O&M Cost Estimator 4400B'!F$7)-MOD((A60*'O&M Cost Estimator 4400B'!F$7),4400)),'O&M Cost Estimator 4400B'!F$22:F$80,'O&M Cost Estimator 4400B'!K$22:K$80)+LOOKUP(((A59*'O&M Cost Estimator 4400B'!F$7)-MOD((A59*'O&M Cost Estimator 4400B'!F$7),4400)),'O&M Cost Estimator 4400B'!F$22:F$80,'O&M Cost Estimator 4400B'!I$22:I$80)+LOOKUP(((A59*'O&M Cost Estimator 4400B'!F$7)-MOD((A59*'O&M Cost Estimator 4400B'!F$7),4400)),'O&M Cost Estimator 4400B'!F$22:F$80,'O&M Cost Estimator 4400B'!K$22:K$80) -> 0 | D60: ='Payback Estimator-4400B'!$B$43*(D59) +D59 -> 46734.6 | E60: 46734.6 | F60: =SUM($E$5:E60) -> 2284076 | G60: =IRR($E$5:E60) -> 0.2399449686 | I60: 55 | K60: =-LOOKUP(((A60*'O&M Cost Estimator 4400B'!F$7)-MOD((A60*'O&M Cost Estimator 4400B'!F$7),4400)),'O&M Cost Estimator 4400B'!P$22:P$80,'O&M Cost Estimator 4400B'!S$22:S$80)-LOOKUP(((A60*'O&M Cost Estimator 4400B'!F$7)-MOD((A60*'O&M Cost Estimator 4400B'!F$7),4400)),'O&M Cost Estimator 4400B'!P$22:P$80,'O&M Cost Estimator 4400B'!U$22:U$80)+LOOKUP(((A59*'O&M Cost Estimator 4400B'!F$7)-MOD((A59*'O&M Cost Estimator 4400B'!F$7),4400)),'O&M Cost Estimator 4400B'!P$22:P$80,'O&M Cost Estimator 4400B'!S$22:S$80)+LOOKUP(((A59*'O&M Cost Estimator 4400B'!F$7)-MOD((A59*'O&M Cost Estimator 4400B'!F$7),4400)),'O&M Cost Estimator 4400B'!P$22:P$80,'O&M Cost Estimator 4400B'!U$22:U$80) -> 0 | L60: ='Payback Estimator-4400B'!$C$43*(L59)+L59 -> 46734.6 | M60: 46734.6 | N60: =SUM($M$5:M60) -> 2284076 | O60: =IRR($M$5:M60) -> 0.2399449686 | S60: 99998
A61: 56 | C61: =-LOOKUP(((A61*'O&M Cost Estimator 4400B'!F$7)-MOD((A61*'O&M Cost Estimator 4400B'!F$7),4400)),'O&M Cost Estimator 4400B'!F$22:F$80,'O&M Cost Estimator 4400B'!I$22:I$80)-LOOKUP(((A61*'O&M Cost Estimator 4400B'!F$7)-MOD((A61*'O&M Cost Estimator 4400B'!F$7),4400)),'O&M Cost Estimator 4400B'!F$22:F$80,'O&M Cost Estimator 4400B'!K$22:K$80)+LOOKUP(((A60*'O&M Cost Estimator 4400B'!F$7)-MOD((A60*'O&M Cost Estimator 4400B'!F$7),4400)),'O&M Cost Estimator 4400B'!F$22:F$80,'O&M Cost Estimator 4400B'!I$22:I$80)+LOOKUP(((A60*'O&M Cost Estimator 4400B'!F$7)-MOD((A60*'O&M Cost Estimator 4400B'!F$7),4400)),'O&M Cost Estimator 4400B'!F$22:F$80,'O&M Cost Estimator 4400B'!K$22:K$80) -> 0 | D61: ='Payback Estimator-4400B'!$B$43*(D60) +D60 -> 46734.6 | E61: 46734.6 | F61: =SUM($E$5:E61) -> 2330810.6 | G61: =IRR($E$5:E61) -> 0.2399453499 | I61: 56 | K61: =-LOOKUP(((A61*'O&M Cost Estimator 4400B'!F$7)-MOD((A61*'O&M Cost Estimator 4400B'!F$7),4400)),'O&M Cost Estimator 4400B'!P$22:P$80,'O&M Cost Estimator 4400B'!S$22:S$80)-LOOKUP(((A61*'O&M Cost Estimator 4400B'!F$7)-MOD((A61*'O&M Cost Estimator 4400B'!F$7),4400)),'O&M Cost Estimator 4400B'!P$22:P$80,'O&M Cost Estimator 4400B'!U$22:U$80)+LOOKUP(((A60*'O&M Cost Estimator 4400B'!F$7)-MOD((A60*'O&M Cost Estimator 4400B'!F$7),4400)),'O&M Cost Estimator 4400B'!P$22:P$80,'O&M Cost Estimator 4400B'!S$22:S$80)+LOOKUP(((A60*'O&M Cost Estimator 4400B'!F$7)-MOD((A60*'O&M Cost Estimator 4400B'!F$7),4400)),'O&M Cost Estimator 4400B'!P$22:P$80,'O&M Cost Estimator 4400B'!U$22:U$80) -> 0 | L61: ='Payback Estimator-4400B'!$C$43*(L60)+L60 -> 46734.6 | M61: 46734.6 | N61: =SUM($M$5:M61) -> 2330810.6 | O61: =IRR($M$5:M61) -> 0.2399453499 | S61: 99998
A62: 57 | C62: =-LOOKUP(((A62*'O&M Cost Estimator 4400B'!F$7)-MOD((A62*'O&M Cost Estimator 4400B'!F$7),4400)),'O&M Cost Estimator 4400B'!F$22:F$80,'O&M Cost Estimator 4400B'!I$22:I$80)-LOOKUP(((A62*'O&M Cost Estimator 4400B'!F$7)-MOD((A62*'O&M Cost Estimator 4400B'!F$7),4400)),'O&M Cost Estimator 4400B'!F$22:F$80,'O&M Cost Estimator 4400B'!K$22:K$80)+LOOKUP(((A61*'O&M Cost Estimator 4400B'!F$7)-MOD((A61*'O&M Cost Estimator 4400B'!F$7),4400)),'O&M Cost Estimator 4400B'!F$22:F$80,'O&M Cost Estimator 4400B'!I$22:I$80)+LOOKUP(((A61*'O&M Cost Estimator 4400B'!F$7)-MOD((A61*'O&M Cost Estimator 4400B'!F$7),4400)),'O&M Cost Estimator 4400B'!F$22:F$80,'O&M Cost Estimator 4400B'!K$22:K$80) -> 0 | D62: ='Payback Estimator-4400B'!$B$43*(D61) +D61 -> 46734.6 | E62: 46734.6 | F62: =SUM($E$5:E62) -> 2377545.2 | G62: =IRR($E$5:E62) -> 0.2399456573 | I62: 57 | K62: =-LOOKUP(((A62*'O&M Cost Estimator 4400B'!F$7)-MOD((A62*'O&M Cost Estimator 4400B'!F$7),4400)),'O&M Cost Estimator 4400B'!P$22:P$80,'O&M Cost Estimator 4400B'!S$22:S$80)-LOOKUP(((A62*'O&M Cost Estimator 4400B'!F$7)-MOD((A62*'O&M Cost Estimator 4400B'!F$7),4400)),'O&M Cost Estimator 4400B'!P$22:P$80,'O&M Cost Estimator 4400B'!U$22:U$80)+LOOKUP(((A61*'O&M Cost Estimator 4400B'!F$7)-MOD((A61*'O&M Cost Estimator 4400B'!F$7),4400)),'O&M Cost Estimator 4400B'!P$22:P$80,'O&M Cost Estimator 4400B'!S$22:S$80)+LOOKUP(((A61*'O&M Cost Estimator 4400B'!F$7)-MOD((A61*'O&M Cost Estimator 4400B'!F$7),4400)),'O&M Cost Estimator 4400B'!P$22:P$80,'O&M Cost Estimator 4400B'!U$22:U$80) -> 0 | L62: ='Payback Estimator-4400B'!$C$43*(L61)+L61 -> 46734.6 | M62: 46734.6 | N62: =SUM($M$5:M62) -> 2377545.2 | O62: =IRR($M$5:M62) -> 0.2399456573 | S62: 99998
A63: 58 | C63: =-LOOKUP(((A63*'O&M Cost Estimator 4400B'!F$7)-MOD((A63*'O&M Cost Estimator 4400B'!F$7),4400)),'O&M Cost Estimator 4400B'!F$22:F$80,'O&M Cost Estimator 4400B'!I$22:I$80)-LOOKUP(((A63*'O&M Cost Estimator 4400B'!F$7)-MOD((A63*'O&M Cost Estimator 4400B'!F$7),4400)),'O&M Cost Estimator 4400B'!F$22:F$80,'O&M Cost Estimator 4400B'!K$22:K$80)+LOOKUP(((A62*'O&M Cost Estimator 4400B'!F$7)-MOD((A62*'O&M Cost Estimator 4400B'!F$7),4400)),'O&M Cost Estimator 4400B'!F$22:F$80,'O&M Cost Estimator 4400B'!I$22:I$80)+LOOKUP(((A62*'O&M Cost Estimator 4400B'!F$7)-MOD((A62*'O&M Cost Estimator 4400B'!F$7),4400)),'O&M Cost Estimator 4400B'!F$22:F$80,'O&M Cost Estimator 4400B'!K$22:K$80) -> 0 | D63: ='Payback Estimator-4400B'!$B$43*(D62) +D62 -> 46734.6 | E63: 46734.6 | F63: =SUM($E$5:E63) -> 2424279.8 | G63: =IRR($E$5:E63) -> 0.2399459053 | I63: 58 | K63: =-LOOKUP(((A63*'O&M Cost Estimator 4400B'!F$7)-MOD((A63*'O&M Cost Estimator 4400B'!F$7),4400)),'O&M Cost Estimator 4400B'!P$22:P$80,'O&M Cost Estimator 4400B'!S$22:S$80)-LOOKUP(((A63*'O&M Cost Estimator 4400B'!F$7)-MOD((A63*'O&M Cost Estimator 4400B'!F$7),4400)),'O&M Cost Estimator 4400B'!P$22:P$80,'O&M Cost Estimator 4400B'!U$22:U$80)+LOOKUP(((A62*'O&M Cost Estimator 4400B'!F$7)-MOD((A62*'O&M Cost Estimator 4400B'!F$7),4400)),'O&M Cost Estimator 4400B'!P$22:P$80,'O&M Cost Estimator 4400B'!S$22:S$80)+LOOKUP(((A62*'O&M Cost Estimator 4400B'!F$7)-MOD((A62*'O&M Cost Estimator 4400B'!F$7),4400)),'O&M Cost Estimator 4400B'!P$22:P$80,'O&M Cost Estimator 4400B'!U$22:U$80) -> 0 | L63: ='Payback Estimator-4400B'!$C$43*(L62)+L62 -> 46734.6 | M63: 46734.6 | N63: =SUM($M$5:M63) -> 2424279.8 | O63: =IRR($M$5:M63) -> 0.2399459053 | S63: 99998
A64: 59 | C64: =-LOOKUP(((A64*'O&M Cost Estimator 4400B'!F$7)-MOD((A64*'O&M Cost Estimator 4400B'!F$7),4400)),'O&M Cost Estimator 4400B'!F$22:F$80,'O&M Cost Estimator 4400B'!I$22:I$80)-LOOKUP(((A64*'O&M Cost Estimator 4400B'!F$7)-MOD((A64*'O&M Cost Estimator 4400B'!F$7),4400)),'O&M Cost Estimator 4400B'!F$22:F$80,'O&M Cost Estimator 4400B'!K$22:K$80)+LOOKUP(((A63*'O&M Cost Estimator 4400B'!F$7)-MOD((A63*'O&M Cost Estimator 4400B'!F$7),4400)),'O&M Cost Estimator 4400B'!F$22:F$80,'O&M Cost Estimator 4400B'!I$22:I$80)+LOOKUP(((A63*'O&M Cost Estimator 4400B'!F$7)-MOD((A63*'O&M Cost Estimator 4400B'!F$7),4400)),'O&M Cost Estimator 4400B'!F$22:F$80,'O&M Cost Estimator 4400B'!K$22:K$80) -> 0 | D64: ='Payback Estimator-4400B'!$B$43*(D63) +D63 -> 46734.6 | E64: 46734.6 | F64: =SUM($E$5:E64) -> 2471014.4 | G64: =IRR($E$5:E64) -> 0.2399461053 | I64: 59 | K64: =-LOOKUP(((A64*'O&M Cost Estimator 4400B'!F$7)-MOD((A64*'O&M Cost Estimator 4400B'!F$7),4400)),'O&M Cost Estimator 4400B'!P$22:P$80,'O&M Cost Estimator 4400B'!S$22:S$80)-LOOKUP(((A64*'O&M Cost Estimator 4400B'!F$7)-MOD((A64*'O&M Cost Estimator 4400B'!F$7),4400)),'O&M Cost Estimator 4400B'!P$22:P$80,'O&M Cost Estimator 4400B'!U$22:U$80)+LOOKUP(((A63*'O&M Cost Estimator 4400B'!F$7)-MOD((A63*'O&M Cost Estimator 4400B'!F$7),4400)),'O&M Cost Estimator 4400B'!P$22:P$80,'O&M Cost Estimator 4400B'!S$22:S$80)+LOOKUP(((A63*'O&M Cost Estimator 4400B'!F$7)-MOD((A63*'O&M Cost Estimator 4400B'!F$7),4400)),'O&M Cost Estimator 4400B'!P$22:P$80,'O&M Cost Estimator 4400B'!U$22:U$80) -> 0 | L64: ='Payback Estimator-4400B'!$C$43*(L63)+L63 -> 46734.6 | M64: 46734.6 | N64: =SUM($M$5:M64) -> 2471014.4 | O64: =IRR($M$5:M64) -> 0.2399461053 | S64: 99998
A65: 60 | C65: =-LOOKUP(((A65*'O&M Cost Estimator 4400B'!F$7)-MOD((A65*'O&M Cost Estimator 4400B'!F$7),4400)),'O&M Cost Estimator 4400B'!F$22:F$80,'O&M Cost Estimator 4400B'!I$22:I$80)-LOOKUP(((A65*'O&M Cost Estimator 4400B'!F$7)-MOD((A65*'O&M Cost Estimator 4400B'!F$7),4400)),'O&M Cost Estimator 4400B'!F$22:F$80,'O&M Cost Estimator 4400B'!K$22:K$80)+LOOKUP(((A64*'O&M Cost Estimator 4400B'!F$7)-MOD((A64*'O&M Cost Estimator 4400B'!F$7),4400)),'O&M Cost Estimator 4400B'!F$22:F$80,'O&M Cost Estimator 4400B'!I$22:I$80)+LOOKUP(((A64*'O&M Cost Estimator 4400B'!F$7)-MOD((A64*'O&M Cost Estimator 4400B'!F$7),4400)),'O&M Cost Estimator 4400B'!F$22:F$80,'O&M Cost Estimator 4400B'!K$22:K$80) -> 0 | D65: ='Payback Estimator-4400B'!$B$43*(D64) +D64 -> 46734.6 | E65: 46734.6 | F65: =SUM($E$5:E65) -> 2517749 | G65: =IRR($E$5:E65) -> 0.2399462666 | I65: 60 | K65: =-LOOKUP(((A65*'O&M Cost Estimator 4400B'!F$7)-MOD((A65*'O&M Cost Estimator 4400B'!F$7),4400)),'O&M Cost Estimator 4400B'!P$22:P$80,'O&M Cost Estimator 4400B'!S$22:S$80)-LOOKUP(((A65*'O&M Cost Estimator 4400B'!F$7)-MOD((A65*'O&M Cost Estimator 4400B'!F$7),4400)),'O&M Cost Estimator 4400B'!P$22:P$80,'O&M Cost Estimator 4400B'!U$22:U$80)+LOOKUP(((A64*'O&M Cost Estimator 4400B'!F$7)-MOD((A64*'O&M Cost Estimator 4400B'!F$7),4400)),'O&M Cost Estimator 4400B'!P$22:P$80,'O&M Cost Estimator 4400B'!S$22:S$80)+LOOKUP(((A64*'O&M Cost Estimator 4400B'!F$7)-MOD((A64*'O&M Cost Estimator 4400B'!F$7),4400)),'O&M Cost Estimator 4400B'!P$22:P$80,'O&M Cost Estimator 4400B'!U$22:U$80) -> 0 | L65: ='Payback Estimator-4400B'!$C$43*(L64)+L64 -> 46734.6 | M65: 46734.6 | N65: =SUM($M$5:M65) -> 2517749 | O65: =IRR($M$5:M65) -> 0.2399462666 | S65: 99998
A66: =A65+1 -> 61 | C66: =-LOOKUP(((A66*'O&M Cost Estimator 4400B'!F$7)-MOD((A66*'O&M Cost Estimator 4400B'!F$7),4400)),'O&M Cost Estimator 4400B'!F$22:F$80,'O&M Cost Estimator 4400B'!I$22:I$80)-LOOKUP(((A66*'O&M Cost Estimator 4400B'!F$7)-MOD((A66*'O&M Cost Estimator 4400B'!F$7),4400)),'O&M Cost Estimator 4400B'!F$22:F$80,'O&M Cost Estimator 4400B'!K$22:K$80)+LOOKUP(((A65*'O&M Cost Estimator 4400B'!F$7)-MOD((A65*'O&M Cost Estimator 4400B'!F$7),4400)),'O&M Cost Estimator 4400B'!F$22:F$80,'O&M Cost Estimator 4400B'!I$22:I$80)+LOOKUP(((A65*'O&M Cost Estimator 4400B'!F$7)-MOD((A65*'O&M Cost Estimator 4400B'!F$7),4400)),'O&M Cost Estimator 4400B'!F$22:F$80,'O&M Cost Estimator 4400B'!K$22:K$80) -> 0 | D66: ='Payback Estimator-4400B'!$B$43*(D65) +D65 -> 46734.6 | E66: 46734.6 | F66: =SUM($E$5:E66) -> 2564483.6 | G66: =IRR($E$5:E66) -> 0.2399463966 | I66: =I65+1 -> 61 | K66: =-LOOKUP(((A66*'O&M Cost Estimator 4400B'!F$7)-MOD((A66*'O&M Cost Estimator 4400B'!F$7),4400)),'O&M Cost Estimator 4400B'!P$22:P$80,'O&M Cost Estimator 4400B'!S$22:S$80)-LOOKUP(((A66*'O&M Cost Estimator 4400B'!F$7)-MOD((A66*'O&M Cost Estimator 4400B'!F$7),4400)),'O&M Cost Estimator 4400B'!P$22:P$80,'O&M Cost Estimator 4400B'!U$22:U$80)+LOOKUP(((A65*'O&M Cost Estimator 4400B'!F$7)-MOD((A65*'O&M Cost Estimator 4400B'!F$7),4400)),'O&M Cost Estimator 4400B'!P$22:P$80,'O&M Cost Estimator 4400B'!S$22:S$80)+LOOKUP(((A65*'O&M Cost Estimator 4400B'!F$7)-MOD((A65*'O&M Cost Estimator 4400B'!F$7),4400)),'O&M Cost Estimator 4400B'!P$22:P$80,'O&M Cost Estimator 4400B'!U$22:U$80) -> 0 | L66: ='Payback Estimator-4400B'!$C$43*(L65)+L65 -> 46734.6 | M66: 46734.6 | N66: =SUM($M$5:M66) -> 2564483.6 | O66: =IRR($M$5:M66) -> 0.2399463966 | S66: 99998
A67: =A66+1 -> 62 | C67: =-LOOKUP(((A67*'O&M Cost Estimator 4400B'!F$7)-MOD((A67*'O&M Cost Estimator 4400B'!F$7),4400)),'O&M Cost Estimator 4400B'!F$22:F$80,'O&M Cost Estimator 4400B'!I$22:I$80)-LOOKUP(((A67*'O&M Cost Estimator 4400B'!F$7)-MOD((A67*'O&M Cost Estimator 4400B'!F$7),4400)),'O&M Cost Estimator 4400B'!F$22:F$80,'O&M Cost Estimator 4400B'!K$22:K$80)+LOOKUP(((A66*'O&M Cost Estimator 4400B'!F$7)-MOD((A66*'O&M Cost Estimator 4400B'!F$7),4400)),'O&M Cost Estimator 4400B'!F$22:F$80,'O&M Cost Estimator 4400B'!I$22:I$80)+LOOKUP(((A66*'O&M Cost Estimator 4400B'!F$7)-MOD((A66*'O&M Cost Estimator 4400B'!F$7),4400)),'O&M Cost Estimator 4400B'!F$22:F$80,'O&M Cost Estimator 4400B'!K$22:K$80) -> 0 | D67: ='Payback Estimator-4400B'!$B$43*(D66) +D66 -> 46734.6 | E67: 46734.6 | F67: =SUM($E$5:E67) -> 2611218.2 | G67: =IRR($E$5:E67) -> 0.2399465015 | I67: =I66+1 -> 62 | K67: =-LOOKUP(((A67*'O&M Cost Estimator 4400B'!F$7)-MOD((A67*'O&M Cost Estimator 4400B'!F$7),4400)),'O&M Cost Estimator 4400B'!P$22:P$80,'O&M Cost Estimator 4400B'!S$22:S$80)-LOOKUP(((A67*'O&M Cost Estimator 4400B'!F$7)-MOD((A67*'O&M Cost Estimator 4400B'!F$7),4400)),'O&M Cost Estimator 4400B'!P$22:P$80,'O&M Cost Estimator 4400B'!U$22:U$80)+LOOKUP(((A66*'O&M Cost Estimator 4400B'!F$7)-MOD((A66*'O&M Cost Estimator 4400B'!F$7),4400)),'O&M Cost Estimator 4400B'!P$22:P$80,'O&M Cost Estimator 4400B'!S$22:S$80)+LOOKUP(((A66*'O&M Cost Estimator 4400B'!F$7)-MOD((A66*'O&M Cost Estimator 4400B'!F$7),4400)),'O&M Cost Estimator 4400B'!P$22:P$80,'O&M Cost Estimator 4400B'!U$22:U$80) -> 0 | L67: ='Payback Estimator-4400B'!$C$43*(L66)+L66 -> 46734.6 | M67: 46734.6 | N67: =SUM($M$5:M67) -> 2611218.2 | O67: =IRR($M$5:M67) -> 0.2399465015 | S67: 99998
A68: 63 | C68: =-LOOKUP(((A68*'O&M Cost Estimator 4400B'!F$7)-MOD((A68*'O&M Cost Estimator 4400B'!F$7),4400)),'O&M Cost Estimator 4400B'!F$22:F$80,'O&M Cost Estimator 4400B'!I$22:I$80)-LOOKUP(((A68*'O&M Cost Estimator 4400B'!F$7)-MOD((A68*'O&M Cost Estimator 4400B'!F$7),4400)),'O&M Cost Estimator 4400B'!F$22:F$80,'O&M Cost Estimator 4400B'!K$22:K$80)+LOOKUP(((A67*'O&M Cost Estimator 4400B'!F$7)-MOD((A67*'O&M Cost Estimator 4400B'!F$7),4400)),'O&M Cost Estimator 4400B'!F$22:F$80,'O&M Cost Estimator 4400B'!I$22:I$80)+LOOKUP(((A67*'O&M Cost Estimator 4400B'!F$7)-MOD((A67*'O&M Cost Estimator 4400B'!F$7),4400)),'O&M Cost Estimator 4400B'!F$22:F$80,'O&M Cost Estimator 4400B'!K$22:K$80) -> 0 | D68: ='Payback Estimator-4400B'!$B$43*(D67) +D67 -> 46734.6 | E68: 46734.6 | F68: =SUM($E$5:E68) -> 2657952.8 | G68: =IRR($E$5:E68) -> 0.2399465861 | I68: 63 | K68: =-LOOKUP(((A68*'O&M Cost Estimator 4400B'!F$7)-MOD((A68*'O&M Cost Estimator 4400B'!F$7),4400)),'O&M Cost Estimator 4400B'!P$22:P$80,'O&M Cost Estimator 4400B'!S$22:S$80)-LOOKUP(((A68*'O&M Cost Estimator 4400B'!F$7)-MOD((A68*'O&M Cost Estimator 4400B'!F$7),4400)),'O&M Cost Estimator 4400B'!P$22:P$80,'O&M Cost Estimator 4400B'!U$22:U$80)+LOOKUP(((A67*'O&M Cost Estimator 4400B'!F$7)-MOD((A67*'O&M Cost Estimator 4400B'!F$7),4400)),'O&M Cost Estimator 4400B'!P$22:P$80,'O&M Cost Estimator 4400B'!S$22:S$80)+LOOKUP(((A67*'O&M Cost Estimator 4400B'!F$7)-MOD((A67*'O&M Cost Estimator 4400B'!F$7),4400)),'O&M Cost Estimator 4400B'!P$22:P$80,'O&M Cost Estimator 4400B'!U$22:U$80) -> 0 | L68: ='Payback Estimator-4400B'!$C$43*(L67)+L67 -> 46734.6 | M68: 46734.6 | N68: =SUM($M$5:M68) -> 2657952.8 | O68: =IRR($M$5:M68) -> 0.2399465861 | S68: 99998
A69: 64 | C69: =-LOOKUP(((A69*'O&M Cost Estimator 4400B'!F$7)-MOD((A69*'O&M Cost Estimator 4400B'!F$7),4400)),'O&M Cost Estimator 4400B'!F$22:F$80,'O&M Cost Estimator 4400B'!I$22:I$80)-LOOKUP(((A69*'O&M Cost Estimator 4400B'!F$7)-MOD((A69*'O&M Cost Estimator 4400B'!F$7),4400)),'O&M Cost Estimator 4400B'!F$22:F$80,'O&M Cost Estimator 4400B'!K$22:K$80)+LOOKUP(((A68*'O&M Cost Estimator 4400B'!F$7)-MOD((A68*'O&M Cost Estimator 4400B'!F$7),4400)),'O&M Cost Estimator 4400B'!F$22:F$80,'O&M Cost Estimator 4400B'!I$22:I$80)+LOOKUP(((A68*'O&M Cost Estimator 4400B'!F$7)-MOD((A68*'O&M Cost Estimator 4400B'!F$7),4400)),'O&M Cost Estimator 4400B'!F$22:F$80,'O&M Cost Estimator 4400B'!K$22:K$80) -> 0 | D69: ='Payback Estimator-4400B'!$B$43*(D68) +D68 -> 46734.6 | E69: 46734.6 | F69: =SUM($E$5:E69) -> 2704687.4 | G69: =IRR($E$5:E69) -> 0.2399466544 | I69: 64 | K69: =-LOOKUP(((A69*'O&M Cost Estimator 4400B'!F$7)-MOD((A69*'O&M Cost Estimator 4400B'!F$7),4400)),'O&M Cost Estimator 4400B'!P$22:P$80,'O&M Cost Estimator 4400B'!S$22:S$80)-LOOKUP(((A69*'O&M Cost Estimator 4400B'!F$7)-MOD((A69*'O&M Cost Estimator 4400B'!F$7),4400)),'O&M Cost Estimator 4400B'!P$22:P$80,'O&M Cost Estimator 4400B'!U$22:U$80)+LOOKUP(((A68*'O&M Cost Estimator 4400B'!F$7)-MOD((A68*'O&M Cost Estimator 4400B'!F$7),4400)),'O&M Cost Estimator 4400B'!P$22:P$80,'O&M Cost Estimator 4400B'!S$22:S$80)+LOOKUP(((A68*'O&M Cost Estimator 4400B'!F$7)-MOD((A68*'O&M Cost Estimator 4400B'!F$7),4400)),'O&M Cost Estimator 4400B'!P$22:P$80,'O&M Cost Estimator 4400B'!U$22:U$80) -> 0 | L69: ='Payback Estimator-4400B'!$C$43*(L68)+L68 -> 46734.6 | M69: 46734.6 | N69: =SUM($M$5:M69) -> 2704687.4 | O69: =IRR($M$5:M69) -> 0.2399466544 | S69: 99998
A70: 65 | C70: =-LOOKUP(((A70*'O&M Cost Estimator 4400B'!F$7)-MOD((A70*'O&M Cost Estimator 4400B'!F$7),4400)),'O&M Cost Estimator 4400B'!F$22:F$80,'O&M Cost Estimator 4400B'!I$22:I$80)-LOOKUP(((A70*'O&M Cost Estimator 4400B'!F$7)-MOD((A70*'O&M Cost Estimator 4400B'!F$7),4400)),'O&M Cost Estimator 4400B'!F$22:F$80,'O&M Cost Estimator 4400B'!K$22:K$80)+LOOKUP(((A69*'O&M Cost Estimator 4400B'!F$7)-MOD((A69*'O&M Cost Estimator 4400B'!F$7),4400)),'O&M Cost Estimator 4400B'!F$22:F$80,'O&M Cost Estimator 4400B'!I$22:I$80)+LOOKUP(((A69*'O&M Cost Estimator 4400B'!F$7)-MOD((A69*'O&M Cost Estimator 4400B'!F$7),4400)),'O&M Cost Estimator 4400B'!F$22:F$80,'O&M Cost Estimator 4400B'!K$22:K$80) -> 0 | D70: ='Payback Estimator-4400B'!$B$43*(D69) +D69 -> 46734.6 | E70: 46734.6 | F70: =SUM($E$5:E70) -> 2751422 | G70: =IRR($E$5:E70) -> 0.2399467094 | I70: 65 | K70: =-LOOKUP(((A70*'O&M Cost Estimator 4400B'!F$7)-MOD((A70*'O&M Cost Estimator 4400B'!F$7),4400)),'O&M Cost Estimator 4400B'!P$22:P$80,'O&M Cost Estimator 4400B'!S$22:S$80)-LOOKUP(((A70*'O&M Cost Estimator 4400B'!F$7)-MOD((A70*'O&M Cost Estimator 4400B'!F$7),4400)),'O&M Cost Estimator 4400B'!P$22:P$80,'O&M Cost Estimator 4400B'!U$22:U$80)+LOOKUP(((A69*'O&M Cost Estimator 4400B'!F$7)-MOD((A69*'O&M Cost Estimator 4400B'!F$7),4400)),'O&M Cost Estimator 4400B'!P$22:P$80,'O&M Cost Estimator 4400B'!S$22:S$80)+LOOKUP(((A69*'O&M Cost Estimator 4400B'!F$7)-MOD((A69*'O&M Cost Estimator 4400B'!F$7),4400)),'O&M Cost Estimator 4400B'!P$22:P$80,'O&M Cost Estimator 4400B'!U$22:U$80) -> 0 | L70: ='Payback Estimator-4400B'!$C$43*(L69)+L69 -> 46734.6 | M70: 46734.6 | N70: =SUM($M$5:M70) -> 2751422 | O70: =IRR($M$5:M70) -> 0.2399467094 | S70: 99998
A71: 66 | C71: =-LOOKUP(((A71*'O&M Cost Estimator 4400B'!F$7)-MOD((A71*'O&M Cost Estimator 4400B'!F$7),4400)),'O&M Cost Estimator 4400B'!F$22:F$80,'O&M Cost Estimator 4400B'!I$22:I$80)-LOOKUP(((A71*'O&M Cost Estimator 4400B'!F$7)-MOD((A71*'O&M Cost Estimator 4400B'!F$7),4400)),'O&M Cost Estimator 4400B'!F$22:F$80,'O&M Cost Estimator 4400B'!K$22:K$80)+LOOKUP(((A70*'O&M Cost Estimator 4400B'!F$7)-MOD((A70*'O&M Cost Estimator 4400B'!F$7),4400)),'O&M Cost Estimator 4400B'!F$22:F$80,'O&M Cost Estimator 4400B'!I$22:I$80)+LOOKUP(((A70*'O&M Cost Estimator 4400B'!F$7)-MOD((A70*'O&M Cost Estimator 4400B'!F$7),4400)),'O&M Cost Estimator 4400B'!F$22:F$80,'O&M Cost Estimator 4400B'!K$22:K$80) -> 0 | D71: ='Payback Estimator-4400B'!$B$43*(D70) +D70 -> 46734.6 | E71: 46734.6 | F71: =SUM($E$5:E71) -> 2798156.6 | G71: =IRR($E$5:E71) -> 0.2399467538 | I71: 66 | K71: =-LOOKUP(((A71*'O&M Cost Estimator 4400B'!F$7)-MOD((A71*'O&M Cost Estimator 4400B'!F$7),4400)),'O&M Cost Estimator 4400B'!P$22:P$80,'O&M Cost Estimator 4400B'!S$22:S$80)-LOOKUP(((A71*'O&M Cost Estimator 4400B'!F$7)-MOD((A71*'O&M Cost Estimator 4400B'!F$7),4400)),'O&M Cost Estimator 4400B'!P$22:P$80,'O&M Cost Estimator 4400B'!U$22:U$80)+LOOKUP(((A70*'O&M Cost Estimator 4400B'!F$7)-MOD((A70*'O&M Cost Estimator 4400B'!F$7),4400)),'O&M Cost Estimator 4400B'!P$22:P$80,'O&M Cost Estimator 4400B'!S$22:S$80)+LOOKUP(((A70*'O&M Cost Estimator 4400B'!F$7)-MOD((A70*'O&M Cost Estimator 4400B'!F$7),4400)),'O&M Cost Estimator 4400B'!P$22:P$80,'O&M Cost Estimator 4400B'!U$22:U$80) -> 0 | L71: ='Payback Estimator-4400B'!$C$43*(L70)+L70 -> 46734.6 | M71: 46734.6 | N71: =SUM($M$5:M71) -> 2798156.6 | O71: =IRR($M$5:M71) -> 0.2399467538 | S71: 99998
A72: 67 | C72: =-LOOKUP(((A72*'O&M Cost Estimator 4400B'!F$7)-MOD((A72*'O&M Cost Estimator 4400B'!F$7),4400)),'O&M Cost Estimator 4400B'!F$22:F$80,'O&M Cost Estimator 4400B'!I$22:I$80)-LOOKUP(((A72*'O&M Cost Estimator 4400B'!F$7)-MOD((A72*'O&M Cost Estimator 4400B'!F$7),4400)),'O&M Cost Estimator 4400B'!F$22:F$80,'O&M Cost Estimator 4400B'!K$22:K$80)+LOOKUP(((A71*'O&M Cost Estimator 4400B'!F$7)-MOD((A71*'O&M Cost Estimator 4400B'!F$7),4400)),'O&M Cost Estimator 4400B'!F$22:F$80,'O&M Cost Estimator 4400B'!I$22:I$80)+LOOKUP(((A71*'O&M Cost Estimator 4400B'!F$7)-MOD((A71*'O&M Cost Estimator 4400B'!F$7),4400)),'O&M Cost Estimator 4400B'!F$22:F$80,'O&M Cost Estimator 4400B'!K$22:K$80) -> 0 | D72: ='Payback Estimator-4400B'!$B$43*(D71) +D71 -> 46734.6 | E72: 46734.6 | F72: =SUM($E$5:E72) -> 2844891.2 | G72: =IRR($E$5:E72) -> 0.2399467895 | I72: 67 | K72: =-LOOKUP(((A72*'O&M Cost Estimator 4400B'!F$7)-MOD((A72*'O&M Cost Estimator 4400B'!F$7),4400)),'O&M Cost Estimator 4400B'!P$22:P$80,'O&M Cost Estimator 4400B'!S$22:S$80)-LOOKUP(((A72*'O&M Cost Estimator 4400B'!F$7)-MOD((A72*'O&M Cost Estimator 4400B'!F$7),4400)),'O&M Cost Estimator 4400B'!P$22:P$80,'O&M Cost Estimator 4400B'!U$22:U$80)+LOOKUP(((A71*'O&M Cost Estimator 4400B'!F$7)-MOD((A71*'O&M Cost Estimator 4400B'!F$7),4400)),'O&M Cost Estimator 4400B'!P$22:P$80,'O&M Cost Estimator 4400B'!S$22:S$80)+LOOKUP(((A71*'O&M Cost Estimator 4400B'!F$7)-MOD((A71*'O&M Cost Estimator 4400B'!F$7),4400)),'O&M Cost Estimator 4400B'!P$22:P$80,'O&M Cost Estimator 4400B'!U$22:U$80) -> 0 | L72: ='Payback Estimator-4400B'!$C$43*(L71)+L71 -> 46734.6 | M72: 46734.6 | N72: =SUM($M$5:M72) -> 2844891.2 | O72: =IRR($M$5:M72) -> 0.2399467895 | S72: 99998
A73: 68 | C73: =-LOOKUP(((A73*'O&M Cost Estimator 4400B'!F$7)-MOD((A73*'O&M Cost Estimator 4400B'!F$7),4400)),'O&M Cost Estimator 4400B'!F$22:F$80,'O&M Cost Estimator 4400B'!I$22:I$80)-LOOKUP(((A73*'O&M Cost Estimator 4400B'!F$7)-MOD((A73*'O&M Cost Estimator 4400B'!F$7),4400)),'O&M Cost Estimator 4400B'!F$22:F$80,'O&M Cost Estimator 4400B'!K$22:K$80)+LOOKUP(((A72*'O&M Cost Estimator 4400B'!F$7)-MOD((A72*'O&M Cost Estimator 4400B'!F$7),4400)),'O&M Cost Estimator 4400B'!F$22:F$80,'O&M Cost Estimator 4400B'!I$22:I$80)+LOOKUP(((A72*'O&M Cost Estimator 4400B'!F$7)-MOD((A72*'O&M Cost Estimator 4400B'!F$7),4400)),'O&M Cost Estimator 4400B'!F$22:F$80,'O&M Cost Estimator 4400B'!K$22:K$80) -> 0 | D73: ='Payback Estimator-4400B'!$B$43*(D72) +D72 -> 46734.6 | E73: 46734.6 | F73: =SUM($E$5:E73) -> 2891625.8 | G73: =IRR($E$5:E73) -> 0.2399468184 | I73: 68 | K73: =-LOOKUP(((A73*'O&M Cost Estimator 4400B'!F$7)-MOD((A73*'O&M Cost Estimator 4400B'!F$7),4400)),'O&M Cost Estimator 4400B'!P$22:P$80,'O&M Cost Estimator 4400B'!S$22:S$80)-LOOKUP(((A73*'O&M Cost Estimator 4400B'!F$7)-MOD((A73*'O&M Cost Estimator 4400B'!F$7),4400)),'O&M Cost Estimator 4400B'!P$22:P$80,'O&M Cost Estimator 4400B'!U$22:U$80)+LOOKUP(((A72*'O&M Cost Estimator 4400B'!F$7)-MOD((A72*'O&M Cost Estimator 4400B'!F$7),4400)),'O&M Cost Estimator 4400B'!P$22:P$80,'O&M Cost Estimator 4400B'!S$22:S$80)+LOOKUP(((A72*'O&M Cost Estimator 4400B'!F$7)-MOD((A72*'O&M Cost Estimator 4400B'!F$7),4400)),'O&M Cost Estimator 4400B'!P$22:P$80,'O&M Cost Estimator 4400B'!U$22:U$80) -> 0 | L73: ='Payback Estimator-4400B'!$C$43*(L72)+L72 -> 46734.6 | M73: 46734.6 | N73: =SUM($M$5:M73) -> 2891625.8 | O73: =IRR($M$5:M73) -> 0.2399468184 | S73: 99998
A74: 69 | C74: =-LOOKUP(((A74*'O&M Cost Estimator 4400B'!F$7)-MOD((A74*'O&M Cost Estimator 4400B'!F$7),4400)),'O&M Cost Estimator 4400B'!F$22:F$80,'O&M Cost Estimator 4400B'!I$22:I$80)-LOOKUP(((A74*'O&M Cost Estimator 4400B'!F$7)-MOD((A74*'O&M Cost Estimator 4400B'!F$7),4400)),'O&M Cost Estimator 4400B'!F$22:F$80,'O&M Cost Estimator 4400B'!K$22:K$80)+LOOKUP(((A73*'O&M Cost Estimator 4400B'!F$7)-MOD((A73*'O&M Cost Estimator 4400B'!F$7),4400)),'O&M Cost Estimator 4400B'!F$22:F$80,'O&M Cost Estimator 4400B'!I$22:I$80)+LOOKUP(((A73*'O&M Cost Estimator 4400B'!F$7)-MOD((A73*'O&M Cost Estimator 4400B'!F$7),4400)),'O&M Cost Estimator 4400B'!F$22:F$80,'O&M Cost Estimator 4400B'!K$22:K$80) -> 0 | D74: ='Payback Estimator-4400B'!$B$43*(D73) +D73 -> 46734.6 | E74: 46734.6 | F74: =SUM($E$5:E74) -> 2938360.4 | G74: =IRR($E$5:E74) -> 0.2399468417 | I74: 69 | K74: =-LOOKUP(((A74*'O&M Cost Estimator 4400B'!F$7)-MOD((A74*'O&M Cost Estimator 4400B'!F$7),4400)),'O&M Cost Estimator 4400B'!P$22:P$80,'O&M Cost Estimator 4400B'!S$22:S$80)-LOOKUP(((A74*'O&M Cost Estimator 4400B'!F$7)-MOD((A74*'O&M Cost Estimator 4400B'!F$7),4400)),'O&M Cost Estimator 4400B'!P$22:P$80,'O&M Cost Estimator 4400B'!U$22:U$80)+LOOKUP(((A73*'O&M Cost Estimator 4400B'!F$7)-MOD((A73*'O&M Cost Estimator 4400B'!F$7),4400)),'O&M Cost Estimator 4400B'!P$22:P$80,'O&M Cost Estimator 4400B'!S$22:S$80)+LOOKUP(((A73*'O&M Cost Estimator 4400B'!F$7)-MOD((A73*'O&M Cost Estimator 4400B'!F$7),4400)),'O&M Cost Estimator 4400B'!P$22:P$80,'O&M Cost Estimator 4400B'!U$22:U$80) -> 0 | L74: ='Payback Estimator-4400B'!$C$43*(L73)+L73 -> 46734.6 | M74: 46734.6 | N74: =SUM($M$5:M74) -> 2938360.4 | O74: =IRR($M$5:M74) -> 0.2399468417 | S74: 99998
A75: 70 | C75: =-LOOKUP(((A75*'O&M Cost Estimator 4400B'!F$7)-MOD((A75*'O&M Cost Estimator 4400B'!F$7),4400)),'O&M Cost Estimator 4400B'!F$22:F$80,'O&M Cost Estimator 4400B'!I$22:I$80)-LOOKUP(((A75*'O&M Cost Estimator 4400B'!F$7)-MOD((A75*'O&M Cost Estimator 4400B'!F$7),4400)),'O&M Cost Estimator 4400B'!F$22:F$80,'O&M Cost Estimator 4400B'!K$22:K$80)+LOOKUP(((A74*'O&M Cost Estimator 4400B'!F$7)-MOD((A74*'O&M Cost Estimator 4400B'!F$7),4400)),'O&M Cost Estimator 4400B'!F$22:F$80,'O&M Cost Estimator 4400B'!I$22:I$80)+LOOKUP(((A74*'O&M Cost Estimator 4400B'!F$7)-MOD((A74*'O&M Cost Estimator 4400B'!F$7),4400)),'O&M Cost Estimator 4400B'!F$22:F$80,'O&M Cost Estimator 4400B'!K$22:K$80) -> 0 | D75: ='Payback Estimator-4400B'!$B$43*(D74) +D74 -> 46734.6 | E75: 46734.6 | F75: =SUM($E$5:E75) -> 2985095 | G75: =IRR($E$5:E75) -> 0.2399468605 | I75: 70 | K75: =-LOOKUP(((A75*'O&M Cost Estimator 4400B'!F$7)-MOD((A75*'O&M Cost Estimator 4400B'!F$7),4400)),'O&M Cost Estimator 4400B'!P$22:P$80,'O&M Cost Estimator 4400B'!S$22:S$80)-LOOKUP(((A75*'O&M Cost Estimator 4400B'!F$7)-MOD((A75*'O&M Cost Estimator 4400B'!F$7),4400)),'O&M Cost Estimator 4400B'!P$22:P$80,'O&M Cost Estimator 4400B'!U$22:U$80)+LOOKUP(((A74*'O&M Cost Estimator 4400B'!F$7)-MOD((A74*'O&M Cost Estimator 4400B'!F$7),4400)),'O&M Cost Estimator 4400B'!P$22:P$80,'O&M Cost Estimator 4400B'!S$22:S$80)+LOOKUP(((A74*'O&M Cost Estimator 4400B'!F$7)-MOD((A74*'O&M Cost Estimator 4400B'!F$7),4400)),'O&M Cost Estimator 4400B'!P$22:P$80,'O&M Cost Estimator 4400B'!U$22:U$80) -> 0 | L75: ='Payback Estimator-4400B'!$C$43*(L74)+L74 -> 46734.6 | M75: 46734.6 | N75: =SUM($M$5:M75) -> 2985095 | O75: =IRR($M$5:M75) -> 0.2399468605 | S75: 99998
A76: =A75+1 -> 71 | C76: =-LOOKUP(((A76*'O&M Cost Estimator 4400B'!F$7)-MOD((A76*'O&M Cost Estimator 4400B'!F$7),4400)),'O&M Cost Estimator 4400B'!F$22:F$80,'O&M Cost Estimator 4400B'!I$22:I$80)-LOOKUP(((A76*'O&M Cost Estimator 4400B'!F$7)-MOD((A76*'O&M Cost Estimator 4400B'!F$7),4400)),'O&M Cost Estimator 4400B'!F$22:F$80,'O&M Cost Estimator 4400B'!K$22:K$80)+LOOKUP(((A75*'O&M Cost Estimator 4400B'!F$7)-MOD((A75*'O&M Cost Estimator 4400B'!F$7),4400)),'O&M Cost Estimator 4400B'!F$22:F$80,'O&M Cost Estimator 4400B'!I$22:I$80)+LOOKUP(((A75*'O&M Cost Estimator 4400B'!F$7)-MOD((A75*'O&M Cost Estimator 4400B'!F$7),4400)),'O&M Cost Estimator 4400B'!F$22:F$80,'O&M Cost Estimator 4400B'!K$22:K$80) -> 0 | D76: ='Payback Estimator-4400B'!$B$43*(D75) +D75 -> 46734.6 | E76: 46734.6 | F76: =SUM($E$5:E76) -> 3031829.6 | G76: =IRR($E$5:E76) -> 0.2399468756 | I76: =I75+1 -> 71 | K76: =-LOOKUP(((A76*'O&M Cost Estimator 4400B'!F$7)-MOD((A76*'O&M Cost Estimator 4400B'!F$7),4400)),'O&M Cost Estimator 4400B'!P$22:P$80,'O&M Cost Estimator 4400B'!S$22:S$80)-LOOKUP(((A76*'O&M Cost Estimator 4400B'!F$7)-MOD((A76*'O&M Cost Estimator 4400B'!F$7),4400)),'O&M Cost Estimator 4400B'!P$22:P$80,'O&M Cost Estimator 4400B'!U$22:U$80)+LOOKUP(((A75*'O&M Cost Estimator 4400B'!F$7)-MOD((A75*'O&M Cost Estimator 4400B'!F$7),4400)),'O&M Cost Estimator 4400B'!P$22:P$80,'O&M Cost Estimator 4400B'!S$22:S$80)+LOOKUP(((A75*'O&M Cost Estimator 4400B'!F$7)-MOD((A75*'O&M Cost Estimator 4400B'!F$7),4400)),'O&M Cost Estimator 4400B'!P$22:P$80,'O&M Cost Estimator 4400B'!U$22:U$80) -> 0 | L76: ='Payback Estimator-4400B'!$C$43*(L75)+L75 -> 46734.6 | M76: 46734.6 | N76: =SUM($M$5:M76) -> 3031829.6 | O76: =IRR($M$5:M76) -> 0.2399468756 | S76: 99998
A77: =A76+1 -> 72 | C77: =-LOOKUP(((A77*'O&M Cost Estimator 4400B'!F$7)-MOD((A77*'O&M Cost Estimator 4400B'!F$7),4400)),'O&M Cost Estimator 4400B'!F$22:F$80,'O&M Cost Estimator 4400B'!I$22:I$80)-LOOKUP(((A77*'O&M Cost Estimator 4400B'!F$7)-MOD((A77*'O&M Cost Estimator 4400B'!F$7),4400)),'O&M Cost Estimator 4400B'!F$22:F$80,'O&M Cost Estimator 4400B'!K$22:K$80)+LOOKUP(((A76*'O&M Cost Estimator 4400B'!F$7)-MOD((A76*'O&M Cost Estimator 4400B'!F$7),4400)),'O&M Cost Estimator 4400B'!F$22:F$80,'O&M Cost Estimator 4400B'!I$22:I$80)+LOOKUP(((A76*'O&M Cost Estimator 4400B'!F$7)-MOD((A76*'O&M Cost Estimator 4400B'!F$7),4400)),'O&M Cost Estimator 4400B'!F$22:F$80,'O&M Cost Estimator 4400B'!K$22:K$80) -> 0 | D77: ='Payback Estimator-4400B'!$B$43*(D76) +D76 -> 46734.6 | E77: 46734.6 | F77: =SUM($E$5:E77) -> 3078564.2 | G77: =IRR($E$5:E77) -> 0.2399468878 | I77: =I76+1 -> 72 | K77: =-LOOKUP(((A77*'O&M Cost Estimator 4400B'!F$7)-MOD((A77*'O&M Cost Estimator 4400B'!F$7),4400)),'O&M Cost Estimator 4400B'!P$22:P$80,'O&M Cost Estimator 4400B'!S$22:S$80)-LOOKUP(((A77*'O&M Cost Estimator 4400B'!F$7)-MOD((A77*'O&M Cost Estimator 4400B'!F$7),4400)),'O&M Cost Estimator 4400B'!P$22:P$80,'O&M Cost Estimator 4400B'!U$22:U$80)+LOOKUP(((A76*'O&M Cost Estimator 4400B'!F$7)-MOD((A76*'O&M Cost Estimator 4400B'!F$7),4400)),'O&M Cost Estimator 4400B'!P$22:P$80,'O&M Cost Estimator 4400B'!S$22:S$80)+LOOKUP(((A76*'O&M Cost Estimator 4400B'!F$7)-MOD((A76*'O&M Cost Estimator 4400B'!F$7),4400)),'O&M Cost Estimator 4400B'!P$22:P$80,'O&M Cost Estimator 4400B'!U$22:U$80) -> 0 | L77: ='Payback Estimator-4400B'!$C$43*(L76)+L76 -> 46734.6 | M77: 46734.6 | N77: =SUM($M$5:M77) -> 3078564.2 | O77: =IRR($M$5:M77) -> 0.2399468878 | S77: 99998
A78: 73 | C78: =-LOOKUP(((A78*'O&M Cost Estimator 4400B'!F$7)-MOD((A78*'O&M Cost Estimator 4400B'!F$7),4400)),'O&M Cost Estimator 4400B'!F$22:F$80,'O&M Cost Estimator 4400B'!I$22:I$80)-LOOKUP(((A78*'O&M Cost Estimator 4400B'!F$7)-MOD((A78*'O&M Cost Estimator 4400B'!F$7),4400)),'O&M Cost Estimator 4400B'!F$22:F$80,'O&M Cost Estimator 4400B'!K$22:K$80)+LOOKUP(((A77*'O&M Cost Estimator 4400B'!F$7)-MOD((A77*'O&M Cost Estimator 4400B'!F$7),4400)),'O&M Cost Estimator 4400B'!F$22:F$80,'O&M Cost Estimator 4400B'!I$22:I$80)+LOOKUP(((A77*'O&M Cost Estimator 4400B'!F$7)-MOD((A77*'O&M Cost Estimator 4400B'!F$7),4400)),'O&M Cost Estimator 4400B'!F$22:F$80,'O&M Cost Estimator 4400B'!K$22:K$80) -> 0 | D78: ='Payback Estimator-4400B'!$B$43*(D77) +D77 -> 46734.6 | E78: 46734.6 | F78: =SUM($E$5:E78) -> 3125298.8 | G78: =IRR($E$5:E78) -> 0.2399468977 | I78: 73 | K78: =-LOOKUP(((A78*'O&M Cost Estimator 4400B'!F$7)-MOD((A78*'O&M Cost Estimator 4400B'!F$7),4400)),'O&M Cost Estimator 4400B'!P$22:P$80,'O&M Cost Estimator 4400B'!S$22:S$80)-LOOKUP(((A78*'O&M Cost Estimator 4400B'!F$7)-MOD((A78*'O&M Cost Estimator 4400B'!F$7),4400)),'O&M Cost Estimator 4400B'!P$22:P$80,'O&M Cost Estimator 4400B'!U$22:U$80)+LOOKUP(((A77*'O&M Cost Estimator 4400B'!F$7)-MOD((A77*'O&M Cost Estimator 4400B'!F$7),4400)),'O&M Cost Estimator 4400B'!P$22:P$80,'O&M Cost Estimator 4400B'!S$22:S$80)+LOOKUP(((A77*'O&M Cost Estimator 4400B'!F$7)-MOD((A77*'O&M Cost Estimator 4400B'!F$7),4400)),'O&M Cost Estimator 4400B'!P$22:P$80,'O&M Cost Estimator 4400B'!U$22:U$80) -> 0 | L78: ='Payback Estimator-4400B'!$C$43*(L77)+L77 -> 46734.6 | M78: 46734.6 | N78: =SUM($M$5:M78) -> 3125298.8 | O78: =IRR($M$5:M78) -> 0.2399468977 | S78: 99998
A79: 74 | C79: =-LOOKUP(((A79*'O&M Cost Estimator 4400B'!F$7)-MOD((A79*'O&M Cost Estimator 4400B'!F$7),4400)),'O&M Cost Estimator 4400B'!F$22:F$80,'O&M Cost Estimator 4400B'!I$22:I$80)-LOOKUP(((A79*'O&M Cost Estimator 4400B'!F$7)-MOD((A79*'O&M Cost Estimator 4400B'!F$7),4400)),'O&M Cost Estimator 4400B'!F$22:F$80,'O&M Cost Estimator 4400B'!K$22:K$80)+LOOKUP(((A78*'O&M Cost Estimator 4400B'!F$7)-MOD((A78*'O&M Cost Estimator 4400B'!F$7),4400)),'O&M Cost Estimator 4400B'!F$22:F$80,'O&M Cost Estimator 4400B'!I$22:I$80)+LOOKUP(((A78*'O&M Cost Estimator 4400B'!F$7)-MOD((A78*'O&M Cost Estimator 4400B'!F$7),4400)),'O&M Cost Estimator 4400B'!F$22:F$80,'O&M Cost Estimator 4400B'!K$22:K$80) -> 0 | D79: ='Payback Estimator-4400B'!$B$43*(D78) +D78 -> 46734.6 | E79: 46734.6 | F79: =SUM($E$5:E79) -> 3172033.4 | G79: =IRR($E$5:E79) -> 0.2399469056 | I79: 74 | K79: =-LOOKUP(((A79*'O&M Cost Estimator 4400B'!F$7)-MOD((A79*'O&M Cost Estimator 4400B'!F$7),4400)),'O&M Cost Estimator 4400B'!P$22:P$80,'O&M Cost Estimator 4400B'!S$22:S$80)-LOOKUP(((A79*'O&M Cost Estimator 4400B'!F$7)-MOD((A79*'O&M Cost Estimator 4400B'!F$7),4400)),'O&M Cost Estimator 4400B'!P$22:P$80,'O&M Cost Estimator 4400B'!U$22:U$80)+LOOKUP(((A78*'O&M Cost Estimator 4400B'!F$7)-MOD((A78*'O&M Cost Estimator 4400B'!F$7),4400)),'O&M Cost Estimator 4400B'!P$22:P$80,'O&M Cost Estimator 4400B'!S$22:S$80)+LOOKUP(((A78*'O&M Cost Estimator 4400B'!F$7)-MOD((A78*'O&M Cost Estimator 4400B'!F$7),4400)),'O&M Cost Estimator 4400B'!P$22:P$80,'O&M Cost Estimator 4400B'!U$22:U$80) -> 0 | L79: ='Payback Estimator-4400B'!$C$43*(L78)+L78 -> 46734.6 | M79: 46734.6 | N79: =SUM($M$5:M79) -> 3172033.4 | O79: =IRR($M$5:M79) -> 0.2399469056 | S79: 99998
A80: 75 | C80: =-LOOKUP(((A80*'O&M Cost Estimator 4400B'!F$7)-MOD((A80*'O&M Cost Estimator 4400B'!F$7),4400)),'O&M Cost Estimator 4400B'!F$22:F$80,'O&M Cost Estimator 4400B'!I$22:I$80)-LOOKUP(((A80*'O&M Cost Estimator 4400B'!F$7)-MOD((A80*'O&M Cost Estimator 4400B'!F$7),4400)),'O&M Cost Estimator 4400B'!F$22:F$80,'O&M Cost Estimator 4400B'!K$22:K$80)+LOOKUP(((A79*'O&M Cost Estimator 4400B'!F$7)-MOD((A79*'O&M Cost Estimator 4400B'!F$7),4400)),'O&M Cost Estimator 4400B'!F$22:F$80,'O&M Cost Estimator 4400B'!I$22:I$80)+LOOKUP(((A79*'O&M Cost Estimator 4400B'!F$7)-MOD((A79*'O&M Cost Estimator 4400B'!F$7),4400)),'O&M Cost Estimator 4400B'!F$22:F$80,'O&M Cost Estimator 4400B'!K$22:K$80) -> 0 | D80: ='Payback Estimator-4400B'!$B$43*(D79) +D79 -> 46734.6 | E80: 46734.6 | F80: =SUM($E$5:E80) -> 3218768 | G80: =IRR($E$5:E80) -> 0.239946912 | I80: 75 | K80: =-LOOKUP(((A80*'O&M Cost Estimator 4400B'!F$7)-MOD((A80*'O&M Cost Estimator 4400B'!F$7),4400)),'O&M Cost Estimator 4400B'!P$22:P$80,'O&M Cost Estimator 4400B'!S$22:S$80)-LOOKUP(((A80*'O&M Cost Estimator 4400B'!F$7)-MOD((A80*'O&M Cost Estimator 4400B'!F$7),4400)),'O&M Cost Estimator 4400B'!P$22:P$80,'O&M Cost Estimator 4400B'!U$22:U$80)+LOOKUP(((A79*'O&M Cost Estimator 4400B'!F$7)-MOD((A79*'O&M Cost Estimator 4400B'!F$7),4400)),'O&M Cost Estimator 4400B'!P$22:P$80,'O&M Cost Estimator 4400B'!S$22:S$80)+LOOKUP(((A79*'O&M Cost Estimator 4400B'!F$7)-MOD((A79*'O&M Cost Estimator 4400B'!F$7),4400)),'O&M Cost Estimator 4400B'!P$22:P$80,'O&M Cost Estimator 4400B'!U$22:U$80) -> 0 | L80: ='Payback Estimator-4400B'!$C$43*(L79)+L79 -> 46734.6 | M80: 46734.6 | N80: =SUM($M$5:M80) -> 3218768 | O80: =IRR($M$5:M80) -> 0.239946912 | S80: 99998
A81: 76 | C81: =-LOOKUP(((A81*'O&M Cost Estimator 4400B'!F$7)-MOD((A81*'O&M Cost Estimator 4400B'!F$7),4400)),'O&M Cost Estimator 4400B'!F$22:F$80,'O&M Cost Estimator 4400B'!I$22:I$80)-LOOKUP(((A81*'O&M Cost Estimator 4400B'!F$7)-MOD((A81*'O&M Cost Estimator 4400B'!F$7),4400)),'O&M Cost Estimator 4400B'!F$22:F$80,'O&M Cost Estimator 4400B'!K$22:K$80)+LOOKUP(((A80*'O&M Cost Estimator 4400B'!F$7)-MOD((A80*'O&M Cost Estimator 4400B'!F$7),4400)),'O&M Cost Estimator 4400B'!F$22:F$80,'O&M Cost Estimator 4400B'!I$22:I$80)+LOOKUP(((A80*'O&M Cost Estimator 4400B'!F$7)-MOD((A80*'O&M Cost Estimator 4400B'!F$7),4400)),'O&M Cost Estimator 4400B'!F$22:F$80,'O&M Cost Estimator 4400B'!K$22:K$80) -> 0 | D81: ='Payback Estimator-4400B'!$B$43*(D80) +D80 -> 46734.6 | E81: 46734.6 | F81: =SUM($E$5:E81) -> 3265502.6 | G81: =IRR($E$5:E81) -> 0.2399469172 | I81: 76 | K81: =-LOOKUP(((A81*'O&M Cost Estimator 4400B'!F$7)-MOD((A81*'O&M Cost Estimator 4400B'!F$7),4400)),'O&M Cost Estimator 4400B'!P$22:P$80,'O&M Cost Estimator 4400B'!S$22:S$80)-LOOKUP(((A81*'O&M Cost Estimator 4400B'!F$7)-MOD((A81*'O&M Cost Estimator 4400B'!F$7),4400)),'O&M Cost Estimator 4400B'!P$22:P$80,'O&M Cost Estimator 4400B'!U$22:U$80)+LOOKUP(((A80*'O&M Cost Estimator 4400B'!F$7)-MOD((A80*'O&M Cost Estimator 4400B'!F$7),4400)),'O&M Cost Estimator 4400B'!P$22:P$80,'O&M Cost Estimator 4400B'!S$22:S$80)+LOOKUP(((A80*'O&M Cost Estimator 4400B'!F$7)-MOD((A80*'O&M Cost Estimator 4400B'!F$7),4400)),'O&M Cost Estimator 4400B'!P$22:P$80,'O&M Cost Estimator 4400B'!U$22:U$80) -> 0 | L81: ='Payback Estimator-4400B'!$C$43*(L80)+L80 -> 46734.6 | M81: 46734.6 | N81: =SUM($M$5:M81) -> 3265502.6 | O81: =IRR($M$5:M81) -> 0.2399469172 | S81: 99998
A82: 77 | C82: =-LOOKUP(((A82*'O&M Cost Estimator 4400B'!F$7)-MOD((A82*'O&M Cost Estimator 4400B'!F$7),4400)),'O&M Cost Estimator 4400B'!F$22:F$80,'O&M Cost Estimator 4400B'!I$22:I$80)-LOOKUP(((A82*'O&M Cost Estimator 4400B'!F$7)-MOD((A82*'O&M Cost Estimator 4400B'!F$7),4400)),'O&M Cost Estimator 4400B'!F$22:F$80,'O&M Cost Estimator 4400B'!K$22:K$80)+LOOKUP(((A81*'O&M Cost Estimator 4400B'!F$7)-MOD((A81*'O&M Cost Estimator 4400B'!F$7),4400)),'O&M Cost Estimator 4400B'!F$22:F$80,'O&M Cost Estimator 4400B'!I$22:I$80)+LOOKUP(((A81*'O&M Cost Estimator 4400B'!F$7)-MOD((A81*'O&M Cost Estimator 4400B'!F$7),4400)),'O&M Cost Estimator 4400B'!F$22:F$80,'O&M Cost Estimator 4400B'!K$22:K$80) -> 0 | D82: ='Payback Estimator-4400B'!$B$43*(D81) +D81 -> 46734.6 | E82: 46734.6 | F82: =SUM($E$5:E82) -> 3312237.2 | G82: =IRR($E$5:E82) -> 0.2399469213 | I82: 77 | K82: =-LOOKUP(((A82*'O&M Cost Estimator 4400B'!F$7)-MOD((A82*'O&M Cost Estimator 4400B'!F$7),4400)),'O&M Cost Estimator 4400B'!P$22:P$80,'O&M Cost Estimator 4400B'!S$22:S$80)-LOOKUP(((A82*'O&M Cost Estimator 4400B'!F$7)-MOD((A82*'O&M Cost Estimator 4400B'!F$7),4400)),'O&M Cost Estimator 4400B'!P$22:P$80,'O&M Cost Estimator 4400B'!U$22:U$80)+LOOKUP(((A81*'O&M Cost Estimator 4400B'!F$7)-MOD((A81*'O&M Cost Estimator 4400B'!F$7),4400)),'O&M Cost Estimator 4400B'!P$22:P$80,'O&M Cost Estimator 4400B'!S$22:S$80)+LOOKUP(((A81*'O&M Cost Estimator 4400B'!F$7)-MOD((A81*'O&M Cost Estimator 4400B'!F$7),4400)),'O&M Cost Estimator 4400B'!P$22:P$80,'O&M Cost Estimator 4400B'!U$22:U$80) -> 0 | L82: ='Payback Estimator-4400B'!$C$43*(L81)+L81 -> 46734.6 | M82: 46734.6 | N82: =SUM($M$5:M82) -> 3312237.2 | O82: =IRR($M$5:M82) -> 0.2399469213 | S82: 99998
A83: 78 | C83: =-LOOKUP(((A83*'O&M Cost Estimator 4400B'!F$7)-MOD((A83*'O&M Cost Estimator 4400B'!F$7),4400)),'O&M Cost Estimator 4400B'!F$22:F$80,'O&M Cost Estimator 4400B'!I$22:I$80)-LOOKUP(((A83*'O&M Cost Estimator 4400B'!F$7)-MOD((A83*'O&M Cost Estimator 4400B'!F$7),4400)),'O&M Cost Estimator 4400B'!F$22:F$80,'O&M Cost Estimator 4400B'!K$22:K$80)+LOOKUP(((A82*'O&M Cost Estimator 4400B'!F$7)-MOD((A82*'O&M Cost Estimator 4400B'!F$7),4400)),'O&M Cost Estimator 4400B'!F$22:F$80,'O&M Cost Estimator 4400B'!I$22:I$80)+LOOKUP(((A82*'O&M Cost Estimator 4400B'!F$7)-MOD((A82*'O&M Cost Estimator 4400B'!F$7),4400)),'O&M Cost Estimator 4400B'!F$22:F$80,'O&M Cost Estimator 4400B'!K$22:K$80) -> 0 | D83: ='Payback Estimator-4400B'!$B$43*(D82) +D82 -> 46734.6 | E83: 46734.6 | F83: =SUM($E$5:E83) -> 3358971.8 | G83: =IRR($E$5:E83) -> 0.2399469247 | I83: 78 | K83: =-LOOKUP(((A83*'O&M Cost Estimator 4400B'!F$7)-MOD((A83*'O&M Cost Estimator 4400B'!F$7),4400)),'O&M Cost Estimator 4400B'!P$22:P$80,'O&M Cost Estimator 4400B'!S$22:S$80)-LOOKUP(((A83*'O&M Cost Estimator 4400B'!F$7)-MOD((A83*'O&M Cost Estimator 4400B'!F$7),4400)),'O&M Cost Estimator 4400B'!P$22:P$80,'O&M Cost Estimator 4400B'!U$22:U$80)+LOOKUP(((A82*'O&M Cost Estimator 4400B'!F$7)-MOD((A82*'O&M Cost Estimator 4400B'!F$7),4400)),'O&M Cost Estimator 4400B'!P$22:P$80,'O&M Cost Estimator 4400B'!S$22:S$80)+LOOKUP(((A82*'O&M Cost Estimator 4400B'!F$7)-MOD((A82*'O&M Cost Estimator 4400B'!F$7),4400)),'O&M Cost Estimator 4400B'!P$22:P$80,'O&M Cost Estimator 4400B'!U$22:U$80) -> 0 | L83: ='Payback Estimator-4400B'!$C$43*(L82)+L82 -> 46734.6 | M83: 46734.6 | N83: =SUM($M$5:M83) -> 3358971.8 | O83: =IRR($M$5:M83) -> 0.2399469247 | S83: 99998
A84: 79 | C84: =-LOOKUP(((A84*'O&M Cost Estimator 4400B'!F$7)-MOD((A84*'O&M Cost Estimator 4400B'!F$7),4400)),'O&M Cost Estimator 4400B'!F$22:F$80,'O&M Cost Estimator 4400B'!I$22:I$80)-LOOKUP(((A84*'O&M Cost Estimator 4400B'!F$7)-MOD((A84*'O&M Cost Estimator 4400B'!F$7),4400)),'O&M Cost Estimator 4400B'!F$22:F$80,'O&M Cost Estimator 4400B'!K$22:K$80)+LOOKUP(((A83*'O&M Cost Estimator 4400B'!F$7)-MOD((A83*'O&M Cost Estimator 4400B'!F$7),4400)),'O&M Cost Estimator 4400B'!F$22:F$80,'O&M Cost Estimator 4400B'!I$22:I$80)+LOOKUP(((A83*'O&M Cost Estimator 4400B'!F$7)-MOD((A83*'O&M Cost Estimator 4400B'!F$7),4400)),'O&M Cost Estimator 4400B'!F$22:F$80,'O&M Cost Estimator 4400B'!K$22:K$80) -> 0 | D84: ='Payback Estimator-4400B'!$B$43*(D83) +D83 -> 46734.6 | E84: 46734.6 | F84: =SUM($E$5:E84) -> 3405706.4 | G84: =IRR($E$5:E84) -> 0.2399469274 | I84: 79 | K84: =-LOOKUP(((A84*'O&M Cost Estimator 4400B'!F$7)-MOD((A84*'O&M Cost Estimator 4400B'!F$7),4400)),'O&M Cost Estimator 4400B'!P$22:P$80,'O&M Cost Estimator 4400B'!S$22:S$80)-LOOKUP(((A84*'O&M Cost Estimator 4400B'!F$7)-MOD((A84*'O&M Cost Estimator 4400B'!F$7),4400)),'O&M Cost Estimator 4400B'!P$22:P$80,'O&M Cost Estimator 4400B'!U$22:U$80)+LOOKUP(((A83*'O&M Cost Estimator 4400B'!F$7)-MOD((A83*'O&M Cost Estimator 4400B'!F$7),4400)),'O&M Cost Estimator 4400B'!P$22:P$80,'O&M Cost Estimator 4400B'!S$22:S$80)+LOOKUP(((A83*'O&M Cost Estimator 4400B'!F$7)-MOD((A83*'O&M Cost Estimator 4400B'!F$7),4400)),'O&M Cost Estimator 4400B'!P$22:P$80,'O&M Cost Estimator 4400B'!U$22:U$80) -> 0 | L84: ='Payback Estimator-4400B'!$C$43*(L83)+L83 -> 46734.6 | M84: 46734.6 | N84: =SUM($M$5:M84) -> 3405706.4 | O84: =IRR($M$5:M84) -> 0.2399469274 | S84: 99998
A85: 80 | C85: =-LOOKUP(((A85*'O&M Cost Estimator 4400B'!F$7)-MOD((A85*'O&M Cost Estimator 4400B'!F$7),4400)),'O&M Cost Estimator 4400B'!F$22:F$80,'O&M Cost Estimator 4400B'!I$22:I$80)-LOOKUP(((A85*'O&M Cost Estimator 4400B'!F$7)-MOD((A85*'O&M Cost Estimator 4400B'!F$7),4400)),'O&M Cost Estimator 4400B'!F$22:F$80,'O&M Cost Estimator 4400B'!K$22:K$80)+LOOKUP(((A84*'O&M Cost Estimator 4400B'!F$7)-MOD((A84*'O&M Cost Estimator 4400B'!F$7),4400)),'O&M Cost Estimator 4400B'!F$22:F$80,'O&M Cost Estimator 4400B'!I$22:I$80)+LOOKUP(((A84*'O&M Cost Estimator 4400B'!F$7)-MOD((A84*'O&M Cost Estimator 4400B'!F$7),4400)),'O&M Cost Estimator 4400B'!F$22:F$80,'O&M Cost Estimator 4400B'!K$22:K$80) -> 0 | D85: ='Payback Estimator-4400B'!$B$43*(D84) +D84 -> 46734.6 | E85: 46734.6 | F85: =SUM($E$5:E85) -> 3452441 | G85: =IRR($E$5:E85) -> 0.2399469296 | I85: 80 | K85: =-LOOKUP(((A85*'O&M Cost Estimator 4400B'!F$7)-MOD((A85*'O&M Cost Estimator 4400B'!F$7),4400)),'O&M Cost Estimator 4400B'!P$22:P$80,'O&M Cost Estimator 4400B'!S$22:S$80)-LOOKUP(((A85*'O&M Cost Estimator 4400B'!F$7)-MOD((A85*'O&M Cost Estimator 4400B'!F$7),4400)),'O&M Cost Estimator 4400B'!P$22:P$80,'O&M Cost Estimator 4400B'!U$22:U$80)+LOOKUP(((A84*'O&M Cost Estimator 4400B'!F$7)-MOD((A84*'O&M Cost Estimator 4400B'!F$7),4400)),'O&M Cost Estimator 4400B'!P$22:P$80,'O&M Cost Estimator 4400B'!S$22:S$80)+LOOKUP(((A84*'O&M Cost Estimator 4400B'!F$7)-MOD((A84*'O&M Cost Estimator 4400B'!F$7),4400)),'O&M Cost Estimator 4400B'!P$22:P$80,'O&M Cost Estimator 4400B'!U$22:U$80) -> 0 | L85: ='Payback Estimator-4400B'!$C$43*(L84)+L84 -> 46734.6 | M85: 46734.6 | N85: =SUM($M$5:M85) -> 3452441 | O85: =IRR($M$5:M85) -> 0.2399469296 | S85: 99998
A86: =A85+1 -> 81 | C86: =-LOOKUP(((A86*'O&M Cost Estimator 4400B'!F$7)-MOD((A86*'O&M Cost Estimator 4400B'!F$7),4400)),'O&M Cost Estimator 4400B'!F$22:F$80,'O&M Cost Estimator 4400B'!I$22:I$80)-LOOKUP(((A86*'O&M Cost Estimator 4400B'!F$7)-MOD((A86*'O&M Cost Estimator 4400B'!F$7),4400)),'O&M Cost Estimator 4400B'!F$22:F$80,'O&M Cost Estimator 4400B'!K$22:K$80)+LOOKUP(((A85*'O&M Cost Estimator 4400B'!F$7)-MOD((A85*'O&M Cost Estimator 4400B'!F$7),4400)),'O&M Cost Estimator 4400B'!F$22:F$80,'O&M Cost Estimator 4400B'!I$22:I$80)+LOOKUP(((A85*'O&M Cost Estimator 4400B'!F$7)-MOD((A85*'O&M Cost Estimator 4400B'!F$7),4400)),'O&M Cost Estimator 4400B'!F$22:F$80,'O&M Cost Estimator 4400B'!K$22:K$80) -> 0 | D86: ='Payback Estimator-4400B'!$B$43*(D85) +D85 -> 46734.6 | E86: 46734.6 | F86: =SUM($E$5:E86) -> 3499175.6 | G86: =IRR($E$5:E86) -> 0.2399469313 | I86: =I85+1 -> 81 | K86: =-LOOKUP(((A86*'O&M Cost Estimator 4400B'!F$7)-MOD((A86*'O&M Cost Estimator 4400B'!F$7),4400)),'O&M Cost Estimator 4400B'!P$22:P$80,'O&M Cost Estimator 4400B'!S$22:S$80)-LOOKUP(((A86*'O&M Cost Estimator 4400B'!F$7)-MOD((A86*'O&M Cost Estimator 4400B'!F$7),4400)),'O&M Cost Estimator 4400B'!P$22:P$80,'O&M Cost Estimator 4400B'!U$22:U$80)+LOOKUP(((A85*'O&M Cost Estimator 4400B'!F$7)-MOD((A85*'O&M Cost Estimator 4400B'!F$7),4400)),'O&M Cost Estimator 4400B'!P$22:P$80,'O&M Cost Estimator 4400B'!S$22:S$80)+LOOKUP(((A85*'O&M Cost Estimator 4400B'!F$7)-MOD((A85*'O&M Cost Estimator 4400B'!F$7),4400)),'O&M Cost Estimator 4400B'!P$22:P$80,'O&M Cost Estimator 4400B'!U$22:U$80) -> 0 | L86: ='Payback Estimator-4400B'!$C$43*(L85)+L85 -> 46734.6 | M86: 46734.6 | N86: =SUM($M$5:M86) -> 3499175.6 | O86: =IRR($M$5:M86) -> 0.2399469313 | S86: 99998
A87: =A86+1 -> 82 | C87: =-LOOKUP(((A87*'O&M Cost Estimator 4400B'!F$7)-MOD((A87*'O&M Cost Estimator 4400B'!F$7),4400)),'O&M Cost Estimator 4400B'!F$22:F$80,'O&M Cost Estimator 4400B'!I$22:I$80)-LOOKUP(((A87*'O&M Cost Estimator 4400B'!F$7)-MOD((A87*'O&M Cost Estimator 4400B'!F$7),4400)),'O&M Cost Estimator 4400B'!F$22:F$80,'O&M Cost Estimator 4400B'!K$22:K$80)+LOOKUP(((A86*'O&M Cost Estimator 4400B'!F$7)-MOD((A86*'O&M Cost Estimator 4400B'!F$7),4400)),'O&M Cost Estimator 4400B'!F$22:F$80,'O&M Cost Estimator 4400B'!I$22:I$80)+LOOKUP(((A86*'O&M Cost Estimator 4400B'!F$7)-MOD((A86*'O&M Cost Estimator 4400B'!F$7),4400)),'O&M Cost Estimator 4400B'!F$22:F$80,'O&M Cost Estimator 4400B'!K$22:K$80) -> 0 | D87: ='Payback Estimator-4400B'!$B$43*(D86) +D86 -> 46734.6 | E87: 46734.6 | F87: =SUM($E$5:E87) -> 3545910.2 | G87: =IRR($E$5:E87) -> 0.2399469328 | I87: =I86+1 -> 82 | K87: =-LOOKUP(((A87*'O&M Cost Estimator 4400B'!F$7)-MOD((A87*'O&M Cost Estimator 4400B'!F$7),4400)),'O&M Cost Estimator 4400B'!P$22:P$80,'O&M Cost Estimator 4400B'!S$22:S$80)-LOOKUP(((A87*'O&M Cost Estimator 4400B'!F$7)-MOD((A87*'O&M Cost Estimator 4400B'!F$7),4400)),'O&M Cost Estimator 4400B'!P$22:P$80,'O&M Cost Estimator 4400B'!U$22:U$80)+LOOKUP(((A86*'O&M Cost Estimator 4400B'!F$7)-MOD((A86*'O&M Cost Estimator 4400B'!F$7),4400)),'O&M Cost Estimator 4400B'!P$22:P$80,'O&M Cost Estimator 4400B'!S$22:S$80)+LOOKUP(((A86*'O&M Cost Estimator 4400B'!F$7)-MOD((A86*'O&M Cost Estimator 4400B'!F$7),4400)),'O&M Cost Estimator 4400B'!P$22:P$80,'O&M Cost Estimator 4400B'!U$22:U$80) -> 0 | L87: ='Payback Estimator-4400B'!$C$43*(L86)+L86 -> 46734.6 | M87: 46734.6 | N87: =SUM($M$5:M87) -> 3545910.2 | O87: =IRR($M$5:M87) -> 0.2399469328 | S87: 99998
A88: 83 | C88: =-LOOKUP(((A88*'O&M Cost Estimator 4400B'!F$7)-MOD((A88*'O&M Cost Estimator 4400B'!F$7),4400)),'O&M Cost Estimator 4400B'!F$22:F$80,'O&M Cost Estimator 4400B'!I$22:I$80)-LOOKUP(((A88*'O&M Cost Estimator 4400B'!F$7)-MOD((A88*'O&M Cost Estimator 4400B'!F$7),4400)),'O&M Cost Estimator 4400B'!F$22:F$80,'O&M Cost Estimator 4400B'!K$22:K$80)+LOOKUP(((A87*'O&M Cost Estimator 4400B'!F$7)-MOD((A87*'O&M Cost Estimator 4400B'!F$7),4400)),'O&M Cost Estimator 4400B'!F$22:F$80,'O&M Cost Estimator 4400B'!I$22:I$80)+LOOKUP(((A87*'O&M Cost Estimator 4400B'!F$7)-MOD((A87*'O&M Cost Estimator 4400B'!F$7),4400)),'O&M Cost Estimator 4400B'!F$22:F$80,'O&M Cost Estimator 4400B'!K$22:K$80) -> 0 | D88: ='Payback Estimator-4400B'!$B$43*(D87) +D87 -> 46734.6 | E88: 46734.6 | F88: =SUM($E$5:E88) -> 3592644.8 | G88: =IRR($E$5:E88) -> 0.2399469339 | I88: 83 | K88: =-LOOKUP(((A88*'O&M Cost Estimator 4400B'!F$7)-MOD((A88*'O&M Cost Estimator 4400B'!F$7),4400)),'O&M Cost Estimator 4400B'!P$22:P$80,'O&M Cost Estimator 4400B'!S$22:S$80)-LOOKUP(((A88*'O&M Cost Estimator 4400B'!F$7)-MOD((A88*'O&M Cost Estimator 4400B'!F$7),4400)),'O&M Cost Estimator 4400B'!P$22:P$80,'O&M Cost Estimator 4400B'!U$22:U$80)+LOOKUP(((A87*'O&M Cost Estimator 4400B'!F$7)-MOD((A87*'O&M Cost Estimator 4400B'!F$7),4400)),'O&M Cost Estimator 4400B'!P$22:P$80,'O&M Cost Estimator 4400B'!S$22:S$80)+LOOKUP(((A87*'O&M Cost Estimator 4400B'!F$7)-MOD((A87*'O&M Cost Estimator 4400B'!F$7),4400)),'O&M Cost Estimator 4400B'!P$22:P$80,'O&M Cost Estimator 4400B'!U$22:U$80) -> 0 | L88: ='Payback Estimator-4400B'!$C$43*(L87)+L87 -> 46734.6 | M88: 46734.6 | N88: =SUM($M$5:M88) -> 3592644.8 | O88: =IRR($M$5:M88) -> 0.2399469339 | S88: 99998
A89: 84 | C89: =-LOOKUP(((A89*'O&M Cost Estimator 4400B'!F$7)-MOD((A89*'O&M Cost Estimator 4400B'!F$7),4400)),'O&M Cost Estimator 4400B'!F$22:F$80,'O&M Cost Estimator 4400B'!I$22:I$80)-LOOKUP(((A89*'O&M Cost Estimator 4400B'!F$7)-MOD((A89*'O&M Cost Estimator 4400B'!F$7),4400)),'O&M Cost Estimator 4400B'!F$22:F$80,'O&M Cost Estimator 4400B'!K$22:K$80)+LOOKUP(((A88*'O&M Cost Estimator 4400B'!F$7)-MOD((A88*'O&M Cost Estimator 4400B'!F$7),4400)),'O&M Cost Estimator 4400B'!F$22:F$80,'O&M Cost Estimator 4400B'!I$22:I$80)+LOOKUP(((A88*'O&M Cost Estimator 4400B'!F$7)-MOD((A88*'O&M Cost Estimator 4400B'!F$7),4400)),'O&M Cost Estimator 4400B'!F$22:F$80,'O&M Cost Estimator 4400B'!K$22:K$80) -> 0 | D89: ='Payback Estimator-4400B'!$B$43*(D88) +D88 -> 46734.6 | E89: 46734.6 | F89: =SUM($E$5:E89) -> 3639379.4 | G89: =IRR($E$5:E89) -> 0.2399469348 | I89: 84 | K89: =-LOOKUP(((A89*'O&M Cost Estimator 4400B'!F$7)-MOD((A89*'O&M Cost Estimator 4400B'!F$7),4400)),'O&M Cost Estimator 4400B'!P$22:P$80,'O&M Cost Estimator 4400B'!S$22:S$80)-LOOKUP(((A89*'O&M Cost Estimator 4400B'!F$7)-MOD((A89*'O&M Cost Estimator 4400B'!F$7),4400)),'O&M Cost Estimator 4400B'!P$22:P$80,'O&M Cost Estimator 4400B'!U$22:U$80)+LOOKUP(((A88*'O&M Cost Estimator 4400B'!F$7)-MOD((A88*'O&M Cost Estimator 4400B'!F$7),4400)),'O&M Cost Estimator 4400B'!P$22:P$80,'O&M Cost Estimator 4400B'!S$22:S$80)+LOOKUP(((A88*'O&M Cost Estimator 4400B'!F$7)-MOD((A88*'O&M Cost Estimator 4400B'!F$7),4400)),'O&M Cost Estimator 4400B'!P$22:P$80,'O&M Cost Estimator 4400B'!U$22:U$80) -> 0 | L89: ='Payback Estimator-4400B'!$C$43*(L88)+L88 -> 46734.6 | M89: 46734.6 | N89: =SUM($M$5:M89) -> 3639379.4 | O89: =IRR($M$5:M89) -> 0.2399469348 | S89: 99998
A90: 85 | C90: =-LOOKUP(((A90*'O&M Cost Estimator 4400B'!F$7)-MOD((A90*'O&M Cost Estimator 4400B'!F$7),4400)),'O&M Cost Estimator 4400B'!F$22:F$80,'O&M Cost Estimator 4400B'!I$22:I$80)-LOOKUP(((A90*'O&M Cost Estimator 4400B'!F$7)-MOD((A90*'O&M Cost Estimator 4400B'!F$7),4400)),'O&M Cost Estimator 4400B'!F$22:F$80,'O&M Cost Estimator 4400B'!K$22:K$80)+LOOKUP(((A89*'O&M Cost Estimator 4400B'!F$7)-MOD((A89*'O&M Cost Estimator 4400B'!F$7),4400)),'O&M Cost Estimator 4400B'!F$22:F$80,'O&M Cost Estimator 4400B'!I$22:I$80)+LOOKUP(((A89*'O&M Cost Estimator 4400B'!F$7)-MOD((A89*'O&M Cost Estimator 4400B'!F$7),4400)),'O&M Cost Estimator 4400B'!F$22:F$80,'O&M Cost Estimator 4400B'!K$22:K$80) -> 0 | D90: ='Payback Estimator-4400B'!$B$43*(D89) +D89 -> 46734.6 | E90: 46734.6 | F90: =SUM($E$5:E90) -> 3686114 | G90: =IRR($E$5:E90) -> 0.2399469356 | I90: 85 | K90: =-LOOKUP(((A90*'O&M Cost Estimator 4400B'!F$7)-MOD((A90*'O&M Cost Estimator 4400B'!F$7),4400)),'O&M Cost Estimator 4400B'!P$22:P$80,'O&M Cost Estimator 4400B'!S$22:S$80)-LOOKUP(((A90*'O&M Cost Estimator 4400B'!F$7)-MOD((A90*'O&M Cost Estimator 4400B'!F$7),4400)),'O&M Cost Estimator 4400B'!P$22:P$80,'O&M Cost Estimator 4400B'!U$22:U$80)+LOOKUP(((A89*'O&M Cost Estimator 4400B'!F$7)-MOD((A89*'O&M Cost Estimator 4400B'!F$7),4400)),'O&M Cost Estimator 4400B'!P$22:P$80,'O&M Cost Estimator 4400B'!S$22:S$80)+LOOKUP(((A89*'O&M Cost Estimator 4400B'!F$7)-MOD((A89*'O&M Cost Estimator 4400B'!F$7),4400)),'O&M Cost Estimator 4400B'!P$22:P$80,'O&M Cost Estimator 4400B'!U$22:U$80) -> 0 | L90: ='Payback Estimator-4400B'!$C$43*(L89)+L89 -> 46734.6 | M90: 46734.6 | N90: =SUM($M$5:M90) -> 3686114 | O90: =IRR($M$5:M90) -> 0.2399469356 | S90: 99998
A91: 86 | C91: =-LOOKUP(((A91*'O&M Cost Estimator 4400B'!F$7)-MOD((A91*'O&M Cost Estimator 4400B'!F$7),4400)),'O&M Cost Estimator 4400B'!F$22:F$80,'O&M Cost Estimator 4400B'!I$22:I$80)-LOOKUP(((A91*'O&M Cost Estimator 4400B'!F$7)-MOD((A91*'O&M Cost Estimator 4400B'!F$7),4400)),'O&M Cost Estimator 4400B'!F$22:F$80,'O&M Cost Estimator 4400B'!K$22:K$80)+LOOKUP(((A90*'O&M Cost Estimator 4400B'!F$7)-MOD((A90*'O&M Cost Estimator 4400B'!F$7),4400)),'O&M Cost Estimator 4400B'!F$22:F$80,'O&M Cost Estimator 4400B'!I$22:I$80)+LOOKUP(((A90*'O&M Cost Estimator 4400B'!F$7)-MOD((A90*'O&M Cost Estimator 4400B'!F$7),4400)),'O&M Cost Estimator 4400B'!F$22:F$80,'O&M Cost Estimator 4400B'!K$22:K$80) -> 0 | D91: ='Payback Estimator-4400B'!$B$43*(D90) +D90 -> 46734.6 | E91: 46734.6 | F91: =SUM($E$5:E91) -> 3732848.6 | G91: =IRR($E$5:E91) -> 0.2399469362 | I91: 86 | K91: =-LOOKUP(((A91*'O&M Cost Estimator 4400B'!F$7)-MOD((A91*'O&M Cost Estimator 4400B'!F$7),4400)),'O&M Cost Estimator 4400B'!P$22:P$80,'O&M Cost Estimator 4400B'!S$22:S$80)-LOOKUP(((A91*'O&M Cost Estimator 4400B'!F$7)-MOD((A91*'O&M Cost Estimator 4400B'!F$7),4400)),'O&M Cost Estimator 4400B'!P$22:P$80,'O&M Cost Estimator 4400B'!U$22:U$80)+LOOKUP(((A90*'O&M Cost Estimator 4400B'!F$7)-MOD((A90*'O&M Cost Estimator 4400B'!F$7),4400)),'O&M Cost Estimator 4400B'!P$22:P$80,'O&M Cost Estimator 4400B'!S$22:S$80)+LOOKUP(((A90*'O&M Cost Estimator 4400B'!F$7)-MOD((A90*'O&M Cost Estimator 4400B'!F$7),4400)),'O&M Cost Estimator 4400B'!P$22:P$80,'O&M Cost Estimator 4400B'!U$22:U$80) -> 0 | L91: ='Payback Estimator-4400B'!$C$43*(L90)+L90 -> 46734.6 | M91: 46734.6 | N91: =SUM($M$5:M91) -> 3732848.6 | O91: =IRR($M$5:M91) -> 0.2399469362 | S91: 99998
A92: 87 | C92: =-LOOKUP(((A92*'O&M Cost Estimator 4400B'!F$7)-MOD((A92*'O&M Cost Estimator 4400B'!F$7),4400)),'O&M Cost Estimator 4400B'!F$22:F$80,'O&M Cost Estimator 4400B'!I$22:I$80)-LOOKUP(((A92*'O&M Cost Estimator 4400B'!F$7)-MOD((A92*'O&M Cost Estimator 4400B'!F$7),4400)),'O&M Cost Estimator 4400B'!F$22:F$80,'O&M Cost Estimator 4400B'!K$22:K$80)+LOOKUP(((A91*'O&M Cost Estimator 4400B'!F$7)-MOD((A91*'O&M Cost Estimator 4400B'!F$7),4400)),'O&M Cost Estimator 4400B'!F$22:F$80,'O&M Cost Estimator 4400B'!I$22:I$80)+LOOKUP(((A91*'O&M Cost Estimator 4400B'!F$7)-MOD((A91*'O&M Cost Estimator 4400B'!F$7),4400)),'O&M Cost Estimator 4400B'!F$22:F$80,'O&M Cost Estimator 4400B'!K$22:K$80) -> 0 | D92: ='Payback Estimator-4400B'!$B$43*(D91) +D91 -> 46734.6 | E92: 46734.6 | F92: =SUM($E$5:E92) -> 3779583.2 | G92: =IRR($E$5:E92) -> 0.2399469367 | I92: 87 | K92: =-LOOKUP(((A92*'O&M Cost Estimator 4400B'!F$7)-MOD((A92*'O&M Cost Estimator 4400B'!F$7),4400)),'O&M Cost Estimator 4400B'!P$22:P$80,'O&M Cost Estimator 4400B'!S$22:S$80)-LOOKUP(((A92*'O&M Cost Estimator 4400B'!F$7)-MOD((A92*'O&M Cost Estimator 4400B'!F$7),4400)),'O&M Cost Estimator 4400B'!P$22:P$80,'O&M Cost Estimator 4400B'!U$22:U$80)+LOOKUP(((A91*'O&M Cost Estimator 4400B'!F$7)-MOD((A91*'O&M Cost Estimator 4400B'!F$7),4400)),'O&M Cost Estimator 4400B'!P$22:P$80,'O&M Cost Estimator 4400B'!S$22:S$80)+LOOKUP(((A91*'O&M Cost Estimator 4400B'!F$7)-MOD((A91*'O&M Cost Estimator 4400B'!F$7),4400)),'O&M Cost Estimator 4400B'!P$22:P$80,'O&M Cost Estimator 4400B'!U$22:U$80) -> 0 | L92: ='Payback Estimator-4400B'!$C$43*(L91)+L91 -> 46734.6 | M92: 46734.6 | N92: =SUM($M$5:M92) -> 3779583.2 | O92: =IRR($M$5:M92) -> 0.2399469367 | S92: 99998
A93: 88 | C93: =-LOOKUP(((A93*'O&M Cost Estimator 4400B'!F$7)-MOD((A93*'O&M Cost Estimator 4400B'!F$7),4400)),'O&M Cost Estimator 4400B'!F$22:F$80,'O&M Cost Estimator 4400B'!I$22:I$80)-LOOKUP(((A93*'O&M Cost Estimator 4400B'!F$7)-MOD((A93*'O&M Cost Estimator 4400B'!F$7),4400)),'O&M Cost Estimator 4400B'!F$22:F$80,'O&M Cost Estimator 4400B'!K$22:K$80)+LOOKUP(((A92*'O&M Cost Estimator 4400B'!F$7)-MOD((A92*'O&M Cost Estimator 4400B'!F$7),4400)),'O&M Cost Estimator 4400B'!F$22:F$80,'O&M Cost Estimator 4400B'!I$22:I$80)+LOOKUP(((A92*'O&M Cost Estimator 4400B'!F$7)-MOD((A92*'O&M Cost Estimator 4400B'!F$7),4400)),'O&M Cost Estimator 4400B'!F$22:F$80,'O&M Cost Estimator 4400B'!K$22:K$80) -> 0 | D93: ='Payback Estimator-4400B'!$B$43*(D92) +D92 -> 46734.6 | E93: 46734.6 | F93: =SUM($E$5:E93) -> 3826317.8 | G93: =IRR($E$5:E93) -> 0.2399469371 | I93: 88 | K93: =-LOOKUP(((A93*'O&M Cost Estimator 4400B'!F$7)-MOD((A93*'O&M Cost Estimator 4400B'!F$7),4400)),'O&M Cost Estimator 4400B'!P$22:P$80,'O&M Cost Estimator 4400B'!S$22:S$80)-LOOKUP(((A93*'O&M Cost Estimator 4400B'!F$7)-MOD((A93*'O&M Cost Estimator 4400B'!F$7),4400)),'O&M Cost Estimator 4400B'!P$22:P$80,'O&M Cost Estimator 4400B'!U$22:U$80)+LOOKUP(((A92*'O&M Cost Estimator 4400B'!F$7)-MOD((A92*'O&M Cost Estimator 4400B'!F$7),4400)),'O&M Cost Estimator 4400B'!P$22:P$80,'O&M Cost Estimator 4400B'!S$22:S$80)+LOOKUP(((A92*'O&M Cost Estimator 4400B'!F$7)-MOD((A92*'O&M Cost Estimator 4400B'!F$7),4400)),'O&M Cost Estimator 4400B'!P$22:P$80,'O&M Cost Estimator 4400B'!U$22:U$80) -> 0 | L93: ='Payback Estimator-4400B'!$C$43*(L92)+L92 -> 46734.6 | M93: 46734.6 | N93: =SUM($M$5:M93) -> 3826317.8 | O93: =IRR($M$5:M93) -> 0.2399469371 | S93: 99998
A94: 89 | C94: =-LOOKUP(((A94*'O&M Cost Estimator 4400B'!F$7)-MOD((A94*'O&M Cost Estimator 4400B'!F$7),4400)),'O&M Cost Estimator 4400B'!F$22:F$80,'O&M Cost Estimator 4400B'!I$22:I$80)-LOOKUP(((A94*'O&M Cost Estimator 4400B'!F$7)-MOD((A94*'O&M Cost Estimator 4400B'!F$7),4400)),'O&M Cost Estimator 4400B'!F$22:F$80,'O&M Cost Estimator 4400B'!K$22:K$80)+LOOKUP(((A93*'O&M Cost Estimator 4400B'!F$7)-MOD((A93*'O&M Cost Estimator 4400B'!F$7),4400)),'O&M Cost Estimator 4400B'!F$22:F$80,'O&M Cost Estimator 4400B'!I$22:I$80)+LOOKUP(((A93*'O&M Cost Estimator 4400B'!F$7)-MOD((A93*'O&M Cost Estimator 4400B'!F$7),4400)),'O&M Cost Estimator 4400B'!F$22:F$80,'O&M Cost Estimator 4400B'!K$22:K$80) -> 0 | D94: ='Payback Estimator-4400B'!$B$43*(D93) +D93 -> 46734.6 | E94: 46734.6 | F94: =SUM($E$5:E94) -> 3873052.4 | G94: =IRR($E$5:E94) -> 0.2399469374 | I94: 89 | K94: =-LOOKUP(((A94*'O&M Cost Estimator 4400B'!F$7)-MOD((A94*'O&M Cost Estimator 4400B'!F$7),4400)),'O&M Cost Estimator 4400B'!P$22:P$80,'O&M Cost Estimator 4400B'!S$22:S$80)-LOOKUP(((A94*'O&M Cost Estimator 4400B'!F$7)-MOD((A94*'O&M Cost Estimator 4400B'!F$7),4400)),'O&M Cost Estimator 4400B'!P$22:P$80,'O&M Cost Estimator 4400B'!U$22:U$80)+LOOKUP(((A93*'O&M Cost Estimator 4400B'!F$7)-MOD((A93*'O&M Cost Estimator 4400B'!F$7),4400)),'O&M Cost Estimator 4400B'!P$22:P$80,'O&M Cost Estimator 4400B'!S$22:S$80)+LOOKUP(((A93*'O&M Cost Estimator 4400B'!F$7)-MOD((A93*'O&M Cost Estimator 4400B'!F$7),4400)),'O&M Cost Estimator 4400B'!P$22:P$80,'O&M Cost Estimator 4400B'!U$22:U$80) -> 0 | L94: ='Payback Estimator-4400B'!$C$43*(L93)+L93 -> 46734.6 | M94: 46734.6 | N94: =SUM($M$5:M94) -> 3873052.4 | O94: =IRR($M$5:M94) -> 0.2399469374 | S94: 99998
A95: 90 | C95: =-LOOKUP(((A95*'O&M Cost Estimator 4400B'!F$7)-MOD((A95*'O&M Cost Estimator 4400B'!F$7),4400)),'O&M Cost Estimator 4400B'!F$22:F$80,'O&M Cost Estimator 4400B'!I$22:I$80)-LOOKUP(((A95*'O&M Cost Estimator 4400B'!F$7)-MOD((A95*'O&M Cost Estimator 4400B'!F$7),4400)),'O&M Cost Estimator 4400B'!F$22:F$80,'O&M Cost Estimator 4400B'!K$22:K$80)+LOOKUP(((A94*'O&M Cost Estimator 4400B'!F$7)-MOD((A94*'O&M Cost Estimator 4400B'!F$7),4400)),'O&M Cost Estimator 4400B'!F$22:F$80,'O&M Cost Estimator 4400B'!I$22:I$80)+LOOKUP(((A94*'O&M Cost Estimator 4400B'!F$7)-MOD((A94*'O&M Cost Estimator 4400B'!F$7),4400)),'O&M Cost Estimator 4400B'!F$22:F$80,'O&M Cost Estimator 4400B'!K$22:K$80) -> 0 | D95: ='Payback Estimator-4400B'!$B$43*(D94) +D94 -> 46734.6 | E95: 46734.6 | F95: =SUM($E$5:E95) -> 3919787 | G95: =IRR($E$5:E95) -> 0.2399469376 | I95: 90 | K95: =-LOOKUP(((A95*'O&M Cost Estimator 4400B'!F$7)-MOD((A95*'O&M Cost Estimator 4400B'!F$7),4400)),'O&M Cost Estimator 4400B'!P$22:P$80,'O&M Cost Estimator 4400B'!S$22:S$80)-LOOKUP(((A95*'O&M Cost Estimator 4400B'!F$7)-MOD((A95*'O&M Cost Estimator 4400B'!F$7),4400)),'O&M Cost Estimator 4400B'!P$22:P$80,'O&M Cost Estimator 4400B'!U$22:U$80)+LOOKUP(((A94*'O&M Cost Estimator 4400B'!F$7)-MOD((A94*'O&M Cost Estimator 4400B'!F$7),4400)),'O&M Cost Estimator 4400B'!P$22:P$80,'O&M Cost Estimator 4400B'!S$22:S$80)+LOOKUP(((A94*'O&M Cost Estimator 4400B'!F$7)-MOD((A94*'O&M Cost Estimator 4400B'!F$7),4400)),'O&M Cost Estimator 4400B'!P$22:P$80,'O&M Cost Estimator 4400B'!U$22:U$80) -> 0 | L95: ='Payback Estimator-4400B'!$C$43*(L94)+L94 -> 46734.6 | M95: 46734.6 | N95: =SUM($M$5:M95) -> 3919787 | O95: =IRR($M$5:M95) -> 0.2399469376 | S95: 99998
A96: =A95+1 -> 91 | C96: =-LOOKUP(((A96*'O&M Cost Estimator 4400B'!F$7)-MOD((A96*'O&M Cost Estimator 4400B'!F$7),4400)),'O&M Cost Estimator 4400B'!F$22:F$80,'O&M Cost Estimator 4400B'!I$22:I$80)-LOOKUP(((A96*'O&M Cost Estimator 4400B'!F$7)-MOD((A96*'O&M Cost Estimator 4400B'!F$7),4400)),'O&M Cost Estimator 4400B'!F$22:F$80,'O&M Cost Estimator 4400B'!K$22:K$80)+LOOKUP(((A95*'O&M Cost Estimator 4400B'!F$7)-MOD((A95*'O&M Cost Estimator 4400B'!F$7),4400)),'O&M Cost Estimator 4400B'!F$22:F$80,'O&M Cost Estimator 4400B'!I$22:I$80)+LOOKUP(((A95*'O&M Cost Estimator 4400B'!F$7)-MOD((A95*'O&M Cost Estimator 4400B'!F$7),4400)),'O&M Cost Estimator 4400B'!F$22:F$80,'O&M Cost Estimator 4400B'!K$22:K$80) -> 0 | D96: ='Payback Estimator-4400B'!$B$43*(D95) +D95 -> 46734.6 | E96: =C96+D96 -> 46734.6 | F96: =SUM($E$5:E96) -> 3966521.6 | G96: =IRR($E$5:E96) -> 0.2399469378 | I96: =I95+1 -> 91 | K96: =-LOOKUP(((A96*'O&M Cost Estimator 4400B'!F$7)-MOD((A96*'O&M Cost Estimator 4400B'!F$7),4400)),'O&M Cost Estimator 4400B'!P$22:P$80,'O&M Cost Estimator 4400B'!S$22:S$80)-LOOKUP(((A96*'O&M Cost Estimator 4400B'!F$7)-MOD((A96*'O&M Cost Estimator 4400B'!F$7),4400)),'O&M Cost Estimator 4400B'!P$22:P$80,'O&M Cost Estimator 4400B'!U$22:U$80)+LOOKUP(((A95*'O&M Cost Estimator 4400B'!F$7)-MOD((A95*'O&M Cost Estimator 4400B'!F$7),4400)),'O&M Cost Estimator 4400B'!P$22:P$80,'O&M Cost Estimator 4400B'!S$22:S$80)+LOOKUP(((A95*'O&M Cost Estimator 4400B'!F$7)-MOD((A95*'O&M Cost Estimator 4400B'!F$7),4400)),'O&M Cost Estimator 4400B'!P$22:P$80,'O&M Cost Estimator 4400B'!U$22:U$80) -> 0 | L96: ='Payback Estimator-4400B'!$C$43*(L95)+L95 -> 46734.6 | M96: =K96+L96 -> 46734.6 | N96: =SUM($M$5:M96) -> 3966521.6 | O96: =IRR($M$5:M96) -> 0.2399469378 | S96: =IF(S95=99999,IF(F96>=0,A96-F96/E96,99999),99998) -> 99998
A97: =A96+1 -> 92 | C97: =-LOOKUP(((A97*'O&M Cost Estimator 4400B'!F$7)-MOD((A97*'O&M Cost Estimator 4400B'!F$7),4400)),'O&M Cost Estimator 4400B'!F$22:F$80,'O&M Cost Estimator 4400B'!I$22:I$80)-LOOKUP(((A97*'O&M Cost Estimator 4400B'!F$7)-MOD((A97*'O&M Cost Estimator 4400B'!F$7),4400)),'O&M Cost Estimator 4400B'!F$22:F$80,'O&M Cost Estimator 4400B'!K$22:K$80)+LOOKUP(((A96*'O&M Cost Estimator 4400B'!F$7)-MOD((A96*'O&M Cost Estimator 4400B'!F$7),4400)),'O&M Cost Estimator 4400B'!F$22:F$80,'O&M Cost Estimator 4400B'!I$22:I$80)+LOOKUP(((A96*'O&M Cost Estimator 4400B'!F$7)-MOD((A96*'O&M Cost Estimator 4400B'!F$7),4400)),'O&M Cost Estimator 4400B'!F$22:F$80,'O&M Cost Estimator 4400B'!K$22:K$80) -> 0 | D97: ='Payback Estimator-4400B'!$B$43*(D96) +D96 -> 46734.6 | E97: 46734.6 | F97: =SUM($E$5:E97) -> 4013256.2 | G97: =IRR($E$5:E97) -> 0.239946938 | I97: =I96+1 -> 92 | K97: =-LOOKUP(((A97*'O&M Cost Estimator 4400B'!F$7)-MOD((A97*'O&M Cost Estimator 4400B'!F$7),4400)),'O&M Cost Estimator 4400B'!P$22:P$80,'O&M Cost Estimator 4400B'!S$22:S$80)-LOOKUP(((A97*'O&M Cost Estimator 4400B'!F$7)-MOD((A97*'O&M Cost Estimator 4400B'!F$7),4400)),'O&M Cost Estimator 4400B'!P$22:P$80,'O&M Cost Estimator 4400B'!U$22:U$80)+LOOKUP(((A96*'O&M Cost Estimator 4400B'!F$7)-MOD((A96*'O&M Cost Estimator 4400B'!F$7),4400)),'O&M Cost Estimator 4400B'!P$22:P$80,'O&M Cost Estimator 4400B'!S$22:S$80)+LOOKUP(((A96*'O&M Cost Estimator 4400B'!F$7)-MOD((A96*'O&M Cost Estimator 4400B'!F$7),4400)),'O&M Cost Estimator 4400B'!P$22:P$80,'O&M Cost Estimator 4400B'!U$22:U$80) -> 0 | L97: ='Payback Estimator-4400B'!$C$43*(L96)+L96 -> 46734.6 | M97: 46734.6 | N97: =SUM($M$5:M97) -> 4013256.2 | O97: =IRR($M$5:M97) -> 0.239946938 | S97: 99998
A98: 93 | C98: =-LOOKUP(((A98*'O&M Cost Estimator 4400B'!F$7)-MOD((A98*'O&M Cost Estimator 4400B'!F$7),4400)),'O&M Cost Estimator 4400B'!F$22:F$80,'O&M Cost Estimator 4400B'!I$22:I$80)-LOOKUP(((A98*'O&M Cost Estimator 4400B'!F$7)-MOD((A98*'O&M Cost Estimator 4400B'!F$7),4400)),'O&M Cost Estimator 4400B'!F$22:F$80,'O&M Cost Estimator 4400B'!K$22:K$80)+LOOKUP(((A97*'O&M Cost Estimator 4400B'!F$7)-MOD((A97*'O&M Cost Estimator 4400B'!F$7),4400)),'O&M Cost Estimator 4400B'!F$22:F$80,'O&M Cost Estimator 4400B'!I$22:I$80)+LOOKUP(((A97*'O&M Cost Estimator 4400B'!F$7)-MOD((A97*'O&M Cost Estimator 4400B'!F$7),4400)),'O&M Cost Estimator 4400B'!F$22:F$80,'O&M Cost Estimator 4400B'!K$22:K$80) -> 0 | D98: ='Payback Estimator-4400B'!$B$43*(D97) +D97 -> 46734.6 | E98: 46734.6 | F98: =SUM($E$5:E98) -> 4059990.8 | G98: =IRR($E$5:E98) -> 0.2399469381 | I98: 93 | K98: =-LOOKUP(((A98*'O&M Cost Estimator 4400B'!F$7)-MOD((A98*'O&M Cost Estimator 4400B'!F$7),4400)),'O&M Cost Estimator 4400B'!P$22:P$80,'O&M Cost Estimator 4400B'!S$22:S$80)-LOOKUP(((A98*'O&M Cost Estimator 4400B'!F$7)-MOD((A98*'O&M Cost Estimator 4400B'!F$7),4400)),'O&M Cost Estimator 4400B'!P$22:P$80,'O&M Cost Estimator 4400B'!U$22:U$80)+LOOKUP(((A97*'O&M Cost Estimator 4400B'!F$7)-MOD((A97*'O&M Cost Estimator 4400B'!F$7),4400)),'O&M Cost Estimator 4400B'!P$22:P$80,'O&M Cost Estimator 4400B'!S$22:S$80)+LOOKUP(((A97*'O&M Cost Estimator 4400B'!F$7)-MOD((A97*'O&M Cost Estimator 4400B'!F$7),4400)),'O&M Cost Estimator 4400B'!P$22:P$80,'O&M Cost Estimator 4400B'!U$22:U$80) -> 0 | L98: ='Payback Estimator-4400B'!$C$43*(L97)+L97 -> 46734.6 | M98: 46734.6 | N98: =SUM($M$5:M98) -> 4059990.8 | O98: =IRR($M$5:M98) -> 0.2399469381 | S98: 99998
A99: 94 | C99: =-LOOKUP(((A99*'O&M Cost Estimator 4400B'!F$7)-MOD((A99*'O&M Cost Estimator 4400B'!F$7),4400)),'O&M Cost Estimator 4400B'!F$22:F$80,'O&M Cost Estimator 4400B'!I$22:I$80)-LOOKUP(((A99*'O&M Cost Estimator 4400B'!F$7)-MOD((A99*'O&M Cost Estimator 4400B'!F$7),4400)),'O&M Cost Estimator 4400B'!F$22:F$80,'O&M Cost Estimator 4400B'!K$22:K$80)+LOOKUP(((A98*'O&M Cost Estimator 4400B'!F$7)-MOD((A98*'O&M Cost Estimator 4400B'!F$7),4400)),'O&M Cost Estimator 4400B'!F$22:F$80,'O&M Cost Estimator 4400B'!I$22:I$80)+LOOKUP(((A98*'O&M Cost Estimator 4400B'!F$7)-MOD((A98*'O&M Cost Estimator 4400B'!F$7),4400)),'O&M Cost Estimator 4400B'!F$22:F$80,'O&M Cost Estimator 4400B'!K$22:K$80) -> 0 | D99: ='Payback Estimator-4400B'!$B$43*(D98) +D98 -> 46734.6 | E99: 46734.6 | F99: =SUM($E$5:E99) -> 4106725.4 | G99: =IRR($E$5:E99) -> 0.2399469382 | I99: 94 | K99: =-LOOKUP(((A99*'O&M Cost Estimator 4400B'!F$7)-MOD((A99*'O&M Cost Estimator 4400B'!F$7),4400)),'O&M Cost Estimator 4400B'!P$22:P$80,'O&M Cost Estimator 4400B'!S$22:S$80)-LOOKUP(((A99*'O&M Cost Estimator 4400B'!F$7)-MOD((A99*'O&M Cost Estimator 4400B'!F$7),4400)),'O&M Cost Estimator 4400B'!P$22:P$80,'O&M Cost Estimator 4400B'!U$22:U$80)+LOOKUP(((A98*'O&M Cost Estimator 4400B'!F$7)-MOD((A98*'O&M Cost Estimator 4400B'!F$7),4400)),'O&M Cost Estimator 4400B'!P$22:P$80,'O&M Cost Estimator 4400B'!S$22:S$80)+LOOKUP(((A98*'O&M Cost Estimator 4400B'!F$7)-MOD((A98*'O&M Cost Estimator 4400B'!F$7),4400)),'O&M Cost Estimator 4400B'!P$22:P$80,'O&M Cost Estimator 4400B'!U$22:U$80) -> 0 | L99: ='Payback Estimator-4400B'!$C$43*(L98)+L98 -> 46734.6 | M99: 46734.6 | N99: =SUM($M$5:M99) -> 4106725.4 | O99: =IRR($M$5:M99) -> 0.2399469382 | S99: 99998
A100: 95 | C100: =-LOOKUP(((A100*'O&M Cost Estimator 4400B'!F$7)-MOD((A100*'O&M Cost Estimator 4400B'!F$7),4400)),'O&M Cost Estimator 4400B'!F$22:F$80,'O&M Cost Estimator 4400B'!I$22:I$80)-LOOKUP(((A100*'O&M Cost Estimator 4400B'!F$7)-MOD((A100*'O&M Cost Estimator 4400B'!F$7),4400)),'O&M Cost Estimator 4400B'!F$22:F$80,'O&M Cost Estimator 4400B'!K$22:K$80)+LOOKUP(((A99*'O&M Cost Estimator 4400B'!F$7)-MOD((A99*'O&M Cost Estimator 4400B'!F$7),4400)),'O&M Cost Estimator 4400B'!F$22:F$80,'O&M Cost Estimator 4400B'!I$22:I$80)+LOOKUP(((A99*'O&M Cost Estimator 4400B'!F$7)-MOD((A99*'O&M Cost Estimator 4400B'!F$7),4400)),'O&M Cost Estimator 4400B'!F$22:F$80,'O&M Cost Estimator 4400B'!K$22:K$80) -> 0 | D100: ='Payback Estimator-4400B'!$B$43*(D99) +D99 -> 46734.6 | E100: 46734.6 | F100: =SUM($E$5:E100) -> 4153460 | G100: =IRR($E$5:E100) -> 0.2399469383 | I100: 95 | K100: =-LOOKUP(((A100*'O&M Cost Estimator 4400B'!F$7)-MOD((A100*'O&M Cost Estimator 4400B'!F$7),4400)),'O&M Cost Estimator 4400B'!P$22:P$80,'O&M Cost Estimator 4400B'!S$22:S$80)-LOOKUP(((A100*'O&M Cost Estimator 4400B'!F$7)-MOD((A100*'O&M Cost Estimator 4400B'!F$7),4400)),'O&M Cost Estimator 4400B'!P$22:P$80,'O&M Cost Estimator 4400B'!U$22:U$80)+LOOKUP(((A99*'O&M Cost Estimator 4400B'!F$7)-MOD((A99*'O&M Cost Estimator 4400B'!F$7),4400)),'O&M Cost Estimator 4400B'!P$22:P$80,'O&M Cost Estimator 4400B'!S$22:S$80)+LOOKUP(((A99*'O&M Cost Estimator 4400B'!F$7)-MOD((A99*'O&M Cost Estimator 4400B'!F$7),4400)),'O&M Cost Estimator 4400B'!P$22:P$80,'O&M Cost Estimator 4400B'!U$22:U$80) -> 0 | L100: ='Payback Estimator-4400B'!$C$43*(L99)+L99 -> 46734.6 | M100: 46734.6 | N100: =SUM($M$5:M100) -> 4153460 | O100: =IRR($M$5:M100) -> 0.2399469383 | S100: 99998
A101: 96 | C101: =-LOOKUP(((A101*'O&M Cost Estimator 4400B'!F$7)-MOD((A101*'O&M Cost Estimator 4400B'!F$7),4400)),'O&M Cost Estimator 4400B'!F$22:F$80,'O&M Cost Estimator 4400B'!I$22:I$80)-LOOKUP(((A101*'O&M Cost Estimator 4400B'!F$7)-MOD((A101*'O&M Cost Estimator 4400B'!F$7),4400)),'O&M Cost Estimator 4400B'!F$22:F$80,'O&M Cost Estimator 4400B'!K$22:K$80)+LOOKUP(((A100*'O&M Cost Estimator 4400B'!F$7)-MOD((A100*'O&M Cost Estimator 4400B'!F$7),4400)),'O&M Cost Estimator 4400B'!F$22:F$80,'O&M Cost Estimator 4400B'!I$22:I$80)+LOOKUP(((A100*'O&M Cost Estimator 4400B'!F$7)-MOD((A100*'O&M Cost Estimator 4400B'!F$7),4400)),'O&M Cost Estimator 4400B'!F$22:F$80,'O&M Cost Estimator 4400B'!K$22:K$80) -> 0 | D101: ='Payback Estimator-4400B'!$B$43*(D100) +D100 -> 46734.6 | E101: 46734.6 | F101: =SUM($E$5:E101) -> 4200194.6 | G101: =IRR($E$5:E101) -> 0.2399469384 | I101: 96 | K101: =-LOOKUP(((A101*'O&M Cost Estimator 4400B'!F$7)-MOD((A101*'O&M Cost Estimator 4400B'!F$7),4400)),'O&M Cost Estimator 4400B'!P$22:P$80,'O&M Cost Estimator 4400B'!S$22:S$80)-LOOKUP(((A101*'O&M Cost Estimator 4400B'!F$7)-MOD((A101*'O&M Cost Estimator 4400B'!F$7),4400)),'O&M Cost Estimator 4400B'!P$22:P$80,'O&M Cost Estimator 4400B'!U$22:U$80)+LOOKUP(((A100*'O&M Cost Estimator 4400B'!F$7)-MOD((A100*'O&M Cost Estimator 4400B'!F$7),4400)),'O&M Cost Estimator 4400B'!P$22:P$80,'O&M Cost Estimator 4400B'!S$22:S$80)+LOOKUP(((A100*'O&M Cost Estimator 4400B'!F$7)-MOD((A100*'O&M Cost Estimator 4400B'!F$7),4400)),'O&M Cost Estimator 4400B'!P$22:P$80,'O&M Cost Estimator 4400B'!U$22:U$80) -> 0 | L101: ='Payback Estimator-4400B'!$C$43*(L100)+L100 -> 46734.6 | M101: 46734.6 | N101: =SUM($M$5:M101) -> 4200194.6 | O101: =IRR($M$5:M101) -> 0.2399469384 | S101: 99998
A102: 97 | C102: =-LOOKUP(((A102*'O&M Cost Estimator 4400B'!F$7)-MOD((A102*'O&M Cost Estimator 4400B'!F$7),4400)),'O&M Cost Estimator 4400B'!F$22:F$80,'O&M Cost Estimator 4400B'!I$22:I$80)-LOOKUP(((A102*'O&M Cost Estimator 4400B'!F$7)-MOD((A102*'O&M Cost Estimator 4400B'!F$7),4400)),'O&M Cost Estimator 4400B'!F$22:F$80,'O&M Cost Estimator 4400B'!K$22:K$80)+LOOKUP(((A101*'O&M Cost Estimator 4400B'!F$7)-MOD((A101*'O&M Cost Estimator 4400B'!F$7),4400)),'O&M Cost Estimator 4400B'!F$22:F$80,'O&M Cost Estimator 4400B'!I$22:I$80)+LOOKUP(((A101*'O&M Cost Estimator 4400B'!F$7)-MOD((A101*'O&M Cost Estimator 4400B'!F$7),4400)),'O&M Cost Estimator 4400B'!F$22:F$80,'O&M Cost Estimator 4400B'!K$22:K$80) -> 0 | D102: ='Payback Estimator-4400B'!$B$43*(D101) +D101 -> 46734.6 | E102: 46734.6 | F102: =SUM($E$5:E102) -> 4246929.2 | G102: =IRR($E$5:E102) -> 0.2399469385 | I102: 97 | K102: =-LOOKUP(((A102*'O&M Cost Estimator 4400B'!F$7)-MOD((A102*'O&M Cost Estimator 4400B'!F$7),4400)),'O&M Cost Estimator 4400B'!P$22:P$80,'O&M Cost Estimator 4400B'!S$22:S$80)-LOOKUP(((A102*'O&M Cost Estimator 4400B'!F$7)-MOD((A102*'O&M Cost Estimator 4400B'!F$7),4400)),'O&M Cost Estimator 4400B'!P$22:P$80,'O&M Cost Estimator 4400B'!U$22:U$80)+LOOKUP(((A101*'O&M Cost Estimator 4400B'!F$7)-MOD((A101*'O&M Cost Estimator 4400B'!F$7),4400)),'O&M Cost Estimator 4400B'!P$22:P$80,'O&M Cost Estimator 4400B'!S$22:S$80)+LOOKUP(((A101*'O&M Cost Estimator 4400B'!F$7)-MOD((A101*'O&M Cost Estimator 4400B'!F$7),4400)),'O&M Cost Estimator 4400B'!P$22:P$80,'O&M Cost Estimator 4400B'!U$22:U$80) -> 0 | L102: ='Payback Estimator-4400B'!$C$43*(L101)+L101 -> 46734.6 | M102: 46734.6 | N102: =SUM($M$5:M102) -> 4246929.2 | O102: =IRR($M$5:M102) -> 0.2399469385 | S102: 99998
A103: 98 | C103: =-LOOKUP(((A103*'O&M Cost Estimator 4400B'!F$7)-MOD((A103*'O&M Cost Estimator 4400B'!F$7),4400)),'O&M Cost Estimator 4400B'!F$22:F$80,'O&M Cost Estimator 4400B'!I$22:I$80)-LOOKUP(((A103*'O&M Cost Estimator 4400B'!F$7)-MOD((A103*'O&M Cost Estimator 4400B'!F$7),4400)),'O&M Cost Estimator 4400B'!F$22:F$80,'O&M Cost Estimator 4400B'!K$22:K$80)+LOOKUP(((A102*'O&M Cost Estimator 4400B'!F$7)-MOD((A102*'O&M Cost Estimator 4400B'!F$7),4400)),'O&M Cost Estimator 4400B'!F$22:F$80,'O&M Cost Estimator 4400B'!I$22:I$80)+LOOKUP(((A102*'O&M Cost Estimator 4400B'!F$7)-MOD((A102*'O&M Cost Estimator 4400B'!F$7),4400)),'O&M Cost Estimator 4400B'!F$22:F$80,'O&M Cost Estimator 4400B'!K$22:K$80) -> 0 | D103: ='Payback Estimator-4400B'!$B$43*(D102) +D102 -> 46734.6 | E103: 46734.6 | F103: =SUM($E$5:E103) -> 4293663.8 | G103: =IRR($E$5:E103) -> 0.2399469385 | I103: 98 | K103: =-LOOKUP(((A103*'O&M Cost Estimator 4400B'!F$7)-MOD((A103*'O&M Cost Estimator 4400B'!F$7),4400)),'O&M Cost Estimator 4400B'!P$22:P$80,'O&M Cost Estimator 4400B'!S$22:S$80)-LOOKUP(((A103*'O&M Cost Estimator 4400B'!F$7)-MOD((A103*'O&M Cost Estimator 4400B'!F$7),4400)),'O&M Cost Estimator 4400B'!P$22:P$80,'O&M Cost Estimator 4400B'!U$22:U$80)+LOOKUP(((A102*'O&M Cost Estimator 4400B'!F$7)-MOD((A102*'O&M Cost Estimator 4400B'!F$7),4400)),'O&M Cost Estimator 4400B'!P$22:P$80,'O&M Cost Estimator 4400B'!S$22:S$80)+LOOKUP(((A102*'O&M Cost Estimator 4400B'!F$7)-MOD((A102*'O&M Cost Estimator 4400B'!F$7),4400)),'O&M Cost Estimator 4400B'!P$22:P$80,'O&M Cost Estimator 4400B'!U$22:U$80) -> 0 | L103: ='Payback Estimator-4400B'!$C$43*(L102)+L102 -> 46734.6 | M103: 46734.6 | N103: =SUM($M$5:M103) -> 4293663.8 | O103: =IRR($M$5:M103) -> 0.2399469385 | S103: 99998
A104: 99 | C104: =-LOOKUP(((A104*'O&M Cost Estimator 4400B'!F$7)-MOD((A104*'O&M Cost Estimator 4400B'!F$7),4400)),'O&M Cost Estimator 4400B'!F$22:F$80,'O&M Cost Estimator 4400B'!I$22:I$80)-LOOKUP(((A104*'O&M Cost Estimator 4400B'!F$7)-MOD((A104*'O&M Cost Estimator 4400B'!F$7),4400)),'O&M Cost Estimator 4400B'!F$22:F$80,'O&M Cost Estimator 4400B'!K$22:K$80)+LOOKUP(((A103*'O&M Cost Estimator 4400B'!F$7)-MOD((A103*'O&M Cost Estimator 4400B'!F$7),4400)),'O&M Cost Estimator 4400B'!F$22:F$80,'O&M Cost Estimator 4400B'!I$22:I$80)+LOOKUP(((A103*'O&M Cost Estimator 4400B'!F$7)-MOD((A103*'O&M Cost Estimator 4400B'!F$7),4400)),'O&M Cost Estimator 4400B'!F$22:F$80,'O&M Cost Estimator 4400B'!K$22:K$80) -> 0 | D104: ='Payback Estimator-4400B'!$B$43*(D103) +D103 -> 46734.6 | E104: 46734.6 | F104: =SUM($E$5:E104) -> 4340398.4 | G104: =IRR($E$5:E104) -> 0.2399469385 | I104: 99 | K104: =-LOOKUP(((A104*'O&M Cost Estimator 4400B'!F$7)-MOD((A104*'O&M Cost Estimator 4400B'!F$7),4400)),'O&M Cost Estimator 4400B'!P$22:P$80,'O&M Cost Estimator 4400B'!S$22:S$80)-LOOKUP(((A104*'O&M Cost Estimator 4400B'!F$7)-MOD((A104*'O&M Cost Estimator 4400B'!F$7),4400)),'O&M Cost Estimator 4400B'!P$22:P$80,'O&M Cost Estimator 4400B'!U$22:U$80)+LOOKUP(((A103*'O&M Cost Estimator 4400B'!F$7)-MOD((A103*'O&M Cost Estimator 4400B'!F$7),4400)),'O&M Cost Estimator 4400B'!P$22:P$80,'O&M Cost Estimator 4400B'!S$22:S$80)+LOOKUP(((A103*'O&M Cost Estimator 4400B'!F$7)-MOD((A103*'O&M Cost Estimator 4400B'!F$7),4400)),'O&M Cost Estimator 4400B'!P$22:P$80,'O&M Cost Estimator 4400B'!U$22:U$80) -> 0 | L104: ='Payback Estimator-4400B'!$C$43*(L103)+L103 -> 46734.6 | M104: 46734.6 | N104: =SUM($M$5:M104) -> 4340398.4 | O104: =IRR($M$5:M104) -> 0.2399469385 | S104: 99998
A105: 100 | C105: =-LOOKUP(((A105*'O&M Cost Estimator 4400B'!F$7)-MOD((A105*'O&M Cost Estimator 4400B'!F$7),4400)),'O&M Cost Estimator 4400B'!F$22:F$80,'O&M Cost Estimator 4400B'!I$22:I$80)-LOOKUP(((A105*'O&M Cost Estimator 4400B'!F$7)-MOD((A105*'O&M Cost Estimator 4400B'!F$7),4400)),'O&M Cost Estimator 4400B'!F$22:F$80,'O&M Cost Estimator 4400B'!K$22:K$80)+LOOKUP(((A104*'O&M Cost Estimator 4400B'!F$7)-MOD((A104*'O&M Cost Estimator 4400B'!F$7),4400)),'O&M Cost Estimator 4400B'!F$22:F$80,'O&M Cost Estimator 4400B'!I$22:I$80)+LOOKUP(((A104*'O&M Cost Estimator 4400B'!F$7)-MOD((A104*'O&M Cost Estimator 4400B'!F$7),4400)),'O&M Cost Estimator 4400B'!F$22:F$80,'O&M Cost Estimator 4400B'!K$22:K$80) -> 0 | D105: ='Payback Estimator-4400B'!$B$43*(D104) +D104 -> 46734.6 | E105: 46734.6 | F105: =SUM($E$5:E105) -> 4387133 | G105: =IRR($E$5:E105) -> 0.2399469386 | I105: 100 | K105: =-LOOKUP(((A105*'O&M Cost Estimator 4400B'!F$7)-MOD((A105*'O&M Cost Estimator 4400B'!F$7),4400)),'O&M Cost Estimator 4400B'!P$22:P$80,'O&M Cost Estimator 4400B'!S$22:S$80)-LOOKUP(((A105*'O&M Cost Estimator 4400B'!F$7)-MOD((A105*'O&M Cost Estimator 4400B'!F$7),4400)),'O&M Cost Estimator 4400B'!P$22:P$80,'O&M Cost Estimator 4400B'!U$22:U$80)+LOOKUP(((A104*'O&M Cost Estimator 4400B'!F$7)-MOD((A104*'O&M Cost Estimator 4400B'!F$7),4400)),'O&M Cost Estimator 4400B'!P$22:P$80,'O&M Cost Estimator 4400B'!S$22:S$80)+LOOKUP(((A104*'O&M Cost Estimator 4400B'!F$7)-MOD((A104*'O&M Cost Estimator 4400B'!F$7),4400)),'O&M Cost Estimator 4400B'!P$22:P$80,'O&M Cost Estimator 4400B'!U$22:U$80) -> 0 | L105: ='Payback Estimator-4400B'!$C$43*(L104)+L104 -> 46734.6 | M105: 46734.6 | N105: =SUM($M$5:M105) -> 4387133 | O105: =IRR($M$5:M105) -> 0.2399469386 | S105: 99998
B107: Projected lifetime(years): | F107: ='Payback Estimator-4400B'!B42 -> 20 | L107: Projected lifetime(years): | M107: ='Payback Estimator-4400B'!C42 -> 20
D108: NPV of investment after 20 years: | F108: =NPV('Payback Estimator-4400B'!B47,E5:E25) -> 649107 | L108: NPV of investment after 20 years: | M108: =NPV('Payback Estimator-4400B'!C47,M5:M25) -> 649107
B109: IRR for projected lifetime: | F109: =LOOKUP(F107,A6:A25,G6:G25) -> 0.2360613418 | L109: IRR for projected lifetime: | M109: =LOOKUP(M107,A6:A25,O6:O25) -> 0.2360613418
A110: This document contains confidential and proprietary information and is supplied purely to enable you to evaluate details concerning ElectraTherm products and services. No part of this document may be disclosed or transferred outside ElectraTherm or the current interested parties. No part of this document may be reproduced or transmitted in any form or by any means, including photography and recording, without the written permission of ElectraTherm, an application for which should be addressed to the organization. Such written permission must also be obtained before any part of this document is stored in a retrieval system of any nature.
A111: ='Payback Estimator-4400B'!A51 -> Copyright © ElectraTherm, Inc. 2021. All Rights Reserved | O111: ='Payback Estimator-4400B'!D51 -> B Model Payback Estimator, Dual currency REV 01_20210714

Sheet O&M Cost Estimator 4400B
O1: Payback Estimator
O2: CONFIDENTIAL
O3: Copyright © 2020 ElectraTherm
F5: USD | G5: EU | P5: ='Payback Estimator-4400B'!C3 -> 1 | Q5: conversion rate | R5: <--- this is set by the conversion rate on S4000B payback estimator page)
E6: USER INPUT=> | F6: 56 | G6: =F6*$P$5 -> 56 | H6: estimated cost of labor per hour for maintenance
F7: ='Payback Estimator-4400B'!B35*8760 -> 8497.2 | H7: Uptime hours per year(4400 min/ 8760 max)--from S4400B payback estimator
F8: ='Payback Estimator-4400B'!C42 -> 20 | H8: P+ lifetime in years (from payback estimator)
F9: =F8*F7 -> 169944 | H9: Lifetime hours of operation(over number of years)
F10: =ROUNDDOWN(F9/4400,0) -> 38 | H10: Service interval index(based on 4400 hr service interval)
F11: ='Payback Estimator-4400B'!B36 -> 55 | H11: kWe output from 4400 payback estimator
F12: =(F16/F11) -> 0.01143424786 | G12: =(G16/F11) -> 0.01143424786 | H12: Calculated O&M cost /kWh
F13: =LOOKUP(F10,E22:E61,I22:I61) -> 89263 | G13: =LOOKUP(F10,O22:O61,S22:S61) -> 89263 | H13: ="Total lifetime maintenance parts cost ("&F8&" years)" -> Total lifetime maintenance parts cost (20 years)
F14: =LOOKUP(F10,E22:E61,K22:K61) -> 17612 | G14: =LOOKUP(F10,O22:O61,U22:U61) -> 17612 | H14: ="Total labor maintenance cost for "&F8&" years" -> Total labor maintenance cost for 20 years
F15: =F13+F14 -> 106875 | G15: =G13+G14 -> 106875 | H15: ="Total O&M cost for P+ for "&F8&" years" -> Total O&M cost for P+ for 20 years
F16: =F15/F9 -> 0.6288836323 | G16: =G15/F9 -> 0.6288836323 | H16: O&M cost per hour of POWER+ operation
C19: (USD) Lifetime maintenance costs based on 20yr lifetime of 176,000 hrs. 4400 hour service interval | M19: (EUR) Lifetime maintenance costs based on 100yr lifetime of 176,000 hrs. 4400 hour service interval
C20: Year | D20: Service Interval | E20: Service Interval Index | F20: Total P+ Runtime hours | G20: Estimated Parts Cost per Service ($) | H20: Estimated Labor Hours per Service | I20: Cumulative Parts Cost ($) | J20: Cumulative Maintenance Labor Hours | K20: Cumulative Labor Costs ($) | M20: Year | N20: Service Interval | O20: Service Interval Index | P20: Total P+ Runtime Hours | Q20: Estimated Parts Cost per Service (€) | R20: Estimated Labor Hours per Service | S20: Cumulative Parts Cost (€) | T20: Cumulative Maintenance Labor Hours | U20: Cumulative Labor Costs (€)
E21: 0 | F21: 0 | G21: 0 | H21: 0 | I21: 0 | J21: 0 | K21: 0 | O21: 0 | P21: 0 | Q21: 0 | R21: 0 | S21: 0 | T21: 0 | U21: 0
C22: 1 | D22: 1 | E22: 1 | F22: 4400 | G22: ='MSRP-4 Yr Maint Schd 4400B'!$E$24 -> 35 | H22: ='MSRP-4 Yr Maint Schd 4400B'!$D$25 -> 4.5 | I22: =G22 -> 35 | J22: =H22 -> 4.5 | K22: =$F$6*J22 -> 252 | M22: 1 | N22: 1 | O22: 1 | P22: 4400 | Q22: =G22*$P$5 -> 35 | R22: =H22 -> 4.5 | S22: =Q22 -> 35 | T22: =R22 -> 4.5 | U22: =$G$6*T22 -> 252
D23: 2 | E23: 2 | F23: 8800 | G23: ='MSRP-4 Yr Maint Schd 4400B'!$H$24 -> 35 | H23: ='MSRP-4 Yr Maint Schd 4400B'!$G$25 -> 7.5 | I23: =G23+I22 -> 70 | J23: 12 | K23: =$F$6*J23 -> 672 | N23: 2 | O23: 2 | P23: 8800 | Q23: =G23*$P$5 -> 35 | R23: =H23 -> 7.5 | S23: =Q23+S22 -> 70 | T23: =R23+T22 -> 12 | U23: =$G$6*T23 -> 672
C24: 2 | D24: 3 | E24: 3 | F24: 13200 | G24: ='MSRP-4 Yr Maint Schd 4400B'!$K$24 -> 35 | H24: ='MSRP-4 Yr Maint Schd 4400B'!$J$25 -> 4.5 | I24: 105 | J24: =H24+J23 -> 16.5 | K24: 924 | M24: 2 | N24: 3 | O24: 3 | P24: 13200 | Q24: 35 | R24: =H24 -> 4.5 | S24: 105 | T24: =R24+T23 -> 16.5 | U24: 924
D25: 4 | E25: 4 | F25: 17600 | G25: ='MSRP-4 Yr Maint Schd 4400B'!$N$24 -> 396 | H25: ='MSRP-4 Yr Maint Schd 4400B'!$M$25 -> 11 | I25: 501 | J25: =H25+J24 -> 27.5 | K25: 1540 | N25: 4 | O25: 4 | P25: 17600 | Q25: 396 | R25: =H25 -> 11 | S25: 501 | T25: 27.5 | U25: =$G$6*T25 -> 1540
C26: 3 | D26: 5 | E26: 5 | F26: 22000 | G26: ='MSRP-4 Yr Maint Schd 4400B'!$Q$24 -> 35 | H26: ='MSRP-4 Yr Maint Schd 4400B'!$P$25 -> 4.5 | I26: 536 | J26: =H26+J25 -> 32 | K26: 1792 | M26: 3 | N26: 5 | O26: 5 | P26: 22000 | Q26: 35 | R26: =H26 -> 4.5 | S26: =Q26+S25 -> 536 | T26: 32 | U26: 1792
D27: 6 | E27: 6 | F27: 26400 | G27: ='MSRP-4 Yr Maint Schd 4400B'!$T$24 -> 335 | H27: ='MSRP-4 Yr Maint Schd 4400B'!$S$25 -> 8.5 | I27: =G27+I26 -> 871 | J27: =H27+J26 -> 40.5 | K27: 2268 | N27: 6 | O27: 6 | P27: 26400 | Q27: 335 | R27: =H27 -> 8.5 | S27: 871 | T27: 40.5 | U27: =$G$6*T27 -> 2268
C28: 4 | D28: 7 | E28: 7 | F28: 30800 | G28: ='MSRP-4 Yr Maint Schd 4400B'!$W$24 -> 35 | H28: ='MSRP-4 Yr Maint Schd 4400B'!$V$25 -> 4.5 | I28: 906 | J28: =H28+J27 -> 45 | K28: =$F$6*J28 -> 2520 | M28: 4 | N28: 7 | O28: 7 | P28: 30800 | Q28: =G28*$P$5 -> 35 | R28: =H28 -> 4.5 | S28: 906 | T28: 45 | U28: 2520
D29: 8 | E29: 8 | F29: 35200 | G29: ='MSRP-4 Yr Maint Schd 4400B'!$Z$24 -> 21192 | H29: ='MSRP-4 Yr Maint Schd 4400B'!$Y$25 -> 23.5 | I29: 22098 | J29: 68.5 | K29: =$F$6*J29 -> 3836 | N29: 8 | O29: 8 | P29: 35200 | Q29: 21192 | R29: 23.5 | S29: 22098 | T29: 68.5 | U29: 3836
C30: 5 | D30: 1 | E30: 9 | F30: 39600 | G30: ='MSRP-4 Yr Maint Schd 4400B'!$E$24 -> 35 | H30: ='MSRP-4 Yr Maint Schd 4400B'!$D$25 -> 4.5 | I30: 22133 | J30: =H30+J29 -> 73 | K30: 4088 | M30: 5 | N30: 1 | O30: 9 | P30: 39600 | Q30: 35 | R30: 4.5 | S30: 22133 | T30: 73 | U30: 4088
D31: 2 | E31: 10 | F31: 44000 | G31: ='MSRP-4 Yr Maint Schd 4400B'!$H$24 -> 35 | H31: ='MSRP-4 Yr Maint Schd 4400B'!$G$25 -> 7.5 | I31: 22168 | J31: 80.5 | K31: 4508 | N31: 2 | O31: 10 | P31: 44000 | Q31: 35 | R31: 7.5 | S31: 22168 | T31: 80.5 | U31: 4508
C32: 6 | D32: 3 | E32: 11 | F32: 48400 | G32: ='MSRP-4 Yr Maint Schd 4400B'!$K$24 -> 35 | H32: ='MSRP-4 Yr Maint Schd 4400B'!$J$25 -> 4.5 | I32: 22203 | J32: 85 | K32: 4760 | M32: 6 | N32: 3 | O32: 11 | P32: 48400 | Q32: 35 | R32: 4.5 | S32: 22203 | T32: 85 | U32: 4760
D33: 4 | E33: 12 | F33: 52800 | G33: ='MSRP-4 Yr Maint Schd 4400B'!$N$24 -> 396 | H33: ='MSRP-4 Yr Maint Schd 4400B'!$M$25 -> 11 | I33: 22599 | J33: 96 | K33: 5376 | N33: 4 | O33: 12 | P33: 52800 | Q33: 396 | R33: 11 | S33: 22599 | T33: 96 | U33: 5376
C34: 7 | D34: 5 | E34: 13 | F34: 57200 | G34: ='MSRP-4 Yr Maint Schd 4400B'!$Q$24 -> 35 | H34: ='MSRP-4 Yr Maint Schd 4400B'!$P$25 -> 4.5 | I34: 22634 | J34: 100.5 | K34: 5628 | M34: 7 | N34: 5 | O34: 13 | P34: 57200 | Q34: 35 | R34: 4.5 | S34: 22634 | T34: 100.5 | U34: 5628
D35: 6 | E35: 14 | F35: 61600 | G35: ='MSRP-4 Yr Maint Schd 4400B'!$T$24 -> 335 | H35: ='MSRP-4 Yr Maint Schd 4400B'!$S$25 -> 8.5 | I35: 22969 | J35: 109 | K35: 6104 | N35: 6 | O35: 14 | P35: 61600 | Q35: 335 | R35: 8.5 | S35: 22969 | T35: =R35+T34 -> 109 | U35: 6104
C36: 8 | D36: 7 | E36: 15 | F36: 66000 | G36: ='MSRP-4 Yr Maint Schd 4400B'!$W$24 -> 35 | H36: ='MSRP-4 Yr Maint Schd 4400B'!$V$25 -> 4.5 | I36: 23004 | J36: 113.5 | K36: 6356 | M36: 8 | N36: 7 | O36: 15 | P36: 66000 | Q36: 35 | R36: 4.5 | S36: 23004 | T36: 113.5 | U36: 6356
D37: 8 | E37: 16 | F37: 70400 | G37: ='MSRP-4 Yr Maint Schd 4400B'!$Z$24 -> 21192 | H37: ='MSRP-4 Yr Maint Schd 4400B'!$Y$25 -> 23.5 | I37: 44196 | J37: 137 | K37: 7672 | N37: 8 | O37: 16 | P37: 70400 | Q37: 21192 | R37: 23.5 | S37: 44196 | T37: 137 | U37: 7672
C38: 9 | D38: 1 | E38: 17 | F38: 74800 | G38: ='MSRP-4 Yr Maint Schd 4400B'!$E$24 -> 35 | H38: ='MSRP-4 Yr Maint Schd 4400B'!$D$25 -> 4.5 | I38: 44231 | J38: 141.5 | K38: 7924 | M38: 9 | N38: 1 | O38: 17 | P38: 74800 | Q38: 35 | R38: 4.5 | S38: 44231 | T38: 141.5 | U38: 7924
D39: 2 | E39: 18 | F39: 79200 | G39: ='MSRP-4 Yr Maint Schd 4400B'!$H$24 -> 35 | H39: ='MSRP-4 Yr Maint Schd 4400B'!$G$25 -> 7.5 | I39: =G39+I38 -> 44266 | J39: 149 | K39: 8344 | N39: 2 | O39: 18 | P39: 79200 | Q39: 35 | R39: 7.5 | S39: =Q39+S38 -> 44266 | T39: 149 | U39: 8344
C40: 10 | D40: 3 | E40: 19 | F40: 83600 | G40: ='MSRP-4 Yr Maint Schd 4400B'!$K$24 -> 35 | H40: ='MSRP-4 Yr Maint Schd 4400B'!$J$25 -> 4.5 | I40: 44301 | J40: 153.5 | K40: 8596 | M40: 10 | N40: 3 | O40: 19 | P40: 83600 | Q40: 35 | R40: 4.5 | S40: 44301 | T40: 153.5 | U40: 8596
D41: 4 | E41: 20 | F41: 88000 | G41: ='MSRP-4 Yr Maint Schd 4400B'!$N$24 -> 396 | H41: ='MSRP-4 Yr Maint Schd 4400B'!$M$25 -> 11 | I41: 44697 | J41: 164.5 | K41: 9212 | N41: 4 | O41: 20 | P41: 88000 | Q41: 396 | R41: 11 | S41: 44697 | T41: 164.5 | U41: 9212
C42: 11 | D42: 5 | E42: 21 | F42: 92400 | G42: ='MSRP-4 Yr Maint Schd 4400B'!$Q$24 -> 35 | H42: ='MSRP-4 Yr Maint Schd 4400B'!$P$25 -> 4.5 | I42: 44732 | J42: 169 | K42: 9464 | M42: 11 | N42: 5 | O42: 21 | P42: 92400 | Q42: 35 | R42: 4.5 | S42: 44732 | T42: 169 | U42: 9464
D43: 6 | E43: 22 | F43: 96800 | G43: ='MSRP-4 Yr Maint Schd 4400B'!$T$24 -> 335 | H43: ='MSRP-4 Yr Maint Schd 4400B'!$S$25 -> 8.5 | I43: 45067 | J43: 177.5 | K43: 9940 | N43: 6 | O43: 22 | P43: 96800 | Q43: =G43*$P$5 -> 335 | R43: 8.5 | S43: 45067 | T43: 177.5 | U43: 9940
C44: 12 | D44: 7 | E44: 23 | F44: 101200 | G44: ='MSRP-4 Yr Maint Schd 4400B'!$W$24 -> 35 | H44: ='MSRP-4 Yr Maint Schd 4400B'!$V$25 -> 4.5 | I44: 45102 | J44: 182 | K44: 10192 | M44: 12 | N44: 7 | O44: 23 | P44: 101200 | Q44: 35 | R44: 4.5 | S44: 45102 | T44: 182 | U44: 10192
D45: 8 | E45: 24 | F45: 105600 | G45: ='MSRP-4 Yr Maint Schd 4400B'!$Z$24 -> 21192 | H45: ='MSRP-4 Yr Maint Schd 4400B'!$Y$25 -> 23.5 | I45: 66294 | J45: 205.5 | K45: 11508 | N45: 8 | O45: 24 | P45: 105600 | Q45: 21192 | R45: 23.5 | S45: 66294 | T45: 205.5 | U45: 11508
C46: 13 | D46: 1 | E46: 25 | F46: 110000 | G46: ='MSRP-4 Yr Maint Schd 4400B'!$E$24 -> 35 | H46: ='MSRP-4 Yr Maint Schd 4400B'!$D$25 -> 4.5 | I46: 66329 | J46: 210 | K46: 11760 | M46: 13 | N46: 1 | O46: 25 | P46: 110000 | Q46: 35 | R46: 4.5 | S46: 66329 | T46: 210 | U46: 11760
D47: 2 | E47: 26 | F47: 114400 | G47: ='MSRP-4 Yr Maint Schd 4400B'!$H$24 -> 35 | H47: ='MSRP-4 Yr Maint Schd 4400B'!$G$25 -> 7.5 | I47: 66364 | J47: 217.5 | K47: 12180 | N47: 2 | O47: 26 | P47: 114400 | Q47: 35 | R47: 7.5 | S47: 66364 | T47: 217.5 | U47: 12180
C48: 14 | D48: 3 | E48: 27 | F48: 118800 | G48: ='MSRP-4 Yr Maint Schd 4400B'!$K$24 -> 35 | H48: ='MSRP-4 Yr Maint Schd 4400B'!$J$25 -> 4.5 | I48: 66399 | J48: 222 | K48: 12432 | M48: 14 | N48: 3 | O48: 27 | P48: 118800 | Q48: 35 | R48: 4.5 | S48: 66399 | T48: 222 | U48: 12432
D49: 4 | E49: 28 | F49: 123200 | G49: ='MSRP-4 Yr Maint Schd 4400B'!$N$24 -> 396 | H49: ='MSRP-4 Yr Maint Schd 4400B'!$M$25 -> 11 | I49: 66795 | J49: 233 | K49: 13048 | N49: 4 | O49: 28 | P49: 123200 | Q49: 396 | R49: 11 | S49: 66795 | T49: 233 | U49: 13048
C50: 15 | D50: 5 | E50: 29 | F50: 127600 | G50: ='MSRP-4 Yr Maint Schd 4400B'!$Q$24 -> 35 | H50: ='MSRP-4 Yr Maint Schd 4400B'!$P$25 -> 4.5 | I50: 66830 | J50: 237.5 | K50: 13300 | M50: 15 | N50: 5 | O50: 29 | P50: 127600 | Q50: 35 | R50: 4.5 | S50: 66830 | T50: 237.5 | U50: 13300
D51: 6 | E51: 30 | F51: 132000 | G51: ='MSRP-4 Yr Maint Schd 4400B'!$T$24 -> 335 | H51: ='MSRP-4 Yr Maint Schd 4400B'!$S$25 -> 8.5 | I51: 67165 | J51: 246 | K51: 13776 | N51: 6 | O51: 30 | P51: 132000 | Q51: 335 | R51: 8.5 | S51: 67165 | T51: 246 | U51: 13776
C52: 16 | D52: 7 | E52: 31 | F52: 136400 | G52: ='MSRP-4 Yr Maint Schd 4400B'!$W$24 -> 35 | H52: ='MSRP-4 Yr Maint Schd 4400B'!$V$25 -> 4.5 | I52: 67200 | J52: 250.5 | K52: 14028 | M52: 16 | N52: 7 | O52: 31 | P52: 136400 | Q52: 35 | R52: 4.5 | S52: 67200 | T52: 250.5 | U52: 14028
D53: 8 | E53: 32 | F53: 140800 | G53: ='MSRP-4 Yr Maint Schd 4400B'!$Z$24 -> 21192 | H53: ='MSRP-4 Yr Maint Schd 4400B'!$Y$25 -> 23.5 | I53: 88392 | J53: 274 | K53: 15344 | N53: 8 | O53: 32 | P53: 140800 | Q53: 21192 | R53: 23.5 | S53: 88392 | T53: 274 | U53: 15344
C54: 17 | D54: 1 | E54: 33 | F54: 145200 | G54: ='MSRP-4 Yr Maint Schd 4400B'!$E$24 -> 35 | H54: ='MSRP-4 Yr Maint Schd 4400B'!$D$25 -> 4.5 | I54: 88427 | J54: 278.5 | K54: 15596 | M54: 17 | N54: 1 | O54: 33 | P54: 145200 | Q54: 35 | R54: 4.5 | S54: 88427 | T54: 278.5 | U54: 15596
D55: 2 | E55: 34 | F55: 149600 | G55: ='MSRP-4 Yr Maint Schd 4400B'!$H$24 -> 35 | H55: ='MSRP-4 Yr Maint Schd 4400B'!$G$25 -> 7.5 | I55: =G55+I54 -> 88462 | J55: =H55+J54 -> 286 | K55: 16016 | N55: 2 | O55: 34 | P55: 149600 | Q55: 35 | R55: 7.5 | S55: =Q55+S54 -> 88462 | T55: =R55+T54 -> 286 | U55: 16016
C56: 18 | D56: 3 | E56: 35 | F56: 154000 | G56: ='MSRP-4 Yr Maint Schd 4400B'!$K$24 -> 35 | H56: ='MSRP-4 Yr Maint Schd 4400B'!$J$25 -> 4.5 | I56: 88497 | J56: 290.5 | K56: 16268 | M56: 18 | N56: 3 | O56: 35 | P56: 154000 | Q56: 35 | R56: 4.5 | S56: 88497 | T56: 290.5 | U56: 16268
D57: 4 | E57: 36 | F57: 158400 | G57: ='MSRP-4 Yr Maint Schd 4400B'!$N$24 -> 396 | H57: ='MSRP-4 Yr Maint Schd 4400B'!$M$25 -> 11 | I57: 88893 | J57: 301.5 | K57: 16884 | N57: 4 | O57: 36 | P57: 158400 | Q57: 396 | R57: 11 | S57: 88893 | T57: 301.5 | U57: 16884
C58: 19 | D58: 5 | E58: 37 | F58: 162800 | G58: ='MSRP-4 Yr Maint Schd 4400B'!$Q$24 -> 35 | H58: ='MSRP-4 Yr Maint Schd 4400B'!$P$25 -> 4.5 | I58: 88928 | J58: 306 | K58: 17136 | M58: 19 | N58: 5 | O58: 37 | P58: 162800 | Q58: 35 | R58: =H58 -> 4.5 | S58: 88928 | T58: 306 | U58: 17136
D59: 6 | E59: 38 | F59: 167200 | G59: ='MSRP-4 Yr Maint Schd 4400B'!$T$24 -> 335 | H59: ='MSRP-4 Yr Maint Schd 4400B'!$S$25 -> 8.5 | I59: 89263 | J59: 314.5 | K59: 17612 | N59: 6 | O59: 38 | P59: 167200 | Q59: 335 | R59: 8.5 | S59: 89263 | T59: 314.5 | U59: 17612
C60: 20 | D60: 7 | E60: 39 | F60: 171600 | G60: ='MSRP-4 Yr Maint Schd 4400B'!$W$24 -> 35 | H60: ='MSRP-4 Yr Maint Schd 4400B'!$V$25 -> 4.5 | I60: 89298 | J60: 319 | K60: 17864 | M60: 20 | N60: 7 | O60: 39 | P60: 171600 | Q60: 35 | R60: 4.5 | S60: 89298 | T60: =R60+T59 -> 319 | U60: 17864
D61: 8 | E61: 40 | F61: 176000 | G61: ='MSRP-4 Yr Maint Schd 4400B'!$H$24 -> 35 | H61: ='MSRP-4 Yr Maint Schd 4400B'!$G$25 -> 7.5 | I61: 89333 | J61: 326.5 | K61: 18284 | N61: 8 | O61: 40 | P61: 176000 | Q61: 35 | R61: 7.5 | S61: 89333 | T61: 326.5 | U61: 18284
C64: This document contains confidential and proprietary information and is supplied purely to enable you to evaluate details concerning ElectraTherm products and services. No part of this document may be disclosed or transferred outside ElectraTherm or the current interested parties. No part of this document may be reproduced or transmitted in any form or by any means, including photography and recording, without the written permission of ElectraTherm, an application for which should be addressed to the organization.
C65: ='Payback Estimator-4400B'!A51 -> Copyright © ElectraTherm, Inc. 2021. All Rights Reserved | U65: ='Payback Estimator-4400B'!D51 -> B Model Payback Estimator, Dual currency REV 01_20210714

Sheet 4400B Maint Item Description
B6: POWER+ 4400B End User Maintenance Item Descriptions:
B9: Service Item Description | C9: ElectraTherm Part # | D9: Miscellaneous Maintenance Item Requirements/Notes | E9: Estimated Part Costs from ElectraTherm (USD) | F9: *Estimated Maintenance Material Cost (USD) | G9: Total Estimated Maintenance costs (USD) | H9: Estimated Labor Hours Required for Service (hours) | I9: Required Service Maintenance Interval (hours)
B10: Inspect all plumbing, flanges, and valves for leaks | D10: *use liquid leak detector | F10: 10 | G10: =Table12432[[#This Row],[Estimated Part Costs from ElectraTherm (USD)]]+Table12432[[#This Row],[*Estimated Maintenance Material Cost (USD)]] -> 10 | H10: 1 | I10: 4400
B11: Inspect hardware for wear/damage | D11: manually actuate valves | G11: =Table12432[[#This Row],[Estimated Part Costs from ElectraTherm (USD)]]+Table12432[[#This Row],[*Estimated Maintenance Material Cost (USD)]] -> 0 | H11: 0.5 | I11: 4400
B12: Grease pump motor bearings | D12: *grease bearings on working fluid feed pump | F12: 25 | G12: =Table12432[[#This Row],[Estimated Part Costs from ElectraTherm (USD)]]+Table12432[[#This Row],[*Estimated Maintenance Material Cost (USD)]] -> 25 | H12: 1 | I12: 4400
B13: Clean cabinet heat exchanger | D13: visual inspection and cleaning | G13: =Table12432[[#This Row],[Estimated Part Costs from ElectraTherm (USD)]]+Table12432[[#This Row],[*Estimated Maintenance Material Cost (USD)]] -> 0 | H13: 1 | I13: 4400
B14: Inspect for electrical wear/damage | D14: visual inspection | G14: =Table12432[[#This Row],[Estimated Part Costs from ElectraTherm (USD)]]+Table12432[[#This Row],[*Estimated Maintenance Material Cost (USD)]] -> 0 | H14: 0.5 | I14: 4400
B15: Check for NCGs in working fluid | D15: machine shutdown for 5 minute test | G15: =Table12432[[#This Row],[Estimated Part Costs from ElectraTherm (USD)]]+Table12432[[#This Row],[*Estimated Maintenance Material Cost (USD)]] -> 0 | H15: 0.5 | I15: 4400
B16: Check HX water-side pressure drop | D16: measure and record pressure drop | G16: =Table12432[[#This Row],[Estimated Part Costs from ElectraTherm (USD)]]+Table12432[[#This Row],[*Estimated Maintenance Material Cost (USD)]] -> 0 | H16: 0.5 | I16: 8800
B17: Clean Skid / Clean LLR | G17: =Table12432[[#This Row],[Estimated Part Costs from ElectraTherm (USD)]]+Table12432[[#This Row],[*Estimated Maintenance Material Cost (USD)]] -> 0 | H17: 2 | I17: 8800
B18: Verify operability of safety equipment | D18: *visual inspection of buttons, lights, and labels | G18: =Table12432[[#This Row],[Estimated Part Costs from ElectraTherm (USD)]]+Table12432[[#This Row],[*Estimated Maintenance Material Cost (USD)]] -> 0 | H18: 0.5 | I18: 8800
B19: Replace High/Low Sides PRVs | C19: ET11397 x2 ET11405 x2 | D19: replace per local code requirement | E19: 346 | G19: =Table12432[[#This Row],[Estimated Part Costs from ElectraTherm (USD)]]+Table12432[[#This Row],[*Estimated Maintenance Material Cost (USD)]] -> 346 | H19: 3 | I19: 17600
B20: Replace PLC battery | C20: ET11214 x1 | E20: 15 | G20: =Table12432[[#This Row],[Estimated Part Costs from ElectraTherm (USD)]]+Table12432[[#This Row],[*Estimated Maintenance Material Cost (USD)]] -> 15 | H20: 0.5 | I20: 17600
B21: Bitzer Expander Replacement | D21: expander is replaced at site (requires gas transfer) | E21: 21157 | G21: =Table12432[[#This Row],[Estimated Part Costs from ElectraTherm (USD)]]+Table12432[[#This Row],[*Estimated Maintenance Material Cost (USD)]] -> 21157 | H21: 16 | I21: 35200
B22: Replace VFD internal cooling fan | D22: from VFD manufacturer | F22: 300 | G22: =Table12432[[#This Row],[Estimated Part Costs from ElectraTherm (USD)]]+Table12432[[#This Row],[*Estimated Maintenance Material Cost (USD)]] -> 300 | H22: 1 | I22: 30800
B27: Current maintenance intervals are conservative, and may be extended based on field experience.
B28: Estimated hours are based on time to perform service at site, and do not include any mobilization or transportation time to and from the site.
B29: *Maintenance items that are not supplied by ElectraTherm. Cleaning supplies, leak detector solution--these items should be available locally.
B30: **The cost for the expander exchange listed here is a NET amount of the following transactions: Owner will issue payment for the amount of a new expander (greater than the amount listed here) and receive a refund when the owner has returned the expander being removed from service, and that used expander is in condition to be rebuilt and or refurbished.
B32: ***PRVs should be replaced immediately if they discharge or show signs of water ingress. PRVs should be replaced at the interval required by local code or every 5 years, whichever is less.
B33: Detailed instructions and part number details are provided in Operation and Maintenance Manual, available from ElectraTherm Service Department.
B34: This document contains confidential and proprietary information and is supplied purely to enable you to evaluate details concerning ElectraTherm products and services. No part of this document may be disclosed or transferred outside ElectraTherm or the current interested parties. No part of this document may be reproduced or transmitted in any form or by any means, including photography and recording, without the written permission of ElectraTherm, an application for which should be addressed to the organization.
B36: ='Payback Estimator-4400B'!A51 -> Copyright © ElectraTherm, Inc. 2021. All Rights Reserved | I36: ='Payback Estimator-4400B'!D51 -> B Model Payback Estimator, Dual currency REV 01_20210714

Sheet MSRP-4 Yr Maint Schd 4400B
B4: POWER+ 4400B: 4 Year End User Routine Maintenance Schedule
C6: CUMULATIVE RUN TIME HOURS
C7: 1 YEAR(8760 HOURS PER YEAR) | I7: 2 YEARS(8760 HOURS PER YEAR) | O7: 3 YEARS(8760 HOURS PER YEAR) | U7: 4 YEARS(8760 HOURS PER YEAR)
C8: 4400HR SERVICE ITEMS | F8: 8800HR SERVICE ITEMS | I8: 13200HR SERVICE ITEMS | L8: 17600HR SERVICE ITEMS | O8: 22000HR SERVICE ITEMS | R8: 26400HR SERVICE ITEMS | U8: 30800 SERVICE ITEMS | X8: 35200 SERVICE ITEMS
C9: SERVICE INTERVAL 1 | F9: SERVICE INTERVAL 2 | I9: SERVICE INTERVAL 3 | L9: SERVICE INTERVAL 4 | O9: SERVICE INTERVAL 5 | R9: SERVICE INTERVAL 6 | U9: SERVICE INTERVAL 7 | X9: SERVICE INTERVAL 8
B10: REQUIRED SERVICE ITEMS | C10: ITEM | D10: HRS | E10: COST | F10: ITEM | G10: HRS | H10: COST | I10: ITEM | J10: HRS | K10: COST | L10: ITEM | M10: HRS | N10: COST | O10: ITEM | P10: HRS | Q10: COST | R10: ITEM | S10: HRS | T10: COST | U10: ITEM | V10: HRS | W10: COST | X10: ITEM | Y10: HRS | Z10: COST
B11: ='4400B Maint Item Description'!B10 -> Inspect all plumbing, flanges, and valves for leaks | C11: ♦ | D11: ='4400B Maint Item Description'!H10 -> 1 | E11: ='4400B Maint Item Description'!G10 -> 10 | F11: ♦ | G11: ='4400B Maint Item Description'!H10 -> 1 | H11: ='4400B Maint Item Description'!G10 -> 10 | I11: ♦ | J11: ='4400B Maint Item Description'!H10 -> 1 | K11: ='4400B Maint Item Description'!G10 -> 10 | L11: ♦ | M11: ='4400B Maint Item Description'!H10 -> 1 | N11: ='4400B Maint Item Description'!G10 -> 10 | O11: ♦ | P11: ='4400B Maint Item Description'!H10 -> 1 | Q11: ='4400B Maint Item Description'!G10 -> 10 | R11: ♦ | S11: ='4400B Maint Item Description'!H10 -> 1 | T11: ='4400B Maint Item Description'!G10 -> 10 | U11: ♦ | V11: ='4400B Maint Item Description'!H10 -> 1 | W11: ='4400B Maint Item Description'!G10 -> 10 | X11: ♦ | Y11: ='4400B Maint Item Description'!H10 -> 1 | Z11: ='4400B Maint Item Description'!G10 -> 10
B12: ='4400B Maint Item Description'!B11 -> Inspect hardware for wear/damage | C12: ♦ | D12: ='4400B Maint Item Description'!H11 -> 0.5 | E12: ='4400B Maint Item Description'!G11 -> 0 | F12: ♦ | G12: ='4400B Maint Item Description'!H11 -> 0.5 | H12: ='4400B Maint Item Description'!G11 -> 0 | I12: ♦ | J12: ='4400B Maint Item Description'!H11 -> 0.5 | K12: ='4400B Maint Item Description'!G11 -> 0 | L12: ♦ | M12: ='4400B Maint Item Description'!H11 -> 0.5 | N12: ='4400B Maint Item Description'!G11 -> 0 | O12: ♦ | P12: ='4400B Maint Item Description'!H11 -> 0.5 | Q12: ='4400B Maint Item Description'!G11 -> 0 | R12: ♦ | S12: ='4400B Maint Item Description'!H11 -> 0.5 | T12: ='4400B Maint Item Description'!G11 -> 0 | U12: ♦ | V12: ='4400B Maint Item Description'!H11 -> 0.5 | W12: ='4400B Maint Item Description'!G11 -> 0 | X12: ♦ | Y12: ='4400B Maint Item Description'!H11 -> 0.5 | Z12: ='4400B Maint Item Description'!G11 -> 0
B13: ='4400B Maint Item Description'!B12 -> Grease pump motor bearings | C13: ♦ | D13: ='4400B Maint Item Description'!H12 -> 1 | E13: ='4400B Maint Item Description'!G12 -> 25 | F13: ♦ | G13: ='4400B Maint Item Description'!H12 -> 1 | H13: ='4400B Maint Item Description'!G12 -> 25 | I13: ♦ | J13: ='4400B Maint Item Description'!H12 -> 1 | K13: ='4400B Maint Item Description'!G12 -> 25 | L13: ♦ | M13: ='4400B Maint Item Description'!H12 -> 1 | N13: ='4400B Maint Item Description'!G12 -> 25 | O13: ♦ | P13: ='4400B Maint Item Description'!H12 -> 1 | Q13: ='4400B Maint Item Description'!G12 -> 25 | R13: ♦ | S13: ='4400B Maint Item Description'!H12 -> 1 | T13: ='4400B Maint Item Description'!G12 -> 25 | U13: ♦ | V13: ='4400B Maint Item Description'!H12 -> 1 | W13: ='4400B Maint Item Description'!G12 -> 25 | X13: ♦ | Y13: ='4400B Maint Item Description'!H12 -> 1 | Z13: ='4400B Maint Item Description'!G12 -> 25
B14: ='4400B Maint Item Description'!B13 -> Clean cabinet heat exchanger | C14: ♦ | D14: ='4400B Maint Item Description'!H13 -> 1 | E14: ='4400B Maint Item Description'!G13 -> 0 | F14: ♦ | G14: ='4400B Maint Item Description'!H13 -> 1 | H14: ='4400B Maint Item Description'!G13 -> 0 | I14: ♦ | J14: ='4400B Maint Item Description'!H13 -> 1 | K14: ='4400B Maint Item Description'!G13 -> 0 | L14: ♦ | M14: ='4400B Maint Item Description'!H13 -> 1 | N14: ='4400B Maint Item Description'!G13 -> 0 | O14: ♦ | P14: ='4400B Maint Item Description'!H13 -> 1 | Q14: ='4400B Maint Item Description'!G13 -> 0 | R14: ♦ | S14: ='4400B Maint Item Description'!H13 -> 1 | T14: ='4400B Maint Item Description'!G13 -> 0 | U14: ♦ | V14: ='4400B Maint Item Description'!H13 -> 1 | W14: ='4400B Maint Item Description'!G13 -> 0 | X14: ♦ | Y14: ='4400B Maint Item Description'!H13 -> 1 | Z14: ='4400B Maint Item Description'!G13 -> 0
B15: ='4400B Maint Item Description'!B14 -> Inspect for electrical wear/damage | C15: ♦ | D15: ='4400B Maint Item Description'!H14 -> 0.5 | E15: ='4400B Maint Item Description'!G14 -> 0 | F15: ♦ | G15: ='4400B Maint Item Description'!H14 -> 0.5 | H15: ='4400B Maint Item Description'!G14 -> 0 | I15: ♦ | J15: ='4400B Maint Item Description'!H14 -> 0.5 | K15: ='4400B Maint Item Description'!G14 -> 0 | L15: ♦ | M15: ='4400B Maint Item Description'!H14 -> 0.5 | N15: ='4400B Maint Item Description'!G14 -> 0 | O15: ♦ | P15: ='4400B Maint Item Description'!H14 -> 0.5 | Q15: ='4400B Maint Item Description'!G14 -> 0 | R15: ♦ | S15: ='4400B Maint Item Description'!H14 -> 0.5 | T15: ='4400B Maint Item Description'!G14 -> 0 | U15: ♦ | V15: ='4400B Maint Item Description'!H14 -> 0.5 | W15: ='4400B Maint Item Description'!G14 -> 0 | X15: ♦ | Y15: ='4400B Maint Item Description'!H14 -> 0.5 | Z15: ='4400B Maint Item Description'!G14 -> 0
B16: ='4400B Maint Item Description'!B15 -> Check for NCGs in working fluid | C16: ♦ | D16: ='4400B Maint Item Description'!H15 -> 0.5 | E16: ='4400B Maint Item Description'!G15 -> 0 | F16: ♦ | G16: ='4400B Maint Item Description'!H15 -> 0.5 | H16: ='4400B Maint Item Description'!G15 -> 0 | I16: ♦ | J16: ='4400B Maint Item Description'!H15 -> 0.5 | K16: ='4400B Maint Item Description'!G15 -> 0 | L16: ♦ | M16: ='4400B Maint Item Description'!H15 -> 0.5 | N16: ='4400B Maint Item Description'!G15 -> 0 | O16: ♦ | P16: ='4400B Maint Item Description'!H15 -> 0.5 | Q16: ='4400B Maint Item Description'!G15 -> 0 | R16: ♦ | S16: ='4400B Maint Item Description'!H15 -> 0.5 | T16: ='4400B Maint Item Description'!G15 -> 0 | U16: ♦ | V16: ='4400B Maint Item Description'!H15 -> 0.5 | W16: ='4400B Maint Item Description'!G15 -> 0 | X16: ♦ | Y16: ='4400B Maint Item Description'!H15 -> 0.5 | Z16: ='4400B Maint Item Description'!G15 -> 0
B17: ='4400B Maint Item Description'!B16 -> Check HX water-side pressure drop | F17: ♦ | G17: ='4400B Maint Item Description'!H16 -> 0.5 | H17: ='4400B Maint Item Description'!G16 -> 0 | L17: ♦ | M17: ='4400B Maint Item Description'!H16 -> 0.5 | N17: ='4400B Maint Item Description'!G16 -> 0 | R17: ♦ | S17: ='4400B Maint Item Description'!H16 -> 0.5 | T17: ='4400B Maint Item Description'!G16 -> 0 | X17: ♦ | Y17: ='4400B Maint Item Description'!H16 -> 0.5 | Z17: ='4400B Maint Item Description'!G16 -> 0
B18: ='4400B Maint Item Description'!B17 -> Clean Skid / Clean LLR | F18: ♦ | G18: ='4400B Maint Item Description'!H17 -> 2 | H18: ='4400B Maint Item Description'!G17 -> 0 | L18: ♦ | M18: ='4400B Maint Item Description'!H17 -> 2 | N18: ='4400B Maint Item Description'!G17 -> 0 | R18: ♦ | S18: ='4400B Maint Item Description'!H17 -> 2 | T18: ='4400B Maint Item Description'!G17 -> 0 | X18: ♦ | Y18: ='4400B Maint Item Description'!H17 -> 2 | Z18: ='4400B Maint Item Description'!G17 -> 0
B19: ='4400B Maint Item Description'!B18 -> Verify operability of safety equipment | F19: ♦ | G19: ='4400B Maint Item Description'!H18 -> 0.5 | H19: ='4400B Maint Item Description'!G18 -> 0 | L19: ♦ | M19: ='4400B Maint Item Description'!H18 -> 0.5 | N19: ='4400B Maint Item Description'!G18 -> 0 | R19: ♦ | S19: ='4400B Maint Item Description'!H18 -> 0.5 | T19: ='4400B Maint Item Description'!G18 -> 0 | X19: ♦ | Y19: ='4400B Maint Item Description'!H18 -> 0.5 | Z19: ='4400B Maint Item Description'!G18 -> 0
B20: ='4400B Maint Item Description'!B19 -> Replace High/Low Sides PRVs | L20: ♦ | M20: ='4400B Maint Item Description'!H19 -> 3 | N20: ='4400B Maint Item Description'!G19 -> 346
B21: ='4400B Maint Item Description'!B20 -> Replace PLC battery | L21: ♦ | M21: ='4400B Maint Item Description'!H20 -> 0.5 | N21: ='4400B Maint Item Description'!G20 -> 15
B22: ='4400B Maint Item Description'!B21 -> Bitzer Expander Replacement | X22: ♦ | Y22: ='4400B Maint Item Description'!H21 -> 16 | Z22: ='4400B Maint Item Description'!G21 -> 21157
B23: ='4400B Maint Item Description'!B22 -> Replace VFD internal cooling fan | R23: ♦ | S23: ='4400B Maint Item Description'!H22 -> 1 | T23: ='4400B Maint Item Description'!G22 -> 300
B24: Service Interval Parts Total (USD) | E24: =SUM(E11:E23) -> 35 | H24: =SUM(H11:H23) -> 35 | K24: =SUM(K11:K23) -> 35 | N24: =SUM(N11:N23) -> 396 | Q24: =SUM(Q11:Q23) -> 35 | T24: =SUM(T11:T23) -> 335 | W24: =SUM(W11:W23) -> 35 | Z24: =SUM(Z11:Z23) -> 21192
B25: Service Interval Labor Hours Total | D25: =SUM(D11:D23) -> 4.5 | G25: =SUM(G11:G23) -> 7.5 | J25: =SUM(J11:J23) -> 4.5 | M25: =SUM(M11:M23) -> 11 | P25: =SUM(P11:P23) -> 4.5 | S25: =SUM(S11:S23) -> 8.5 | V25: =SUM(V11:V23) -> 4.5 | Y25: =SUM(Y11:Y23) -> 23.5
B26: Current maintenance intervals are conservative, and may be extended based on field experience.
B27: Estimated hours are based on time to perform service at site, and do not include any mobilization or transportation time to and from the site. | N27: 4 Year Part Total (USD): | R27: =SUM(C24:Z24) -> 22098
B28: Costs shown are in USD. | N28: 4 Year Labor Hours Total: | R28: =SUM(C25:Z25) -> 68.5
B30: This document contains confidential and proprietary information and is supplied purely to enable you to evaluate details concerning ElectraTherm products and services. No part of this document may be disclosed or transferred outside ElectraTherm or the current interested parties. No part of this document may be reproduced or transmitted in any form or by any means, including photography and recording, without the written permission of ElectraTherm, an application for which should be addressed to the organization.
B31: ='Payback Estimator-4400B'!A51 -> Copyright © ElectraTherm, Inc. 2021. All Rights Reserved | T31: ='Payback Estimator-4400B'!D51 -> B Model Payback Estimator, Dual currency REV 01_20210714

Sheet 20yr Maintenance Schd- 4400B
B1: POWER+ 4400B: 20 Year End User Maintenance Schedule
D2: CUMULATIVE RUN TIME HOURS ON POWER+ GENERATOR
C3: 4400 | D3: =4400+C3 -> 8800 | E3: =4400+D3 -> 13200 | F3: 17600 | G3: 22000 | H3: 26400 | I3: 30800 | J3: 35200 | K3: 39600 | L3: 44000 | M3: 48400 | N3: 52800 | O3: 57200 | P3: 61600 | Q3: 66000 | R3: 70400 | S3: 74800 | T3: 79200
B4: REQUIRED SERVICE WORK | C4: 1 year | E4: 2 years | G4: 3 years | I4: 4 years | K4: 5 years | M4: 6 years | O4: 7 years | Q4: 8 years | S4: 9 years
B5: ='4400B Maint Item Description'!B10 -> Inspect all plumbing, flanges, and valves for leaks | C5: ♦ | D5: ♦ | E5: ♦ | F5: ♦ | G5: ♦ | H5: ♦ | I5: ♦ | J5: ♦ | K5: ♦ | L5: ♦ | M5: ♦ | N5: ♦ | O5: ♦ | P5: ♦ | Q5: ♦ | R5: ♦ | S5: ♦ | T5: ♦
B6: ='4400B Maint Item Description'!B11 -> Inspect hardware for wear/damage | C6: ♦ | D6: ♦ | E6: ♦ | F6: ♦ | G6: ♦ | H6: ♦ | I6: ♦ | J6: ♦ | K6: ♦ | L6: ♦ | M6: ♦ | N6: ♦ | O6: ♦ | P6: ♦ | Q6: ♦ | R6: ♦ | S6: ♦ | T6: ♦
B7: ='4400B Maint Item Description'!B12 -> Grease pump motor bearings | C7: ♦ | D7: ♦ | E7: ♦ | F7: ♦ | G7: ♦ | H7: ♦ | I7: ♦ | J7: ♦ | K7: ♦ | L7: ♦ | M7: ♦ | N7: ♦ | O7: ♦ | P7: ♦ | Q7: ♦ | R7: ♦ | S7: ♦ | T7: ♦
B8: ='4400B Maint Item Description'!B13 -> Clean cabinet heat exchanger | C8: ♦ | D8: ♦ | E8: ♦ | F8: ♦ | G8: ♦ | H8: ♦ | I8: ♦ | J8: ♦ | K8: ♦ | L8: ♦ | M8: ♦ | N8: ♦ | O8: ♦ | P8: ♦ | Q8: ♦ | R8: ♦ | S8: ♦ | T8: ♦
B9: ='4400B Maint Item Description'!B14 -> Inspect for electrical wear/damage | C9: ♦ | D9: ♦ | E9: ♦ | F9: ♦ | G9: ♦ | H9: ♦ | I9: ♦ | J9: ♦ | K9: ♦ | L9: ♦ | M9: ♦ | N9: ♦ | O9: ♦ | P9: ♦ | Q9: ♦ | R9: ♦ | S9: ♦ | T9: ♦
B10: ='4400B Maint Item Description'!B15 -> Check for NCGs in working fluid | C10: ♦ | D10: ♦ | E10: ♦ | F10: ♦ | G10: ♦ | H10: ♦ | I10: ♦ | J10: ♦ | K10: ♦ | L10: ♦ | M10: ♦ | N10: ♦ | O10: ♦ | P10: ♦ | Q10: ♦ | R10: ♦ | S10: ♦ | T10: ♦
B11: ='4400B Maint Item Description'!B16 -> Check HX water-side pressure drop | C11: ♦ | D11: ♦ | E11: ♦ | F11: ♦ | G11: ♦ | H11: ♦ | I11: ♦ | J11: ♦ | K11: ♦ | L11: ♦ | M11: ♦ | N11: ♦ | O11: ♦ | P11: ♦ | Q11: ♦ | R11: ♦ | S11: ♦ | T11: ♦
B12: ='4400B Maint Item Description'!B17 -> Clean Skid / Clean LLR | C12: ♦ | D12: ♦ | E12: ♦ | F12: ♦ | G12: ♦ | H12: ♦ | I12: ♦ | J12: ♦ | K12: ♦ | L12: ♦ | M12: ♦ | N12: ♦ | O12: ♦ | P12: ♦ | Q12: ♦ | R12: ♦ | S12: ♦ | T12: ♦
B13: ='4400B Maint Item Description'!B18 -> Verify operability of safety equipment | C13: ♦ | D13: ♦ | E13: ♦ | F13: ♦ | G13: ♦ | H13: ♦ | I13: ♦ | J13: ♦ | K13: ♦ | L13: ♦ | M13: ♦ | N13: ♦ | O13: ♦ | P13: ♦ | Q13: ♦ | R13: ♦ | S13: ♦ | T13: ♦
B14: ='4400B Maint Item Description'!B19 -> Replace High/Low Sides PRVs | D14: ♦ | F14: ♦ | H14: ♦ | J14: ♦ | L14: ♦ | N14: ♦ | P14: ♦ | R14: ♦ | T14: ♦
B15: ='4400B Maint Item Description'!B20 -> Replace PLC battery | D15: ♦ | F15: ♦ | H15: ♦ | J15: ♦ | L15: ♦ | N15: ♦ | P15: ♦ | R15: ♦ | T15: ♦ | Y15: continued on chart below
B16: ='4400B Maint Item Description'!B21 -> Bitzer Expander Replacement | J16: ♦ | R16: ♦
B17: ='4400B Maint Item Description'!B22 -> Replace VFD internal cooling fan | F17: ♦ | J17: ♦ | N17: ♦ | R17: ♦
E19: CUMULATIVE RUN TIME HOURS ON POWER+ GENERATOR
C21: =T3+4400 -> 83600 | D21: =C21+4400 -> 88000 | E21: =D21+4400 -> 92400 | F21: 96800 | G21: 101200 | H21: 105600 | I21: 110000 | J21: 114400 | K21: 118800 | L21: 123200 | M21: 127600 | N21: 132000 | O21: 136400 | P21: 140800 | Q21: 145200 | R21: 149600 | S21: 154000 | T21: 158400 | U21: 162800 | V21: 167200 | W21: 171600 | X21: 176000
B22: REQUIRED SERVICE WORK | C22: 10 years | E22: 11 years | G22: 12 years | I22: 13 years | K22: 14 years | M22: 15 years | O22: 16 years | Q22: 17 years | S22: 18 years | U22: 19 years | W22: 20 years
B23: ='4400B Maint Item Description'!B10 -> Inspect all plumbing, flanges, and valves for leaks | C23: ♦ | D23: ♦ | E23: ♦ | F23: ♦ | G23: ♦ | H23: ♦ | I23: ♦ | J23: ♦ | K23: ♦ | L23: ♦ | M23: ♦ | N23: ♦ | O23: ♦ | P23: ♦ | Q23: ♦ | R23: ♦ | S23: ♦ | T23: ♦ | U23: ♦ | V23: ♦ | W23: ♦ | X23: ♦
B24: ='4400B Maint Item Description'!B11 -> Inspect hardware for wear/damage | C24: ♦ | D24: ♦ | E24: ♦ | F24: ♦ | G24: ♦ | H24: ♦ | I24: ♦ | J24: ♦ | K24: ♦ | L24: ♦ | M24: ♦ | N24: ♦ | O24: ♦ | P24: ♦ | Q24: ♦ | R24: ♦ | S24: ♦ | T24: ♦ | U24: ♦ | V24: ♦ | W24: ♦ | X24: ♦
B25: ='4400B Maint Item Description'!B12 -> Grease pump motor bearings | C25: ♦ | D25: ♦ | E25: ♦ | F25: ♦ | G25: ♦ | H25: ♦ | I25: ♦ | J25: ♦ | K25: ♦ | L25: ♦ | M25: ♦ | N25: ♦ | O25: ♦ | P25: ♦ | Q25: ♦ | R25: ♦ | S25: ♦ | T25: ♦ | U25: ♦ | V25: ♦ | W25: ♦ | X25: ♦
B26: ='4400B Maint Item Description'!B13 -> Clean cabinet heat exchanger | C26: ♦ | D26: ♦ | E26: ♦ | F26: ♦ | G26: ♦ | H26: ♦ | I26: ♦ | J26: ♦ | K26: ♦ | L26: ♦ | M26: ♦ | N26: ♦ | O26: ♦ | P26: ♦ | Q26: ♦ | R26: ♦ | S26: ♦ | T26: ♦ | U26: ♦ | V26: ♦ | W26: ♦ | X26: ♦
B27: ='4400B Maint Item Description'!B14 -> Inspect for electrical wear/damage | C27: ♦ | D27: ♦ | E27: ♦ | F27: ♦ | G27: ♦ | H27: ♦ | I27: ♦ | J27: ♦ | K27: ♦ | L27: ♦ | M27: ♦ | N27: ♦ | O27: ♦ | P27: ♦ | Q27: ♦ | R27: ♦ | S27: ♦ | T27: ♦ | U27: ♦ | V27: ♦ | W27: ♦ | X27: ♦
B28: ='4400B Maint Item Description'!B15 -> Check for NCGs in working fluid | C28: ♦ | D28: ♦ | E28: ♦ | F28: ♦ | G28: ♦ | H28: ♦ | I28: ♦ | J28: ♦ | K28: ♦ | L28: ♦ | M28: ♦ | N28: ♦ | O28: ♦ | P28: ♦ | Q28: ♦ | R28: ♦ | S28: ♦ | T28: ♦ | U28: ♦ | V28: ♦ | W28: ♦ | X28: ♦
B29: ='4400B Maint Item Description'!B16 -> Check HX water-side pressure drop | C29: ♦ | D29: ♦ | E29: ♦ | F29: ♦ | G29: ♦ | H29: ♦ | I29: ♦ | J29: ♦ | K29: ♦ | L29: ♦ | M29: ♦ | N29: ♦ | O29: ♦ | P29: ♦ | Q29: ♦ | R29: ♦ | S29: ♦ | T29: ♦ | U29: ♦ | V29: ♦ | W29: ♦ | X29: ♦
B30: ='4400B Maint Item Description'!B17 -> Clean Skid / Clean LLR | C30: ♦ | D30: ♦ | E30: ♦ | F30: ♦ | G30: ♦ | H30: ♦ | I30: ♦ | J30: ♦ | K30: ♦ | L30: ♦ | M30: ♦ | N30: ♦ | O30: ♦ | P30: ♦ | Q30: ♦ | R30: ♦ | S30: ♦ | T30: ♦ | U30: ♦ | V30: ♦ | W30: ♦ | X30: ♦
B31: ='4400B Maint Item Description'!B18 -> Verify operability of safety equipment | C31: ♦ | D31: ♦ | E31: ♦ | F31: ♦ | G31: ♦ | H31: ♦ | I31: ♦ | J31: ♦ | K31: ♦ | L31: ♦ | M31: ♦ | N31: ♦ | O31: ♦ | P31: ♦ | Q31: ♦ | R31: ♦ | S31: ♦ | T31: ♦ | U31: ♦ | V31: ♦ | W31: ♦ | X31: ♦
B32: ='4400B Maint Item Description'!B19 -> Replace High/Low Sides PRVs | D32: ♦ | F32: ♦ | H32: ♦ | J32: ♦ | L32: ♦ | N32: ♦ | P32: ♦ | R32: ♦ | T32: ♦ | V32: ♦ | X32: ♦
B33: ='4400B Maint Item Description'!B20 -> Replace PLC battery | D33: ♦ | F33: ♦ | H33: ♦ | J33: ♦ | L33: ♦ | N33: ♦ | P33: ♦ | R33: ♦ | T33: ♦ | V33: ♦ | X33: ♦
B34: ='4400B Maint Item Description'!B21 -> Bitzer Expander Replacement | H34: ♦ | P34: ♦ | X34: ♦
B35: ='4400B Maint Item Description'!B22 -> Replace VFD internal cooling fan | D35: ♦ | H35: ♦ | L35: ♦ | P35: ♦ | T35: ♦ | X35: ♦
B37: * PRVs should be replaced immediately if they discharge or show signs of water ingress. PRVs should be replaced at the interval required by local code or every 5 years, whichever is lower.
B38: ** Generator bearings are rated for 100,000 hours of operation.
B40: Current maintenance intervals are conservative, and may be extended based on field experience.
B41: This document contains confidential and proprietary information and is supplied purely to enable you to evaluate details concerning ElectraTherm products and services. No part of this document may be disclosed or transferred outside ElectraTherm or the current interested parties. No part of this document may be reproduced or transmitted in any form or by any means, including photography and recording, without the written permission of ElectraTherm, an application for which should be addressed to the organization.
B45: ='Payback Estimator-4400B'!A51 -> Copyright © ElectraTherm, Inc. 2021. All Rights Reserved | AA45: ='Payback Estimator-4400B'!D51 -> B Model Payback Estimator, Dual currency REV 01_20210714

Sheet Dropdown Menu (hidden)
B3: 4400B | C3: 6500B
B4: Line # | C4: Line #
B5: 4 / column A | D5: Active Cooler (AC800) | E5: 4400B
D6: POWER+ GENERATOR 4400B Power+
D7: POWER+ GENERATOR 4400B System Package
D8: POWER+ GENERATOR 4400B+ Power+
D9: POWER+ GENERATOR 4400B+ System Package
C11: 4 / column A | D11: POWER+ GENERATOR 6500B Power+ | E11: 6500B
D12: POWER+ GENERATOR 6500B System Package
D13: POWER+ GENERATOR 6500B+ Power+
D14: POWER+ GENERATOR 6500B+ System Package
B17: 4 / column D | D17: ACTIVE COOLER (AC800)
D18: 4400B POWER+ GENERATOR Standard Temperature
D19: 4400B+ POWER+ GENERATOR High Temperature
C21: 4 / column D | D21: 6500B POWER+ GENERATOR Standard Temperature
D22: 6500B+ POWER+ GENERATOR High Temperature
D24: in cell menu
B27: 12 / column A | C27: 12 / column A | D27: R245fa refrigerant (AC800) | E27: 4400B only
D28: R245fa refrigerant "B" Models (Standard Temperature) | E28: 4400B & 6500B
D29: R245fa refrigerant "B+" Models (High Temperature) | E29: 4400B & 6500B
B32: 12 / column D | C32: 12 / column D | D32: 100 kg (200 lbs. US) required. Honeywell Genetron R245fa recommended | E32: 4400B only
D33: 200 kg (400 lbs. US) required. Honeywell Genetron R245fa recommended | E33: 4400B & 6500B
D34: 250 kg (550 lbs. US) required. Honeywell Genetron R245fa recommended | E34: 4400B & 6500B
B38: 17 / column A | C38: 17 / column A | D38: Geothermal to hot water heat exchanger (Estimate)
D39: Engine exhaust gas heat exchanger (Estimate)
D40: Process heat exchanger (Estimate)
D41: Heat exchanger (Estimate)
D47: POWER+ GENERATOR 6500B Power+
D48: POWER+ GENERATOR 6500B System Package
D49: POWER+ GENERATOR 6500B+ Power+
D50: POWER+ GENERATOR 6500B+ System Package

Sheet Payback Estimator-6500B
C1: $ | D1: Single Currency
C2: ="$ x " & ROUND(C3,2) & " = " & G12 -> $ x 1 = $ | D2: CONFIDENTIAL
B3: $ U.S. Dollars | C3: 1 | D3: Payback Estimator
A4: POWER+ GENERATOR 6500B+ System Package | B4: =C4/$C$3 -> 178000 | C4: 178000 | D4: 6500B+ POWER+ GENERATOR High Temperature | G4: List fill range for currency selection - linked only to visible drop-down menu on main page. | H4: List fill range for currency display
A5: Liquid Loop Radiator (LLR) | B5: =C5*(1/$C$3) -> 55000 | C5: 55000 | D5: Liquid Loop Radiator size for location ambient and thermal duty | G5: $ | H5: Single Currency | I5: 5
A6: In-rush Reduction System | B6: =C6*(1/$C$3) -> 0 | D6: In-rush Reduction System per local codes (estimated costs) | G6: € | H6: Dual Currency | I6: 5
A7: LLR interconnect plumbing | B7: 0 | D7: Refrigerant plumbing, piping, valves, and assembly | G7: £ | I7: 5
A8: Water plumbing & Pump | B8: 10000 | C8: 10000 | D8: Plumbing, piping, connections, valves and assembly (estimated costs) | G8: ¥ | H8: Single Currency | I8: 5
A9: Hot water bypass assembly | B9: 0 | D9: Plumbing, piping, connections, valves and assembly | G9: ฿ | I9: 5
A10: Electrical components and hookup | B10: 10000 | C10: 10000 | D10: Electrical conduit, wiring, and component install (estimated costs) | G10: ‎₱ | I10: 5
A11: Sitework and footings for P+ | B11: 5000 | C11: 5000 | D11: Site specific (estimated costs) | G11: ₩ | I11: 5
A12: R245fa refrigerant "B+" Models (High Temperature) | B12: 10000 | C12: 10000 | D12: 250 kg (550 lbs. US) required. Honeywell Genetron R245fa recommended | G12: $ | I12: 5
A13: POWER+ GENERATOR installation | B13: 0 | D13: Site specific (estimated costs) | G13: 0 | I13: 5
A14: Dual Heat Stream option | B14: =C14*(1/$C$3) -> 0 | D14: Dual Heat Stream upgrade included at no additional cost | G14: 0
A15: Engine Radiator Replacement option | B15: 0 | D15: Radiator with a Payback option upgrade | G15: 0
A16: Cleanable Heat Exchanger for cooling loop/condensing | B16: 0 | D16: Cleanable heat exchanger, cooling pump, and associated piping
A17: Heat exchanger (Estimate only) | B17: 0 | C17: 0 | D17: Heat exchangers are specific to project & heat source (estimated costs)
A18: Heat exchanger (outside ET scope of supply) | B18: 0 | D18: steam to clean water heat exchanger (estimated cost)
A19: Commissioning and startup of P+ | B19: 6500 | C19: 6500 | D19: Technicians with travel expenses for two days
A20: Misc. expenses | B20: =C20/$C$3 -> 0 | C20: 0 | D20: Misc. balance of plant
A21: Shipping POWER+ GENERATOR | B21: 10000 | C21: 10000 | D21: Estimated shipping of P+ (estimated cost)
A22: Shipping refrigerant | B22: =C22/$C$3 -> 0 | C22: 0 | D22: Estimated shipping of refrigerant from factory to site
A23: Shipping LLR support structure | B23: 0 | D23: Estimated shipping of support structure from factory to site
A24: Engineering costs | B24: 0 | D24: Estimated engineering cost required for this project
A25: Estimated Total Capital Expenditure (CapEx) | B25: =SUM(B5:B24,B4) -> 284500 | C25: =SUM(C5:C24,C4) -> 284500 | D25: Estimated Total CapEx for this Project
A26: Federal incentives (deductive) | B26: =C26*(1/$C$3) -> 0 | C26: 0 | D26: (user editable)
A27: 26% Investment Tax Credit | B27: =C27*(1/$C$3) -> -73970 | C27: =-0.26*C25 -> -73970 | D27: US Investment Tax Credit (if applicable)
A28: Accelerated depreciation(deductive) | B28: =C28*(1/$C$3) -> 0 | D28: (user editable)
A29: State incentives(deductive) | B29: =C29*(1/$C$3) -> 0 | C29: 0 | D29: (user editable)
A30: State grants(deductive) | B30: =C30*(1/$C$3) -> 0 | C30: 0 | D30: (user editable)
A31: Total incentives(deductive) | B31: =SUM(B26:B30) -> -73970 | C31: =SUM(C26:C30) -> -73970 | D31: Total sum of all deductives
A32: CapEx including Incentives | B32: =B25+B31 -> 210530 | C32: =C25+C31 -> 210530 | D32: CapEx including Incentives
A33: Total value of power per kWh | B33: =C33*(1/$C$3) -> 0.1 | C33: 0.1 | D33: Average value of kWh produced
A34: Percentage of uptime hours (100% max/8760hrs) | B34: =C34 -> 0.97 | C34: 0.97 | D34: =CONCATENATE(TEXT(100*C34,"0"),"% uptime is equal to ",TEXT(C34*8760,"0")," hrs.") -> 97% uptime is equal to 8497 hrs.
A35: Estimated net power output in kWe | B35: =C35 -> 100 | C35: 100 | D35: P+ net output in kWe
A36: Fan radiator offset | B36: =C36 -> 0 | D36: Power savings from fan radiator
A37: Average Total Net Power Output in kWe | B37: =B35+B36 -> 100 | C37: =C35+C36 -> 100 | D37: Average Total Net Annual Power Output in kWe
A38: Annual value of power produced by POWER+ | B38: =$C$38*(1/$C$3) -> 84972 | C38: =(C34*8760*C33*C37) -> 84972 | D38: =CONCATENATE("1st year annual revenue from POWER+ GENERATOR [" & G12 & ROUND(C38/12,0)," Gross per month]") -> 1st year annual revenue from POWER+ GENERATOR [$7081 Gross per month]
A39: =CONCATENATE(" AVG annual P+ O&M expense based on " & G12 & TEXT('O&M Cost Estimator 6500B'!G16/B35,"0.000")," per kWh") -> AVG annual P+ O&M expense based on $0.009 per kWh | B39: ='O&M Cost Estimator 6500B'!F15/'O&M Cost Estimator 6500B'!F8 -> 7261.5825 | C39: ='O&M Cost Estimator 6500B'!G15/'O&M Cost Estimator 6500B'!F8 -> 7261.5825 | D39: Operation and maintenance expenses based on projected lifetime
A40: Simple Payback in Years | B40: =C40 -> 2.505062524 | C40: ='Internal Rate of Return-6500B'!T5 -> 2.505062524 | D40: =CONCATENATE("Years (this does account for ",TEXT(100*B42,"0"),"% increase " & G12 &"/kWh for electricity") -> Years (this does account for 0% increase $/kWh for electricity
A41: Projected lifetime | B41: =C41 -> 20 | C41: 20 | D41: Years
A42: =" Estimated % annual increase in " & G12 & "/kWh" -> Estimated % annual increase in $/kWh | B42: =C42 -> 0 | C42: 0 | D42: Estimated percentage per year in increased power costs
A43: Projected Lifetime Net Revenue | B43: =$C$43*(1/$C$3) -> 1343678.35 | C43: =LOOKUP(C41,'Internal Rate of Return-6500B'!I5:I25,'Internal Rate of Return-6500B'!N5:N25) -> 1343678.35 | D43: =CONCATENATE("Based on ",TEXT(100*C42,"0.00"),"% increase in power costs per year") -> Based on 0.00% increase in power costs per year
A44: Total cost per kWh over lifetime | B44: =(B32/(8760*B34*B37*B41))+'O&M Cost Estimator 6500B'!F12 -> 0.02093405181 | C44: =(C32/(8760*C34*C37*C41))+'O&M Cost Estimator 6500B'!G12 -> 0.02093405181 | D44: =CONCATENATE("Total cost over lifetime including O&M costs of " & G12 & TEXT('O&M Cost Estimator 6500B'!G12,"0.000")," per kWh") -> Total cost over lifetime including O&M costs of $0.009 per kWh
A45: IRR for projected lifetime | B45: =C45 -> 0.3833348917 | C45: =LOOKUP(C41,'Internal Rate of Return-6500B'!I5:I25,'Internal Rate of Return-6500B'!O5:O25) -> 0.3833348917 | D45: =CONCATENATE("Internal Rate of Return for ",TEXT(C41,"0.0")," years") -> Internal Rate of Return for 20.0 years
A46: Estimated inflation (discount) rate | B46: =C46 -> 0 | C46: 0 | D46: =CONCATENATE("Inflation rate of ",TEXT(C46,"0.00%"),) -> Inflation rate of 0.00%
A48: =" Net Present Value of Investment over " & C41 & " Years" -> Net Present Value of Investment over 20 Years | B48: ='Internal Rate of Return-6500B'!F108 -> 1343678.35 | C48: ='Internal Rate of Return-6500B'!M108 -> 1343678.35 | D48: =CONCATENATE("Based on inflation rate of ",TEXT(C46,"0.00%"),) -> Based on inflation rate of 0.00%
A49: This document contains confidential and proprietary information and is supplied purely to enable you to evaluate details concerning ElectraTherm products and services. No part of this document may be disclosed or transferred outside ElectraTherm or the current interested parties. No part of this document may be reproduced or transmitted in any form or by any means, including photography and recording, without the written permission of ElectraTherm, an application for which should be addressed to the organization. Such written permission must also be obtained before any part of this document is stored in a retrieval system of any nature.
A50: ='Payback Estimator-4400B'!A51 -> Copyright © ElectraTherm, Inc. 2021. All Rights Reserved | E50: ='Payback Estimator-4400B'!D51 -> B Model Payback Estimator, Dual currency REV 01_20210714

Sheet Internal Rate of Return-6500B
G1: Payback Estimator
A2: POWER+ 6500B IRR calculation(USD) | G2: CONFIDENTIAL | I2: POWER+ 6500B IRR calculation(EUR)
G3: Copyright © 2020 ElectraTherm
A4: Year: | B4: Capital Expenditure [Capex] ($) | C4: Annual maintenance costs (estimated) ($) | D4: Annual income from kwh produced ($) | E4: Net cash flow ($) | F4: Cumulative return ($) | G4: IRR | I4: Year: | J4: Capital Expenditure [Capex] ($) | K4: Annual maintenance costs (estimated) ($) | L4: Annual income from kwh produced ($) | M4: Net cash flow ($) | N4: Cumulative return ($) | O4: IRR | S4: payback
A5: 0 | B5: =-'Payback Estimator-6500B'!B32 -> -210530 | E5: =SUM(B5) -> -210530 | F5: =SUM(B5) -> -210530 | I5: 0 | J5: =-'Payback Estimator-6500B'!C32 -> -210530 | M5: =SUM(J5) -> -210530 | N5: =SUM(J5) -> -210530 | S5: 99999 | T5: =MIN(S5:S105) -> 2.505062524
A6: 1 | C6: =-LOOKUP(((A6*'O&M Cost Estimator 6500B'!F$7)-MOD((A6*'O&M Cost Estimator 6500B'!F$7),4400)),'O&M Cost Estimator 6500B'!F21:F221,'O&M Cost Estimator 6500B'!I21:I221)-LOOKUP(((A6*'O&M Cost Estimator 6500B'!F$7)-MOD((A6*'O&M Cost Estimator 6500B'!F$7),4400)),'O&M Cost Estimator 6500B'!F21:F221,'O&M Cost Estimator 6500B'!K21:K221) -> -282.5 | D6: ='Payback Estimator-6500B'!$B$38 -> 84972 | E6: =C6+D6 -> 84689.5 | F6: =SUM($E$5:E6) -> -125840.5 | G6: =IRR($E$5:E6) -> -0.5977319147 | I6: 1 | K6: =-LOOKUP(((A6*'O&M Cost Estimator 6500B'!F$7)-MOD((A6*'O&M Cost Estimator 6500B'!F$7),4400)),'O&M Cost Estimator 6500B'!Q21:Q221,'O&M Cost Estimator 6500B'!T21:T221)-LOOKUP(((A6*'O&M Cost Estimator 6500B'!F$7)-MOD((A6*'O&M Cost Estimator 6500B'!F$7),4400)),'O&M Cost Estimator 6500B'!Q21:Q221,'O&M Cost Estimator 6500B'!V21:V221) -> -282.5 | L6: ='Payback Estimator-6500B'!$C$38 -> 84972 | M6: =K6+L6 -> 84689.5 | N6: =SUM($M$5:M6) -> -125840.5 | O6: =IRR($M$5:M6) -> -0.5977319147 | S6: =IF(S5=99999,IF(F6>=0,A6-F6/E6,99999),99998) -> 99999
A7: 2 | C7: =-LOOKUP(((A7*'O&M Cost Estimator 6500B'!F$7)-MOD((A7*'O&M Cost Estimator 6500B'!F$7),4400)),'O&M Cost Estimator 6500B'!F$21:F$221,'O&M Cost Estimator 6500B'!I$21:I$221)-LOOKUP(((A7*'O&M Cost Estimator 6500B'!F$7)-MOD((A7*'O&M Cost Estimator 6500B'!F$7),4400)),'O&M Cost Estimator 6500B'!F$21:F$221,'O&M Cost Estimator 6500B'!K$21:K$221)+LOOKUP(((A6*'O&M Cost Estimator 6500B'!F$7)-MOD((A6*'O&M Cost Estimator 6500B'!F$7),4400)),'O&M Cost Estimator 6500B'!F$21:F$221,'O&M Cost Estimator 6500B'!I$21:I$221)+LOOKUP(((A6*'O&M Cost Estimator 6500B'!F$7)-MOD((A6*'O&M Cost Estimator 6500B'!F$7),4400)),'O&M Cost Estimator 6500B'!F$21:F$221,'O&M Cost Estimator 6500B'!K$21:K$221) -> -730 | D7: ='Payback Estimator-6500B'!$B$42*('Payback Estimator-6500B'!$B$38) +D6 -> 84972 | E7: 84242 | F7: =SUM($E$5:E7) -> -41598.5 | G7: =IRR($E$5:E7) -> -0.1350908444 | I7: 2 | K7: =-LOOKUP(((A7*'O&M Cost Estimator 6500B'!F$7)-MOD((A7*'O&M Cost Estimator 6500B'!F$7),4400)),'O&M Cost Estimator 6500B'!Q$21:Q$221,'O&M Cost Estimator 6500B'!T$21:T$221)-LOOKUP(((A7*'O&M Cost Estimator 6500B'!F$7)-MOD((A7*'O&M Cost Estimator 6500B'!F$7),4400)),'O&M Cost Estimator 6500B'!Q$21:Q$221,'O&M Cost Estimator 6500B'!V$21:V$221)+LOOKUP(((A6*'O&M Cost Estimator 6500B'!F$7)-MOD((A6*'O&M Cost Estimator 6500B'!F$7),4400)),'O&M Cost Estimator 6500B'!Q$21:Q$221,'O&M Cost Estimator 6500B'!T$21:T$221)+LOOKUP(((A6*'O&M Cost Estimator 6500B'!F$7)-MOD((A6*'O&M Cost Estimator 6500B'!F$7),4400)),'O&M Cost Estimator 6500B'!Q$21:Q$221,'O&M Cost Estimator 6500B'!V$21:V$221) -> -730 | L7: ='Payback Estimator-6500B'!$C$42*('Payback Estimator-6500B'!$C$38)+L6 -> 84972 | M7: 84242 | N7: =SUM($M$5:M7) -> -41598.5 | O7: =IRR($M$5:M7) -> -0.1350908444 | S7: 99999
A8: 3 | C8: =-LOOKUP(((A8*'O&M Cost Estimator 6500B'!F$7)-MOD((A8*'O&M Cost Estimator 6500B'!F$7),4400)),'O&M Cost Estimator 6500B'!F$21:F$221,'O&M Cost Estimator 6500B'!I$21:I$221)-LOOKUP(((A8*'O&M Cost Estimator 6500B'!F$7)-MOD((A8*'O&M Cost Estimator 6500B'!F$7),4400)),'O&M Cost Estimator 6500B'!F$21:F$221,'O&M Cost Estimator 6500B'!K$21:K$221)+LOOKUP(((A7*'O&M Cost Estimator 6500B'!F$7)-MOD((A7*'O&M Cost Estimator 6500B'!F$7),4400)),'O&M Cost Estimator 6500B'!F$21:F$221,'O&M Cost Estimator 6500B'!I$21:I$221)+LOOKUP(((A7*'O&M Cost Estimator 6500B'!F$7)-MOD((A7*'O&M Cost Estimator 6500B'!F$7),4400)),'O&M Cost Estimator 6500B'!F$21:F$221,'O&M Cost Estimator 6500B'!K$21:K$221) -> -2608.93 | D8: ='Payback Estimator-6500B'!$B$42*(D7) +D7 -> 84972 | E8: 82363.07 | F8: =SUM($E$5:E8) -> 40764.57 | G8: =IRR($E$5:E8) -> 0.09446893597 | I8: 3 | K8: =-LOOKUP(((A8*'O&M Cost Estimator 6500B'!F$7)-MOD((A8*'O&M Cost Estimator 6500B'!F$7),4400)),'O&M Cost Estimator 6500B'!Q$21:Q$221,'O&M Cost Estimator 6500B'!T$21:T$221)-LOOKUP(((A8*'O&M Cost Estimator 6500B'!F$7)-MOD((A8*'O&M Cost Estimator 6500B'!F$7),4400)),'O&M Cost Estimator 6500B'!Q$21:Q$221,'O&M Cost Estimator 6500B'!V$21:V$221)+LOOKUP(((A7*'O&M Cost Estimator 6500B'!F$7)-MOD((A7*'O&M Cost Estimator 6500B'!F$7),4400)),'O&M Cost Estimator 6500B'!Q$21:Q$221,'O&M Cost Estimator 6500B'!T$21:T$221)+LOOKUP(((A7*'O&M Cost Estimator 6500B'!F$7)-MOD((A7*'O&M Cost Estimator 6500B'!F$7),4400)),'O&M Cost Estimator 6500B'!Q$21:Q$221,'O&M Cost Estimator 6500B'!V$21:V$221) -> -2608.93 | L8: ='Payback Estimator-6500B'!$C$42*(L7)+L7 -> 84972 | M8: 82363.07 | N8: =SUM($M$5:M8) -> 40764.57 | O8: =IRR($M$5:M8) -> 0.09446893597 | S8: 2.505062524
A9: 4 | C9: =-LOOKUP(((A9*'O&M Cost Estimator 6500B'!F$7)-MOD((A9*'O&M Cost Estimator 6500B'!F$7),4400)),'O&M Cost Estimator 6500B'!F$21:F$221,'O&M Cost Estimator 6500B'!I$21:I$221)-LOOKUP(((A9*'O&M Cost Estimator 6500B'!F$7)-MOD((A9*'O&M Cost Estimator 6500B'!F$7),4400)),'O&M Cost Estimator 6500B'!F$21:F$221,'O&M Cost Estimator 6500B'!K$21:K$221)+LOOKUP(((A8*'O&M Cost Estimator 6500B'!F$7)-MOD((A8*'O&M Cost Estimator 6500B'!F$7),4400)),'O&M Cost Estimator 6500B'!F$21:F$221,'O&M Cost Estimator 6500B'!I$21:I$221)+LOOKUP(((A8*'O&M Cost Estimator 6500B'!F$7)-MOD((A8*'O&M Cost Estimator 6500B'!F$7),4400)),'O&M Cost Estimator 6500B'!F$21:F$221,'O&M Cost Estimator 6500B'!K$21:K$221) -> -1085 | D9: ='Payback Estimator-6500B'!$B$42*(D8) +D8 -> 84972 | E9: 83887 | F9: =SUM($E$5:E9) -> 124651.57 | G9: =IRR($E$5:E9) -> 0.2166726595 | I9: 4 | K9: =-LOOKUP(((A9*'O&M Cost Estimator 6500B'!F$7)-MOD((A9*'O&M Cost Estimator 6500B'!F$7),4400)),'O&M Cost Estimator 6500B'!Q$21:Q$221,'O&M Cost Estimator 6500B'!T$21:T$221)-LOOKUP(((A9*'O&M Cost Estimator 6500B'!F$7)-MOD((A9*'O&M Cost Estimator 6500B'!F$7),4400)),'O&M Cost Estimator 6500B'!Q$21:Q$221,'O&M Cost Estimator 6500B'!V$21:V$221)+LOOKUP(((A8*'O&M Cost Estimator 6500B'!F$7)-MOD((A8*'O&M Cost Estimator 6500B'!F$7),4400)),'O&M Cost Estimator 6500B'!Q$21:Q$221,'O&M Cost Estimator 6500B'!T$21:T$221)+LOOKUP(((A8*'O&M Cost Estimator 6500B'!F$7)-MOD((A8*'O&M Cost Estimator 6500B'!F$7),4400)),'O&M Cost Estimator 6500B'!Q$21:Q$221,'O&M Cost Estimator 6500B'!V$21:V$221) -> -1085 | L9: ='Payback Estimator-6500B'!$C$42*(L8)+L8 -> 84972 | M9: 83887 | N9: =SUM($M$5:M9) -> 124651.57 | O9: =IRR($M$5:M9) -> 0.2166726595 | S9: 99998
A10: 5 | C10: =-LOOKUP(((A10*'O&M Cost Estimator 6500B'!F$7)-MOD((A10*'O&M Cost Estimator 6500B'!F$7),4400)),'O&M Cost Estimator 6500B'!F$21:F$221,'O&M Cost Estimator 6500B'!I$21:I$221)-LOOKUP(((A10*'O&M Cost Estimator 6500B'!F$7)-MOD((A10*'O&M Cost Estimator 6500B'!F$7),4400)),'O&M Cost Estimator 6500B'!F$21:F$221,'O&M Cost Estimator 6500B'!K$21:K$221)+LOOKUP(((A9*'O&M Cost Estimator 6500B'!F$7)-MOD((A9*'O&M Cost Estimator 6500B'!F$7),4400)),'O&M Cost Estimator 6500B'!F$21:F$221,'O&M Cost Estimator 6500B'!I$21:I$221)+LOOKUP(((A9*'O&M Cost Estimator 6500B'!F$7)-MOD((A9*'O&M Cost Estimator 6500B'!F$7),4400)),'O&M Cost Estimator 6500B'!F$21:F$221,'O&M Cost Estimator 6500B'!K$21:K$221) -> -30778 | D10: ='Payback Estimator-6500B'!$B$42*(D9) +D9 -> 84972 | E10: 54194 | F10: =SUM($E$5:E10) -> 178845.57 | G10: =IRR($E$5:E10) -> 0.2631139898 | I10: 5 | K10: =-LOOKUP(((A10*'O&M Cost Estimator 6500B'!F$7)-MOD((A10*'O&M Cost Estimator 6500B'!F$7),4400)),'O&M Cost Estimator 6500B'!Q$21:Q$221,'O&M Cost Estimator 6500B'!T$21:T$221)-LOOKUP(((A10*'O&M Cost Estimator 6500B'!F$7)-MOD((A10*'O&M Cost Estimator 6500B'!F$7),4400)),'O&M Cost Estimator 6500B'!Q$21:Q$221,'O&M Cost Estimator 6500B'!V$21:V$221)+LOOKUP(((A9*'O&M Cost Estimator 6500B'!F$7)-MOD((A9*'O&M Cost Estimator 6500B'!F$7),4400)),'O&M Cost Estimator 6500B'!Q$21:Q$221,'O&M Cost Estimator 6500B'!T$21:T$221)+LOOKUP(((A9*'O&M Cost Estimator 6500B'!F$7)-MOD((A9*'O&M Cost Estimator 6500B'!F$7),4400)),'O&M Cost Estimator 6500B'!Q$21:Q$221,'O&M Cost Estimator 6500B'!V$21:V$221) -> -30778 | L10: ='Payback Estimator-6500B'!$C$42*(L9)+L9 -> 84972 | M10: 54194 | N10: =SUM($M$5:M10) -> 178845.57 | O10: =IRR($M$5:M10) -> 0.2631139898 | S10: 99998
A11: 6 | C11: =-LOOKUP(((A11*'O&M Cost Estimator 6500B'!F$7)-MOD((A11*'O&M Cost Estimator 6500B'!F$7),4400)),'O&M Cost Estimator 6500B'!F$21:F$221,'O&M Cost Estimator 6500B'!I$21:I$221)-LOOKUP(((A11*'O&M Cost Estimator 6500B'!F$7)-MOD((A11*'O&M Cost Estimator 6500B'!F$7),4400)),'O&M Cost Estimator 6500B'!F$21:F$221,'O&M Cost Estimator 6500B'!K$21:K$221)+LOOKUP(((A10*'O&M Cost Estimator 6500B'!F$7)-MOD((A10*'O&M Cost Estimator 6500B'!F$7),4400)),'O&M Cost Estimator 6500B'!F$21:F$221,'O&M Cost Estimator 6500B'!I$21:I$221)+LOOKUP(((A10*'O&M Cost Estimator 6500B'!F$7)-MOD((A10*'O&M Cost Estimator 6500B'!F$7),4400)),'O&M Cost Estimator 6500B'!F$21:F$221,'O&M Cost Estimator 6500B'!K$21:K$221) -> -730 | D11: ='Payback Estimator-6500B'!$B$42*(D10) +D10 -> 84972 | E11: 84242 | F11: =SUM($E$5:E11) -> 263087.57 | G11: =IRR($E$5:E11) -> 0.3077628312 | I11: 6 | K11: =-LOOKUP(((A11*'O&M Cost Estimator 6500B'!F$7)-MOD((A11*'O&M Cost Estimator 6500B'!F$7),4400)),'O&M Cost Estimator 6500B'!Q$21:Q$221,'O&M Cost Estimator 6500B'!T$21:T$221)-LOOKUP(((A11*'O&M Cost Estimator 6500B'!F$7)-MOD((A11*'O&M Cost Estimator 6500B'!F$7),4400)),'O&M Cost Estimator 6500B'!Q$21:Q$221,'O&M Cost Estimator 6500B'!V$21:V$221)+LOOKUP(((A10*'O&M Cost Estimator 6500B'!F$7)-MOD((A10*'O&M Cost Estimator 6500B'!F$7),4400)),'O&M Cost Estimator 6500B'!Q$21:Q$221,'O&M Cost Estimator 6500B'!T$21:T$221)+LOOKUP(((A10*'O&M Cost Estimator 6500B'!F$7)-MOD((A10*'O&M Cost Estimator 6500B'!F$7),4400)),'O&M Cost Estimator 6500B'!Q$21:Q$221,'O&M Cost Estimator 6500B'!V$21:V$221) -> -730 | L11: ='Payback Estimator-6500B'!$C$42*(L10)+L10 -> 84972 | M11: 84242 | N11: =SUM($M$5:M11) -> 263087.57 | O11: =IRR($M$5:M11) -> 0.3077628312 | S11: 99998
A12: 7 | C12: =-LOOKUP(((A12*'O&M Cost Estimator 6500B'!F$7)-MOD((A12*'O&M Cost Estimator 6500B'!F$7),4400)),'O&M Cost Estimator 6500B'!F$21:F$221,'O&M Cost Estimator 6500B'!I$21:I$221)-LOOKUP(((A12*'O&M Cost Estimator 6500B'!F$7)-MOD((A12*'O&M Cost Estimator 6500B'!F$7),4400)),'O&M Cost Estimator 6500B'!F$21:F$221,'O&M Cost Estimator 6500B'!K$21:K$221)+LOOKUP(((A11*'O&M Cost Estimator 6500B'!F$7)-MOD((A11*'O&M Cost Estimator 6500B'!F$7),4400)),'O&M Cost Estimator 6500B'!F$21:F$221,'O&M Cost Estimator 6500B'!I$21:I$221)+LOOKUP(((A11*'O&M Cost Estimator 6500B'!F$7)-MOD((A11*'O&M Cost Estimator 6500B'!F$7),4400)),'O&M Cost Estimator 6500B'!F$21:F$221,'O&M Cost Estimator 6500B'!K$21:K$221) -> -2608.93 | D12: ='Payback Estimator-6500B'!$B$42*(D11) +D11 -> 84972 | E12: 82363.07 | F12: =SUM($E$5:E12) -> 345450.64 | G12: =IRR($E$5:E12) -> 0.3344702065 | I12: 7 | K12: =-LOOKUP(((A12*'O&M Cost Estimator 6500B'!F$7)-MOD((A12*'O&M Cost Estimator 6500B'!F$7),4400)),'O&M Cost Estimator 6500B'!Q$21:Q$221,'O&M Cost Estimator 6500B'!T$21:T$221)-LOOKUP(((A12*'O&M Cost Estimator 6500B'!F$7)-MOD((A12*'O&M Cost Estimator 6500B'!F$7),4400)),'O&M Cost Estimator 6500B'!Q$21:Q$221,'O&M Cost Estimator 6500B'!V$21:V$221)+LOOKUP(((A11*'O&M Cost Estimator 6500B'!F$7)-MOD((A11*'O&M Cost Estimator 6500B'!F$7),4400)),'O&M Cost Estimator 6500B'!Q$21:Q$221,'O&M Cost Estimator 6500B'!T$21:T$221)+LOOKUP(((A11*'O&M Cost Estimator 6500B'!F$7)-MOD((A11*'O&M Cost Estimator 6500B'!F$7),4400)),'O&M Cost Estimator 6500B'!Q$21:Q$221,'O&M Cost Estimator 6500B'!V$21:V$221) -> -2608.93 | L12: ='Payback Estimator-6500B'!$C$42*(L11)+L11 -> 84972 | M12: =K12+L12 -> 82363.07 | N12: =SUM($M$5:M12) -> 345450.64 | O12: =IRR($M$5:M12) -> 0.3344702065 | S12: 99998
A13: 8 | C13: =-LOOKUP(((A13*'O&M Cost Estimator 6500B'!F$7)-MOD((A13*'O&M Cost Estimator 6500B'!F$7),4400)),'O&M Cost Estimator 6500B'!F$21:F$221,'O&M Cost Estimator 6500B'!I$21:I$221)-LOOKUP(((A13*'O&M Cost Estimator 6500B'!F$7)-MOD((A13*'O&M Cost Estimator 6500B'!F$7),4400)),'O&M Cost Estimator 6500B'!F$21:F$221,'O&M Cost Estimator 6500B'!K$21:K$221)+LOOKUP(((A12*'O&M Cost Estimator 6500B'!F$7)-MOD((A12*'O&M Cost Estimator 6500B'!F$7),4400)),'O&M Cost Estimator 6500B'!F$21:F$221,'O&M Cost Estimator 6500B'!I$21:I$221)+LOOKUP(((A12*'O&M Cost Estimator 6500B'!F$7)-MOD((A12*'O&M Cost Estimator 6500B'!F$7),4400)),'O&M Cost Estimator 6500B'!F$21:F$221,'O&M Cost Estimator 6500B'!K$21:K$221) -> -1085 | D13: ='Payback Estimator-6500B'!$B$42*(D12) +D12 -> 84972 | E13: 83887 | F13: =SUM($E$5:E13) -> 429337.64 | G13: =IRR($E$5:E13) -> 0.3518059788 | I13: 8 | K13: =-LOOKUP(((A13*'O&M Cost Estimator 6500B'!F$7)-MOD((A13*'O&M Cost Estimator 6500B'!F$7),4400)),'O&M Cost Estimator 6500B'!Q$21:Q$221,'O&M Cost Estimator 6500B'!T$21:T$221)-LOOKUP(((A13*'O&M Cost Estimator 6500B'!F$7)-MOD((A13*'O&M Cost Estimator 6500B'!F$7),4400)),'O&M Cost Estimator 6500B'!Q$21:Q$221,'O&M Cost Estimator 6500B'!V$21:V$221)+LOOKUP(((A12*'O&M Cost Estimator 6500B'!F$7)-MOD((A12*'O&M Cost Estimator 6500B'!F$7),4400)),'O&M Cost Estimator 6500B'!Q$21:Q$221,'O&M Cost Estimator 6500B'!T$21:T$221)+LOOKUP(((A12*'O&M Cost Estimator 6500B'!F$7)-MOD((A12*'O&M Cost Estimator 6500B'!F$7),4400)),'O&M Cost Estimator 6500B'!Q$21:Q$221,'O&M Cost Estimator 6500B'!V$21:V$221) -> -1085 | L13: ='Payback Estimator-6500B'!$C$42*(L12)+L12 -> 84972 | M13: 83887 | N13: =SUM($M$5:M13) -> 429337.64 | O13: =IRR($M$5:M13) -> 0.3518059788 | S13: 99998
A14: 9 | C14: =-LOOKUP(((A14*'O&M Cost Estimator 6500B'!F$7)-MOD((A14*'O&M Cost Estimator 6500B'!F$7),4400)),'O&M Cost Estimator 6500B'!F$21:F$221,'O&M Cost Estimator 6500B'!I$21:I$221)-LOOKUP(((A14*'O&M Cost Estimator 6500B'!F$7)-MOD((A14*'O&M Cost Estimator 6500B'!F$7),4400)),'O&M Cost Estimator 6500B'!F$21:F$221,'O&M Cost Estimator 6500B'!K$21:K$221)+LOOKUP(((A13*'O&M Cost Estimator 6500B'!F$7)-MOD((A13*'O&M Cost Estimator 6500B'!F$7),4400)),'O&M Cost Estimator 6500B'!F$21:F$221,'O&M Cost Estimator 6500B'!I$21:I$221)+LOOKUP(((A13*'O&M Cost Estimator 6500B'!F$7)-MOD((A13*'O&M Cost Estimator 6500B'!F$7),4400)),'O&M Cost Estimator 6500B'!F$21:F$221,'O&M Cost Estimator 6500B'!K$21:K$221) -> -30778 | D14: ='Payback Estimator-6500B'!$B$42*(D13) +D13 -> 84972 | E14: 54194 | F14: =SUM($E$5:E14) -> 483531.64 | G14: =IRR($E$5:E14) -> 0.3592754132 | I14: 9 | K14: =-LOOKUP(((A14*'O&M Cost Estimator 6500B'!F$7)-MOD((A14*'O&M Cost Estimator 6500B'!F$7),4400)),'O&M Cost Estimator 6500B'!Q$21:Q$221,'O&M Cost Estimator 6500B'!T$21:T$221)-LOOKUP(((A14*'O&M Cost Estimator 6500B'!F$7)-MOD((A14*'O&M Cost Estimator 6500B'!F$7),4400)),'O&M Cost Estimator 6500B'!Q$21:Q$221,'O&M Cost Estimator 6500B'!V$21:V$221)+LOOKUP(((A13*'O&M Cost Estimator 6500B'!F$7)-MOD((A13*'O&M Cost Estimator 6500B'!F$7),4400)),'O&M Cost Estimator 6500B'!Q$21:Q$221,'O&M Cost Estimator 6500B'!T$21:T$221)+LOOKUP(((A13*'O&M Cost Estimator 6500B'!F$7)-MOD((A13*'O&M Cost Estimator 6500B'!F$7),4400)),'O&M Cost Estimator 6500B'!Q$21:Q$221,'O&M Cost Estimator 6500B'!V$21:V$221) -> -30778 | L14: ='Payback Estimator-6500B'!$C$42*(L13)+L13 -> 84972 | M14: 54194 | N14: =SUM($M$5:M14) -> 483531.64 | O14: =IRR($M$5:M14) -> 0.3592754132 | S14: 99998
A15: 10 | C15: =-LOOKUP(((A15*'O&M Cost Estimator 6500B'!F$7)-MOD((A15*'O&M Cost Estimator 6500B'!F$7),4400)),'O&M Cost Estimator 6500B'!F$21:F$221,'O&M Cost Estimator 6500B'!I$21:I$221)-LOOKUP(((A15*'O&M Cost Estimator 6500B'!F$7)-MOD((A15*'O&M Cost Estimator 6500B'!F$7),4400)),'O&M Cost Estimator 6500B'!F$21:F$221,'O&M Cost Estimator 6500B'!K$21:K$221)+LOOKUP(((A14*'O&M Cost Estimator 6500B'!F$7)-MOD((A14*'O&M Cost Estimator 6500B'!F$7),4400)),'O&M Cost Estimator 6500B'!F$21:F$221,'O&M Cost Estimator 6500B'!I$21:I$221)+LOOKUP(((A14*'O&M Cost Estimator 6500B'!F$7)-MOD((A14*'O&M Cost Estimator 6500B'!F$7),4400)),'O&M Cost Estimator 6500B'!F$21:F$221,'O&M Cost Estimator 6500B'!K$21:K$221) -> -730 | D15: ='Payback Estimator-6500B'!$B$42*(D14) +D14 -> 84972 | E15: 84242 | F15: =SUM($E$5:E15) -> 567773.64 | G15: =IRR($E$5:E15) -> 0.3671890691 | I15: 10 | K15: =-LOOKUP(((A15*'O&M Cost Estimator 6500B'!F$7)-MOD((A15*'O&M Cost Estimator 6500B'!F$7),4400)),'O&M Cost Estimator 6500B'!Q$21:Q$221,'O&M Cost Estimator 6500B'!T$21:T$221)-LOOKUP(((A15*'O&M Cost Estimator 6500B'!F$7)-MOD((A15*'O&M Cost Estimator 6500B'!F$7),4400)),'O&M Cost Estimator 6500B'!Q$21:Q$221,'O&M Cost Estimator 6500B'!V$21:V$221)+LOOKUP(((A14*'O&M Cost Estimator 6500B'!F$7)-MOD((A14*'O&M Cost Estimator 6500B'!F$7),4400)),'O&M Cost Estimator 6500B'!Q$21:Q$221,'O&M Cost Estimator 6500B'!T$21:T$221)+LOOKUP(((A14*'O&M Cost Estimator 6500B'!F$7)-MOD((A14*'O&M Cost Estimator 6500B'!F$7),4400)),'O&M Cost Estimator 6500B'!Q$21:Q$221,'O&M Cost Estimator 6500B'!V$21:V$221) -> -730 | L15: ='Payback Estimator-6500B'!$C$42*(L14)+L14 -> 84972 | M15: 84242 | N15: =SUM($M$5:M15) -> 567773.64 | O15: =IRR($M$5:M15) -> 0.3671890691 | S15: 99998
A16: 11 | C16: =-LOOKUP(((A16*'O&M Cost Estimator 6500B'!F$7)-MOD((A16*'O&M Cost Estimator 6500B'!F$7),4400)),'O&M Cost Estimator 6500B'!F$21:F$221,'O&M Cost Estimator 6500B'!I$21:I$221)-LOOKUP(((A16*'O&M Cost Estimator 6500B'!F$7)-MOD((A16*'O&M Cost Estimator 6500B'!F$7),4400)),'O&M Cost Estimator 6500B'!F$21:F$221,'O&M Cost Estimator 6500B'!K$21:K$221)+LOOKUP(((A15*'O&M Cost Estimator 6500B'!F$7)-MOD((A15*'O&M Cost Estimator 6500B'!F$7),4400)),'O&M Cost Estimator 6500B'!F$21:F$221,'O&M Cost Estimator 6500B'!I$21:I$221)+LOOKUP(((A15*'O&M Cost Estimator 6500B'!F$7)-MOD((A15*'O&M Cost Estimator 6500B'!F$7),4400)),'O&M Cost Estimator 6500B'!F$21:F$221,'O&M Cost Estimator 6500B'!K$21:K$221) -> -2608.93 | D16: ='Payback Estimator-6500B'!$B$42*(D15) +D15 -> 84972 | E16: 82363.07 | F16: =SUM($E$5:E16) -> 650136.71 | G16: =IRR($E$5:E16) -> 0.3724534198 | I16: 11 | K16: =-LOOKUP(((A16*'O&M Cost Estimator 6500B'!F$7)-MOD((A16*'O&M Cost Estimator 6500B'!F$7),4400)),'O&M Cost Estimator 6500B'!Q$21:Q$221,'O&M Cost Estimator 6500B'!T$21:T$221)-LOOKUP(((A16*'O&M Cost Estimator 6500B'!F$7)-MOD((A16*'O&M Cost Estimator 6500B'!F$7),4400)),'O&M Cost Estimator 6500B'!Q$21:Q$221,'O&M Cost Estimator 6500B'!V$21:V$221)+LOOKUP(((A15*'O&M Cost Estimator 6500B'!F$7)-MOD((A15*'O&M Cost Estimator 6500B'!F$7),4400)),'O&M Cost Estimator 6500B'!Q$21:Q$221,'O&M Cost Estimator 6500B'!T$21:T$221)+LOOKUP(((A15*'O&M Cost Estimator 6500B'!F$7)-MOD((A15*'O&M Cost Estimator 6500B'!F$7),4400)),'O&M Cost Estimator 6500B'!Q$21:Q$221,'O&M Cost Estimator 6500B'!V$21:V$221) -> -2608.93 | L16: ='Payback Estimator-6500B'!$C$42*(L15)+L15 -> 84972 | M16: 82363.07 | N16: =SUM($M$5:M16) -> 650136.71 | O16: =IRR($M$5:M16) -> 0.3724534198 | S16: 99998
A17: 12 | C17: =-LOOKUP(((A17*'O&M Cost Estimator 6500B'!F$7)-MOD((A17*'O&M Cost Estimator 6500B'!F$7),4400)),'O&M Cost Estimator 6500B'!F$21:F$221,'O&M Cost Estimator 6500B'!I$21:I$221)-LOOKUP(((A17*'O&M Cost Estimator 6500B'!F$7)-MOD((A17*'O&M Cost Estimator 6500B'!F$7),4400)),'O&M Cost Estimator 6500B'!F$21:F$221,'O&M Cost Estimator 6500B'!K$21:K$221)+LOOKUP(((A16*'O&M Cost Estimator 6500B'!F$7)-MOD((A16*'O&M Cost Estimator 6500B'!F$7),4400)),'O&M Cost Estimator 6500B'!F$21:F$221,'O&M Cost Estimator 6500B'!I$21:I$221)+LOOKUP(((A16*'O&M Cost Estimator 6500B'!F$7)-MOD((A16*'O&M Cost Estimator 6500B'!F$7),4400)),'O&M Cost Estimator 6500B'!F$21:F$221,'O&M Cost Estimator 6500B'!K$21:K$221) -> -1085 | D17: ='Payback Estimator-6500B'!$B$42*(D16) +D16 -> 84972 | E17: 83887 | F17: =SUM($E$5:E17) -> 734023.71 | G17: =IRR($E$5:E17) -> 0.3761515681 | I17: 12 | K17: =-LOOKUP(((A17*'O&M Cost Estimator 6500B'!F$7)-MOD((A17*'O&M Cost Estimator 6500B'!F$7),4400)),'O&M Cost Estimator 6500B'!Q$21:Q$221,'O&M Cost Estimator 6500B'!T$21:T$221)-LOOKUP(((A17*'O&M Cost Estimator 6500B'!F$7)-MOD((A17*'O&M Cost Estimator 6500B'!F$7),4400)),'O&M Cost Estimator 6500B'!Q$21:Q$221,'O&M Cost Estimator 6500B'!V$21:V$221)+LOOKUP(((A16*'O&M Cost Estimator 6500B'!F$7)-MOD((A16*'O&M Cost Estimator 6500B'!F$7),4400)),'O&M Cost Estimator 6500B'!Q$21:Q$221,'O&M Cost Estimator 6500B'!T$21:T$221)+LOOKUP(((A16*'O&M Cost Estimator 6500B'!F$7)-MOD((A16*'O&M Cost Estimator 6500B'!F$7),4400)),'O&M Cost Estimator 6500B'!Q$21:Q$221,'O&M Cost Estimator 6500B'!V$21:V$221) -> -1085 | L17: ='Payback Estimator-6500B'!$C$42*(L16)+L16 -> 84972 | M17: 83887 | N17: =SUM($M$5:M17) -> 734023.71 | O17: =IRR($M$5:M17) -> 0.3761515681 | S17: 99998
A18: 13 | C18: =-LOOKUP(((A18*'O&M Cost Estimator 6500B'!F$7)-MOD((A18*'O&M Cost Estimator 6500B'!F$7),4400)),'O&M Cost Estimator 6500B'!F$21:F$221,'O&M Cost Estimator 6500B'!I$21:I$221)-LOOKUP(((A18*'O&M Cost Estimator 6500B'!F$7)-MOD((A18*'O&M Cost Estimator 6500B'!F$7),4400)),'O&M Cost Estimator 6500B'!F$21:F$221,'O&M Cost Estimator 6500B'!K$21:K$221)+LOOKUP(((A17*'O&M Cost Estimator 6500B'!F$7)-MOD((A17*'O&M Cost Estimator 6500B'!F$7),4400)),'O&M Cost Estimator 6500B'!F$21:F$221,'O&M Cost Estimator 6500B'!I$21:I$221)+LOOKUP(((A17*'O&M Cost Estimator 6500B'!F$7)-MOD((A17*'O&M Cost Estimator 6500B'!F$7),4400)),'O&M Cost Estimator 6500B'!F$21:F$221,'O&M Cost Estimator 6500B'!K$21:K$221) -> -30778 | D18: ='Payback Estimator-6500B'!$B$42*(D17) +D17 -> 84972 | E18: 54194 | F18: =SUM($E$5:E18) -> 788217.71 | G18: =IRR($E$5:E18) -> 0.3778264032 | I18: 13 | K18: =-LOOKUP(((A18*'O&M Cost Estimator 6500B'!F$7)-MOD((A18*'O&M Cost Estimator 6500B'!F$7),4400)),'O&M Cost Estimator 6500B'!Q$21:Q$221,'O&M Cost Estimator 6500B'!T$21:T$221)-LOOKUP(((A18*'O&M Cost Estimator 6500B'!F$7)-MOD((A18*'O&M Cost Estimator 6500B'!F$7),4400)),'O&M Cost Estimator 6500B'!Q$21:Q$221,'O&M Cost Estimator 6500B'!V$21:V$221)+LOOKUP(((A17*'O&M Cost Estimator 6500B'!F$7)-MOD((A17*'O&M Cost Estimator 6500B'!F$7),4400)),'O&M Cost Estimator 6500B'!Q$21:Q$221,'O&M Cost Estimator 6500B'!T$21:T$221)+LOOKUP(((A17*'O&M Cost Estimator 6500B'!F$7)-MOD((A17*'O&M Cost Estimator 6500B'!F$7),4400)),'O&M Cost Estimator 6500B'!Q$21:Q$221,'O&M Cost Estimator 6500B'!V$21:V$221) -> -30778 | L18: ='Payback Estimator-6500B'!$C$42*(L17)+L17 -> 84972 | M18: 54194 | N18: =SUM($M$5:M18) -> 788217.71 | O18: =IRR($M$5:M18) -> 0.3778264032 | S18: 99998
A19: 14 | C19: =-LOOKUP(((A19*'O&M Cost Estimator 6500B'!F$7)-MOD((A19*'O&M Cost Estimator 6500B'!F$7),4400)),'O&M Cost Estimator 6500B'!F$21:F$221,'O&M Cost Estimator 6500B'!I$21:I$221)-LOOKUP(((A19*'O&M Cost Estimator 6500B'!F$7)-MOD((A19*'O&M Cost Estimator 6500B'!F$7),4400)),'O&M Cost Estimator 6500B'!F$21:F$221,'O&M Cost Estimator 6500B'!K$21:K$221)+LOOKUP(((A18*'O&M Cost Estimator 6500B'!F$7)-MOD((A18*'O&M Cost Estimator 6500B'!F$7),4400)),'O&M Cost Estimator 6500B'!F$21:F$221,'O&M Cost Estimator 6500B'!I$21:I$221)+LOOKUP(((A18*'O&M Cost Estimator 6500B'!F$7)-MOD((A18*'O&M Cost Estimator 6500B'!F$7),4400)),'O&M Cost Estimator 6500B'!F$21:F$221,'O&M Cost Estimator 6500B'!K$21:K$221) -> -730 | D19: ='Payback Estimator-6500B'!$B$42*(D18) +D18 -> 84972 | E19: 84242 | F19: =SUM($E$5:E19) -> 872459.71 | G19: =IRR($E$5:E19) -> 0.3796666747 | I19: 14 | K19: =-LOOKUP(((A19*'O&M Cost Estimator 6500B'!F$7)-MOD((A19*'O&M Cost Estimator 6500B'!F$7),4400)),'O&M Cost Estimator 6500B'!Q$21:Q$221,'O&M Cost Estimator 6500B'!T$21:T$221)-LOOKUP(((A19*'O&M Cost Estimator 6500B'!F$7)-MOD((A19*'O&M Cost Estimator 6500B'!F$7),4400)),'O&M Cost Estimator 6500B'!Q$21:Q$221,'O&M Cost Estimator 6500B'!V$21:V$221)+LOOKUP(((A18*'O&M Cost Estimator 6500B'!F$7)-MOD((A18*'O&M Cost Estimator 6500B'!F$7),4400)),'O&M Cost Estimator 6500B'!Q$21:Q$221,'O&M Cost Estimator 6500B'!T$21:T$221)+LOOKUP(((A18*'O&M Cost Estimator 6500B'!F$7)-MOD((A18*'O&M Cost Estimator 6500B'!F$7),4400)),'O&M Cost Estimator 6500B'!Q$21:Q$221,'O&M Cost Estimator 6500B'!V$21:V$221) -> -730 | L19: ='Payback Estimator-6500B'!$C$42*(L18)+L18 -> 84972 | M19: 84242 | N19: =SUM($M$5:M19) -> 872459.71 | O19: =IRR($M$5:M19) -> 0.3796666747 | S19: 99998
A20: 15 | C20: =-LOOKUP(((A20*'O&M Cost Estimator 6500B'!F$7)-MOD((A20*'O&M Cost Estimator 6500B'!F$7),4400)),'O&M Cost Estimator 6500B'!F$21:F$221,'O&M Cost Estimator 6500B'!I$21:I$221)-LOOKUP(((A20*'O&M Cost Estimator 6500B'!F$7)-MOD((A20*'O&M Cost Estimator 6500B'!F$7),4400)),'O&M Cost Estimator 6500B'!F$21:F$221,'O&M Cost Estimator 6500B'!K$21:K$221)+LOOKUP(((A19*'O&M Cost Estimator 6500B'!F$7)-MOD((A19*'O&M Cost Estimator 6500B'!F$7),4400)),'O&M Cost Estimator 6500B'!F$21:F$221,'O&M Cost Estimator 6500B'!I$21:I$221)+LOOKUP(((A19*'O&M Cost Estimator 6500B'!F$7)-MOD((A19*'O&M Cost Estimator 6500B'!F$7),4400)),'O&M Cost Estimator 6500B'!F$21:F$221,'O&M Cost Estimator 6500B'!K$21:K$221) -> -2326.43 | D20: ='Payback Estimator-6500B'!$B$42*(D19) +D19 -> 84972 | E20: 82645.57 | F20: =SUM($E$5:E20) -> 955105.28 | G20: =IRR($E$5:E20) -> 0.3809426503 | I20: 15 | K20: =-LOOKUP(((A20*'O&M Cost Estimator 6500B'!F$7)-MOD((A20*'O&M Cost Estimator 6500B'!F$7),4400)),'O&M Cost Estimator 6500B'!Q$21:Q$221,'O&M Cost Estimator 6500B'!T$21:T$221)-LOOKUP(((A20*'O&M Cost Estimator 6500B'!F$7)-MOD((A20*'O&M Cost Estimator 6500B'!F$7),4400)),'O&M Cost Estimator 6500B'!Q$21:Q$221,'O&M Cost Estimator 6500B'!V$21:V$221)+LOOKUP(((A19*'O&M Cost Estimator 6500B'!F$7)-MOD((A19*'O&M Cost Estimator 6500B'!F$7),4400)),'O&M Cost Estimator 6500B'!Q$21:Q$221,'O&M Cost Estimator 6500B'!T$21:T$221)+LOOKUP(((A19*'O&M Cost Estimator 6500B'!F$7)-MOD((A19*'O&M Cost Estimator 6500B'!F$7),4400)),'O&M Cost Estimator 6500B'!Q$21:Q$221,'O&M Cost Estimator 6500B'!V$21:V$221) -> -2326.43 | L20: ='Payback Estimator-6500B'!$C$42*(L19)+L19 -> 84972 | M20: 82645.57 | N20: =SUM($M$5:M20) -> 955105.28 | O20: =IRR($M$5:M20) -> 0.3809426503 | S20: 99998
A21: 16 | C21: =-LOOKUP(((A21*'O&M Cost Estimator 6500B'!F$7)-MOD((A21*'O&M Cost Estimator 6500B'!F$7),4400)),'O&M Cost Estimator 6500B'!F$21:F$221,'O&M Cost Estimator 6500B'!I$21:I$221)-LOOKUP(((A21*'O&M Cost Estimator 6500B'!F$7)-MOD((A21*'O&M Cost Estimator 6500B'!F$7),4400)),'O&M Cost Estimator 6500B'!F$21:F$221,'O&M Cost Estimator 6500B'!K$21:K$221)+LOOKUP(((A20*'O&M Cost Estimator 6500B'!F$7)-MOD((A20*'O&M Cost Estimator 6500B'!F$7),4400)),'O&M Cost Estimator 6500B'!F$21:F$221,'O&M Cost Estimator 6500B'!I$21:I$221)+LOOKUP(((A20*'O&M Cost Estimator 6500B'!F$7)-MOD((A20*'O&M Cost Estimator 6500B'!F$7),4400)),'O&M Cost Estimator 6500B'!F$21:F$221,'O&M Cost Estimator 6500B'!K$21:K$221) -> -1085 | D21: ='Payback Estimator-6500B'!$B$42*(D20) +D20 -> 84972 | E21: 83887 | F21: =SUM($E$5:E21) -> 1038992.28 | G21: =IRR($E$5:E21) -> 0.3818626188 | I21: 16 | K21: =-LOOKUP(((A21*'O&M Cost Estimator 6500B'!F$7)-MOD((A21*'O&M Cost Estimator 6500B'!F$7),4400)),'O&M Cost Estimator 6500B'!Q$21:Q$221,'O&M Cost Estimator 6500B'!T$21:T$221)-LOOKUP(((A21*'O&M Cost Estimator 6500B'!F$7)-MOD((A21*'O&M Cost Estimator 6500B'!F$7),4400)),'O&M Cost Estimator 6500B'!Q$21:Q$221,'O&M Cost Estimator 6500B'!V$21:V$221)+LOOKUP(((A20*'O&M Cost Estimator 6500B'!F$7)-MOD((A20*'O&M Cost Estimator 6500B'!F$7),4400)),'O&M Cost Estimator 6500B'!Q$21:Q$221,'O&M Cost Estimator 6500B'!T$21:T$221)+LOOKUP(((A20*'O&M Cost Estimator 6500B'!F$7)-MOD((A20*'O&M Cost Estimator 6500B'!F$7),4400)),'O&M Cost Estimator 6500B'!Q$21:Q$221,'O&M Cost Estimator 6500B'!V$21:V$221) -> -1085 | L21: ='Payback Estimator-6500B'!$C$42*(L20)+L20 -> 84972 | M21: 83887 | N21: =SUM($M$5:M21) -> 1038992.28 | O21: =IRR($M$5:M21) -> 0.3818626188 | S21: 99998
A22: 17 | C22: =-LOOKUP(((A22*'O&M Cost Estimator 6500B'!F$7)-MOD((A22*'O&M Cost Estimator 6500B'!F$7),4400)),'O&M Cost Estimator 6500B'!F$21:F$221,'O&M Cost Estimator 6500B'!I$21:I$221)-LOOKUP(((A22*'O&M Cost Estimator 6500B'!F$7)-MOD((A22*'O&M Cost Estimator 6500B'!F$7),4400)),'O&M Cost Estimator 6500B'!F$21:F$221,'O&M Cost Estimator 6500B'!K$21:K$221)+LOOKUP(((A21*'O&M Cost Estimator 6500B'!F$7)-MOD((A21*'O&M Cost Estimator 6500B'!F$7),4400)),'O&M Cost Estimator 6500B'!F$21:F$221,'O&M Cost Estimator 6500B'!I$21:I$221)+LOOKUP(((A21*'O&M Cost Estimator 6500B'!F$7)-MOD((A21*'O&M Cost Estimator 6500B'!F$7),4400)),'O&M Cost Estimator 6500B'!F$21:F$221,'O&M Cost Estimator 6500B'!K$21:K$221) -> -30778 | D22: ='Payback Estimator-6500B'!$B$42*(D21) +D21 -> 84972 | E22: 54194 | F22: =SUM($E$5:E22) -> 1093186.28 | G22: =IRR($E$5:E22) -> 0.3822873221 | I22: 17 | K22: =-LOOKUP(((A22*'O&M Cost Estimator 6500B'!F$7)-MOD((A22*'O&M Cost Estimator 6500B'!F$7),4400)),'O&M Cost Estimator 6500B'!Q$21:Q$221,'O&M Cost Estimator 6500B'!T$21:T$221)-LOOKUP(((A22*'O&M Cost Estimator 6500B'!F$7)-MOD((A22*'O&M Cost Estimator 6500B'!F$7),4400)),'O&M Cost Estimator 6500B'!Q$21:Q$221,'O&M Cost Estimator 6500B'!V$21:V$221)+LOOKUP(((A21*'O&M Cost Estimator 6500B'!F$7)-MOD((A21*'O&M Cost Estimator 6500B'!F$7),4400)),'O&M Cost Estimator 6500B'!Q$21:Q$221,'O&M Cost Estimator 6500B'!T$21:T$221)+LOOKUP(((A21*'O&M Cost Estimator 6500B'!F$7)-MOD((A21*'O&M Cost Estimator 6500B'!F$7),4400)),'O&M Cost Estimator 6500B'!Q$21:Q$221,'O&M Cost Estimator 6500B'!V$21:V$221) -> -30778 | L22: ='Payback Estimator-6500B'!$C$42*(L21)+L21 -> 84972 | M22: 54194 | N22: =SUM($M$5:M22) -> 1093186.28 | O22: =IRR($M$5:M22) -> 0.3822873221 | S22: 99998
A23: 18 | C23: =-LOOKUP(((A23*'O&M Cost Estimator 6500B'!F$7)-MOD((A23*'O&M Cost Estimator 6500B'!F$7),4400)),'O&M Cost Estimator 6500B'!F$21:F$221,'O&M Cost Estimator 6500B'!I$21:I$221)-LOOKUP(((A23*'O&M Cost Estimator 6500B'!F$7)-MOD((A23*'O&M Cost Estimator 6500B'!F$7),4400)),'O&M Cost Estimator 6500B'!F$21:F$221,'O&M Cost Estimator 6500B'!K$21:K$221)+LOOKUP(((A22*'O&M Cost Estimator 6500B'!F$7)-MOD((A22*'O&M Cost Estimator 6500B'!F$7),4400)),'O&M Cost Estimator 6500B'!F$21:F$221,'O&M Cost Estimator 6500B'!I$21:I$221)+LOOKUP(((A22*'O&M Cost Estimator 6500B'!F$7)-MOD((A22*'O&M Cost Estimator 6500B'!F$7),4400)),'O&M Cost Estimator 6500B'!F$21:F$221,'O&M Cost Estimator 6500B'!K$21:K$221) -> -730 | D23: ='Payback Estimator-6500B'!$B$42*(D22) +D22 -> 84972 | E23: 84242 | F23: =SUM($E$5:E23) -> 1177428.28 | G23: =IRR($E$5:E23) -> 0.3827605536 | I23: 18 | K23: =-LOOKUP(((A23*'O&M Cost Estimator 6500B'!F$7)-MOD((A23*'O&M Cost Estimator 6500B'!F$7),4400)),'O&M Cost Estimator 6500B'!Q$21:Q$221,'O&M Cost Estimator 6500B'!T$21:T$221)-LOOKUP(((A23*'O&M Cost Estimator 6500B'!F$7)-MOD((A23*'O&M Cost Estimator 6500B'!F$7),4400)),'O&M Cost Estimator 6500B'!Q$21:Q$221,'O&M Cost Estimator 6500B'!V$21:V$221)+LOOKUP(((A22*'O&M Cost Estimator 6500B'!F$7)-MOD((A22*'O&M Cost Estimator 6500B'!F$7),4400)),'O&M Cost Estimator 6500B'!Q$21:Q$221,'O&M Cost Estimator 6500B'!T$21:T$221)+LOOKUP(((A22*'O&M Cost Estimator 6500B'!F$7)-MOD((A22*'O&M Cost Estimator 6500B'!F$7),4400)),'O&M Cost Estimator 6500B'!Q$21:Q$221,'O&M Cost Estimator 6500B'!V$21:V$221) -> -730 | L23: ='Payback Estimator-6500B'!$C$42*(L22)+L22 -> 84972 | M23: 84242 | N23: =SUM($M$5:M23) -> 1177428.28 | O23: =IRR($M$5:M23) -> 0.3827605536 | S23: 99998
A24: 19 | C24: =-LOOKUP(((A24*'O&M Cost Estimator 6500B'!F$7)-MOD((A24*'O&M Cost Estimator 6500B'!F$7),4400)),'O&M Cost Estimator 6500B'!F$21:F$221,'O&M Cost Estimator 6500B'!I$21:I$221)-LOOKUP(((A24*'O&M Cost Estimator 6500B'!F$7)-MOD((A24*'O&M Cost Estimator 6500B'!F$7),4400)),'O&M Cost Estimator 6500B'!F$21:F$221,'O&M Cost Estimator 6500B'!K$21:K$221)+LOOKUP(((A23*'O&M Cost Estimator 6500B'!F$7)-MOD((A23*'O&M Cost Estimator 6500B'!F$7),4400)),'O&M Cost Estimator 6500B'!F$21:F$221,'O&M Cost Estimator 6500B'!I$21:I$221)+LOOKUP(((A23*'O&M Cost Estimator 6500B'!F$7)-MOD((A23*'O&M Cost Estimator 6500B'!F$7),4400)),'O&M Cost Estimator 6500B'!F$21:F$221,'O&M Cost Estimator 6500B'!K$21:K$221) -> -2608.93 | D24: ='Payback Estimator-6500B'!$B$42*(D23) +D23 -> 84972 | E24: 82363.07 | F24: =SUM($E$5:E24) -> 1259791.35 | G24: =IRR($E$5:E24) -> 0.3830922486 | I24: 19 | K24: =-LOOKUP(((A24*'O&M Cost Estimator 6500B'!F$7)-MOD((A24*'O&M Cost Estimator 6500B'!F$7),4400)),'O&M Cost Estimator 6500B'!Q$21:Q$221,'O&M Cost Estimator 6500B'!T$21:T$221)-LOOKUP(((A24*'O&M Cost Estimator 6500B'!F$7)-MOD((A24*'O&M Cost Estimator 6500B'!F$7),4400)),'O&M Cost Estimator 6500B'!Q$21:Q$221,'O&M Cost Estimator 6500B'!V$21:V$221)+LOOKUP(((A23*'O&M Cost Estimator 6500B'!F$7)-MOD((A23*'O&M Cost Estimator 6500B'!F$7),4400)),'O&M Cost Estimator 6500B'!Q$21:Q$221,'O&M Cost Estimator 6500B'!T$21:T$221)+LOOKUP(((A23*'O&M Cost Estimator 6500B'!F$7)-MOD((A23*'O&M Cost Estimator 6500B'!F$7),4400)),'O&M Cost Estimator 6500B'!Q$21:Q$221,'O&M Cost Estimator 6500B'!V$21:V$221) -> -2608.93 | L24: ='Payback Estimator-6500B'!$C$42*(L23)+L23 -> 84972 | M24: 82363.07 | N24: =SUM($M$5:M24) -> 1259791.35 | O24: =IRR($M$5:M24) -> 0.3830922486 | S24: 99998
A25: 20 | C25: =-LOOKUP(((A25*'O&M Cost Estimator 6500B'!F$7)-MOD((A25*'O&M Cost Estimator 6500B'!F$7),4400)),'O&M Cost Estimator 6500B'!F$21:F$221,'O&M Cost Estimator 6500B'!I$21:I$221)-LOOKUP(((A25*'O&M Cost Estimator 6500B'!F$7)-MOD((A25*'O&M Cost Estimator 6500B'!F$7),4400)),'O&M Cost Estimator 6500B'!F$21:F$221,'O&M Cost Estimator 6500B'!K$21:K$221)+LOOKUP(((A24*'O&M Cost Estimator 6500B'!F$7)-MOD((A24*'O&M Cost Estimator 6500B'!F$7),4400)),'O&M Cost Estimator 6500B'!F$21:F$221,'O&M Cost Estimator 6500B'!I$21:I$221)+LOOKUP(((A24*'O&M Cost Estimator 6500B'!F$7)-MOD((A24*'O&M Cost Estimator 6500B'!F$7),4400)),'O&M Cost Estimator 6500B'!F$21:F$221,'O&M Cost Estimator 6500B'!K$21:K$221) -> -1085 | D25: ='Payback Estimator-6500B'!$B$42*(D24) +D24 -> 84972 | E25: 83887 | F25: =SUM($E$5:E25) -> 1343678.35 | G25: =IRR($E$5:E25) -> 0.3833348917 | I25: 20 | K25: =-LOOKUP(((A25*'O&M Cost Estimator 6500B'!F$7)-MOD((A25*'O&M Cost Estimator 6500B'!F$7),4400)),'O&M Cost Estimator 6500B'!Q$21:Q$221,'O&M Cost Estimator 6500B'!T$21:T$221)-LOOKUP(((A25*'O&M Cost Estimator 6500B'!F$7)-MOD((A25*'O&M Cost Estimator 6500B'!F$7),4400)),'O&M Cost Estimator 6500B'!Q$21:Q$221,'O&M Cost Estimator 6500B'!V$21:V$221)+LOOKUP(((A24*'O&M Cost Estimator 6500B'!F$7)-MOD((A24*'O&M Cost Estimator 6500B'!F$7),4400)),'O&M Cost Estimator 6500B'!Q$21:Q$221,'O&M Cost Estimator 6500B'!T$21:T$221)+LOOKUP(((A24*'O&M Cost Estimator 6500B'!F$7)-MOD((A24*'O&M Cost Estimator 6500B'!F$7),4400)),'O&M Cost Estimator 6500B'!Q$21:Q$221,'O&M Cost Estimator 6500B'!V$21:V$221) -> -1085 | L25: ='Payback Estimator-6500B'!$C$42*(L24)+L24 -> 84972 | M25: 83887 | N25: =SUM($M$5:M25) -> 1343678.35 | O25: =IRR($M$5:M25) -> 0.3833348917 | S25: 99998
A26: 21 | C26: =-LOOKUP(((A26*'O&M Cost Estimator 6500B'!F$7)-MOD((A26*'O&M Cost Estimator 6500B'!F$7),4400)),'O&M Cost Estimator 6500B'!F$22:F$221,'O&M Cost Estimator 6500B'!I$22:I$221)-LOOKUP(((A26*'O&M Cost Estimator 6500B'!F$7)-MOD((A26*'O&M Cost Estimator 6500B'!F$7),4400)),'O&M Cost Estimator 6500B'!F$22:F$221,'O&M Cost Estimator 6500B'!K$22:K$221)+LOOKUP(((A25*'O&M Cost Estimator 6500B'!F$7)-MOD((A25*'O&M Cost Estimator 6500B'!F$7),4400)),'O&M Cost Estimator 6500B'!F$22:F$221,'O&M Cost Estimator 6500B'!I$22:I$221)+LOOKUP(((A25*'O&M Cost Estimator 6500B'!F$7)-MOD((A25*'O&M Cost Estimator 6500B'!F$7),4400)),'O&M Cost Estimator 6500B'!F$22:F$221,'O&M Cost Estimator 6500B'!K$22:K$221) -> -730 | D26: ='Payback Estimator-6500B'!$B$42*(D25) +D25 -> 84972 | E26: =C26+D26 -> 84242 | F26: =SUM($E$5:E26) -> 1427920.35 | G26: =IRR($E$5:E26) -> 0.3835101387 | I26: =A26 -> 21 | K26: =-LOOKUP(((A26*'O&M Cost Estimator 6500B'!F$7)-MOD((A26*'O&M Cost Estimator 6500B'!F$7),4400)),'O&M Cost Estimator 6500B'!Q$21:Q$221,'O&M Cost Estimator 6500B'!T$21:T$221)-LOOKUP(((A26*'O&M Cost Estimator 6500B'!F$7)-MOD((A26*'O&M Cost Estimator 6500B'!F$7),4400)),'O&M Cost Estimator 6500B'!Q$21:Q$221,'O&M Cost Estimator 6500B'!V$21:V$221)+LOOKUP(((A25*'O&M Cost Estimator 6500B'!F$7)-MOD((A25*'O&M Cost Estimator 6500B'!F$7),4400)),'O&M Cost Estimator 6500B'!Q$21:Q$221,'O&M Cost Estimator 6500B'!T$21:T$221)+LOOKUP(((A25*'O&M Cost Estimator 6500B'!F$7)-MOD((A25*'O&M Cost Estimator 6500B'!F$7),4400)),'O&M Cost Estimator 6500B'!Q$21:Q$221,'O&M Cost Estimator 6500B'!V$21:V$221) -> -730 | L26: ='Payback Estimator-6500B'!$C$42*(L25)+L25 -> 84972 | M26: =K26+L26 -> 84242 | N26: =SUM($M$5:M26) -> 1427920.35 | O26: =IRR($M$5:M26) -> 0.3835101387 | S26: =IF(S25=99999,IF(F26>=0,A26-F26/E26,99999),99998) -> 99998
A27: 22 | C27: =-LOOKUP(((A27*'O&M Cost Estimator 6500B'!F$7)-MOD((A27*'O&M Cost Estimator 6500B'!F$7),4400)),'O&M Cost Estimator 6500B'!F$22:F$221,'O&M Cost Estimator 6500B'!I$22:I$221)-LOOKUP(((A27*'O&M Cost Estimator 6500B'!F$7)-MOD((A27*'O&M Cost Estimator 6500B'!F$7),4400)),'O&M Cost Estimator 6500B'!F$22:F$221,'O&M Cost Estimator 6500B'!K$22:K$221)+LOOKUP(((A26*'O&M Cost Estimator 6500B'!F$7)-MOD((A26*'O&M Cost Estimator 6500B'!F$7),4400)),'O&M Cost Estimator 6500B'!F$22:F$221,'O&M Cost Estimator 6500B'!I$22:I$221)+LOOKUP(((A26*'O&M Cost Estimator 6500B'!F$7)-MOD((A26*'O&M Cost Estimator 6500B'!F$7),4400)),'O&M Cost Estimator 6500B'!F$22:F$221,'O&M Cost Estimator 6500B'!K$22:K$221) -> -1085 | D27: ='Payback Estimator-6500B'!$B$42*(D26) +D26 -> 84972 | E27: 83887 | F27: =SUM($E$5:E27) -> 1511807.35 | G27: =IRR($E$5:E27) -> 0.3836357823 | I27: =A27 -> 22 | K27: =-LOOKUP(((A27*'O&M Cost Estimator 6500B'!F$7)-MOD((A27*'O&M Cost Estimator 6500B'!F$7),4400)),'O&M Cost Estimator 6500B'!Q$21:Q$221,'O&M Cost Estimator 6500B'!T$21:T$221)-LOOKUP(((A27*'O&M Cost Estimator 6500B'!F$7)-MOD((A27*'O&M Cost Estimator 6500B'!F$7),4400)),'O&M Cost Estimator 6500B'!Q$21:Q$221,'O&M Cost Estimator 6500B'!V$21:V$221)+LOOKUP(((A26*'O&M Cost Estimator 6500B'!F$7)-MOD((A26*'O&M Cost Estimator 6500B'!F$7),4400)),'O&M Cost Estimator 6500B'!Q$21:Q$221,'O&M Cost Estimator 6500B'!T$21:T$221)+LOOKUP(((A26*'O&M Cost Estimator 6500B'!F$7)-MOD((A26*'O&M Cost Estimator 6500B'!F$7),4400)),'O&M Cost Estimator 6500B'!Q$21:Q$221,'O&M Cost Estimator 6500B'!V$21:V$221) -> -1085 | L27: ='Payback Estimator-6500B'!$C$42*(L26)+L26 -> 84972 | M27: 83887 | N27: =SUM($M$5:M27) -> 1511807.35 | O27: =IRR($M$5:M27) -> 0.3836357823 | S27: 99998
A28: 23 | C28: =-LOOKUP(((A28*'O&M Cost Estimator 6500B'!F$7)-MOD((A28*'O&M Cost Estimator 6500B'!F$7),4400)),'O&M Cost Estimator 6500B'!F$22:F$221,'O&M Cost Estimator 6500B'!I$22:I$221)-LOOKUP(((A28*'O&M Cost Estimator 6500B'!F$7)-MOD((A28*'O&M Cost Estimator 6500B'!F$7),4400)),'O&M Cost Estimator 6500B'!F$22:F$221,'O&M Cost Estimator 6500B'!K$22:K$221)+LOOKUP(((A27*'O&M Cost Estimator 6500B'!F$7)-MOD((A27*'O&M Cost Estimator 6500B'!F$7),4400)),'O&M Cost Estimator 6500B'!F$22:F$221,'O&M Cost Estimator 6500B'!I$22:I$221)+LOOKUP(((A27*'O&M Cost Estimator 6500B'!F$7)-MOD((A27*'O&M Cost Estimator 6500B'!F$7),4400)),'O&M Cost Estimator 6500B'!F$22:F$221,'O&M Cost Estimator 6500B'!K$22:K$221) -> -730 | D28: ='Payback Estimator-6500B'!$B$42*(D27) +D27 -> 84972 | E28: 84242 | F28: =SUM($E$5:E28) -> 1596049.35 | G28: =IRR($E$5:E28) -> 0.3837267038 | I28: 23 | K28: =-LOOKUP(((A28*'O&M Cost Estimator 6500B'!F$7)-MOD((A28*'O&M Cost Estimator 6500B'!F$7),4400)),'O&M Cost Estimator 6500B'!Q$21:Q$221,'O&M Cost Estimator 6500B'!T$21:T$221)-LOOKUP(((A28*'O&M Cost Estimator 6500B'!F$7)-MOD((A28*'O&M Cost Estimator 6500B'!F$7),4400)),'O&M Cost Estimator 6500B'!Q$21:Q$221,'O&M Cost Estimator 6500B'!V$21:V$221)+LOOKUP(((A27*'O&M Cost Estimator 6500B'!F$7)-MOD((A27*'O&M Cost Estimator 6500B'!F$7),4400)),'O&M Cost Estimator 6500B'!Q$21:Q$221,'O&M Cost Estimator 6500B'!T$21:T$221)+LOOKUP(((A27*'O&M Cost Estimator 6500B'!F$7)-MOD((A27*'O&M Cost Estimator 6500B'!F$7),4400)),'O&M Cost Estimator 6500B'!Q$21:Q$221,'O&M Cost Estimator 6500B'!V$21:V$221) -> -730 | L28: ='Payback Estimator-6500B'!$C$42*(L27)+L27 -> 84972 | M28: 84242 | N28: =SUM($M$5:M28) -> 1596049.35 | O28: =IRR($M$5:M28) -> 0.3837267038 | S28: 99998
A29: 24 | C29: =-LOOKUP(((A29*'O&M Cost Estimator 6500B'!F$7)-MOD((A29*'O&M Cost Estimator 6500B'!F$7),4400)),'O&M Cost Estimator 6500B'!F$22:F$221,'O&M Cost Estimator 6500B'!I$22:I$221)-LOOKUP(((A29*'O&M Cost Estimator 6500B'!F$7)-MOD((A29*'O&M Cost Estimator 6500B'!F$7),4400)),'O&M Cost Estimator 6500B'!F$22:F$221,'O&M Cost Estimator 6500B'!K$22:K$221)+LOOKUP(((A28*'O&M Cost Estimator 6500B'!F$7)-MOD((A28*'O&M Cost Estimator 6500B'!F$7),4400)),'O&M Cost Estimator 6500B'!F$22:F$221,'O&M Cost Estimator 6500B'!I$22:I$221)+LOOKUP(((A28*'O&M Cost Estimator 6500B'!F$7)-MOD((A28*'O&M Cost Estimator 6500B'!F$7),4400)),'O&M Cost Estimator 6500B'!F$22:F$221,'O&M Cost Estimator 6500B'!K$22:K$221) -> -2608.93 | D29: ='Payback Estimator-6500B'!$B$42*(D28) +D28 -> 84972 | E29: 82363.07 | F29: =SUM($E$5:E29) -> 1678412.42 | G29: =IRR($E$5:E29) -> 0.3837908029 | I29: 24 | K29: =-LOOKUP(((A29*'O&M Cost Estimator 6500B'!F$7)-MOD((A29*'O&M Cost Estimator 6500B'!F$7),4400)),'O&M Cost Estimator 6500B'!Q$21:Q$221,'O&M Cost Estimator 6500B'!T$21:T$221)-LOOKUP(((A29*'O&M Cost Estimator 6500B'!F$7)-MOD((A29*'O&M Cost Estimator 6500B'!F$7),4400)),'O&M Cost Estimator 6500B'!Q$21:Q$221,'O&M Cost Estimator 6500B'!V$21:V$221)+LOOKUP(((A28*'O&M Cost Estimator 6500B'!F$7)-MOD((A28*'O&M Cost Estimator 6500B'!F$7),4400)),'O&M Cost Estimator 6500B'!Q$21:Q$221,'O&M Cost Estimator 6500B'!T$21:T$221)+LOOKUP(((A28*'O&M Cost Estimator 6500B'!F$7)-MOD((A28*'O&M Cost Estimator 6500B'!F$7),4400)),'O&M Cost Estimator 6500B'!Q$21:Q$221,'O&M Cost Estimator 6500B'!V$21:V$221) -> -2608.93 | L29: ='Payback Estimator-6500B'!$C$42*(L28)+L28 -> 84972 | M29: 82363.07 | N29: =SUM($M$5:M29) -> 1678412.42 | O29: =IRR($M$5:M29) -> 0.3837908029 | S29: 99998
A30: 25 | C30: =-LOOKUP(((A30*'O&M Cost Estimator 6500B'!F$7)-MOD((A30*'O&M Cost Estimator 6500B'!F$7),4400)),'O&M Cost Estimator 6500B'!F$22:F$221,'O&M Cost Estimator 6500B'!I$22:I$221)-LOOKUP(((A30*'O&M Cost Estimator 6500B'!F$7)-MOD((A30*'O&M Cost Estimator 6500B'!F$7),4400)),'O&M Cost Estimator 6500B'!F$22:F$221,'O&M Cost Estimator 6500B'!K$22:K$221)+LOOKUP(((A29*'O&M Cost Estimator 6500B'!F$7)-MOD((A29*'O&M Cost Estimator 6500B'!F$7),4400)),'O&M Cost Estimator 6500B'!F$22:F$221,'O&M Cost Estimator 6500B'!I$22:I$221)+LOOKUP(((A29*'O&M Cost Estimator 6500B'!F$7)-MOD((A29*'O&M Cost Estimator 6500B'!F$7),4400)),'O&M Cost Estimator 6500B'!F$22:F$221,'O&M Cost Estimator 6500B'!K$22:K$221) -> -1085 | D30: ='Payback Estimator-6500B'!$B$42*(D29) +D29 -> 84972 | E30: 83887 | F30: =SUM($E$5:E30) -> 1762299.42 | G30: =IRR($E$5:E30) -> 0.3838379022 | I30: 25 | K30: =-LOOKUP(((A30*'O&M Cost Estimator 6500B'!F$7)-MOD((A30*'O&M Cost Estimator 6500B'!F$7),4400)),'O&M Cost Estimator 6500B'!Q$21:Q$221,'O&M Cost Estimator 6500B'!T$21:T$221)-LOOKUP(((A30*'O&M Cost Estimator 6500B'!F$7)-MOD((A30*'O&M Cost Estimator 6500B'!F$7),4400)),'O&M Cost Estimator 6500B'!Q$21:Q$221,'O&M Cost Estimator 6500B'!V$21:V$221)+LOOKUP(((A29*'O&M Cost Estimator 6500B'!F$7)-MOD((A29*'O&M Cost Estimator 6500B'!F$7),4400)),'O&M Cost Estimator 6500B'!Q$21:Q$221,'O&M Cost Estimator 6500B'!T$21:T$221)+LOOKUP(((A29*'O&M Cost Estimator 6500B'!F$7)-MOD((A29*'O&M Cost Estimator 6500B'!F$7),4400)),'O&M Cost Estimator 6500B'!Q$21:Q$221,'O&M Cost Estimator 6500B'!V$21:V$221) -> -1085 | L30: ='Payback Estimator-6500B'!$C$42*(L29)+L29 -> 84972 | M30: 83887 | N30: =SUM($M$5:M30) -> 1762299.42 | O30: =IRR($M$5:M30) -> 0.3838379022 | S30: 99998
A31: 26 | C31: =-LOOKUP(((A31*'O&M Cost Estimator 6500B'!F$7)-MOD((A31*'O&M Cost Estimator 6500B'!F$7),4400)),'O&M Cost Estimator 6500B'!F$22:F$221,'O&M Cost Estimator 6500B'!I$22:I$221)-LOOKUP(((A31*'O&M Cost Estimator 6500B'!F$7)-MOD((A31*'O&M Cost Estimator 6500B'!F$7),4400)),'O&M Cost Estimator 6500B'!F$22:F$221,'O&M Cost Estimator 6500B'!K$22:K$221)+LOOKUP(((A30*'O&M Cost Estimator 6500B'!F$7)-MOD((A30*'O&M Cost Estimator 6500B'!F$7),4400)),'O&M Cost Estimator 6500B'!F$22:F$221,'O&M Cost Estimator 6500B'!I$22:I$221)+LOOKUP(((A30*'O&M Cost Estimator 6500B'!F$7)-MOD((A30*'O&M Cost Estimator 6500B'!F$7),4400)),'O&M Cost Estimator 6500B'!F$22:F$221,'O&M Cost Estimator 6500B'!K$22:K$221) -> -730 | D31: ='Payback Estimator-6500B'!$B$42*(D30) +D30 -> 84972 | E31: 84242 | F31: =SUM($E$5:E31) -> 1846541.42 | G31: =IRR($E$5:E31) -> 0.3838720376 | I31: 26 | K31: =-LOOKUP(((A31*'O&M Cost Estimator 6500B'!F$7)-MOD((A31*'O&M Cost Estimator 6500B'!F$7),4400)),'O&M Cost Estimator 6500B'!Q$21:Q$221,'O&M Cost Estimator 6500B'!T$21:T$221)-LOOKUP(((A31*'O&M Cost Estimator 6500B'!F$7)-MOD((A31*'O&M Cost Estimator 6500B'!F$7),4400)),'O&M Cost Estimator 6500B'!Q$21:Q$221,'O&M Cost Estimator 6500B'!V$21:V$221)+LOOKUP(((A30*'O&M Cost Estimator 6500B'!F$7)-MOD((A30*'O&M Cost Estimator 6500B'!F$7),4400)),'O&M Cost Estimator 6500B'!Q$21:Q$221,'O&M Cost Estimator 6500B'!T$21:T$221)+LOOKUP(((A30*'O&M Cost Estimator 6500B'!F$7)-MOD((A30*'O&M Cost Estimator 6500B'!F$7),4400)),'O&M Cost Estimator 6500B'!Q$21:Q$221,'O&M Cost Estimator 6500B'!V$21:V$221) -> -730 | L31: ='Payback Estimator-6500B'!$C$42*(L30)+L30 -> 84972 | M31: 84242 | N31: =SUM($M$5:M31) -> 1846541.42 | O31: =IRR($M$5:M31) -> 0.3838720376 | S31: 99998
A32: 27 | C32: =-LOOKUP(((A32*'O&M Cost Estimator 6500B'!F$7)-MOD((A32*'O&M Cost Estimator 6500B'!F$7),4400)),'O&M Cost Estimator 6500B'!F$22:F$221,'O&M Cost Estimator 6500B'!I$22:I$221)-LOOKUP(((A32*'O&M Cost Estimator 6500B'!F$7)-MOD((A32*'O&M Cost Estimator 6500B'!F$7),4400)),'O&M Cost Estimator 6500B'!F$22:F$221,'O&M Cost Estimator 6500B'!K$22:K$221)+LOOKUP(((A31*'O&M Cost Estimator 6500B'!F$7)-MOD((A31*'O&M Cost Estimator 6500B'!F$7),4400)),'O&M Cost Estimator 6500B'!F$22:F$221,'O&M Cost Estimator 6500B'!I$22:I$221)+LOOKUP(((A31*'O&M Cost Estimator 6500B'!F$7)-MOD((A31*'O&M Cost Estimator 6500B'!F$7),4400)),'O&M Cost Estimator 6500B'!F$22:F$221,'O&M Cost Estimator 6500B'!K$22:K$221) -> -2608.93 | D32: ='Payback Estimator-6500B'!$B$42*(D31) +D31 -> 84972 | E32: 82363.07 | F32: =SUM($E$5:E32) -> 1928904.49 | G32: =IRR($E$5:E32) -> 0.3838961308 | I32: 27 | K32: =-LOOKUP(((A32*'O&M Cost Estimator 6500B'!F$7)-MOD((A32*'O&M Cost Estimator 6500B'!F$7),4400)),'O&M Cost Estimator 6500B'!Q$21:Q$221,'O&M Cost Estimator 6500B'!T$21:T$221)-LOOKUP(((A32*'O&M Cost Estimator 6500B'!F$7)-MOD((A32*'O&M Cost Estimator 6500B'!F$7),4400)),'O&M Cost Estimator 6500B'!Q$21:Q$221,'O&M Cost Estimator 6500B'!V$21:V$221)+LOOKUP(((A31*'O&M Cost Estimator 6500B'!F$7)-MOD((A31*'O&M Cost Estimator 6500B'!F$7),4400)),'O&M Cost Estimator 6500B'!Q$21:Q$221,'O&M Cost Estimator 6500B'!T$21:T$221)+LOOKUP(((A31*'O&M Cost Estimator 6500B'!F$7)-MOD((A31*'O&M Cost Estimator 6500B'!F$7),4400)),'O&M Cost Estimator 6500B'!Q$21:Q$221,'O&M Cost Estimator 6500B'!V$21:V$221) -> -2608.93 | L32: ='Payback Estimator-6500B'!$C$42*(L31)+L31 -> 84972 | M32: 82363.07 | N32: =SUM($M$5:M32) -> 1928904.49 | O32: =IRR($M$5:M32) -> 0.3838961308 | S32: 99998
A33: 28 | C33: =-LOOKUP(((A33*'O&M Cost Estimator 6500B'!F$7)-MOD((A33*'O&M Cost Estimator 6500B'!F$7),4400)),'O&M Cost Estimator 6500B'!F$22:F$221,'O&M Cost Estimator 6500B'!I$22:I$221)-LOOKUP(((A33*'O&M Cost Estimator 6500B'!F$7)-MOD((A33*'O&M Cost Estimator 6500B'!F$7),4400)),'O&M Cost Estimator 6500B'!F$22:F$221,'O&M Cost Estimator 6500B'!K$22:K$221)+LOOKUP(((A32*'O&M Cost Estimator 6500B'!F$7)-MOD((A32*'O&M Cost Estimator 6500B'!F$7),4400)),'O&M Cost Estimator 6500B'!F$22:F$221,'O&M Cost Estimator 6500B'!I$22:I$221)+LOOKUP(((A32*'O&M Cost Estimator 6500B'!F$7)-MOD((A32*'O&M Cost Estimator 6500B'!F$7),4400)),'O&M Cost Estimator 6500B'!F$22:F$221,'O&M Cost Estimator 6500B'!K$22:K$221) -> -1085 | D33: ='Payback Estimator-6500B'!$B$42*(D32) +D32 -> 84972 | E33: 83887 | F33: =SUM($E$5:E33) -> 2012791.49 | G33: =IRR($E$5:E33) -> 0.3839138498 | I33: 28 | K33: =-LOOKUP(((A33*'O&M Cost Estimator 6500B'!F$7)-MOD((A33*'O&M Cost Estimator 6500B'!F$7),4400)),'O&M Cost Estimator 6500B'!Q$21:Q$221,'O&M Cost Estimator 6500B'!T$21:T$221)-LOOKUP(((A33*'O&M Cost Estimator 6500B'!F$7)-MOD((A33*'O&M Cost Estimator 6500B'!F$7),4400)),'O&M Cost Estimator 6500B'!Q$21:Q$221,'O&M Cost Estimator 6500B'!V$21:V$221)+LOOKUP(((A32*'O&M Cost Estimator 6500B'!F$7)-MOD((A32*'O&M Cost Estimator 6500B'!F$7),4400)),'O&M Cost Estimator 6500B'!Q$21:Q$221,'O&M Cost Estimator 6500B'!T$21:T$221)+LOOKUP(((A32*'O&M Cost Estimator 6500B'!F$7)-MOD((A32*'O&M Cost Estimator 6500B'!F$7),4400)),'O&M Cost Estimator 6500B'!Q$21:Q$221,'O&M Cost Estimator 6500B'!V$21:V$221) -> -1085 | L33: ='Payback Estimator-6500B'!$C$42*(L32)+L32 -> 84972 | M33: 83887 | N33: =SUM($M$5:M33) -> 2012791.49 | O33: =IRR($M$5:M33) -> 0.3839138498 | S33: 99998
A34: 29 | C34: =-LOOKUP(((A34*'O&M Cost Estimator 6500B'!F$7)-MOD((A34*'O&M Cost Estimator 6500B'!F$7),4400)),'O&M Cost Estimator 6500B'!F$22:F$221,'O&M Cost Estimator 6500B'!I$22:I$221)-LOOKUP(((A34*'O&M Cost Estimator 6500B'!F$7)-MOD((A34*'O&M Cost Estimator 6500B'!F$7),4400)),'O&M Cost Estimator 6500B'!F$22:F$221,'O&M Cost Estimator 6500B'!K$22:K$221)+LOOKUP(((A33*'O&M Cost Estimator 6500B'!F$7)-MOD((A33*'O&M Cost Estimator 6500B'!F$7),4400)),'O&M Cost Estimator 6500B'!F$22:F$221,'O&M Cost Estimator 6500B'!I$22:I$221)+LOOKUP(((A33*'O&M Cost Estimator 6500B'!F$7)-MOD((A33*'O&M Cost Estimator 6500B'!F$7),4400)),'O&M Cost Estimator 6500B'!F$22:F$221,'O&M Cost Estimator 6500B'!K$22:K$221) -> -730 | D34: ='Payback Estimator-6500B'!$B$42*(D33) +D33 -> 84972 | E34: 84242 | F34: =SUM($E$5:E34) -> 2097033.49 | G34: =IRR($E$5:E34) -> 0.3839267005 | I34: 29 | K34: =-LOOKUP(((A34*'O&M Cost Estimator 6500B'!F$7)-MOD((A34*'O&M Cost Estimator 6500B'!F$7),4400)),'O&M Cost Estimator 6500B'!Q$21:Q$221,'O&M Cost Estimator 6500B'!T$21:T$221)-LOOKUP(((A34*'O&M Cost Estimator 6500B'!F$7)-MOD((A34*'O&M Cost Estimator 6500B'!F$7),4400)),'O&M Cost Estimator 6500B'!Q$21:Q$221,'O&M Cost Estimator 6500B'!V$21:V$221)+LOOKUP(((A33*'O&M Cost Estimator 6500B'!F$7)-MOD((A33*'O&M Cost Estimator 6500B'!F$7),4400)),'O&M Cost Estimator 6500B'!Q$21:Q$221,'O&M Cost Estimator 6500B'!T$21:T$221)+LOOKUP(((A33*'O&M Cost Estimator 6500B'!F$7)-MOD((A33*'O&M Cost Estimator 6500B'!F$7),4400)),'O&M Cost Estimator 6500B'!Q$21:Q$221,'O&M Cost Estimator 6500B'!V$21:V$221) -> -730 | L34: ='Payback Estimator-6500B'!$C$42*(L33)+L33 -> 84972 | M34: 84242 | N34: =SUM($M$5:M34) -> 2097033.49 | O34: =IRR($M$5:M34) -> 0.3839267005 | S34: 99998
A35: 30 | C35: =-LOOKUP(((A35*'O&M Cost Estimator 6500B'!F$7)-MOD((A35*'O&M Cost Estimator 6500B'!F$7),4400)),'O&M Cost Estimator 6500B'!F$22:F$221,'O&M Cost Estimator 6500B'!I$22:I$221)-LOOKUP(((A35*'O&M Cost Estimator 6500B'!F$7)-MOD((A35*'O&M Cost Estimator 6500B'!F$7),4400)),'O&M Cost Estimator 6500B'!F$22:F$221,'O&M Cost Estimator 6500B'!K$22:K$221)+LOOKUP(((A34*'O&M Cost Estimator 6500B'!F$7)-MOD((A34*'O&M Cost Estimator 6500B'!F$7),4400)),'O&M Cost Estimator 6500B'!F$22:F$221,'O&M Cost Estimator 6500B'!I$22:I$221)+LOOKUP(((A34*'O&M Cost Estimator 6500B'!F$7)-MOD((A34*'O&M Cost Estimator 6500B'!F$7),4400)),'O&M Cost Estimator 6500B'!F$22:F$221,'O&M Cost Estimator 6500B'!K$22:K$221) -> -282.5 | D35: ='Payback Estimator-6500B'!$B$42*(D34) +D34 -> 84972 | E35: 84689.5 | F35: =SUM($E$5:E35) -> 2181722.99 | G35: =IRR($E$5:E35) -> 0.3839360316 | I35: 30 | K35: =-LOOKUP(((A35*'O&M Cost Estimator 6500B'!F$7)-MOD((A35*'O&M Cost Estimator 6500B'!F$7),4400)),'O&M Cost Estimator 6500B'!Q$21:Q$221,'O&M Cost Estimator 6500B'!T$21:T$221)-LOOKUP(((A35*'O&M Cost Estimator 6500B'!F$7)-MOD((A35*'O&M Cost Estimator 6500B'!F$7),4400)),'O&M Cost Estimator 6500B'!Q$21:Q$221,'O&M Cost Estimator 6500B'!V$21:V$221)+LOOKUP(((A34*'O&M Cost Estimator 6500B'!F$7)-MOD((A34*'O&M Cost Estimator 6500B'!F$7),4400)),'O&M Cost Estimator 6500B'!Q$21:Q$221,'O&M Cost Estimator 6500B'!T$21:T$221)+LOOKUP(((A34*'O&M Cost Estimator 6500B'!F$7)-MOD((A34*'O&M Cost Estimator 6500B'!F$7),4400)),'O&M Cost Estimator 6500B'!Q$21:Q$221,'O&M Cost Estimator 6500B'!V$21:V$221) -> -282.5 | L35: ='Payback Estimator-6500B'!$C$42*(L34)+L34 -> 84972 | M35: 84689.5 | N35: =SUM($M$5:M35) -> 2181722.99 | O35: =IRR($M$5:M35) -> 0.3839360316 | S35: 99998
A36: 31 | C36: =-LOOKUP(((A36*'O&M Cost Estimator 6500B'!F$7)-MOD((A36*'O&M Cost Estimator 6500B'!F$7),4400)),'O&M Cost Estimator 6500B'!F$22:F$221,'O&M Cost Estimator 6500B'!I$22:I$221)-LOOKUP(((A36*'O&M Cost Estimator 6500B'!F$7)-MOD((A36*'O&M Cost Estimator 6500B'!F$7),4400)),'O&M Cost Estimator 6500B'!F$22:F$221,'O&M Cost Estimator 6500B'!K$22:K$221)+LOOKUP(((A35*'O&M Cost Estimator 6500B'!F$7)-MOD((A35*'O&M Cost Estimator 6500B'!F$7),4400)),'O&M Cost Estimator 6500B'!F$22:F$221,'O&M Cost Estimator 6500B'!I$22:I$221)+LOOKUP(((A35*'O&M Cost Estimator 6500B'!F$7)-MOD((A35*'O&M Cost Estimator 6500B'!F$7),4400)),'O&M Cost Estimator 6500B'!F$22:F$221,'O&M Cost Estimator 6500B'!K$22:K$221) -> -2608.93 | D36: ='Payback Estimator-6500B'!$B$42*(D35) +D35 -> 84972 | E36: 82363.07 | F36: =SUM($E$5:E36) -> 2264086.06 | G36: =IRR($E$5:E36) -> 0.3839425869 | I36: 31 | K36: =-LOOKUP(((A36*'O&M Cost Estimator 6500B'!F$7)-MOD((A36*'O&M Cost Estimator 6500B'!F$7),4400)),'O&M Cost Estimator 6500B'!Q$21:Q$221,'O&M Cost Estimator 6500B'!T$21:T$221)-LOOKUP(((A36*'O&M Cost Estimator 6500B'!F$7)-MOD((A36*'O&M Cost Estimator 6500B'!F$7),4400)),'O&M Cost Estimator 6500B'!Q$21:Q$221,'O&M Cost Estimator 6500B'!V$21:V$221)+LOOKUP(((A35*'O&M Cost Estimator 6500B'!F$7)-MOD((A35*'O&M Cost Estimator 6500B'!F$7),4400)),'O&M Cost Estimator 6500B'!Q$21:Q$221,'O&M Cost Estimator 6500B'!T$21:T$221)+LOOKUP(((A35*'O&M Cost Estimator 6500B'!F$7)-MOD((A35*'O&M Cost Estimator 6500B'!F$7),4400)),'O&M Cost Estimator 6500B'!Q$21:Q$221,'O&M Cost Estimator 6500B'!V$21:V$221) -> -2608.93 | L36: ='Payback Estimator-6500B'!$C$42*(L35)+L35 -> 84972 | M36: 82363.07 | N36: =SUM($M$5:M36) -> 2264086.06 | O36: =IRR($M$5:M36) -> 0.3839425869 | S36: 99998
A37: 32 | C37: =-LOOKUP(((A37*'O&M Cost Estimator 6500B'!F$7)-MOD((A37*'O&M Cost Estimator 6500B'!F$7),4400)),'O&M Cost Estimator 6500B'!F$22:F$221,'O&M Cost Estimator 6500B'!I$22:I$221)-LOOKUP(((A37*'O&M Cost Estimator 6500B'!F$7)-MOD((A37*'O&M Cost Estimator 6500B'!F$7),4400)),'O&M Cost Estimator 6500B'!F$22:F$221,'O&M Cost Estimator 6500B'!K$22:K$221)+LOOKUP(((A36*'O&M Cost Estimator 6500B'!F$7)-MOD((A36*'O&M Cost Estimator 6500B'!F$7),4400)),'O&M Cost Estimator 6500B'!F$22:F$221,'O&M Cost Estimator 6500B'!I$22:I$221)+LOOKUP(((A36*'O&M Cost Estimator 6500B'!F$7)-MOD((A36*'O&M Cost Estimator 6500B'!F$7),4400)),'O&M Cost Estimator 6500B'!F$22:F$221,'O&M Cost Estimator 6500B'!K$22:K$221) -> -1085 | D37: ='Payback Estimator-6500B'!$B$42*(D36) +D36 -> 84972 | E37: 83887 | F37: =SUM($E$5:E37) -> 2347973.06 | G37: =IRR($E$5:E37) -> 0.38394741 | I37: 32 | K37: =-LOOKUP(((A37*'O&M Cost Estimator 6500B'!F$7)-MOD((A37*'O&M Cost Estimator 6500B'!F$7),4400)),'O&M Cost Estimator 6500B'!Q$21:Q$221,'O&M Cost Estimator 6500B'!T$21:T$221)-LOOKUP(((A37*'O&M Cost Estimator 6500B'!F$7)-MOD((A37*'O&M Cost Estimator 6500B'!F$7),4400)),'O&M Cost Estimator 6500B'!Q$21:Q$221,'O&M Cost Estimator 6500B'!V$21:V$221)+LOOKUP(((A36*'O&M Cost Estimator 6500B'!F$7)-MOD((A36*'O&M Cost Estimator 6500B'!F$7),4400)),'O&M Cost Estimator 6500B'!Q$21:Q$221,'O&M Cost Estimator 6500B'!T$21:T$221)+LOOKUP(((A36*'O&M Cost Estimator 6500B'!F$7)-MOD((A36*'O&M Cost Estimator 6500B'!F$7),4400)),'O&M Cost Estimator 6500B'!Q$21:Q$221,'O&M Cost Estimator 6500B'!V$21:V$221) -> -1085 | L37: ='Payback Estimator-6500B'!$C$42*(L36)+L36 -> 84972 | M37: 83887 | N37: =SUM($M$5:M37) -> 2347973.06 | O37: =IRR($M$5:M37) -> 0.38394741 | S37: 99998
A38: 33 | C38: =-LOOKUP(((A38*'O&M Cost Estimator 6500B'!F$7)-MOD((A38*'O&M Cost Estimator 6500B'!F$7),4400)),'O&M Cost Estimator 6500B'!F$22:F$221,'O&M Cost Estimator 6500B'!I$22:I$221)-LOOKUP(((A38*'O&M Cost Estimator 6500B'!F$7)-MOD((A38*'O&M Cost Estimator 6500B'!F$7),4400)),'O&M Cost Estimator 6500B'!F$22:F$221,'O&M Cost Estimator 6500B'!K$22:K$221)+LOOKUP(((A37*'O&M Cost Estimator 6500B'!F$7)-MOD((A37*'O&M Cost Estimator 6500B'!F$7),4400)),'O&M Cost Estimator 6500B'!F$22:F$221,'O&M Cost Estimator 6500B'!I$22:I$221)+LOOKUP(((A37*'O&M Cost Estimator 6500B'!F$7)-MOD((A37*'O&M Cost Estimator 6500B'!F$7),4400)),'O&M Cost Estimator 6500B'!F$22:F$221,'O&M Cost Estimator 6500B'!K$22:K$221) -> -730 | D38: ='Payback Estimator-6500B'!$B$42*(D37) +D37 -> 84972 | E38: 84242 | F38: =SUM($E$5:E38) -> 2432215.06 | G38: =IRR($E$5:E38) -> 0.3839509092 | I38: 33 | K38: =-LOOKUP(((A38*'O&M Cost Estimator 6500B'!F$7)-MOD((A38*'O&M Cost Estimator 6500B'!F$7),4400)),'O&M Cost Estimator 6500B'!Q$21:Q$221,'O&M Cost Estimator 6500B'!T$21:T$221)-LOOKUP(((A38*'O&M Cost Estimator 6500B'!F$7)-MOD((A38*'O&M Cost Estimator 6500B'!F$7),4400)),'O&M Cost Estimator 6500B'!Q$21:Q$221,'O&M Cost Estimator 6500B'!V$21:V$221)+LOOKUP(((A37*'O&M Cost Estimator 6500B'!F$7)-MOD((A37*'O&M Cost Estimator 6500B'!F$7),4400)),'O&M Cost Estimator 6500B'!Q$21:Q$221,'O&M Cost Estimator 6500B'!T$21:T$221)+LOOKUP(((A37*'O&M Cost Estimator 6500B'!F$7)-MOD((A37*'O&M Cost Estimator 6500B'!F$7),4400)),'O&M Cost Estimator 6500B'!Q$21:Q$221,'O&M Cost Estimator 6500B'!V$21:V$221) -> -730 | L38: ='Payback Estimator-6500B'!$C$42*(L37)+L37 -> 84972 | M38: 84242 | N38: =SUM($M$5:M38) -> 2432215.06 | O38: =IRR($M$5:M38) -> 0.3839509092 | S38: 99998
A39: 34 | C39: =-LOOKUP(((A39*'O&M Cost Estimator 6500B'!F$7)-MOD((A39*'O&M Cost Estimator 6500B'!F$7),4400)),'O&M Cost Estimator 6500B'!F$22:F$221,'O&M Cost Estimator 6500B'!I$22:I$221)-LOOKUP(((A39*'O&M Cost Estimator 6500B'!F$7)-MOD((A39*'O&M Cost Estimator 6500B'!F$7),4400)),'O&M Cost Estimator 6500B'!F$22:F$221,'O&M Cost Estimator 6500B'!K$22:K$221)+LOOKUP(((A38*'O&M Cost Estimator 6500B'!F$7)-MOD((A38*'O&M Cost Estimator 6500B'!F$7),4400)),'O&M Cost Estimator 6500B'!F$22:F$221,'O&M Cost Estimator 6500B'!I$22:I$221)+LOOKUP(((A38*'O&M Cost Estimator 6500B'!F$7)-MOD((A38*'O&M Cost Estimator 6500B'!F$7),4400)),'O&M Cost Estimator 6500B'!F$22:F$221,'O&M Cost Estimator 6500B'!K$22:K$221) -> -2608.93 | D39: ='Payback Estimator-6500B'!$B$42*(D38) +D38 -> 84972 | E39: 82363.07 | F39: =SUM($E$5:E39) -> 2514578.13 | G39: =IRR($E$5:E39) -> 0.3839533809 | I39: 34 | K39: =-LOOKUP(((A39*'O&M Cost Estimator 6500B'!F$7)-MOD((A39*'O&M Cost Estimator 6500B'!F$7),4400)),'O&M Cost Estimator 6500B'!Q$21:Q$221,'O&M Cost Estimator 6500B'!T$21:T$221)-LOOKUP(((A39*'O&M Cost Estimator 6500B'!F$7)-MOD((A39*'O&M Cost Estimator 6500B'!F$7),4400)),'O&M Cost Estimator 6500B'!Q$21:Q$221,'O&M Cost Estimator 6500B'!V$21:V$221)+LOOKUP(((A38*'O&M Cost Estimator 6500B'!F$7)-MOD((A38*'O&M Cost Estimator 6500B'!F$7),4400)),'O&M Cost Estimator 6500B'!Q$21:Q$221,'O&M Cost Estimator 6500B'!T$21:T$221)+LOOKUP(((A38*'O&M Cost Estimator 6500B'!F$7)-MOD((A38*'O&M Cost Estimator 6500B'!F$7),4400)),'O&M Cost Estimator 6500B'!Q$21:Q$221,'O&M Cost Estimator 6500B'!V$21:V$221) -> -2608.93 | L39: ='Payback Estimator-6500B'!$C$42*(L38)+L38 -> 84972 | M39: 82363.07 | N39: =SUM($M$5:M39) -> 2514578.13 | O39: =IRR($M$5:M39) -> 0.3839533809 | S39: 99998
A40: 35 | C40: =-LOOKUP(((A40*'O&M Cost Estimator 6500B'!F$7)-MOD((A40*'O&M Cost Estimator 6500B'!F$7),4400)),'O&M Cost Estimator 6500B'!F$22:F$221,'O&M Cost Estimator 6500B'!I$22:I$221)-LOOKUP(((A40*'O&M Cost Estimator 6500B'!F$7)-MOD((A40*'O&M Cost Estimator 6500B'!F$7),4400)),'O&M Cost Estimator 6500B'!F$22:F$221,'O&M Cost Estimator 6500B'!K$22:K$221)+LOOKUP(((A39*'O&M Cost Estimator 6500B'!F$7)-MOD((A39*'O&M Cost Estimator 6500B'!F$7),4400)),'O&M Cost Estimator 6500B'!F$22:F$221,'O&M Cost Estimator 6500B'!I$22:I$221)+LOOKUP(((A39*'O&M Cost Estimator 6500B'!F$7)-MOD((A39*'O&M Cost Estimator 6500B'!F$7),4400)),'O&M Cost Estimator 6500B'!F$22:F$221,'O&M Cost Estimator 6500B'!K$22:K$221) -> -1085 | D40: ='Payback Estimator-6500B'!$B$42*(D39) +D39 -> 84972 | E40: 83887 | F40: =SUM($E$5:E40) -> 2598465.13 | G40: =IRR($E$5:E40) -> 0.3839551998 | I40: 35 | K40: =-LOOKUP(((A40*'O&M Cost Estimator 6500B'!F$7)-MOD((A40*'O&M Cost Estimator 6500B'!F$7),4400)),'O&M Cost Estimator 6500B'!Q$21:Q$221,'O&M Cost Estimator 6500B'!T$21:T$221)-LOOKUP(((A40*'O&M Cost Estimator 6500B'!F$7)-MOD((A40*'O&M Cost Estimator 6500B'!F$7),4400)),'O&M Cost Estimator 6500B'!Q$21:Q$221,'O&M Cost Estimator 6500B'!V$21:V$221)+LOOKUP(((A39*'O&M Cost Estimator 6500B'!F$7)-MOD((A39*'O&M Cost Estimator 6500B'!F$7),4400)),'O&M Cost Estimator 6500B'!Q$21:Q$221,'O&M Cost Estimator 6500B'!T$21:T$221)+LOOKUP(((A39*'O&M Cost Estimator 6500B'!F$7)-MOD((A39*'O&M Cost Estimator 6500B'!F$7),4400)),'O&M Cost Estimator 6500B'!Q$21:Q$221,'O&M Cost Estimator 6500B'!V$21:V$221) -> -1085 | L40: ='Payback Estimator-6500B'!$C$42*(L39)+L39 -> 84972 | M40: 83887 | N40: =SUM($M$5:M40) -> 2598465.13 | O40: =IRR($M$5:M40) -> 0.3839551998 | S40: 99998
A41: 36 | C41: =-LOOKUP(((A41*'O&M Cost Estimator 6500B'!F$7)-MOD((A41*'O&M Cost Estimator 6500B'!F$7),4400)),'O&M Cost Estimator 6500B'!F$22:F$221,'O&M Cost Estimator 6500B'!I$22:I$221)-LOOKUP(((A41*'O&M Cost Estimator 6500B'!F$7)-MOD((A41*'O&M Cost Estimator 6500B'!F$7),4400)),'O&M Cost Estimator 6500B'!F$22:F$221,'O&M Cost Estimator 6500B'!K$22:K$221)+LOOKUP(((A40*'O&M Cost Estimator 6500B'!F$7)-MOD((A40*'O&M Cost Estimator 6500B'!F$7),4400)),'O&M Cost Estimator 6500B'!F$22:F$221,'O&M Cost Estimator 6500B'!I$22:I$221)+LOOKUP(((A40*'O&M Cost Estimator 6500B'!F$7)-MOD((A40*'O&M Cost Estimator 6500B'!F$7),4400)),'O&M Cost Estimator 6500B'!F$22:F$221,'O&M Cost Estimator 6500B'!K$22:K$221) -> -730 | D41: ='Payback Estimator-6500B'!$B$42*(D40) +D40 -> 84972 | E41: 84242 | F41: =SUM($E$5:E41) -> 2682707.13 | G41: =IRR($E$5:E41) -> 0.3839565195 | I41: 36 | K41: =-LOOKUP(((A41*'O&M Cost Estimator 6500B'!F$7)-MOD((A41*'O&M Cost Estimator 6500B'!F$7),4400)),'O&M Cost Estimator 6500B'!Q$21:Q$221,'O&M Cost Estimator 6500B'!T$21:T$221)-LOOKUP(((A41*'O&M Cost Estimator 6500B'!F$7)-MOD((A41*'O&M Cost Estimator 6500B'!F$7),4400)),'O&M Cost Estimator 6500B'!Q$21:Q$221,'O&M Cost Estimator 6500B'!V$21:V$221)+LOOKUP(((A40*'O&M Cost Estimator 6500B'!F$7)-MOD((A40*'O&M Cost Estimator 6500B'!F$7),4400)),'O&M Cost Estimator 6500B'!Q$21:Q$221,'O&M Cost Estimator 6500B'!T$21:T$221)+LOOKUP(((A40*'O&M Cost Estimator 6500B'!F$7)-MOD((A40*'O&M Cost Estimator 6500B'!F$7),4400)),'O&M Cost Estimator 6500B'!Q$21:Q$221,'O&M Cost Estimator 6500B'!V$21:V$221) -> -730 | L41: ='Payback Estimator-6500B'!$C$42*(L40)+L40 -> 84972 | M41: 84242 | N41: =SUM($M$5:M41) -> 2682707.13 | O41: =IRR($M$5:M41) -> 0.3839565195 | S41: 99998
A42: 37 | C42: =-LOOKUP(((A42*'O&M Cost Estimator 6500B'!F$7)-MOD((A42*'O&M Cost Estimator 6500B'!F$7),4400)),'O&M Cost Estimator 6500B'!F$22:F$221,'O&M Cost Estimator 6500B'!I$22:I$221)-LOOKUP(((A42*'O&M Cost Estimator 6500B'!F$7)-MOD((A42*'O&M Cost Estimator 6500B'!F$7),4400)),'O&M Cost Estimator 6500B'!F$22:F$221,'O&M Cost Estimator 6500B'!K$22:K$221)+LOOKUP(((A41*'O&M Cost Estimator 6500B'!F$7)-MOD((A41*'O&M Cost Estimator 6500B'!F$7),4400)),'O&M Cost Estimator 6500B'!F$22:F$221,'O&M Cost Estimator 6500B'!I$22:I$221)+LOOKUP(((A41*'O&M Cost Estimator 6500B'!F$7)-MOD((A41*'O&M Cost Estimator 6500B'!F$7),4400)),'O&M Cost Estimator 6500B'!F$22:F$221,'O&M Cost Estimator 6500B'!K$22:K$221) -> -2608.93 | D42: ='Payback Estimator-6500B'!$B$42*(D41) +D41 -> 84972 | E42: 82363.07 | F42: =SUM($E$5:E42) -> 2765070.2 | G42: =IRR($E$5:E42) -> 0.3839574518 | I42: 37 | K42: =-LOOKUP(((A42*'O&M Cost Estimator 6500B'!F$7)-MOD((A42*'O&M Cost Estimator 6500B'!F$7),4400)),'O&M Cost Estimator 6500B'!Q$21:Q$221,'O&M Cost Estimator 6500B'!T$21:T$221)-LOOKUP(((A42*'O&M Cost Estimator 6500B'!F$7)-MOD((A42*'O&M Cost Estimator 6500B'!F$7),4400)),'O&M Cost Estimator 6500B'!Q$21:Q$221,'O&M Cost Estimator 6500B'!V$21:V$221)+LOOKUP(((A41*'O&M Cost Estimator 6500B'!F$7)-MOD((A41*'O&M Cost Estimator 6500B'!F$7),4400)),'O&M Cost Estimator 6500B'!Q$21:Q$221,'O&M Cost Estimator 6500B'!T$21:T$221)+LOOKUP(((A41*'O&M Cost Estimator 6500B'!F$7)-MOD((A41*'O&M Cost Estimator 6500B'!F$7),4400)),'O&M Cost Estimator 6500B'!Q$21:Q$221,'O&M Cost Estimator 6500B'!V$21:V$221) -> -2608.93 | L42: ='Payback Estimator-6500B'!$C$42*(L41)+L41 -> 84972 | M42: 82363.07 | N42: =SUM($M$5:M42) -> 2765070.2 | O42: =IRR($M$5:M42) -> 0.3839574518 | S42: 99998
A43: 38 | C43: =-LOOKUP(((A43*'O&M Cost Estimator 6500B'!F$7)-MOD((A43*'O&M Cost Estimator 6500B'!F$7),4400)),'O&M Cost Estimator 6500B'!F$22:F$221,'O&M Cost Estimator 6500B'!I$22:I$221)-LOOKUP(((A43*'O&M Cost Estimator 6500B'!F$7)-MOD((A43*'O&M Cost Estimator 6500B'!F$7),4400)),'O&M Cost Estimator 6500B'!F$22:F$221,'O&M Cost Estimator 6500B'!K$22:K$221)+LOOKUP(((A42*'O&M Cost Estimator 6500B'!F$7)-MOD((A42*'O&M Cost Estimator 6500B'!F$7),4400)),'O&M Cost Estimator 6500B'!F$22:F$221,'O&M Cost Estimator 6500B'!I$22:I$221)+LOOKUP(((A42*'O&M Cost Estimator 6500B'!F$7)-MOD((A42*'O&M Cost Estimator 6500B'!F$7),4400)),'O&M Cost Estimator 6500B'!F$22:F$221,'O&M Cost Estimator 6500B'!K$22:K$221) -> -1085 | D43: ='Payback Estimator-6500B'!$B$42*(D42) +D42 -> 84972 | E43: 83887 | F43: =SUM($E$5:E43) -> 2848957.2 | G43: =IRR($E$5:E43) -> 0.3839581378 | I43: 38 | K43: =-LOOKUP(((A43*'O&M Cost Estimator 6500B'!F$7)-MOD((A43*'O&M Cost Estimator 6500B'!F$7),4400)),'O&M Cost Estimator 6500B'!Q$21:Q$221,'O&M Cost Estimator 6500B'!T$21:T$221)-LOOKUP(((A43*'O&M Cost Estimator 6500B'!F$7)-MOD((A43*'O&M Cost Estimator 6500B'!F$7),4400)),'O&M Cost Estimator 6500B'!Q$21:Q$221,'O&M Cost Estimator 6500B'!V$21:V$221)+LOOKUP(((A42*'O&M Cost Estimator 6500B'!F$7)-MOD((A42*'O&M Cost Estimator 6500B'!F$7),4400)),'O&M Cost Estimator 6500B'!Q$21:Q$221,'O&M Cost Estimator 6500B'!T$21:T$221)+LOOKUP(((A42*'O&M Cost Estimator 6500B'!F$7)-MOD((A42*'O&M Cost Estimator 6500B'!F$7),4400)),'O&M Cost Estimator 6500B'!Q$21:Q$221,'O&M Cost Estimator 6500B'!V$21:V$221) -> -1085 | L43: ='Payback Estimator-6500B'!$C$42*(L42)+L42 -> 84972 | M43: 83887 | N43: =SUM($M$5:M43) -> 2848957.2 | O43: =IRR($M$5:M43) -> 0.3839581378 | S43: 99998
A44: 39 | C44: =-LOOKUP(((A44*'O&M Cost Estimator 6500B'!F$7)-MOD((A44*'O&M Cost Estimator 6500B'!F$7),4400)),'O&M Cost Estimator 6500B'!F$22:F$221,'O&M Cost Estimator 6500B'!I$22:I$221)-LOOKUP(((A44*'O&M Cost Estimator 6500B'!F$7)-MOD((A44*'O&M Cost Estimator 6500B'!F$7),4400)),'O&M Cost Estimator 6500B'!F$22:F$221,'O&M Cost Estimator 6500B'!K$22:K$221)+LOOKUP(((A43*'O&M Cost Estimator 6500B'!F$7)-MOD((A43*'O&M Cost Estimator 6500B'!F$7),4400)),'O&M Cost Estimator 6500B'!F$22:F$221,'O&M Cost Estimator 6500B'!I$22:I$221)+LOOKUP(((A43*'O&M Cost Estimator 6500B'!F$7)-MOD((A43*'O&M Cost Estimator 6500B'!F$7),4400)),'O&M Cost Estimator 6500B'!F$22:F$221,'O&M Cost Estimator 6500B'!K$22:K$221) -> -730 | D44: ='Payback Estimator-6500B'!$B$42*(D43) +D43 -> 84972 | E44: 84242 | F44: =SUM($E$5:E44) -> 2933199.2 | G44: =IRR($E$5:E44) -> 0.3839586356 | I44: 39 | K44: =-LOOKUP(((A44*'O&M Cost Estimator 6500B'!F$7)-MOD((A44*'O&M Cost Estimator 6500B'!F$7),4400)),'O&M Cost Estimator 6500B'!Q$21:Q$221,'O&M Cost Estimator 6500B'!T$21:T$221)-LOOKUP(((A44*'O&M Cost Estimator 6500B'!F$7)-MOD((A44*'O&M Cost Estimator 6500B'!F$7),4400)),'O&M Cost Estimator 6500B'!Q$21:Q$221,'O&M Cost Estimator 6500B'!V$21:V$221)+LOOKUP(((A43*'O&M Cost Estimator 6500B'!F$7)-MOD((A43*'O&M Cost Estimator 6500B'!F$7),4400)),'O&M Cost Estimator 6500B'!Q$21:Q$221,'O&M Cost Estimator 6500B'!T$21:T$221)+LOOKUP(((A43*'O&M Cost Estimator 6500B'!F$7)-MOD((A43*'O&M Cost Estimator 6500B'!F$7),4400)),'O&M Cost Estimator 6500B'!Q$21:Q$221,'O&M Cost Estimator 6500B'!V$21:V$221) -> -730 | L44: ='Payback Estimator-6500B'!$C$42*(L43)+L43 -> 84972 | M44: 84242 | N44: =SUM($M$5:M44) -> 2933199.2 | O44: =IRR($M$5:M44) -> 0.3839586356 | S44: 99998
A45: 40 | C45: =-LOOKUP(((A45*'O&M Cost Estimator 6500B'!F$7)-MOD((A45*'O&M Cost Estimator 6500B'!F$7),4400)),'O&M Cost Estimator 6500B'!F$22:F$221,'O&M Cost Estimator 6500B'!I$22:I$221)-LOOKUP(((A45*'O&M Cost Estimator 6500B'!F$7)-MOD((A45*'O&M Cost Estimator 6500B'!F$7),4400)),'O&M Cost Estimator 6500B'!F$22:F$221,'O&M Cost Estimator 6500B'!K$22:K$221)+LOOKUP(((A44*'O&M Cost Estimator 6500B'!F$7)-MOD((A44*'O&M Cost Estimator 6500B'!F$7),4400)),'O&M Cost Estimator 6500B'!F$22:F$221,'O&M Cost Estimator 6500B'!I$22:I$221)+LOOKUP(((A44*'O&M Cost Estimator 6500B'!F$7)-MOD((A44*'O&M Cost Estimator 6500B'!F$7),4400)),'O&M Cost Estimator 6500B'!F$22:F$221,'O&M Cost Estimator 6500B'!K$22:K$221) -> -2608.93 | D45: ='Payback Estimator-6500B'!$B$42*(D44) +D44 -> 84972 | E45: 82363.07 | F45: =SUM($E$5:E45) -> 3015562.27 | G45: =IRR($E$5:E45) -> 0.3839589873 | I45: 40 | K45: =-LOOKUP(((A45*'O&M Cost Estimator 6500B'!F$7)-MOD((A45*'O&M Cost Estimator 6500B'!F$7),4400)),'O&M Cost Estimator 6500B'!Q$21:Q$221,'O&M Cost Estimator 6500B'!T$21:T$221)-LOOKUP(((A45*'O&M Cost Estimator 6500B'!F$7)-MOD((A45*'O&M Cost Estimator 6500B'!F$7),4400)),'O&M Cost Estimator 6500B'!Q$21:Q$221,'O&M Cost Estimator 6500B'!V$21:V$221)+LOOKUP(((A44*'O&M Cost Estimator 6500B'!F$7)-MOD((A44*'O&M Cost Estimator 6500B'!F$7),4400)),'O&M Cost Estimator 6500B'!Q$21:Q$221,'O&M Cost Estimator 6500B'!T$21:T$221)+LOOKUP(((A44*'O&M Cost Estimator 6500B'!F$7)-MOD((A44*'O&M Cost Estimator 6500B'!F$7),4400)),'O&M Cost Estimator 6500B'!Q$21:Q$221,'O&M Cost Estimator 6500B'!V$21:V$221) -> -2608.93 | L45: ='Payback Estimator-6500B'!$C$42*(L44)+L44 -> 84972 | M45: 82363.07 | N45: =SUM($M$5:M45) -> 3015562.27 | O45: =IRR($M$5:M45) -> 0.3839589873 | S45: 99998
A46: 41 | C46: =-LOOKUP(((A46*'O&M Cost Estimator 6500B'!F$7)-MOD((A46*'O&M Cost Estimator 6500B'!F$7),4400)),'O&M Cost Estimator 6500B'!F$22:F$221,'O&M Cost Estimator 6500B'!I$22:I$221)-LOOKUP(((A46*'O&M Cost Estimator 6500B'!F$7)-MOD((A46*'O&M Cost Estimator 6500B'!F$7),4400)),'O&M Cost Estimator 6500B'!F$22:F$221,'O&M Cost Estimator 6500B'!K$22:K$221)+LOOKUP(((A45*'O&M Cost Estimator 6500B'!F$7)-MOD((A45*'O&M Cost Estimator 6500B'!F$7),4400)),'O&M Cost Estimator 6500B'!F$22:F$221,'O&M Cost Estimator 6500B'!I$22:I$221)+LOOKUP(((A45*'O&M Cost Estimator 6500B'!F$7)-MOD((A45*'O&M Cost Estimator 6500B'!F$7),4400)),'O&M Cost Estimator 6500B'!F$22:F$221,'O&M Cost Estimator 6500B'!K$22:K$221) -> -1085 | D46: ='Payback Estimator-6500B'!$B$42*(D45) +D45 -> 84972 | E46: 83887 | F46: =SUM($E$5:E46) -> 3099449.27 | G46: =IRR($E$5:E46) -> 0.3839592461 | I46: 41 | K46: =-LOOKUP(((A46*'O&M Cost Estimator 6500B'!F$7)-MOD((A46*'O&M Cost Estimator 6500B'!F$7),4400)),'O&M Cost Estimator 6500B'!Q$21:Q$221,'O&M Cost Estimator 6500B'!T$21:T$221)-LOOKUP(((A46*'O&M Cost Estimator 6500B'!F$7)-MOD((A46*'O&M Cost Estimator 6500B'!F$7),4400)),'O&M Cost Estimator 6500B'!Q$21:Q$221,'O&M Cost Estimator 6500B'!V$21:V$221)+LOOKUP(((A45*'O&M Cost Estimator 6500B'!F$7)-MOD((A45*'O&M Cost Estimator 6500B'!F$7),4400)),'O&M Cost Estimator 6500B'!Q$21:Q$221,'O&M Cost Estimator 6500B'!T$21:T$221)+LOOKUP(((A45*'O&M Cost Estimator 6500B'!F$7)-MOD((A45*'O&M Cost Estimator 6500B'!F$7),4400)),'O&M Cost Estimator 6500B'!Q$21:Q$221,'O&M Cost Estimator 6500B'!V$21:V$221) -> -1085 | L46: ='Payback Estimator-6500B'!$C$42*(L45)+L45 -> 84972 | M46: 83887 | N46: =SUM($M$5:M46) -> 3099449.27 | O46: =IRR($M$5:M46) -> 0.3839592461 | S46: 99998
